Workbook

Sheet Menu (hidden)
B2: ="โปรแกรม ปพ.5 V.2014 "&'1พิมพ์ปกปพ'!O4&" "&TEXT(NOW(),"dd ดดด ")&YEAR(NOW())+543 -> โปรแกรม ปพ.5 V.2014 3 ห้อง 1 04 ต.ค. 2567
B3: กรอกข้อมูล (ทำตามลำดับ) | C3: Report >> พิมพ์ ปพ.
B4: 1. ตัวชี้วัด/ผลการเรียนรู้ (จุดประสงค์ ) | C4: 1. พิมพ์ปก
B5: 2. กรอก DATA BASIC (ข้อมูลพื้นฐาน) | C5: 2. พิมพ์หน้า 1- 3 (เช็คการเรียน)
A6: กรอกเอง | B6: =IF(A6="กรอกอัตโนมัติ",HYPERLINK("#'h'!C7","3. กรอกคะแนนย่อย(อัตโนมัติ)"),HYPERLINK("#'m'!C7","3. กรอกคะแนนย่อย (กรอกด้วยมือ)")) -> 3. กรอกคะแนนย่อย (กรอกด้วยมือ) | C6: 3. พิมพ์ หน้า 4-6 (ผลการเรียน)
B7: 4. ตั้งค่ารายสัปดาห์ (ตารางเรียน ) | C7: 4. พิมพ์ตัวชี้วัด
B8: 5. เช็คการมาเรียน (ขาด,ลา,ป่วย,สาย) | C8: - พิมพ์ใบสรุปผล (เกรด) ไม่พิมพ์ก็ได้นะครับ
B9: **** มีแจงคะแนนอัตโนมัติคลิกช่องหน้าเลข 3 | C9: - พิมพ์กำหนดเกณฑ์ประเมินผล
B10: Copyright©2014 (http://www.cika.biz) By ธานินทร์ ธานี Email : Ciknok2000@gmail.com | C10: *หมายเหตุ: ใครที่คลิกเมนูไม่ไปให้ไปโหลดโปรแกรม Fix ที่เว็บนี้ ดาวน์โหลดและเปิดโปรแกรมรอจนกว่าจะเสร็จแล้วรีสตาร์ทเครื่องใหม่ ก็จะหายเองครับ..
C11: =HYPERLINK("http://go.microsoft.com/?linkid=9824113","http://go.microsoft.com/?linkid=9824113") -> http://go.microsoft.com/?linkid=9824113

Sheet พิมพ์รายงาน
B1: ="แบบบันทึกผลการเรียนรายวิชา "&'1ข้อมูลรายวิชา'!Q22&" "&'1ข้อมูลรายวิชา'!Q24&" ภาคเรียนที่ "&'1ข้อมูลรายวิชา'!Q15&"/"&'1ข้อมูลรายวิชา'!Q14 -> แบบบันทึกผลการเรียนรายวิชา โรงเรียนโคกสีพิทยาสรรพ์ สำนักงานเขตพื้นที่การศึกษามัธยมศึกษาขอนแก่น ภาคเรียนที่ 1/2567
B2: ="รหัสวิชา "&'1ข้อมูลรายวิชา'!Q7&" รายวิชา "&'1ข้อมูลรายวิชา'!QQ87&'1ข้อมูลรายวิชา'!Q8&" หน่วยกิต "&'1ข้อมูลรายวิชา'!Q9&" นก. "&'1ข้อมูลรายวิชา'!QQ97&" ครูผู้สอน "&'1ข้อมูลรายวิชา'!Q18&" กลุ่มสาระการเรียนรู้ "&'1ข้อมูลรายวิชา'!Q19&" ม."&'1ข้อมูลรายวิชา'!Q4 -> รหัสวิชา ว22103 รายวิชา วิทยาการคำนวณ หน่วยกิต 1 นก. ครูผู้สอน นายเจษฎา นินจันทร์ กลุ่มสาระการเรียนรู้ วิทยาศาตร์และเทคโนโลยี ม.3 ห้อง 1
B4: ลงชื่อ | F4: ลงชื่อ
D5: ="( "&'1ข้อมูลรายวิชา'!Q18&" )" -> ( นายเจษฎา นินจันทร์ ) | G5: ( )
C6: ลงชื่อ | F6: ลงชื่อ
D7: ( ) | G7: ( )
B8: ตรวจสอบการบันทึกคะแนนหน่วย KPA-กลางภาค-ปลายภาค | E8: หน่วย 1-2 | F8: K | G8: P | H8: A | I8: หน่วย 3-4 | J8: K | K8: P | L8: A | M8: กลาง | N8: ปลาย
E9: เฉลี่ย | F9: ='6บันทึกคะแนน'!G76 ->  | G9: ='6บันทึกคะแนน'!H76 ->  | H9: ='6บันทึกคะแนน'!I76 ->  | I9: เฉลี่ย | J9: ='6บันทึกคะแนน'!G77 ->  | K9: ='6บันทึกคะแนน'!H77 ->  | L9: ='6บันทึกคะแนน'!I77 ->  | M9: ='6บันทึกคะแนน'!P75 ->  | N9: ='6บันทึกคะแนน'!AV75 -> 
B10: จ.ก่อน | C10: ='4พิมพ์จปส.'!$H$34 ->  | D10: สถิติผลการเรียน | E10: 4 | F10: 3.5 | G10: 3 | H10: 2.5 | I10: 2 | J10: 1.5 | K10: 1 | L10: 0 | M10: ร | N10: มส.
B11: จ.หลัง | C11: ='4พิมพ์จปส.'!$H$36 ->  | D11: ="จำนวนนักเรียนทั้งหมด "&ตรวจ!$CK$74&" คน " -> จำนวนนักเรียนทั้งหมด 41 คน | E11: =ตรวจ!CE71 -> 0 | F11: =ตรวจ!CF71 -> 0 | G11: =ตรวจ!CG71 -> 0 | H11: =ตรวจ!CH71 -> 0 | I11: =ตรวจ!CI71 -> 0 | J11: =ตรวจ!CJ71 -> 0 | K11: =ตรวจ!CK71 -> 0 | L11: =ตรวจ!CL71 -> 41 | M11: =ตรวจ!CM71 -> 0 | N11: =ตรวจ!CN71 -> 0
B12: เลขที่ | C12: รหัส | D12: ชื่อ-สกุล | E12: ร้อยละ เวลาเรียน | F12: ก่อน | G12: กลาง | H12: หลัง | I12: ปลาย | J12: กรณี ร,มส.,ลาออก | K12: SUM | L12: เกรด | M12: อ่านคิดฯ | N12: คุณลักษณะฯ
D13: ='1ข้อมูลรายวิชา'!$D$3 -> วิทยาการคำนวณ ว22103 3 ห้อง 1 | F13: =ตรวจ!$P$6 -> 0 | G13: =SGS!$F$3 -> 0 | H13: =SGS!$G$3 -> 0 | I13: =SGS!$H$3 -> 20 | K13: =SGS!$J$3 -> 20
B14: =ส่งพิมพ์รายงาน!R4 -> 1 | C14: =ส่งพิมพ์รายงาน!S4 -> 09441 | D14: =ส่งพิมพ์รายงาน!T4 -> เด็กชายกัมปนาท สีทัดยศ | E14: =ส่งพิมพ์รายงาน!U4 ->  | F14: =ส่งพิมพ์รายงาน!V4 -> 0 | G14: =ส่งพิมพ์รายงาน!W4 -> 0 | H14: =ส่งพิมพ์รายงาน!X4 -> 0 | I14: =ส่งพิมพ์รายงาน!Y4 -> 0 | J14: =ส่งพิมพ์รายงาน!Z4 ->  | K14: =ส่งพิมพ์รายงาน!AA4 -> 0 | L14: ='1ข้อมูลรายวิชา'!M4 -> 0 | M14: =ส่งพิมพ์รายงาน!AC4 -> 3 | N14: =ส่งพิมพ์รายงาน!AD4 -> 3
B15: =ส่งพิมพ์รายงาน!R5 -> 2 | C15: =ส่งพิมพ์รายงาน!S5 -> 09443 | D15: =ส่งพิมพ์รายงาน!T5 -> เด็กชายณัฐวุฒิ แก้วนารี | E15: =ส่งพิมพ์รายงาน!U5 ->  | F15: =ส่งพิมพ์รายงาน!V5 -> 0 | G15: =ส่งพิมพ์รายงาน!W5 -> 0 | H15: =ส่งพิมพ์รายงาน!X5 -> 0 | I15: =ส่งพิมพ์รายงาน!Y5 -> 0 | J15: =ส่งพิมพ์รายงาน!Z5 ->  | K15: =ส่งพิมพ์รายงาน!AA5 -> 0 | L15: =ส่งพิมพ์รายงาน!AB5 -> 0 | M15: =ส่งพิมพ์รายงาน!AC5 -> 3 | N15: =ส่งพิมพ์รายงาน!AD5 -> 3
B16: =ส่งพิมพ์รายงาน!R6 -> 3 | C16: =ส่งพิมพ์รายงาน!S6 -> 09444 | D16: =ส่งพิมพ์รายงาน!T6 -> เด็กชายธีภพ แข็งแรง | E16: =ส่งพิมพ์รายงาน!U6 ->  | F16: =ส่งพิมพ์รายงาน!V6 -> 0 | G16: =ส่งพิมพ์รายงาน!W6 -> 0 | H16: =ส่งพิมพ์รายงาน!X6 -> 0 | I16: =ส่งพิมพ์รายงาน!Y6 -> 0 | J16: =ส่งพิมพ์รายงาน!Z6 ->  | K16: =ส่งพิมพ์รายงาน!AA6 -> 0 | L16: =ส่งพิมพ์รายงาน!AB6 -> 0 | M16: =ส่งพิมพ์รายงาน!AC6 -> 3 | N16: =ส่งพิมพ์รายงาน!AD6 -> 3
B17: =ส่งพิมพ์รายงาน!R7 -> 4 | C17: =ส่งพิมพ์รายงาน!S7 -> 09445 | D17: =ส่งพิมพ์รายงาน!T7 -> เด็กชายธีรภัทร เคนบู | E17: =ส่งพิมพ์รายงาน!U7 ->  | F17: =ส่งพิมพ์รายงาน!V7 -> 0 | G17: =ส่งพิมพ์รายงาน!W7 -> 0 | H17: =ส่งพิมพ์รายงาน!X7 -> 0 | I17: =ส่งพิมพ์รายงาน!Y7 -> 0 | J17: =ส่งพิมพ์รายงาน!Z7 ->  | K17: =ส่งพิมพ์รายงาน!AA7 -> 0 | L17: =ส่งพิมพ์รายงาน!AB7 -> 0 | M17: =ส่งพิมพ์รายงาน!AC7 -> 3 | N17: =ส่งพิมพ์รายงาน!AD7 -> 3
B18: =ส่งพิมพ์รายงาน!R8 -> 5 | C18: =ส่งพิมพ์รายงาน!S8 -> 09446 | D18: =ส่งพิมพ์รายงาน!T8 -> เด็กชายธีรวัฒน์ เผ้าหอม | E18: =ส่งพิมพ์รายงาน!U8 ->  | F18: =ส่งพิมพ์รายงาน!V8 -> 0 | G18: =ส่งพิมพ์รายงาน!W8 -> 0 | H18: =ส่งพิมพ์รายงาน!X8 -> 0 | I18: =ส่งพิมพ์รายงาน!Y8 -> 0 | J18: =ส่งพิมพ์รายงาน!Z8 ->  | K18: =ส่งพิมพ์รายงาน!AA8 -> 0 | L18: =ส่งพิมพ์รายงาน!AB8 -> 0 | M18: =ส่งพิมพ์รายงาน!AC8 -> 3 | N18: =ส่งพิมพ์รายงาน!AD8 -> 3
B19: =ส่งพิมพ์รายงาน!R9 -> 6 | C19: =ส่งพิมพ์รายงาน!S9 -> 09447 | D19: =ส่งพิมพ์รายงาน!T9 -> เด็กชายปกรณ์เกียรติ ศรีหนองบัว | E19: =ส่งพิมพ์รายงาน!U9 ->  | F19: =ส่งพิมพ์รายงาน!V9 -> 0 | G19: =ส่งพิมพ์รายงาน!W9 -> 0 | H19: =ส่งพิมพ์รายงาน!X9 -> 0 | I19: =ส่งพิมพ์รายงาน!Y9 -> 0 | J19: =ส่งพิมพ์รายงาน!Z9 ->  | K19: =ส่งพิมพ์รายงาน!AA9 -> 0 | L19: =ส่งพิมพ์รายงาน!AB9 -> 0 | M19: =ส่งพิมพ์รายงาน!AC9 -> 3 | N19: =ส่งพิมพ์รายงาน!AD9 -> 3
B20: =ส่งพิมพ์รายงาน!R10 -> 7 | C20: =ส่งพิมพ์รายงาน!S10 -> 09448 | D20: =ส่งพิมพ์รายงาน!T10 -> เด็กชายพงศกร แสงคำ | E20: =ส่งพิมพ์รายงาน!U10 ->  | F20: =ส่งพิมพ์รายงาน!V10 -> 0 | G20: =ส่งพิมพ์รายงาน!W10 -> 0 | H20: =ส่งพิมพ์รายงาน!X10 -> 0 | I20: =ส่งพิมพ์รายงาน!Y10 -> 0 | J20: =ส่งพิมพ์รายงาน!Z10 ->  | K20: =ส่งพิมพ์รายงาน!AA10 -> 0 | L20: =ส่งพิมพ์รายงาน!AB10 -> 0 | M20: =ส่งพิมพ์รายงาน!AC10 -> 3 | N20: =ส่งพิมพ์รายงาน!AD10 -> 3
B21: =ส่งพิมพ์รายงาน!R11 -> 8 | C21: =ส่งพิมพ์รายงาน!S11 -> 09450 | D21: =ส่งพิมพ์รายงาน!T11 -> เด็กชายพิชัยวัฒน์ จำวัน | E21: =ส่งพิมพ์รายงาน!U11 ->  | F21: =ส่งพิมพ์รายงาน!V11 -> 0 | G21: =ส่งพิมพ์รายงาน!W11 -> 0 | H21: =ส่งพิมพ์รายงาน!X11 -> 0 | I21: =ส่งพิมพ์รายงาน!Y11 -> 0 | J21: =ส่งพิมพ์รายงาน!Z11 ->  | K21: =ส่งพิมพ์รายงาน!AA11 -> 0 | L21: =ส่งพิมพ์รายงาน!AB11 -> 0 | M21: =ส่งพิมพ์รายงาน!AC11 -> 3 | N21: =ส่งพิมพ์รายงาน!AD11 -> 3
B22: =ส่งพิมพ์รายงาน!R12 -> 9 | C22: =ส่งพิมพ์รายงาน!S12 -> 09451 | D22: =ส่งพิมพ์รายงาน!T12 -> เด็กชายภาคิน ผ่านวงศ์ | E22: =ส่งพิมพ์รายงาน!U12 ->  | F22: =ส่งพิมพ์รายงาน!V12 -> 0 | G22: =ส่งพิมพ์รายงาน!W12 -> 0 | H22: =ส่งพิมพ์รายงาน!X12 -> 0 | I22: =ส่งพิมพ์รายงาน!Y12 -> 0 | J22: =ส่งพิมพ์รายงาน!Z12 ->  | K22: =ส่งพิมพ์รายงาน!AA12 -> 0 | L22: =ส่งพิมพ์รายงาน!AB12 -> 0 | M22: =ส่งพิมพ์รายงาน!AC12 -> 3 | N22: =ส่งพิมพ์รายงาน!AD12 -> 3
B23: =ส่งพิมพ์รายงาน!R13 -> 10 | C23: =ส่งพิมพ์รายงาน!S13 -> 09452 | D23: =ส่งพิมพ์รายงาน!T13 -> เด็กชายภูธารทอง สีพันดร | E23: =ส่งพิมพ์รายงาน!U13 ->  | F23: =ส่งพิมพ์รายงาน!V13 -> 0 | G23: =ส่งพิมพ์รายงาน!W13 -> 0 | H23: =ส่งพิมพ์รายงาน!X13 -> 0 | I23: =ส่งพิมพ์รายงาน!Y13 -> 0 | J23: =ส่งพิมพ์รายงาน!Z13 ->  | K23: =ส่งพิมพ์รายงาน!AA13 -> 0 | L23: =ส่งพิมพ์รายงาน!AB13 -> 0 | M23: =ส่งพิมพ์รายงาน!AC13 -> 3 | N23: =ส่งพิมพ์รายงาน!AD13 -> 3
B24: =ส่งพิมพ์รายงาน!R14 -> 11 | C24: =ส่งพิมพ์รายงาน!S14 -> 09453 | D24: =ส่งพิมพ์รายงาน!T14 -> เด็กชายเมคา นามหานวล | E24: =ส่งพิมพ์รายงาน!U14 ->  | F24: =ส่งพิมพ์รายงาน!V14 -> 0 | G24: =ส่งพิมพ์รายงาน!W14 -> 0 | H24: =ส่งพิมพ์รายงาน!X14 -> 0 | I24: =ส่งพิมพ์รายงาน!Y14 -> 0 | J24: =ส่งพิมพ์รายงาน!Z14 ->  | K24: =ส่งพิมพ์รายงาน!AA14 -> 0 | L24: =ส่งพิมพ์รายงาน!AB14 -> 0 | M24: =ส่งพิมพ์รายงาน!AC14 -> 3 | N24: =ส่งพิมพ์รายงาน!AD14 -> 3
B25: =ส่งพิมพ์รายงาน!R15 -> 12 | C25: =ส่งพิมพ์รายงาน!S15 -> 09454 | D25: =ส่งพิมพ์รายงาน!T15 -> เด็กชายเมฆินทร์ แสนศาลา | E25: =ส่งพิมพ์รายงาน!U15 ->  | F25: =ส่งพิมพ์รายงาน!V15 -> 0 | G25: =ส่งพิมพ์รายงาน!W15 -> 0 | H25: =ส่งพิมพ์รายงาน!X15 -> 0 | I25: =ส่งพิมพ์รายงาน!Y15 -> 0 | J25: =ส่งพิมพ์รายงาน!Z15 ->  | K25: =ส่งพิมพ์รายงาน!AA15 -> 0 | L25: =ส่งพิมพ์รายงาน!AB15 -> 0 | M25: =ส่งพิมพ์รายงาน!AC15 -> 3 | N25: =ส่งพิมพ์รายงาน!AD15 -> 3
B26: =ส่งพิมพ์รายงาน!R16 -> 13 | C26: =ส่งพิมพ์รายงาน!S16 -> 09455 | D26: =ส่งพิมพ์รายงาน!T16 -> เด็กชายวชิรวิทย์ พันพระสี | E26: =ส่งพิมพ์รายงาน!U16 ->  | F26: =ส่งพิมพ์รายงาน!V16 -> 0 | G26: =ส่งพิมพ์รายงาน!W16 -> 0 | H26: =ส่งพิมพ์รายงาน!X16 -> 0 | I26: =ส่งพิมพ์รายงาน!Y16 -> 0 | J26: =ส่งพิมพ์รายงาน!Z16 ->  | K26: =ส่งพิมพ์รายงาน!AA16 -> 0 | L26: =ส่งพิมพ์รายงาน!AB16 -> 0 | M26: =ส่งพิมพ์รายงาน!AC16 -> 3 | N26: =ส่งพิมพ์รายงาน!AD16 -> 3
B27: =ส่งพิมพ์รายงาน!R17 -> 14 | C27: =ส่งพิมพ์รายงาน!S17 -> 09456 | D27: =ส่งพิมพ์รายงาน!T17 -> เด็กชายวรินทร ผาดวงดี | E27: =ส่งพิมพ์รายงาน!U17 ->  | F27: =ส่งพิมพ์รายงาน!V17 -> 0 | G27: =ส่งพิมพ์รายงาน!W17 -> 0 | H27: =ส่งพิมพ์รายงาน!X17 -> 0 | I27: =ส่งพิมพ์รายงาน!Y17 -> 0 | J27: =ส่งพิมพ์รายงาน!Z17 ->  | K27: =ส่งพิมพ์รายงาน!AA17 -> 0 | L27: =ส่งพิมพ์รายงาน!AB17 -> 0 | M27: =ส่งพิมพ์รายงาน!AC17 -> 3 | N27: =ส่งพิมพ์รายงาน!AD17 -> 3
B28: =ส่งพิมพ์รายงาน!R18 -> 15 | C28: =ส่งพิมพ์รายงาน!S18 -> 09457 | D28: =ส่งพิมพ์รายงาน!T18 -> เด็กชายวีระศักดิ์ โสดาดง | E28: =ส่งพิมพ์รายงาน!U18 ->  | F28: =ส่งพิมพ์รายงาน!V18 -> 0 | G28: =ส่งพิมพ์รายงาน!W18 -> 0 | H28: =ส่งพิมพ์รายงาน!X18 -> 0 | I28: =ส่งพิมพ์รายงาน!Y18 -> 0 | J28: =ส่งพิมพ์รายงาน!Z18 ->  | K28: =ส่งพิมพ์รายงาน!AA18 -> 0 | L28: =ส่งพิมพ์รายงาน!AB18 -> 0 | M28: =ส่งพิมพ์รายงาน!AC18 -> 3 | N28: =ส่งพิมพ์รายงาน!AD18 -> 3
B29: =ส่งพิมพ์รายงาน!R19 -> 16 | C29: =ส่งพิมพ์รายงาน!S19 -> 09458 | D29: =ส่งพิมพ์รายงาน!T19 -> เด็กชายศักดิ์ดานุภาพ กุลลาว | E29: =ส่งพิมพ์รายงาน!U19 ->  | F29: =ส่งพิมพ์รายงาน!V19 -> 0 | G29: =ส่งพิมพ์รายงาน!W19 -> 0 | H29: =ส่งพิมพ์รายงาน!X19 -> 0 | I29: =ส่งพิมพ์รายงาน!Y19 -> 0 | J29: =ส่งพิมพ์รายงาน!Z19 ->  | K29: =ส่งพิมพ์รายงาน!AA19 -> 0 | L29: =ส่งพิมพ์รายงาน!AB19 -> 0 | M29: =ส่งพิมพ์รายงาน!AC19 -> 3 | N29: =ส่งพิมพ์รายงาน!AD19 -> 3
B30: =ส่งพิมพ์รายงาน!R20 -> 17 | C30: =ส่งพิมพ์รายงาน!S20 -> 09459 | D30: =ส่งพิมพ์รายงาน!T20 -> เด็กชายสิวภพ ปราบนอก | E30: =ส่งพิมพ์รายงาน!U20 ->  | F30: =ส่งพิมพ์รายงาน!V20 -> 0 | G30: =ส่งพิมพ์รายงาน!W20 -> 0 | H30: =ส่งพิมพ์รายงาน!X20 -> 0 | I30: =ส่งพิมพ์รายงาน!Y20 -> 0 | J30: =ส่งพิมพ์รายงาน!Z20 ->  | K30: =ส่งพิมพ์รายงาน!AA20 -> 0 | L30: =ส่งพิมพ์รายงาน!AB20 -> 0 | M30: =ส่งพิมพ์รายงาน!AC20 -> 3 | N30: =ส่งพิมพ์รายงาน!AD20 -> 3
B31: =ส่งพิมพ์รายงาน!R21 -> 18 | C31: =ส่งพิมพ์รายงาน!S21 -> 09460 | D31: =ส่งพิมพ์รายงาน!T21 -> เด็กชายสุจิตร เพียผิว | E31: =ส่งพิมพ์รายงาน!U21 ->  | F31: =ส่งพิมพ์รายงาน!V21 -> 0 | G31: =ส่งพิมพ์รายงาน!W21 -> 0 | H31: =ส่งพิมพ์รายงาน!X21 -> 0 | I31: =ส่งพิมพ์รายงาน!Y21 -> 0 | J31: =ส่งพิมพ์รายงาน!Z21 ->  | K31: =ส่งพิมพ์รายงาน!AA21 -> 0 | L31: =ส่งพิมพ์รายงาน!AB21 -> 0 | M31: =ส่งพิมพ์รายงาน!AC21 -> 3 | N31: =ส่งพิมพ์รายงาน!AD21 -> 3
B32: =ส่งพิมพ์รายงาน!R22 -> 19 | C32: =ส่งพิมพ์รายงาน!S22 -> 09461 | D32: =ส่งพิมพ์รายงาน!T22 -> เด็กชายสุรศักดิ์ มากเขียน | E32: =ส่งพิมพ์รายงาน!U22 ->  | F32: =ส่งพิมพ์รายงาน!V22 -> 0 | G32: =ส่งพิมพ์รายงาน!W22 -> 0 | H32: =ส่งพิมพ์รายงาน!X22 -> 0 | I32: =ส่งพิมพ์รายงาน!Y22 -> 0 | J32: =ส่งพิมพ์รายงาน!Z22 ->  | K32: =ส่งพิมพ์รายงาน!AA22 -> 0 | L32: =ส่งพิมพ์รายงาน!AB22 -> 0 | M32: =ส่งพิมพ์รายงาน!AC22 -> 3 | N32: =ส่งพิมพ์รายงาน!AD22 -> 3
B33: =ส่งพิมพ์รายงาน!R23 -> 20 | C33: =ส่งพิมพ์รายงาน!S23 -> 09462 | D33: =ส่งพิมพ์รายงาน!T23 -> เด็กชายอัครพล เทศแสงทอง | E33: =ส่งพิมพ์รายงาน!U23 ->  | F33: =ส่งพิมพ์รายงาน!V23 -> 0 | G33: =ส่งพิมพ์รายงาน!W23 -> 0 | H33: =ส่งพิมพ์รายงาน!X23 -> 0 | I33: =ส่งพิมพ์รายงาน!Y23 -> 0 | J33: =ส่งพิมพ์รายงาน!Z23 ->  | K33: =ส่งพิมพ์รายงาน!AA23 -> 0 | L33: =ส่งพิมพ์รายงาน!AB23 -> 0 | M33: =ส่งพิมพ์รายงาน!AC23 -> 3 | N33: =ส่งพิมพ์รายงาน!AD23 -> 3
B34: =ส่งพิมพ์รายงาน!R24 -> 21 | C34: =ส่งพิมพ์รายงาน!S24 -> 09463 | D34: =ส่งพิมพ์รายงาน!T24 -> เด็กหญิงมินตรา รัตนประกอบ | E34: =ส่งพิมพ์รายงาน!U24 ->  | F34: =ส่งพิมพ์รายงาน!V24 -> 0 | G34: =ส่งพิมพ์รายงาน!W24 -> 0 | H34: =ส่งพิมพ์รายงาน!X24 -> 0 | I34: =ส่งพิมพ์รายงาน!Y24 -> 0 | J34: =ส่งพิมพ์รายงาน!Z24 ->  | K34: =ส่งพิมพ์รายงาน!AA24 -> 0 | L34: =ส่งพิมพ์รายงาน!AB24 -> 0 | M34: =ส่งพิมพ์รายงาน!AC24 -> 3 | N34: =ส่งพิมพ์รายงาน!AD24 -> 3
B35: =ส่งพิมพ์รายงาน!R25 -> 22 | C35: =ส่งพิมพ์รายงาน!S25 -> 09464 | D35: =ส่งพิมพ์รายงาน!T25 -> เด็กหญิงชัญญานุช พันธ์เทพ | E35: =ส่งพิมพ์รายงาน!U25 ->  | F35: =ส่งพิมพ์รายงาน!V25 -> 0 | G35: =ส่งพิมพ์รายงาน!W25 -> 0 | H35: =ส่งพิมพ์รายงาน!X25 -> 0 | I35: =ส่งพิมพ์รายงาน!Y25 -> 0 | J35: =ส่งพิมพ์รายงาน!Z25 ->  | K35: =ส่งพิมพ์รายงาน!AA25 -> 0 | L35: =ส่งพิมพ์รายงาน!AB25 -> 0 | M35: =ส่งพิมพ์รายงาน!AC25 -> 3 | N35: =ส่งพิมพ์รายงาน!AD25 -> 3
B36: =ส่งพิมพ์รายงาน!R26 -> 23 | C36: =ส่งพิมพ์รายงาน!S26 -> 09465 | D36: =ส่งพิมพ์รายงาน!T26 -> เด็กหญิงธิภาดา จันศรีลา | E36: =ส่งพิมพ์รายงาน!U26 ->  | F36: =ส่งพิมพ์รายงาน!V26 -> 0 | G36: =ส่งพิมพ์รายงาน!W26 -> 0 | H36: =ส่งพิมพ์รายงาน!X26 -> 0 | I36: =ส่งพิมพ์รายงาน!Y26 -> 0 | J36: =ส่งพิมพ์รายงาน!Z26 ->  | K36: =ส่งพิมพ์รายงาน!AA26 -> 0 | L36: =ส่งพิมพ์รายงาน!AB26 -> 0 | M36: =ส่งพิมพ์รายงาน!AC26 -> 3 | N36: =ส่งพิมพ์รายงาน!AD26 -> 3
B37: =ส่งพิมพ์รายงาน!R27 -> 24 | C37: =ส่งพิมพ์รายงาน!S27 -> 09466 | D37: =ส่งพิมพ์รายงาน!T27 -> เด็กหญิงนิศามณี นาคสวัสดิ์ | E37: =ส่งพิมพ์รายงาน!U27 ->  | F37: =ส่งพิมพ์รายงาน!V27 -> 0 | G37: =ส่งพิมพ์รายงาน!W27 -> 0 | H37: =ส่งพิมพ์รายงาน!X27 -> 0 | I37: =ส่งพิมพ์รายงาน!Y27 -> 0 | J37: =ส่งพิมพ์รายงาน!Z27 ->  | K37: =ส่งพิมพ์รายงาน!AA27 -> 0 | L37: =ส่งพิมพ์รายงาน!AB27 -> 0 | M37: =ส่งพิมพ์รายงาน!AC27 -> 3 | N37: =ส่งพิมพ์รายงาน!AD27 -> 3
B38: =ส่งพิมพ์รายงาน!R28 -> 25 | C38: =ส่งพิมพ์รายงาน!S28 -> 09467 | D38: =ส่งพิมพ์รายงาน!T28 -> เด็กหญิงบุณยาพร มาเอี่ยม | E38: =ส่งพิมพ์รายงาน!U28 ->  | F38: =ส่งพิมพ์รายงาน!V28 -> 0 | G38: =ส่งพิมพ์รายงาน!W28 -> 0 | H38: =ส่งพิมพ์รายงาน!X28 -> 0 | I38: =ส่งพิมพ์รายงาน!Y28 -> 0 | J38: =ส่งพิมพ์รายงาน!Z28 ->  | K38: =ส่งพิมพ์รายงาน!AA28 -> 0 | L38: =ส่งพิมพ์รายงาน!AB28 -> 0 | M38: =ส่งพิมพ์รายงาน!AC28 -> 3 | N38: =ส่งพิมพ์รายงาน!AD28 -> 3
B39: =ส่งพิมพ์รายงาน!R29 -> 26 | C39: =ส่งพิมพ์รายงาน!S29 -> 09468 | D39: =ส่งพิมพ์รายงาน!T29 -> เด็กหญิงปิยะวดี วรรณสุทธิ์ | E39: =ส่งพิมพ์รายงาน!U29 ->  | F39: =ส่งพิมพ์รายงาน!V29 -> 0 | G39: =ส่งพิมพ์รายงาน!W29 -> 0 | H39: =ส่งพิมพ์รายงาน!X29 -> 0 | I39: =ส่งพิมพ์รายงาน!Y29 -> 0 | J39: =ส่งพิมพ์รายงาน!Z29 ->  | K39: =ส่งพิมพ์รายงาน!AA29 -> 0 | L39: =ส่งพิมพ์รายงาน!AB29 -> 0 | M39: =ส่งพิมพ์รายงาน!AC29 -> 3 | N39: =ส่งพิมพ์รายงาน!AD29 -> 3
B40: =ส่งพิมพ์รายงาน!R30 -> 27 | C40: =ส่งพิมพ์รายงาน!S30 -> 09470 | D40: =ส่งพิมพ์รายงาน!T30 -> เด็กหญิงภัทริดา นามหานวล | E40: =ส่งพิมพ์รายงาน!U30 ->  | F40: =ส่งพิมพ์รายงาน!V30 -> 0 | G40: =ส่งพิมพ์รายงาน!W30 -> 0 | H40: =ส่งพิมพ์รายงาน!X30 -> 0 | I40: =ส่งพิมพ์รายงาน!Y30 -> 0 | J40: =ส่งพิมพ์รายงาน!Z30 ->  | K40: =ส่งพิมพ์รายงาน!AA30 -> 0 | L40: =ส่งพิมพ์รายงาน!AB30 -> 0 | M40: =ส่งพิมพ์รายงาน!AC30 -> 3 | N40: =ส่งพิมพ์รายงาน!AD30 -> 3
B41: =ส่งพิมพ์รายงาน!R31 -> 28 | C41: =ส่งพิมพ์รายงาน!S31 -> 09471 | D41: =ส่งพิมพ์รายงาน!T31 -> เด็กหญิงธิชาพัชร์ โนนทิง | E41: =ส่งพิมพ์รายงาน!U31 ->  | F41: =ส่งพิมพ์รายงาน!V31 -> 0 | G41: =ส่งพิมพ์รายงาน!W31 -> 0 | H41: =ส่งพิมพ์รายงาน!X31 -> 0 | I41: =ส่งพิมพ์รายงาน!Y31 -> 0 | J41: =ส่งพิมพ์รายงาน!Z31 ->  | K41: =ส่งพิมพ์รายงาน!AA31 -> 0 | L41: =ส่งพิมพ์รายงาน!AB31 -> 0 | M41: =ส่งพิมพ์รายงาน!AC31 -> 3 | N41: =ส่งพิมพ์รายงาน!AD31 -> 3
B42: =ส่งพิมพ์รายงาน!R32 -> 29 | C42: =ส่งพิมพ์รายงาน!S32 -> 09472 | D42: =ส่งพิมพ์รายงาน!T32 -> เด็กหญิงวารัญญา จำวัน | E42: =ส่งพิมพ์รายงาน!U32 ->  | F42: =ส่งพิมพ์รายงาน!V32 -> 0 | G42: =ส่งพิมพ์รายงาน!W32 -> 0 | H42: =ส่งพิมพ์รายงาน!X32 -> 0 | I42: =ส่งพิมพ์รายงาน!Y32 -> 0 | J42: =ส่งพิมพ์รายงาน!Z32 ->  | K42: =ส่งพิมพ์รายงาน!AA32 -> 0 | L42: =ส่งพิมพ์รายงาน!AB32 -> 0 | M42: =ส่งพิมพ์รายงาน!AC32 -> 3 | N42: =ส่งพิมพ์รายงาน!AD32 -> 3
B43: =ส่งพิมพ์รายงาน!R33 -> 30 | C43: =ส่งพิมพ์รายงาน!S33 -> 09473 | D43: =ส่งพิมพ์รายงาน!T33 -> เด็กหญิงวารุณี อรัญทอง | E43: =ส่งพิมพ์รายงาน!U33 ->  | F43: =ส่งพิมพ์รายงาน!V33 -> 0 | G43: =ส่งพิมพ์รายงาน!W33 -> 0 | H43: =ส่งพิมพ์รายงาน!X33 -> 0 | I43: =ส่งพิมพ์รายงาน!Y33 -> 0 | J43: =ส่งพิมพ์รายงาน!Z33 ->  | K43: =ส่งพิมพ์รายงาน!AA33 -> 0 | L43: =ส่งพิมพ์รายงาน!AB33 -> 0 | M43: =ส่งพิมพ์รายงาน!AC33 -> 3 | N43: =ส่งพิมพ์รายงาน!AD33 -> 3
B44: =ส่งพิมพ์รายงาน!R34 -> 31 | C44: =ส่งพิมพ์รายงาน!S34 -> 09474 | D44: =ส่งพิมพ์รายงาน!T34 -> เด็กหญิงสุพรรษา จำปาบุญ | E44: =ส่งพิมพ์รายงาน!U34 ->  | F44: =ส่งพิมพ์รายงาน!V34 -> 0 | G44: =ส่งพิมพ์รายงาน!W34 -> 0 | H44: =ส่งพิมพ์รายงาน!X34 -> 0 | I44: =ส่งพิมพ์รายงาน!Y34 -> 0 | J44: =ส่งพิมพ์รายงาน!Z34 ->  | K44: =ส่งพิมพ์รายงาน!AA34 -> 0 | L44: =ส่งพิมพ์รายงาน!AB34 -> 0 | M44: =ส่งพิมพ์รายงาน!AC34 -> 3 | N44: =ส่งพิมพ์รายงาน!AD34 -> 3
B45: =ส่งพิมพ์รายงาน!R35 -> 32 | C45: =ส่งพิมพ์รายงาน!S35 -> 09475 | D45: =ส่งพิมพ์รายงาน!T35 -> เด็กหญิงเอมมิกา ยิ่งชาติ | E45: =ส่งพิมพ์รายงาน!U35 ->  | F45: =ส่งพิมพ์รายงาน!V35 -> 0 | G45: =ส่งพิมพ์รายงาน!W35 -> 0 | H45: =ส่งพิมพ์รายงาน!X35 -> 0 | I45: =ส่งพิมพ์รายงาน!Y35 -> 0 | J45: =ส่งพิมพ์รายงาน!Z35 ->  | K45: =ส่งพิมพ์รายงาน!AA35 -> 0 | L45: =ส่งพิมพ์รายงาน!AB35 -> 0 | M45: =ส่งพิมพ์รายงาน!AC35 -> 3 | N45: =ส่งพิมพ์รายงาน!AD35 -> 3
B46: =ส่งพิมพ์รายงาน!R36 -> 33 | C46: =ส่งพิมพ์รายงาน!S36 -> 09537 | D46: =ส่งพิมพ์รายงาน!T36 -> เด็กหญิงปิยธิดา ชาญรอบรู้ | E46: =ส่งพิมพ์รายงาน!U36 ->  | F46: =ส่งพิมพ์รายงาน!V36 -> 0 | G46: =ส่งพิมพ์รายงาน!W36 -> 0 | H46: =ส่งพิมพ์รายงาน!X36 -> 0 | I46: =ส่งพิมพ์รายงาน!Y36 -> 0 | J46: =ส่งพิมพ์รายงาน!Z36 ->  | K46: =ส่งพิมพ์รายงาน!AA36 -> 0 | L46: =ส่งพิมพ์รายงาน!AB36 -> 0 | M46: =ส่งพิมพ์รายงาน!AC36 -> 3 | N46: =ส่งพิมพ์รายงาน!AD36 -> 3
B47: =ส่งพิมพ์รายงาน!R37 -> 34 | C47: =ส่งพิมพ์รายงาน!S37 -> 09539 | D47: =ส่งพิมพ์รายงาน!T37 -> เด็กชายกิตติคุณ พานิชศิริ | E47: =ส่งพิมพ์รายงาน!U37 ->  | F47: =ส่งพิมพ์รายงาน!V37 -> 0 | G47: =ส่งพิมพ์รายงาน!W37 -> 0 | H47: =ส่งพิมพ์รายงาน!X37 -> 0 | I47: =ส่งพิมพ์รายงาน!Y37 -> 0 | J47: =ส่งพิมพ์รายงาน!Z37 ->  | K47: =ส่งพิมพ์รายงาน!AA37 -> 0 | L47: =ส่งพิมพ์รายงาน!AB37 -> 0 | M47: =ส่งพิมพ์รายงาน!AC37 -> 3 | N47: =ส่งพิมพ์รายงาน!AD37 -> 3
B48: =ส่งพิมพ์รายงาน!R38 -> 35 | C48: =ส่งพิมพ์รายงาน!S38 -> 09541 | D48: =ส่งพิมพ์รายงาน!T38 -> เด็กชายพีรพัฒน์ ศึกษากิจ | E48: =ส่งพิมพ์รายงาน!U38 ->  | F48: =ส่งพิมพ์รายงาน!V38 -> 0 | G48: =ส่งพิมพ์รายงาน!W38 -> 0 | H48: =ส่งพิมพ์รายงาน!X38 -> 0 | I48: =ส่งพิมพ์รายงาน!Y38 -> 0 | J48: =ส่งพิมพ์รายงาน!Z38 ->  | K48: =ส่งพิมพ์รายงาน!AA38 -> 0 | L48: =ส่งพิมพ์รายงาน!AB38 -> 0 | M48: =ส่งพิมพ์รายงาน!AC38 -> 3 | N48: =ส่งพิมพ์รายงาน!AD38 -> 3
B49: =ส่งพิมพ์รายงาน!R39 -> 36 | C49: =ส่งพิมพ์รายงาน!S39 -> 09609 | D49: =ส่งพิมพ์รายงาน!T39 -> เด็กหญิงนลินทิพย์ ทองชมภู | E49: =ส่งพิมพ์รายงาน!U39 ->  | F49: =ส่งพิมพ์รายงาน!V39 -> 0 | G49: =ส่งพิมพ์รายงาน!W39 -> 0 | H49: =ส่งพิมพ์รายงาน!X39 -> 0 | I49: =ส่งพิมพ์รายงาน!Y39 -> 0 | J49: =ส่งพิมพ์รายงาน!Z39 ->  | K49: =ส่งพิมพ์รายงาน!AA39 -> 0 | L49: =ส่งพิมพ์รายงาน!AB39 -> 0 | M49: =ส่งพิมพ์รายงาน!AC39 -> 3 | N49: =ส่งพิมพ์รายงาน!AD39 -> 3
B50: =ส่งพิมพ์รายงาน!R40 -> 37 | C50: =ส่งพิมพ์รายงาน!S40 -> 09610 | D50: =ส่งพิมพ์รายงาน!T40 -> เด็กชายปพัฐษดา ผิวแดง | E50: =ส่งพิมพ์รายงาน!U40 ->  | F50: =ส่งพิมพ์รายงาน!V40 -> 0 | G50: =ส่งพิมพ์รายงาน!W40 -> 0 | H50: =ส่งพิมพ์รายงาน!X40 -> 0 | I50: =ส่งพิมพ์รายงาน!Y40 -> 0 | J50: =ส่งพิมพ์รายงาน!Z40 ->  | K50: =ส่งพิมพ์รายงาน!AA40 -> 0 | L50: =ส่งพิมพ์รายงาน!AB40 -> 0 | M50: =ส่งพิมพ์รายงาน!AC40 -> 3 | N50: =ส่งพิมพ์รายงาน!AD40 -> 3
B51: =ส่งพิมพ์รายงาน!R41 -> 38 | C51: =ส่งพิมพ์รายงาน!S41 -> 09620 | D51: =ส่งพิมพ์รายงาน!T41 -> เด็กชายธันวา สีเขียว | E51: =ส่งพิมพ์รายงาน!U41 ->  | F51: =ส่งพิมพ์รายงาน!V41 -> 0 | G51: =ส่งพิมพ์รายงาน!W41 -> 0 | H51: =ส่งพิมพ์รายงาน!X41 -> 0 | I51: =ส่งพิมพ์รายงาน!Y41 -> 0 | J51: =ส่งพิมพ์รายงาน!Z41 ->  | K51: =ส่งพิมพ์รายงาน!AA41 -> 0 | L51: =ส่งพิมพ์รายงาน!AB41 -> 0 | M51: =ส่งพิมพ์รายงาน!AC41 -> 3 | N51: =ส่งพิมพ์รายงาน!AD41 -> 3
B52: =ส่งพิมพ์รายงาน!R42 -> 39 | C52: =ส่งพิมพ์รายงาน!S42 -> 09733 | D52: =ส่งพิมพ์รายงาน!T42 -> เด็กชายพีรพัฒน์ ดาทุมมา | E52: =ส่งพิมพ์รายงาน!U42 ->  | F52: =ส่งพิมพ์รายงาน!V42 -> 0 | G52: =ส่งพิมพ์รายงาน!W42 -> 0 | H52: =ส่งพิมพ์รายงาน!X42 -> 0 | I52: =ส่งพิมพ์รายงาน!Y42 -> 0 | J52: =ส่งพิมพ์รายงาน!Z42 ->  | K52: =ส่งพิมพ์รายงาน!AA42 -> 0 | L52: =ส่งพิมพ์รายงาน!AB42 -> 0 | M52: =ส่งพิมพ์รายงาน!AC42 -> 3 | N52: =ส่งพิมพ์รายงาน!AD42 -> 3
B53: =ส่งพิมพ์รายงาน!R43 -> 40 | C53: =ส่งพิมพ์รายงาน!S43 -> 09734 | D53: =ส่งพิมพ์รายงาน!T43 -> เด็กชายมงคล จิตรบรรจง | E53: =ส่งพิมพ์รายงาน!U43 ->  | F53: =ส่งพิมพ์รายงาน!V43 -> 0 | G53: =ส่งพิมพ์รายงาน!W43 -> 0 | H53: =ส่งพิมพ์รายงาน!X43 -> 0 | I53: =ส่งพิมพ์รายงาน!Y43 -> 0 | J53: =ส่งพิมพ์รายงาน!Z43 ->  | K53: =ส่งพิมพ์รายงาน!AA43 -> 0 | L53: =ส่งพิมพ์รายงาน!AB43 -> 0 | M53: =ส่งพิมพ์รายงาน!AC43 -> 3 | N53: =ส่งพิมพ์รายงาน!AD43 -> 3
B54: =ส่งพิมพ์รายงาน!R44 -> 41 | C54: =ส่งพิมพ์รายงาน!S44 -> 09738 | D54: =ส่งพิมพ์รายงาน!T44 -> เด็กหญิงวิภาวดี ร้อยพรหมมา | E54: =ส่งพิมพ์รายงาน!U44 ->  | F54: =ส่งพิมพ์รายงาน!V44 -> 0 | G54: =ส่งพิมพ์รายงาน!W44 -> 0 | H54: =ส่งพิมพ์รายงาน!X44 -> 0 | I54: =ส่งพิมพ์รายงาน!Y44 -> 0 | J54: =ส่งพิมพ์รายงาน!Z44 ->  | K54: =ส่งพิมพ์รายงาน!AA44 -> 0 | L54: =ส่งพิมพ์รายงาน!AB44 -> 0 | M54: =ส่งพิมพ์รายงาน!AC44 -> 3 | N54: =ส่งพิมพ์รายงาน!AD44 -> 3
B55: =ส่งพิมพ์รายงาน!R45 ->  | C55: =ส่งพิมพ์รายงาน!S45 ->  | D55: =ส่งพิมพ์รายงาน!T45 ->  | E55: =ส่งพิมพ์รายงาน!U45 ->  | F55: =ส่งพิมพ์รายงาน!V45 ->  | G55: =ส่งพิมพ์รายงาน!W45 ->  | H55: =ส่งพิมพ์รายงาน!X45 ->  | I55: =ส่งพิมพ์รายงาน!Y45 ->  | J55: =ส่งพิมพ์รายงาน!Z45 ->  | K55: =ส่งพิมพ์รายงาน!AA45 ->  | L55: =ส่งพิมพ์รายงาน!AB45 ->  | M55: =ส่งพิมพ์รายงาน!AC45 ->  | N55: =ส่งพิมพ์รายงาน!AD45 -> 
B56: =ส่งพิมพ์รายงาน!R46 ->  | C56: =ส่งพิมพ์รายงาน!S46 ->  | D56: =ส่งพิมพ์รายงาน!T46 ->  | E56: =ส่งพิมพ์รายงาน!U46 ->  | F56: =ส่งพิมพ์รายงาน!V46 ->  | G56: =ส่งพิมพ์รายงาน!W46 ->  | H56: =ส่งพิมพ์รายงาน!X46 ->  | I56: =ส่งพิมพ์รายงาน!Y46 ->  | J56: =ส่งพิมพ์รายงาน!Z46 ->  | K56: =ส่งพิมพ์รายงาน!AA46 ->  | L56: =ส่งพิมพ์รายงาน!AB46 ->  | M56: =ส่งพิมพ์รายงาน!AC46 ->  | N56: =ส่งพิมพ์รายงาน!AD46 -> 
B57: =ส่งพิมพ์รายงาน!R47 ->  | C57: =ส่งพิมพ์รายงาน!S47 ->  | D57: =ส่งพิมพ์รายงาน!T47 ->  | E57: =ส่งพิมพ์รายงาน!U47 ->  | F57: =ส่งพิมพ์รายงาน!V47 ->  | G57: =ส่งพิมพ์รายงาน!W47 ->  | H57: =ส่งพิมพ์รายงาน!X47 ->  | I57: =ส่งพิมพ์รายงาน!Y47 ->  | J57: =ส่งพิมพ์รายงาน!Z47 ->  | K57: =ส่งพิมพ์รายงาน!AA47 ->  | L57: =ส่งพิมพ์รายงาน!AB47 ->  | M57: =ส่งพิมพ์รายงาน!AC47 ->  | N57: =ส่งพิมพ์รายงาน!AD47 -> 
B58: =ส่งพิมพ์รายงาน!R48 ->  | C58: =ส่งพิมพ์รายงาน!S48 ->  | D58: =ส่งพิมพ์รายงาน!T48 ->  | E58: =ส่งพิมพ์รายงาน!U48 ->  | F58: =ส่งพิมพ์รายงาน!V48 ->  | G58: =ส่งพิมพ์รายงาน!W48 ->  | H58: =ส่งพิมพ์รายงาน!X48 ->  | I58: =ส่งพิมพ์รายงาน!Y48 ->  | J58: =ส่งพิมพ์รายงาน!Z48 ->  | K58: =ส่งพิมพ์รายงาน!AA48 ->  | L58: =ส่งพิมพ์รายงาน!AB48 ->  | M58: =ส่งพิมพ์รายงาน!AC48 ->  | N58: =ส่งพิมพ์รายงาน!AD48 -> 
B59: =ส่งพิมพ์รายงาน!R49 ->  | C59: =ส่งพิมพ์รายงาน!S49 ->  | D59: =ส่งพิมพ์รายงาน!T49 ->  | E59: =ส่งพิมพ์รายงาน!U49 ->  | F59: =ส่งพิมพ์รายงาน!V49 ->  | G59: =ส่งพิมพ์รายงาน!W49 ->  | H59: =ส่งพิมพ์รายงาน!X49 ->  | I59: =ส่งพิมพ์รายงาน!Y49 ->  | J59: =ส่งพิมพ์รายงาน!Z49 ->  | K59: =ส่งพิมพ์รายงาน!AA49 ->  | L59: =ส่งพิมพ์รายงาน!AB49 ->  | M59: =ส่งพิมพ์รายงาน!AC49 ->  | N59: =ส่งพิมพ์รายงาน!AD49 -> 
B60: =ส่งพิมพ์รายงาน!R50 ->  | C60: =ส่งพิมพ์รายงาน!S50 ->  | D60: =ส่งพิมพ์รายงาน!T50 ->  | E60: =ส่งพิมพ์รายงาน!U50 ->  | F60: =ส่งพิมพ์รายงาน!V50 ->  | G60: =ส่งพิมพ์รายงาน!W50 ->  | H60: =ส่งพิมพ์รายงาน!X50 ->  | I60: =ส่งพิมพ์รายงาน!Y50 ->  | J60: =ส่งพิมพ์รายงาน!Z50 ->  | K60: =ส่งพิมพ์รายงาน!AA50 ->  | L60: =ส่งพิมพ์รายงาน!AB50 ->  | M60: =ส่งพิมพ์รายงาน!AC50 ->  | N60: =ส่งพิมพ์รายงาน!AD50 -> 
B61: =ส่งพิมพ์รายงาน!R51 ->  | C61: =ส่งพิมพ์รายงาน!S51 ->  | D61: =ส่งพิมพ์รายงาน!T51 ->  | E61: =ส่งพิมพ์รายงาน!U51 ->  | F61: =ส่งพิมพ์รายงาน!V51 ->  | G61: =ส่งพิมพ์รายงาน!W51 ->  | H61: =ส่งพิมพ์รายงาน!X51 ->  | I61: =ส่งพิมพ์รายงาน!Y51 ->  | J61: =ส่งพิมพ์รายงาน!Z51 ->  | K61: =ส่งพิมพ์รายงาน!AA51 ->  | L61: =ส่งพิมพ์รายงาน!AB51 ->  | M61: =ส่งพิมพ์รายงาน!AC51 ->  | N61: =ส่งพิมพ์รายงาน!AD51 -> 
B62: =ส่งพิมพ์รายงาน!R52 ->  | C62: =ส่งพิมพ์รายงาน!S52 ->  | D62: =ส่งพิมพ์รายงาน!T52 ->  | E62: =ส่งพิมพ์รายงาน!U52 ->  | F62: =ส่งพิมพ์รายงาน!V52 ->  | G62: =ส่งพิมพ์รายงาน!W52 ->  | H62: =ส่งพิมพ์รายงาน!X52 ->  | I62: =ส่งพิมพ์รายงาน!Y52 ->  | J62: =ส่งพิมพ์รายงาน!Z52 ->  | K62: =ส่งพิมพ์รายงาน!AA52 ->  | L62: =ส่งพิมพ์รายงาน!AB52 ->  | M62: =ส่งพิมพ์รายงาน!AC52 ->  | N62: =ส่งพิมพ์รายงาน!AD52 -> 
B63: =ส่งพิมพ์รายงาน!R53 ->  | C63: =ส่งพิมพ์รายงาน!S53 ->  | D63: =ส่งพิมพ์รายงาน!T53 ->  | E63: =ส่งพิมพ์รายงาน!U53 ->  | F63: =ส่งพิมพ์รายงาน!V53 ->  | G63: =ส่งพิมพ์รายงาน!W53 ->  | H63: =ส่งพิมพ์รายงาน!X53 ->  | I63: =ส่งพิมพ์รายงาน!Y53 ->  | J63: =ส่งพิมพ์รายงาน!Z53 ->  | K63: =ส่งพิมพ์รายงาน!AA53 ->  | L63: =ส่งพิมพ์รายงาน!AB53 ->  | M63: =ส่งพิมพ์รายงาน!AC53 ->  | N63: =ส่งพิมพ์รายงาน!AD53 -> 
B64: =ส่งพิมพ์รายงาน!R54 ->  | C64: =ส่งพิมพ์รายงาน!S54 ->  | D64: =ส่งพิมพ์รายงาน!T54 ->  | E64: =ส่งพิมพ์รายงาน!U54 ->  | F64: =ส่งพิมพ์รายงาน!V54 ->  | G64: =ส่งพิมพ์รายงาน!W54 ->  | H64: =ส่งพิมพ์รายงาน!X54 ->  | I64: =ส่งพิมพ์รายงาน!Y54 ->  | J64: =ส่งพิมพ์รายงาน!Z54 ->  | K64: =ส่งพิมพ์รายงาน!AA54 ->  | L64: =ส่งพิมพ์รายงาน!AB54 ->  | M64: =ส่งพิมพ์รายงาน!AC54 ->  | N64: =ส่งพิมพ์รายงาน!AD54 -> 
B65: =ส่งพิมพ์รายงาน!R55 ->  | C65: =ส่งพิมพ์รายงาน!S55 ->  | D65: =ส่งพิมพ์รายงาน!T55 ->  | E65: =ส่งพิมพ์รายงาน!U55 ->  | F65: =ส่งพิมพ์รายงาน!V55 ->  | G65: =ส่งพิมพ์รายงาน!W55 ->  | H65: =ส่งพิมพ์รายงาน!X55 ->  | I65: =ส่งพิมพ์รายงาน!Y55 ->  | J65: =ส่งพิมพ์รายงาน!Z55 ->  | K65: =ส่งพิมพ์รายงาน!AA55 ->  | L65: =ส่งพิมพ์รายงาน!AB55 ->  | M65: =ส่งพิมพ์รายงาน!AC55 ->  | N65: =ส่งพิมพ์รายงาน!AD55 -> 
B66: =ส่งพิมพ์รายงาน!R56 ->  | C66: =ส่งพิมพ์รายงาน!S56 ->  | D66: =ส่งพิมพ์รายงาน!T56 ->  | E66: =ส่งพิมพ์รายงาน!U56 ->  | F66: =ส่งพิมพ์รายงาน!V56 ->  | G66: =ส่งพิมพ์รายงาน!W56 ->  | H66: =ส่งพิมพ์รายงาน!X56 ->  | I66: =ส่งพิมพ์รายงาน!Y56 ->  | J66: =ส่งพิมพ์รายงาน!Z56 ->  | K66: =ส่งพิมพ์รายงาน!AA56 ->  | L66: =ส่งพิมพ์รายงาน!AB56 ->  | M66: =ส่งพิมพ์รายงาน!AC56 ->  | N66: =ส่งพิมพ์รายงาน!AD56 -> 
B67: =ส่งพิมพ์รายงาน!R57 ->  | C67: =ส่งพิมพ์รายงาน!S57 ->  | D67: =ส่งพิมพ์รายงาน!T57 ->  | E67: =ส่งพิมพ์รายงาน!U57 ->  | F67: =ส่งพิมพ์รายงาน!V57 ->  | G67: =ส่งพิมพ์รายงาน!W57 ->  | H67: =ส่งพิมพ์รายงาน!X57 ->  | I67: =ส่งพิมพ์รายงาน!Y57 ->  | J67: =ส่งพิมพ์รายงาน!Z57 ->  | K67: =ส่งพิมพ์รายงาน!AA57 ->  | L67: =ส่งพิมพ์รายงาน!AB57 ->  | M67: =ส่งพิมพ์รายงาน!AC57 ->  | N67: =ส่งพิมพ์รายงาน!AD57 -> 
B68: =ส่งพิมพ์รายงาน!R58 ->  | C68: =ส่งพิมพ์รายงาน!S58 ->  | D68: =ส่งพิมพ์รายงาน!T58 ->  | E68: =ส่งพิมพ์รายงาน!U58 ->  | F68: =ส่งพิมพ์รายงาน!V58 ->  | G68: =ส่งพิมพ์รายงาน!W58 ->  | H68: =ส่งพิมพ์รายงาน!X58 ->  | I68: =ส่งพิมพ์รายงาน!Y58 ->  | J68: =ส่งพิมพ์รายงาน!Z58 ->  | K68: =ส่งพิมพ์รายงาน!AA58 ->  | L68: =ส่งพิมพ์รายงาน!AB58 ->  | M68: =ส่งพิมพ์รายงาน!AC58 ->  | N68: =ส่งพิมพ์รายงาน!AD58 -> 
B69: =ส่งพิมพ์รายงาน!R59 ->  | C69: =ส่งพิมพ์รายงาน!S59 ->  | D69: =ส่งพิมพ์รายงาน!T59 ->  | E69: =ส่งพิมพ์รายงาน!U59 ->  | F69: =ส่งพิมพ์รายงาน!V59 ->  | G69: =ส่งพิมพ์รายงาน!W59 ->  | H69: =ส่งพิมพ์รายงาน!X59 ->  | I69: =ส่งพิมพ์รายงาน!Y59 ->  | J69: =ส่งพิมพ์รายงาน!Z59 ->  | K69: =ส่งพิมพ์รายงาน!AA59 ->  | L69: =ส่งพิมพ์รายงาน!AB59 ->  | M69: =ส่งพิมพ์รายงาน!AC59 ->  | N69: =ส่งพิมพ์รายงาน!AD59 -> 
B70: =ส่งพิมพ์รายงาน!R60 ->  | C70: =ส่งพิมพ์รายงาน!S60 ->  | D70: =ส่งพิมพ์รายงาน!T60 ->  | E70: =ส่งพิมพ์รายงาน!U60 ->  | F70: =ส่งพิมพ์รายงาน!V60 ->  | G70: =ส่งพิมพ์รายงาน!W60 ->  | H70: =ส่งพิมพ์รายงาน!X60 ->  | I70: =ส่งพิมพ์รายงาน!Y60 ->  | J70: =ส่งพิมพ์รายงาน!Z60 ->  | K70: =ส่งพิมพ์รายงาน!AA60 ->  | L70: =ส่งพิมพ์รายงาน!AB60 ->  | M70: =ส่งพิมพ์รายงาน!AC60 ->  | N70: =ส่งพิมพ์รายงาน!AD60 -> 
B71: =ส่งพิมพ์รายงาน!R61 ->  | C71: =ส่งพิมพ์รายงาน!S61 ->  | D71: =ส่งพิมพ์รายงาน!T61 ->  | E71: =ส่งพิมพ์รายงาน!U61 ->  | F71: =ส่งพิมพ์รายงาน!V61 ->  | G71: =ส่งพิมพ์รายงาน!W61 ->  | H71: =ส่งพิมพ์รายงาน!X61 ->  | I71: =ส่งพิมพ์รายงาน!Y61 ->  | J71: =ส่งพิมพ์รายงาน!Z61 ->  | K71: =ส่งพิมพ์รายงาน!AA61 ->  | L71: =ส่งพิมพ์รายงาน!AB61 ->  | M71: =ส่งพิมพ์รายงาน!AC61 ->  | N71: =ส่งพิมพ์รายงาน!AD61 -> 
B72: =ส่งพิมพ์รายงาน!R62 ->  | C72: =ส่งพิมพ์รายงาน!S62 ->  | D72: =ส่งพิมพ์รายงาน!T62 ->  | E72: =ส่งพิมพ์รายงาน!U62 ->  | F72: =ส่งพิมพ์รายงาน!V62 ->  | G72: =ส่งพิมพ์รายงาน!W62 ->  | H72: =ส่งพิมพ์รายงาน!X62 ->  | I72: =ส่งพิมพ์รายงาน!Y62 ->  | J72: =ส่งพิมพ์รายงาน!Z62 ->  | K72: =ส่งพิมพ์รายงาน!AA62 ->  | L72: =ส่งพิมพ์รายงาน!AB62 ->  | M72: =ส่งพิมพ์รายงาน!AC62 ->  | N72: =ส่งพิมพ์รายงาน!AD62 -> 
B73: =ส่งพิมพ์รายงาน!R63 ->  | C73: =ส่งพิมพ์รายงาน!S63 ->  | D73: =ส่งพิมพ์รายงาน!T63 ->  | E73: =ส่งพิมพ์รายงาน!U63 ->  | F73: =ส่งพิมพ์รายงาน!V63 ->  | G73: =ส่งพิมพ์รายงาน!W63 ->  | H73: =ส่งพิมพ์รายงาน!X63 ->  | I73: =ส่งพิมพ์รายงาน!Y63 ->  | J73: =ส่งพิมพ์รายงาน!Z63 ->  | K73: =ส่งพิมพ์รายงาน!AA63 ->  | L73: =ส่งพิมพ์รายงาน!AB63 ->  | M73: =ส่งพิมพ์รายงาน!AC63 ->  | N73: =ส่งพิมพ์รายงาน!AD63 -> 

Sheet 1ข้อมูลรายวิชา
B1: ต้องใส่รหัสนักเรียนทุกครั้ง โปรแกรมจึงจะประมวลผล | P1: รายการกรอกข้อมูลพื้นฐาน (ลิงค์ไปทุกชีต)
B2: เลขที่ | C2: รหัส นักเรียน | D2: ชื่อ-สกุล | E2: ก่อน | F2: กลาง | G2: แก้ | H2: หลัง | I2: ปฏิบัติ/ชิ้นงาน | J2: ปลาย | K2: กรณี ร,มส,ออก | L2: SUM | M2: เกรด | N2: อ่านคิด | O2: คุณลักษณะ | P2: กรุณากรอกข้อมูลสำคัญตรงนี้ | Z2: ข้อมูลรายชื่อนักเรียน
D3: =Q8&" "&Q7&" "&Q4 -> วิทยาการคำนวณ ว22103 3 ห้อง 1 | E3: =ตรวจ!$P$6 -> 0 | F3: =ตรวจ!$AG$6 -> 0 | G3: ='6บันทึกคะแนน'!$AG$7 -> 0 | H3: =ตรวจ!$AR$6 -> 0 | I3: =ตรวจ!AU6 -> 0 | J3: =ตรวจ!BE6 -> 20 | L3: 100 | Z3: เลขที่ | AA3: รหัส นักเรียน | AB3: คำนำหน้า | AC3: ชื่อ | AD3: สกุล | AE3: ห้อง
B4: 1 | C4: =IF(AA4="","",AA4) -> 09441 | D4: =AB4&AC4&" "&AD4 -> เด็กชายกัมปนาท สีทัดยศ | E4: =IF(C4="","",ตรวจ!P7) -> 0 | F4: =IF(C4="","",ตรวจ!AG7) -> 0 | G4: =IF(C4="","",ตรวจ!AH7) -> 0 | H4: =IF(C4="","",ตรวจ!AR7) -> 0 | I4: =ตรวจ!AU7 -> 0 | J4: =IF(C4="","",ตรวจ!BE7) -> 0 | K4: =IF(OR(C4="", ตรวจ!BF7=0),"",ตรวจ!BF7) ->  | L4: =IF(LEN(C4)=0,"",ROUND(E4,1)+ROUND(IF(G4>0,G4,F4),1)+ROUND(H4,1)+ROUND(I4,1)+ROUND(J4,1)) -> 0 | M4: =IF(C4="","",'6บันทึกคะแนน'!BG8) -> 0 | N4: ='3พิมพ์คะแนน'!BM10 -> 3 | O4: ='3พิมพ์คะแนน'!BX10 -> 3 | P4: ห้อง ม. | Q4: =AE4 -> 3 ห้อง 1 | Z4: 1 | AA4: 09441 | AB4: เด็กชาย | AC4: กัมปนาท | AD4: สีทัดยศ | AE4: 3 ห้อง 1 | AF4: ใส่ห้องที่สอนในช่องนี้
B5: 2 | C5: =IF(AA5="","",AA5) -> 09443 | D5: =AB5&AC5&" "&AD5 -> เด็กชายณัฐวุฒิ แก้วนารี | E5: =IF(C5="","",ตรวจ!P8) -> 0 | F5: =IF(C5="","",ตรวจ!AG8) -> 0 | G5: =IF(C5="","",ตรวจ!AH8) -> 0 | H5: =IF(C5="","",ตรวจ!AR8) -> 0 | I5: =ตรวจ!AU8 -> 0 | J5: =IF(C5="","",ตรวจ!BE8) -> 0 | K5: =IF(OR(C5="", ตรวจ!BF8=0),"",ตรวจ!BF8) ->  | L5: =IF(LEN(C5)=0,"",ROUND(E5,1)+ROUND(IF(G5>0,G5,F5),1)+ROUND(H5,1)+ROUND(I5,1)+ROUND(J5,1)) -> 0 | M5: =IF(C5="","",'6บันทึกคะแนน'!BG9) -> 0 | N5: ='3พิมพ์คะแนน'!BM11 -> 3 | O5: ='3พิมพ์คะแนน'!BX11 -> 3 | P5: ครูที่ปรึกษา 1 | Q5: นางรัชนีย์ วงศ์ไกรสิน | Z5: 2 | AA5: 09443 | AB5: เด็กชาย | AC5: ณัฐวุฒิ | AD5: แก้วนารี
B6: 3 | C6: 09444 | D6: เด็กชายธีภพ แข็งแรง | E6: =IF(C6="","",ตรวจ!P9) -> 0 | F6: =IF(C6="","",ตรวจ!AG9) -> 0 | G6: =IF(C6="","",ตรวจ!AH9) -> 0 | H6: =IF(C6="","",ตรวจ!AR9) -> 0 | I6: =ตรวจ!AU9 -> 0 | J6: =IF(C6="","",ตรวจ!BE9) -> 0 | K6: =IF(OR(C6="", ตรวจ!BF9=0),"",ตรวจ!BF9) ->  | L6: 0 | M6: =IF(C6="","",'6บันทึกคะแนน'!BG10) -> 0 | N6: ='3พิมพ์คะแนน'!BM12 -> 3 | O6: ='3พิมพ์คะแนน'!BX12 -> 3 | P6: ครูที่ปรึกษา 2 | Q6: นายธีรวัฒน์ บรรยง | Z6: 3 | AA6: 09444 | AB6: เด็กชาย | AC6: ธีภพ | AD6: แข็งแรง
B7: 4 | C7: 09445 | D7: เด็กชายธีรภัทร เคนบู | E7: =IF(C7="","",ตรวจ!P10) -> 0 | F7: =IF(C7="","",ตรวจ!AG10) -> 0 | G7: =IF(C7="","",ตรวจ!AH10) -> 0 | H7: =IF(C7="","",ตรวจ!AR10) -> 0 | I7: =ตรวจ!AU10 -> 0 | J7: =IF(C7="","",ตรวจ!BE10) -> 0 | K7: =IF(OR(C7="", ตรวจ!BF10=0),"",ตรวจ!BF10) ->  | L7: 0 | M7: =IF(C7="","",'6บันทึกคะแนน'!BG11) -> 0 | N7: ='3พิมพ์คะแนน'!BM13 -> 3 | O7: ='3พิมพ์คะแนน'!BX13 -> 3 | P7: รหัสวิชา | Q7: ว22103 | Z7: 4 | AA7: 09445 | AB7: เด็กชาย | AC7: ธีรภัทร | AD7: เคนบู
B8: 5 | C8: 09446 | D8: เด็กชายธีรวัฒน์ เผ้าหอม | E8: =IF(C8="","",ตรวจ!P11) -> 0 | F8: =IF(C8="","",ตรวจ!AG11) -> 0 | G8: =IF(C8="","",ตรวจ!AH11) -> 0 | H8: =IF(C8="","",ตรวจ!AR11) -> 0 | I8: =ตรวจ!AU11 -> 0 | J8: =IF(C8="","",ตรวจ!BE11) -> 0 | K8: =IF(OR(C8="", ตรวจ!BF11=0),"",ตรวจ!BF11) ->  | L8: 0 | M8: =IF(C8="","",'6บันทึกคะแนน'!BG12) -> 0 | N8: ='3พิมพ์คะแนน'!BM14 -> 3 | O8: ='3พิมพ์คะแนน'!BX14 -> 3 | P8: ชื่อวิชา | Q8: วิทยาการคำนวณ | Z8: 5 | AA8: 09446 | AB8: เด็กชาย | AC8: ธีรวัฒน์ | AD8: เผ้าหอม
B9: 6 | C9: 09447 | D9: เด็กชายปกรณ์เกียรติ ศรีหนองบัว | E9: =IF(C9="","",ตรวจ!P12) -> 0 | F9: =IF(C9="","",ตรวจ!AG12) -> 0 | G9: =IF(C9="","",ตรวจ!AH12) -> 0 | H9: =IF(C9="","",ตรวจ!AR12) -> 0 | I9: =ตรวจ!AU12 -> 0 | J9: =IF(C9="","",ตรวจ!BE12) -> 0 | K9: =IF(OR(C9="", ตรวจ!BF12=0),"",ตรวจ!BF12) ->  | L9: 0 | M9: =IF(C9="","",'6บันทึกคะแนน'!BG13) -> 0 | N9: ='3พิมพ์คะแนน'!BM15 -> 3 | O9: ='3พิมพ์คะแนน'!BX15 -> 3 | P9: หน่วยกิต | Q9: 1 | Z9: 6 | AA9: 09447 | AB9: เด็กชาย | AC9: ปกรณ์เกียรติ | AD9: ศรีหนองบัว
B10: 7 | C10: 09448 | D10: เด็กชายพงศกร แสงคำ | E10: =IF(C10="","",ตรวจ!P13) -> 0 | F10: =IF(C10="","",ตรวจ!AG13) -> 0 | G10: =IF(C10="","",ตรวจ!AH13) -> 0 | H10: =IF(C10="","",ตรวจ!AR13) -> 0 | I10: =ตรวจ!AU13 -> 0 | J10: =IF(C10="","",ตรวจ!BE13) -> 0 | K10: =IF(OR(C10="", ตรวจ!BF13=0),"",ตรวจ!BF13) ->  | L10: 0 | M10: =IF(C10="","",'6บันทึกคะแนน'!BG14) -> 0 | N10: ='3พิมพ์คะแนน'!BM16 -> 3 | O10: ='3พิมพ์คะแนน'!BX16 -> 3 | P10: คะแนนระหว่างภาค | Q10: 80 | Z10: 7 | AA10: 09448 | AB10: เด็กชาย | AC10: พงศกร | AD10: แสงคำ
B11: 8 | C11: 09450 | D11: เด็กชายพิชัยวัฒน์ จำวัน | E11: =IF(C11="","",ตรวจ!P14) -> 0 | F11: =IF(C11="","",ตรวจ!AG14) -> 0 | G11: =IF(C11="","",ตรวจ!AH14) -> 0 | H11: =IF(C11="","",ตรวจ!AR14) -> 0 | I11: =ตรวจ!AU14 -> 0 | J11: =IF(C11="","",ตรวจ!BE14) -> 0 | K11: =IF(OR(C11="", ตรวจ!BF14=0),"",ตรวจ!BF14) ->  | L11: 0 | M11: =IF(C11="","",'6บันทึกคะแนน'!BG15) -> 0 | N11: ='3พิมพ์คะแนน'!BM17 -> 3 | O11: ='3พิมพ์คะแนน'!BX17 -> 3 | P11: คะแนนปลายภาค | Q11: 20 | Z11: 8 | AA11: 09450 | AB11: เด็กชาย | AC11: พิชัยวัฒน์ | AD11: จำวัน
B12: 9 | C12: 09451 | D12: เด็กชายภาคิน ผ่านวงศ์ | E12: =IF(C12="","",ตรวจ!P15) -> 0 | F12: =IF(C12="","",ตรวจ!AG15) -> 0 | G12: =IF(C12="","",ตรวจ!AH15) -> 0 | H12: =IF(C12="","",ตรวจ!AR15) -> 0 | I12: =ตรวจ!AU15 -> 0 | J12: =IF(C12="","",ตรวจ!BE15) -> 0 | K12: =IF(OR(C12="", ตรวจ!BF15=0),"",ตรวจ!BF15) ->  | L12: 0 | M12: =IF(C12="","",'6บันทึกคะแนน'!BG16) -> 0 | N12: ='3พิมพ์คะแนน'!BM18 -> 3 | O12: ='3พิมพ์คะแนน'!BX18 -> 3 | P12: ชื่อ ผู้อำนวยการ | Q12: นางนิกัญชลา ล้นเหลือ | Z12: 9 | AA12: 09451 | AB12: เด็กชาย | AC12: ภาคิน | AD12: ผ่านวงศ์
B13: 10 | C13: 09452 | D13: เด็กชายภูธารทอง สีพันดร | E13: =IF(C13="","",ตรวจ!P16) -> 0 | F13: =IF(C13="","",ตรวจ!AG16) -> 0 | G13: =IF(C13="","",ตรวจ!AH16) -> 0 | H13: =IF(C13="","",ตรวจ!AR16) -> 0 | I13: =ตรวจ!AU16 -> 0 | J13: =IF(C13="","",ตรวจ!BE16) -> 0 | K13: =IF(OR(C13="", ตรวจ!BF16=0),"",ตรวจ!BF16) ->  | L13: 0 | M13: =IF(C13="","",'6บันทึกคะแนน'!BG17) -> 0 | N13: ='3พิมพ์คะแนน'!BM19 -> 3 | O13: ='3พิมพ์คะแนน'!BX19 -> 3 | P13: ชื่อรองกลุ่มวิชาการ | Q13: นายธนสิทธิ์ ธนสีลังกูร | Z13: 10 | AA13: 09452 | AB13: เด็กชาย | AC13: ภูธารทอง | AD13: สีพันดร
B14: 11 | C14: 09453 | D14: เด็กชายเมคา นามหานวล | E14: =IF(C14="","",ตรวจ!P17) -> 0 | F14: =IF(C14="","",ตรวจ!AG17) -> 0 | G14: =IF(C14="","",ตรวจ!AH17) -> 0 | H14: =IF(C14="","",ตรวจ!AR17) -> 0 | I14: =ตรวจ!AU17 -> 0 | J14: =IF(C14="","",ตรวจ!BE17) -> 0 | K14: =IF(OR(C14="", ตรวจ!BF17=0),"",ตรวจ!BF17) ->  | L14: 0 | M14: =IF(C14="","",'6บันทึกคะแนน'!BG18) -> 0 | N14: ='3พิมพ์คะแนน'!BM20 -> 3 | O14: ='3พิมพ์คะแนน'!BX20 -> 3 | P14: ปีการศึกษา | Q14: 2567 | Z14: 11 | AA14: 09453 | AB14: เด็กชาย | AC14: เมคา | AD14: นามหานวล
B15: 12 | C15: 09454 | D15: เด็กชายเมฆินทร์ แสนศาลา | E15: =IF(C15="","",ตรวจ!P18) -> 0 | F15: =IF(C15="","",ตรวจ!AG18) -> 0 | G15: =IF(C15="","",ตรวจ!AH18) -> 0 | H15: =IF(C15="","",ตรวจ!AR18) -> 0 | I15: =ตรวจ!AU18 -> 0 | J15: =IF(C15="","",ตรวจ!BE18) -> 0 | K15: =IF(OR(C15="", ตรวจ!BF18=0),"",ตรวจ!BF18) ->  | L15: 0 | M15: =IF(C15="","",'6บันทึกคะแนน'!BG19) -> 0 | N15: ='3พิมพ์คะแนน'!BM21 -> 3 | O15: ='3พิมพ์คะแนน'!BX21 -> 3 | P15: ภาคเรียน | Q15: 1 | Z15: 12 | AA15: 09454 | AB15: เด็กชาย | AC15: เมฆินทร์ | AD15: แสนศาลา
B16: 13 | C16: 09455 | D16: เด็กชายวชิรวิทย์ พันพระสี | E16: =IF(C16="","",ตรวจ!P19) -> 0 | F16: =IF(C16="","",ตรวจ!AG19) -> 0 | G16: =IF(C16="","",ตรวจ!AH19) -> 0 | H16: =IF(C16="","",ตรวจ!AR19) -> 0 | I16: =ตรวจ!AU19 -> 0 | J16: =IF(C16="","",ตรวจ!BE19) -> 0 | K16: =IF(OR(C16="", ตรวจ!BF19=0),"",ตรวจ!BF19) ->  | L16: 0 | M16: =IF(C16="","",'6บันทึกคะแนน'!BG20) -> 0 | N16: ='3พิมพ์คะแนน'!BM22 -> 3 | O16: ='3พิมพ์คะแนน'!BX22 -> 3 | P16: จำนวน ช.ม./สัปดาห์ | Q16: 2 | Z16: 13 | AA16: 09455 | AB16: เด็กชาย | AC16: วชิรวิทย์ | AD16: พันพระสี
B17: 14 | C17: 09456 | D17: เด็กชายวรินทร ผาดวงดี | E17: =IF(C17="","",ตรวจ!P20) -> 0 | F17: =IF(C17="","",ตรวจ!AG20) -> 0 | G17: =IF(C17="","",ตรวจ!AH20) -> 0 | H17: =IF(C17="","",ตรวจ!AR20) -> 0 | I17: =ตรวจ!AU20 -> 0 | J17: =IF(C17="","",ตรวจ!BE20) -> 0 | K17: =IF(OR(C17="", ตรวจ!BF20=0),"",ตรวจ!BF20) ->  | L17: 0 | M17: =IF(C17="","",'6บันทึกคะแนน'!BG21) -> 0 | N17: ='3พิมพ์คะแนน'!BM23 -> 3 | O17: ='3พิมพ์คะแนน'!BX23 -> 3 | P17: ช่วงชั้น (3: ม.ต้น 4: ม.ปลาย) | Q17: 3 | Z17: 14 | AA17: 09456 | AB17: เด็กชาย | AC17: วรินทร | AD17: ผาดวงดี
B18: 15 | C18: 09457 | D18: เด็กชายวีระศักดิ์ โสดาดง | E18: =IF(C18="","",ตรวจ!P21) -> 0 | F18: =IF(C18="","",ตรวจ!AG21) -> 0 | G18: =IF(C18="","",ตรวจ!AH21) -> 0 | H18: =IF(C18="","",ตรวจ!AR21) -> 0 | I18: =ตรวจ!AU21 -> 0 | J18: =IF(C18="","",ตรวจ!BE21) -> 0 | K18: =IF(OR(C18="", ตรวจ!BF21=0),"",ตรวจ!BF21) ->  | L18: 0 | M18: =IF(C18="","",'6บันทึกคะแนน'!BG22) -> 0 | N18: ='3พิมพ์คะแนน'!BM24 -> 3 | O18: ='3พิมพ์คะแนน'!BX24 -> 3 | P18: ชื่อ ผู้สอน | Q18: นายเจษฎา นินจันทร์ | Z18: 15 | AA18: 09457 | AB18: เด็กชาย | AC18: วีระศักดิ์ | AD18: โสดาดง
B19: 16 | C19: 09458 | D19: เด็กชายศักดิ์ดานุภาพ กุลลาว | E19: =IF(C19="","",ตรวจ!P22) -> 0 | F19: =IF(C19="","",ตรวจ!AG22) -> 0 | G19: =IF(C19="","",ตรวจ!AH22) -> 0 | H19: =IF(C19="","",ตรวจ!AR22) -> 0 | I19: =ตรวจ!AU22 -> 0 | J19: =IF(C19="","",ตรวจ!BE22) -> 0 | K19: =IF(OR(C19="", ตรวจ!BF22=0),"",ตรวจ!BF22) ->  | L19: 0 | M19: =IF(C19="","",'6บันทึกคะแนน'!BG23) -> 0 | N19: ='3พิมพ์คะแนน'!BM25 -> 3 | O19: ='3พิมพ์คะแนน'!BX25 -> 3 | P19: กลุ่มสาระ | Q19: วิทยาศาตร์และเทคโนโลยี | Z19: 16 | AA19: 09458 | AB19: เด็กชาย | AC19: ศักดิ์ดานุภาพ | AD19: กุลลาว
B20: 17 | C20: 09459 | D20: เด็กชายสิวภพ ปราบนอก | E20: =IF(C20="","",ตรวจ!P23) -> 0 | F20: =IF(C20="","",ตรวจ!AG23) -> 0 | G20: =IF(C20="","",ตรวจ!AH23) -> 0 | H20: =IF(C20="","",ตรวจ!AR23) -> 0 | I20: =ตรวจ!AU23 -> 0 | J20: =IF(C20="","",ตรวจ!BE23) -> 0 | K20: =IF(OR(C20="", ตรวจ!BF23=0),"",ตรวจ!BF23) ->  | L20: 0 | M20: =IF(C20="","",'6บันทึกคะแนน'!BG24) -> 0 | N20: ='3พิมพ์คะแนน'!BM26 -> 3 | O20: ='3พิมพ์คะแนน'!BX26 -> 3 | P20: ชื่อวัดผลกลุ่มสาระฯ | Z20: 17 | AA20: 09459 | AB20: เด็กชาย | AC20: สิวภพ | AD20: ปราบนอก
B21: 18 | C21: 09460 | D21: เด็กชายสุจิตร เพียผิว | E21: =IF(C21="","",ตรวจ!P24) -> 0 | F21: =IF(C21="","",ตรวจ!AG24) -> 0 | G21: =IF(C21="","",ตรวจ!AH24) -> 0 | H21: =IF(C21="","",ตรวจ!AR24) -> 0 | I21: =ตรวจ!AU24 -> 0 | J21: =IF(C21="","",ตรวจ!BE24) -> 0 | K21: =IF(OR(C21="", ตรวจ!BF24=0),"",ตรวจ!BF24) ->  | L21: 0 | M21: =IF(C21="","",'6บันทึกคะแนน'!BG25) -> 0 | N21: ='3พิมพ์คะแนน'!BM27 -> 3 | O21: ='3พิมพ์คะแนน'!BX27 -> 3 | P21: ชื่อหัวหน้ากลุ่มสาระ | Q21: นางสาวอุมาภรณ์ สีลาอาจ | Z21: 18 | AA21: 09460 | AB21: เด็กชาย | AC21: สุจิตร | AD21: เพียผิว
B22: 19 | C22: 09461 | D22: เด็กชายสุรศักดิ์ มากเขียน | E22: =IF(C22="","",ตรวจ!P25) -> 0 | F22: =IF(C22="","",ตรวจ!AG25) -> 0 | G22: =IF(C22="","",ตรวจ!AH25) -> 0 | H22: =IF(C22="","",ตรวจ!AR25) -> 0 | I22: =ตรวจ!AU25 -> 0 | J22: =IF(C22="","",ตรวจ!BE25) -> 0 | K22: =IF(OR(C22="", ตรวจ!BF25=0),"",ตรวจ!BF25) ->  | L22: 0 | M22: =IF(C22="","",'6บันทึกคะแนน'!BG26) -> 0 | N22: ='3พิมพ์คะแนน'!BM28 -> 3 | O22: ='3พิมพ์คะแนน'!BX28 -> 3 | P22: ร.ร. | Q22: โรงเรียนโคกสีพิทยาสรรพ์ | Z22: 19 | AA22: 09461 | AB22: เด็กชาย | AC22: สุรศักดิ์ | AD22: มากเขียน
B23: 20 | C23: 09462 | D23: เด็กชายอัครพล เทศแสงทอง | E23: =IF(C23="","",ตรวจ!P26) -> 0 | F23: =IF(C23="","",ตรวจ!AG26) -> 0 | G23: =IF(C23="","",ตรวจ!AH26) -> 0 | H23: =IF(C23="","",ตรวจ!AR26) -> 0 | I23: =ตรวจ!AU26 -> 0 | J23: =IF(C23="","",ตรวจ!BE26) -> 0 | K23: =IF(OR(C23="", ตรวจ!BF26=0),"",ตรวจ!BF26) ->  | L23: 0 | M23: =IF(C23="","",'6บันทึกคะแนน'!BG27) -> 0 | N23: ='3พิมพ์คะแนน'!BM29 -> 3 | O23: ='3พิมพ์คะแนน'!BX29 -> 3 | P23: ที่อยู่ ร.ร. | Q23: ต.โคกสี อ.เมือง จ.ขอนแก่น 40000 | Z23: 20 | AA23: 09462 | AB23: เด็กชาย | AC23: อัครพล | AD23: เทศแสงทอง
B24: 21 | C24: 09463 | D24: เด็กหญิงมินตรา รัตนประกอบ | E24: =IF(C24="","",ตรวจ!P27) -> 0 | F24: =IF(C24="","",ตรวจ!AG27) -> 0 | G24: =IF(C24="","",ตรวจ!AH27) -> 0 | H24: =IF(C24="","",ตรวจ!AR27) -> 0 | I24: =ตรวจ!AU27 -> 0 | J24: =IF(C24="","",ตรวจ!BE27) -> 0 | K24: =IF(OR(C24="", ตรวจ!BF27=0),"",ตรวจ!BF27) ->  | L24: 0 | M24: =IF(C24="","",'6บันทึกคะแนน'!BG28) -> 0 | N24: ='3พิมพ์คะแนน'!BM30 -> 3 | O24: ='3พิมพ์คะแนน'!BX30 -> 3 | P24: สังกัด | Q24: สำนักงานเขตพื้นที่การศึกษามัธยมศึกษาขอนแก่น | Z24: 21 | AA24: 09463 | AB24: เด็กหญิง | AC24: มินตรา | AD24: รัตนประกอบ
B25: 22 | C25: 09464 | D25: เด็กหญิงชัญญานุช พันธ์เทพ | E25: =IF(C25="","",ตรวจ!P28) -> 0 | F25: =IF(C25="","",ตรวจ!AG28) -> 0 | G25: =IF(C25="","",ตรวจ!AH28) -> 0 | H25: =IF(C25="","",ตรวจ!AR28) -> 0 | I25: =ตรวจ!AU28 -> 0 | J25: =IF(C25="","",ตรวจ!BE28) -> 0 | K25: =IF(OR(C25="", ตรวจ!BF28=0),"",ตรวจ!BF28) ->  | L25: 0 | M25: =IF(C25="","",'6บันทึกคะแนน'!BG29) -> 0 | N25: ='3พิมพ์คะแนน'!BM31 -> 3 | O25: ='3พิมพ์คะแนน'!BX31 -> 3 | Z25: 22 | AA25: 09464 | AB25: เด็กหญิง | AC25: ชัญญานุช | AD25: พันธ์เทพ
B26: 23 | C26: 09465 | D26: เด็กหญิงธิภาดา จันศรีลา | E26: =IF(C26="","",ตรวจ!P29) -> 0 | F26: =IF(C26="","",ตรวจ!AG29) -> 0 | G26: =IF(C26="","",ตรวจ!AH29) -> 0 | H26: =IF(C26="","",ตรวจ!AR29) -> 0 | I26: =ตรวจ!AU29 -> 0 | J26: =IF(C26="","",ตรวจ!BE29) -> 0 | K26: =IF(OR(C26="", ตรวจ!BF29=0),"",ตรวจ!BF29) ->  | L26: 0 | M26: =IF(C26="","",'6บันทึกคะแนน'!BG30) -> 0 | N26: ='3พิมพ์คะแนน'!BM32 -> 3 | O26: ='3พิมพ์คะแนน'!BX32 -> 3 | P26: ขอบคุณผู้พัฒนาโปรแกรม ปพ.5 ทุกท่านที่อนุเคราะห์ คำแนะนำและโปรแกรมมาพัฒนาให้เกิดประโยชน์ทางการศึกษา | Z26: 23 | AA26: 09465 | AB26: เด็กหญิง | AC26: ธิภาดา | AD26: จันศรีลา
B27: 24 | C27: 09466 | D27: เด็กหญิงนิศามณี นาคสวัสดิ์ | E27: =IF(C27="","",ตรวจ!P30) -> 0 | F27: =IF(C27="","",ตรวจ!AG30) -> 0 | G27: =IF(C27="","",ตรวจ!AH30) -> 0 | H27: =IF(C27="","",ตรวจ!AR30) -> 0 | I27: =ตรวจ!AU30 -> 0 | J27: =IF(C27="","",ตรวจ!BE30) -> 0 | K27: =IF(OR(C27="", ตรวจ!BF30=0),"",ตรวจ!BF30) ->  | L27: 0 | M27: =IF(C27="","",'6บันทึกคะแนน'!BG31) -> 0 | N27: ='3พิมพ์คะแนน'!BM33 -> 3 | O27: ='3พิมพ์คะแนน'!BX33 -> 3 | Z27: 24 | AA27: 09466 | AB27: เด็กหญิง | AC27: นิศามณี | AD27: นาคสวัสดิ์
B28: 25 | C28: 09467 | D28: เด็กหญิงบุณยาพร มาเอี่ยม | E28: =IF(C28="","",ตรวจ!P31) -> 0 | F28: =IF(C28="","",ตรวจ!AG31) -> 0 | G28: =IF(C28="","",ตรวจ!AH31) -> 0 | H28: =IF(C28="","",ตรวจ!AR31) -> 0 | I28: =ตรวจ!AU31 -> 0 | J28: =IF(C28="","",ตรวจ!BE31) -> 0 | K28: =IF(OR(C28="", ตรวจ!BF31=0),"",ตรวจ!BF31) ->  | L28: 0 | M28: =IF(C28="","",'6บันทึกคะแนน'!BG32) -> 0 | N28: ='3พิมพ์คะแนน'!BM34 -> 3 | O28: ='3พิมพ์คะแนน'!BX34 -> 3 | Z28: 25 | AA28: 09467 | AB28: เด็กหญิง | AC28: บุณยาพร | AD28: มาเอี่ยม
B29: 26 | C29: 09468 | D29: เด็กหญิงปิยะวดี วรรณสุทธิ์ | E29: =IF(C29="","",ตรวจ!P32) -> 0 | F29: =IF(C29="","",ตรวจ!AG32) -> 0 | G29: =IF(C29="","",ตรวจ!AH32) -> 0 | H29: =IF(C29="","",ตรวจ!AR32) -> 0 | I29: =ตรวจ!AU32 -> 0 | J29: =IF(C29="","",ตรวจ!BE32) -> 0 | K29: =IF(OR(C29="", ตรวจ!BF32=0),"",ตรวจ!BF32) ->  | L29: 0 | M29: =IF(C29="","",'6บันทึกคะแนน'!BG33) -> 0 | N29: ='3พิมพ์คะแนน'!BM35 -> 3 | O29: ='3พิมพ์คะแนน'!BX35 -> 3 | Z29: 26 | AA29: 09468 | AB29: เด็กหญิง | AC29: ปิยะวดี | AD29: วรรณสุทธิ์
B30: 27 | C30: 09470 | D30: เด็กหญิงภัทริดา นามหานวล | E30: =IF(C30="","",ตรวจ!P33) -> 0 | F30: =IF(C30="","",ตรวจ!AG33) -> 0 | G30: =IF(C30="","",ตรวจ!AH33) -> 0 | H30: =IF(C30="","",ตรวจ!AR33) -> 0 | I30: =ตรวจ!AU33 -> 0 | J30: =IF(C30="","",ตรวจ!BE33) -> 0 | K30: =IF(OR(C30="", ตรวจ!BF33=0),"",ตรวจ!BF33) ->  | L30: 0 | M30: =IF(C30="","",'6บันทึกคะแนน'!BG34) -> 0 | N30: ='3พิมพ์คะแนน'!BM36 -> 3 | O30: ='3พิมพ์คะแนน'!BX36 -> 3 | Z30: 27 | AA30: 09470 | AB30: เด็กหญิง | AC30: ภัทริดา | AD30: นามหานวล
B31: 28 | C31: 09471 | D31: เด็กหญิงธิชาพัชร์ โนนทิง | E31: =IF(C31="","",ตรวจ!P34) -> 0 | F31: =IF(C31="","",ตรวจ!AG34) -> 0 | G31: =IF(C31="","",ตรวจ!AH34) -> 0 | H31: =IF(C31="","",ตรวจ!AR34) -> 0 | I31: =ตรวจ!AU34 -> 0 | J31: =IF(C31="","",ตรวจ!BE34) -> 0 | K31: =IF(OR(C31="", ตรวจ!BF34=0),"",ตรวจ!BF34) ->  | L31: 0 | M31: =IF(C31="","",'6บันทึกคะแนน'!BG35) -> 0 | N31: ='3พิมพ์คะแนน'!BM37 -> 3 | O31: ='3พิมพ์คะแนน'!BX37 -> 3 | Z31: 28 | AA31: 09471 | AB31: เด็กหญิง | AC31: ธิชาพัชร์ | AD31: โนนทิง
B32: 29 | C32: 09472 | D32: เด็กหญิงวารัญญา จำวัน | E32: =IF(C32="","",ตรวจ!P35) -> 0 | F32: =IF(C32="","",ตรวจ!AG35) -> 0 | G32: =IF(C32="","",ตรวจ!AH35) -> 0 | H32: =IF(C32="","",ตรวจ!AR35) -> 0 | I32: =ตรวจ!AU35 -> 0 | J32: =IF(C32="","",ตรวจ!BE35) -> 0 | K32: =IF(OR(C32="", ตรวจ!BF35=0),"",ตรวจ!BF35) ->  | L32: 0 | M32: =IF(C32="","",'6บันทึกคะแนน'!BG36) -> 0 | N32: ='3พิมพ์คะแนน'!BM38 -> 3 | O32: ='3พิมพ์คะแนน'!BX38 -> 3 | Z32: 29 | AA32: 09472 | AB32: เด็กหญิง | AC32: วารัญญา | AD32: จำวัน
B33: 30 | C33: 09473 | D33: เด็กหญิงวารุณี อรัญทอง | E33: =IF(C33="","",ตรวจ!P36) -> 0 | F33: =IF(C33="","",ตรวจ!AG36) -> 0 | G33: =IF(C33="","",ตรวจ!AH36) -> 0 | H33: =IF(C33="","",ตรวจ!AR36) -> 0 | I33: =ตรวจ!AU36 -> 0 | J33: =IF(C33="","",ตรวจ!BE36) -> 0 | K33: =IF(OR(C33="", ตรวจ!BF36=0),"",ตรวจ!BF36) ->  | L33: 0 | M33: =IF(C33="","",'6บันทึกคะแนน'!BG37) -> 0 | N33: ='3พิมพ์คะแนน'!BM39 -> 3 | O33: ='3พิมพ์คะแนน'!BX39 -> 3 | Z33: 30 | AA33: 09473 | AB33: เด็กหญิง | AC33: วารุณี | AD33: อรัญทอง
B34: 31 | C34: 09474 | D34: เด็กหญิงสุพรรษา จำปาบุญ | E34: =IF(C34="","",ตรวจ!P37) -> 0 | F34: =IF(C34="","",ตรวจ!AG37) -> 0 | G34: =IF(C34="","",ตรวจ!AH37) -> 0 | H34: =IF(C34="","",ตรวจ!AR37) -> 0 | I34: =ตรวจ!AU37 -> 0 | J34: =IF(C34="","",ตรวจ!BE37) -> 0 | K34: =IF(OR(C34="", ตรวจ!BF37=0),"",ตรวจ!BF37) ->  | L34: 0 | M34: =IF(C34="","",'6บันทึกคะแนน'!BG38) -> 0 | N34: ='3พิมพ์คะแนน'!BM40 -> 3 | O34: ='3พิมพ์คะแนน'!BX40 -> 3 | Z34: 31 | AA34: 09474 | AB34: เด็กหญิง | AC34: สุพรรษา | AD34: จำปาบุญ
B35: 32 | C35: 09475 | D35: เด็กหญิงเอมมิกา ยิ่งชาติ | E35: =IF(C35="","",ตรวจ!P38) -> 0 | F35: =IF(C35="","",ตรวจ!AG38) -> 0 | G35: =IF(C35="","",ตรวจ!AH38) -> 0 | H35: =IF(C35="","",ตรวจ!AR38) -> 0 | I35: =ตรวจ!AU38 -> 0 | J35: =IF(C35="","",ตรวจ!BE38) -> 0 | K35: =IF(OR(C35="", ตรวจ!BF38=0),"",ตรวจ!BF38) ->  | L35: 0 | M35: =IF(C35="","",'6บันทึกคะแนน'!BG39) -> 0 | N35: ='3พิมพ์คะแนน'!BM41 -> 3 | O35: ='3พิมพ์คะแนน'!BX41 -> 3 | Z35: 32 | AA35: 09475 | AB35: เด็กหญิง | AC35: เอมมิกา | AD35: ยิ่งชาติ
B36: 33 | C36: 09537 | D36: เด็กหญิงปิยธิดา ชาญรอบรู้ | E36: =IF(C36="","",ตรวจ!P39) -> 0 | F36: =IF(C36="","",ตรวจ!AG39) -> 0 | G36: =IF(C36="","",ตรวจ!AH39) -> 0 | H36: =IF(C36="","",ตรวจ!AR39) -> 0 | I36: =ตรวจ!AU39 -> 0 | J36: =IF(C36="","",ตรวจ!BE39) -> 0 | K36: =IF(OR(C36="", ตรวจ!BF39=0),"",ตรวจ!BF39) ->  | L36: 0 | M36: =IF(C36="","",'6บันทึกคะแนน'!BG40) -> 0 | N36: ='3พิมพ์คะแนน'!BM42 -> 3 | O36: ='3พิมพ์คะแนน'!BX42 -> 3 | Z36: 33 | AA36: 09537 | AB36: เด็กหญิง | AC36: ปิยธิดา | AD36: ชาญรอบรู้
B37: 34 | C37: 09539 | D37: เด็กชายกิตติคุณ พานิชศิริ | E37: =IF(C37="","",ตรวจ!P40) -> 0 | F37: =IF(C37="","",ตรวจ!AG40) -> 0 | G37: =IF(C37="","",ตรวจ!AH40) -> 0 | H37: =IF(C37="","",ตรวจ!AR40) -> 0 | I37: =ตรวจ!AU40 -> 0 | J37: =IF(C37="","",ตรวจ!BE40) -> 0 | K37: =IF(OR(C37="", ตรวจ!BF40=0),"",ตรวจ!BF40) ->  | L37: 0 | M37: =IF(C37="","",'6บันทึกคะแนน'!BG41) -> 0 | N37: ='3พิมพ์คะแนน'!BM43 -> 3 | O37: ='3พิมพ์คะแนน'!BX43 -> 3 | Z37: 34 | AA37: 09539 | AB37: เด็กชาย | AC37: กิตติคุณ | AD37: พานิชศิริ
B38: 35 | C38: 09541 | D38: เด็กชายพีรพัฒน์ ศึกษากิจ | E38: =IF(C38="","",ตรวจ!P41) -> 0 | F38: =IF(C38="","",ตรวจ!AG41) -> 0 | G38: =IF(C38="","",ตรวจ!AH41) -> 0 | H38: =IF(C38="","",ตรวจ!AR41) -> 0 | I38: =ตรวจ!AU41 -> 0 | J38: =IF(C38="","",ตรวจ!BE41) -> 0 | K38: =IF(OR(C38="", ตรวจ!BF41=0),"",ตรวจ!BF41) ->  | L38: 0 | M38: =IF(C38="","",'6บันทึกคะแนน'!BG42) -> 0 | N38: ='3พิมพ์คะแนน'!BM44 -> 3 | O38: ='3พิมพ์คะแนน'!BX44 -> 3 | Z38: 35 | AA38: 09541 | AB38: เด็กชาย | AC38: พีรพัฒน์ | AD38: ศึกษากิจ
B39: 36 | C39: 09609 | D39: เด็กหญิงนลินทิพย์ ทองชมภู | E39: =IF(C39="","",ตรวจ!P42) -> 0 | F39: =IF(C39="","",ตรวจ!AG42) -> 0 | G39: =IF(C39="","",ตรวจ!AH42) -> 0 | H39: =IF(C39="","",ตรวจ!AR42) -> 0 | I39: =ตรวจ!AU42 -> 0 | J39: =IF(C39="","",ตรวจ!BE42) -> 0 | K39: =IF(OR(C39="", ตรวจ!BF42=0),"",ตรวจ!BF42) ->  | L39: 0 | M39: =IF(C39="","",'6บันทึกคะแนน'!BG43) -> 0 | N39: ='3พิมพ์คะแนน'!BM45 -> 3 | O39: ='3พิมพ์คะแนน'!BX45 -> 3 | Z39: 36 | AA39: 09609 | AB39: เด็กหญิง | AC39: นลินทิพย์ | AD39: ทองชมภู
B40: 37 | C40: 09610 | D40: เด็กชายปพัฐษดา ผิวแดง | E40: =IF(C40="","",ตรวจ!P43) -> 0 | F40: =IF(C40="","",ตรวจ!AG43) -> 0 | G40: =IF(C40="","",ตรวจ!AH43) -> 0 | H40: =IF(C40="","",ตรวจ!AR43) -> 0 | I40: =ตรวจ!AU43 -> 0 | J40: =IF(C40="","",ตรวจ!BE43) -> 0 | K40: =IF(OR(C40="", ตรวจ!BF43=0),"",ตรวจ!BF43) ->  | L40: 0 | M40: =IF(C40="","",'6บันทึกคะแนน'!BG44) -> 0 | N40: ='3พิมพ์คะแนน'!BM46 -> 3 | O40: ='3พิมพ์คะแนน'!BX46 -> 3 | Z40: 37 | AA40: 09610 | AB40: เด็กชาย | AC40: ปพัฐษดา | AD40: ผิวแดง
B41: 38 | C41: 09620 | D41: เด็กชายธันวา สีเขียว | E41: =IF(C41="","",ตรวจ!P44) -> 0 | F41: =IF(C41="","",ตรวจ!AG44) -> 0 | G41: =IF(C41="","",ตรวจ!AH44) -> 0 | H41: =IF(C41="","",ตรวจ!AR44) -> 0 | I41: =ตรวจ!AU44 -> 0 | J41: =IF(C41="","",ตรวจ!BE44) -> 0 | K41: =IF(OR(C41="", ตรวจ!BF44=0),"",ตรวจ!BF44) ->  | L41: 0 | M41: =IF(C41="","",'6บันทึกคะแนน'!BG45) -> 0 | N41: ='3พิมพ์คะแนน'!BM47 -> 3 | O41: ='3พิมพ์คะแนน'!BX47 -> 3 | Z41: 38 | AA41: 09620 | AB41: เด็กชาย | AC41: ธันวา | AD41: สีเขียว
B42: 39 | C42: 09733 | D42: เด็กชายพีรพัฒน์ ดาทุมมา | E42: =IF(C42="","",ตรวจ!P45) -> 0 | F42: =IF(C42="","",ตรวจ!AG45) -> 0 | G42: =IF(C42="","",ตรวจ!AH45) -> 0 | H42: =IF(C42="","",ตรวจ!AR45) -> 0 | I42: =ตรวจ!AU45 -> 0 | J42: =IF(C42="","",ตรวจ!BE45) -> 0 | K42: =IF(OR(C42="", ตรวจ!BF45=0),"",ตรวจ!BF45) ->  | L42: 0 | M42: =IF(C42="","",'6บันทึกคะแนน'!BG46) -> 0 | N42: ='3พิมพ์คะแนน'!BM48 -> 3 | O42: ='3พิมพ์คะแนน'!BX48 -> 3 | Z42: 39 | AA42: 09733 | AB42: เด็กชาย | AC42: พีรพัฒน์ | AD42: ดาทุมมา
B43: 40 | C43: 09734 | D43: เด็กชายมงคล จิตรบรรจง | E43: =IF(C43="","",ตรวจ!P46) -> 0 | F43: =IF(C43="","",ตรวจ!AG46) -> 0 | G43: =IF(C43="","",ตรวจ!AH46) -> 0 | H43: =IF(C43="","",ตรวจ!AR46) -> 0 | I43: =ตรวจ!AU46 -> 0 | J43: =IF(C43="","",ตรวจ!BE46) -> 0 | K43: =IF(OR(C43="", ตรวจ!BF46=0),"",ตรวจ!BF46) ->  | L43: 0 | M43: =IF(C43="","",'6บันทึกคะแนน'!BG47) -> 0 | N43: ='3พิมพ์คะแนน'!BM49 -> 3 | O43: ='3พิมพ์คะแนน'!BX49 -> 3 | Z43: 40 | AA43: 09734 | AB43: เด็กชาย | AC43: มงคล | AD43: จิตรบรรจง
B44: 41 | C44: 09738 | D44: เด็กหญิงวิภาวดี ร้อยพรหมมา | E44: =IF(C44="","",ตรวจ!P47) -> 0 | F44: =IF(C44="","",ตรวจ!AG47) -> 0 | G44: =IF(C44="","",ตรวจ!AH47) -> 0 | H44: =IF(C44="","",ตรวจ!AR47) -> 0 | I44: =ตรวจ!AU47 -> 0 | J44: =IF(C44="","",ตรวจ!BE47) -> 0 | K44: =IF(OR(C44="", ตรวจ!BF47=0),"",ตรวจ!BF47) ->  | L44: 0 | M44: =IF(C44="","",'6บันทึกคะแนน'!BG48) -> 0 | N44: ='3พิมพ์คะแนน'!BM50 -> 3 | O44: ='3พิมพ์คะแนน'!BX50 -> 3 | Z44: 41 | AA44: 09738 | AB44: เด็กหญิง | AC44: วิภาวดี | AD44: ร้อยพรหมมา
B45: 42 | E45: =IF(C45="","",ตรวจ!P48) ->  | F45: =IF(C45="","",ตรวจ!AG48) ->  | G45: =IF(C45="","",ตรวจ!AH48) ->  | H45: =IF(C45="","",ตรวจ!AR48) ->  | I45: =ตรวจ!AU48 ->  | J45: =IF(C45="","",ตรวจ!BE48) ->  | K45: =IF(OR(C45="", ตรวจ!BF48=0),"",ตรวจ!BF48) ->  | M45: =IF(C45="","",'6บันทึกคะแนน'!BG49) ->  | N45: ='3พิมพ์คะแนน'!BM51 ->  | O45: ='3พิมพ์คะแนน'!BX51 ->  | Z45: 42
B46: 43 | E46: =IF(C46="","",ตรวจ!P49) ->  | F46: =IF(C46="","",ตรวจ!AG49) ->  | G46: =IF(C46="","",ตรวจ!AH49) ->  | H46: =IF(C46="","",ตรวจ!AR49) ->  | I46: =ตรวจ!AU49 ->  | J46: =IF(C46="","",ตรวจ!BE49) ->  | K46: =IF(OR(C46="", ตรวจ!BF49=0),"",ตรวจ!BF49) ->  | M46: =IF(C46="","",'6บันทึกคะแนน'!BG50) ->  | N46: ='3พิมพ์คะแนน'!BM52 ->  | O46: ='3พิมพ์คะแนน'!BX52 ->  | Z46: 43
B47: 44 | E47: =IF(C47="","",ตรวจ!P50) ->  | F47: =IF(C47="","",ตรวจ!AG50) ->  | G47: =IF(C47="","",ตรวจ!AH50) ->  | H47: =IF(C47="","",ตรวจ!AR50) ->  | I47: =ตรวจ!AU50 ->  | J47: =IF(C47="","",ตรวจ!BE50) ->  | K47: =IF(OR(C47="", ตรวจ!BF50=0),"",ตรวจ!BF50) ->  | M47: =IF(C47="","",'6บันทึกคะแนน'!BG51) ->  | N47: ='3พิมพ์คะแนน'!BM53 ->  | O47: ='3พิมพ์คะแนน'!BX53 ->  | Z47: 44
B48: 45 | E48: =IF(C48="","",ตรวจ!P51) ->  | F48: =IF(C48="","",ตรวจ!AG51) ->  | G48: =IF(C48="","",ตรวจ!AH51) ->  | H48: =IF(C48="","",ตรวจ!AR51) ->  | I48: =ตรวจ!AU51 ->  | J48: =IF(C48="","",ตรวจ!BE51) ->  | K48: =IF(OR(C48="", ตรวจ!BF51=0),"",ตรวจ!BF51) ->  | M48: =IF(C48="","",'6บันทึกคะแนน'!BG52) ->  | N48: ='3พิมพ์คะแนน'!BM54 ->  | O48: ='3พิมพ์คะแนน'!BX54 ->  | Z48: 45
B49: 46 | E49: =IF(C49="","",ตรวจ!P52) ->  | F49: =IF(C49="","",ตรวจ!AG52) ->  | G49: =IF(C49="","",ตรวจ!AH52) ->  | H49: =IF(C49="","",ตรวจ!AR52) ->  | I49: =ตรวจ!AU52 ->  | J49: =IF(C49="","",ตรวจ!BE52) ->  | K49: =IF(OR(C49="", ตรวจ!BF52=0),"",ตรวจ!BF52) ->  | M49: =IF(C49="","",'6บันทึกคะแนน'!BG53) ->  | N49: ='3พิมพ์คะแนน'!BM55 ->  | O49: ='3พิมพ์คะแนน'!BX55 ->  | Z49: 46
B50: 47 | E50: =IF(C50="","",ตรวจ!P53) ->  | F50: =IF(C50="","",ตรวจ!AG53) ->  | G50: =IF(C50="","",ตรวจ!AH53) ->  | H50: =IF(C50="","",ตรวจ!AR53) ->  | I50: =ตรวจ!AU53 ->  | J50: =IF(C50="","",ตรวจ!BE53) ->  | K50: =IF(OR(C50="", ตรวจ!BF53=0),"",ตรวจ!BF53) ->  | M50: =IF(C50="","",'6บันทึกคะแนน'!BG54) ->  | N50: ='3พิมพ์คะแนน'!BM56 ->  | O50: ='3พิมพ์คะแนน'!BX56 ->  | Z50: 47
B51: 48 | E51: =IF(C51="","",ตรวจ!P54) ->  | F51: =IF(C51="","",ตรวจ!AG54) ->  | G51: =IF(C51="","",ตรวจ!AH54) ->  | H51: =IF(C51="","",ตรวจ!AR54) ->  | I51: =ตรวจ!AU54 ->  | J51: =IF(C51="","",ตรวจ!BE54) ->  | K51: =IF(OR(C51="", ตรวจ!BF54=0),"",ตรวจ!BF54) ->  | M51: =IF(C51="","",'6บันทึกคะแนน'!BG55) ->  | N51: ='3พิมพ์คะแนน'!BM57 ->  | O51: ='3พิมพ์คะแนน'!BX57 ->  | Z51: 48
B52: 49 | E52: =IF(C52="","",ตรวจ!P55) ->  | F52: =IF(C52="","",ตรวจ!AG55) ->  | G52: =IF(C52="","",ตรวจ!AH55) ->  | H52: =IF(C52="","",ตรวจ!AR55) ->  | I52: =ตรวจ!AU55 ->  | J52: =IF(C52="","",ตรวจ!BE55) ->  | K52: =IF(OR(C52="", ตรวจ!BF55=0),"",ตรวจ!BF55) ->  | M52: =IF(C52="","",'6บันทึกคะแนน'!BG56) ->  | N52: ='3พิมพ์คะแนน'!BM58 ->  | O52: ='3พิมพ์คะแนน'!BX58 ->  | Z52: 49
B53: 50 | E53: =IF(C53="","",ตรวจ!P56) ->  | F53: =IF(C53="","",ตรวจ!AG56) ->  | G53: =IF(C53="","",ตรวจ!AH56) ->  | H53: =IF(C53="","",ตรวจ!AR56) ->  | I53: =ตรวจ!AU56 ->  | J53: =IF(C53="","",ตรวจ!BE56) ->  | K53: =IF(OR(C53="", ตรวจ!BF56=0),"",ตรวจ!BF56) ->  | M53: =IF(C53="","",'6บันทึกคะแนน'!BG57) ->  | N53: ='3พิมพ์คะแนน'!BM59 ->  | O53: ='3พิมพ์คะแนน'!BX59 ->  | Z53: 50
B54: 51 | E54: =IF(C54="","",ตรวจ!P57) ->  | F54: =IF(C54="","",ตรวจ!AG57) ->  | G54: =IF(C54="","",ตรวจ!AH57) ->  | H54: =IF(C54="","",ตรวจ!AR57) ->  | I54: =ตรวจ!AU57 ->  | J54: =IF(C54="","",ตรวจ!BE57) ->  | K54: =IF(OR(C54="", ตรวจ!BF57=0),"",ตรวจ!BF57) ->  | M54: =IF(C54="","",'6บันทึกคะแนน'!BG58) ->  | N54: ='3พิมพ์คะแนน'!BM60 ->  | O54: ='3พิมพ์คะแนน'!BX60 ->  | Z54: 51
B55: 52 | E55: =IF(C55="","",ตรวจ!P58) ->  | F55: =IF(C55="","",ตรวจ!AG58) ->  | G55: =IF(C55="","",ตรวจ!AH58) ->  | H55: =IF(C55="","",ตรวจ!AR58) ->  | I55: =ตรวจ!AU58 ->  | J55: =IF(C55="","",ตรวจ!BE58) ->  | K55: =IF(OR(C55="", ตรวจ!BF58=0),"",ตรวจ!BF58) ->  | M55: =IF(C55="","",'6บันทึกคะแนน'!BG59) ->  | N55: ='3พิมพ์คะแนน'!BM61 ->  | O55: ='3พิมพ์คะแนน'!BX61 ->  | Z55: 52
B56: 53 | E56: =IF(C56="","",ตรวจ!P59) ->  | F56: =IF(C56="","",ตรวจ!AG59) ->  | G56: =IF(C56="","",ตรวจ!AH59) ->  | H56: =IF(C56="","",ตรวจ!AR59) ->  | I56: =ตรวจ!AU59 ->  | J56: =IF(C56="","",ตรวจ!BE59) ->  | K56: =IF(OR(C56="", ตรวจ!BF59=0),"",ตรวจ!BF59) ->  | M56: =IF(C56="","",'6บันทึกคะแนน'!BG60) ->  | N56: ='3พิมพ์คะแนน'!BM62 ->  | O56: ='3พิมพ์คะแนน'!BX62 ->  | Z56: 53
B57: 54 | E57: =IF(C57="","",ตรวจ!P60) ->  | F57: =IF(C57="","",ตรวจ!AG60) ->  | G57: =IF(C57="","",ตรวจ!AH60) ->  | H57: =IF(C57="","",ตรวจ!AR60) ->  | I57: =ตรวจ!AU60 ->  | J57: =IF(C57="","",ตรวจ!BE60) ->  | K57: =IF(OR(C57="", ตรวจ!BF60=0),"",ตรวจ!BF60) ->  | M57: =IF(C57="","",'6บันทึกคะแนน'!BG61) ->  | N57: ='3พิมพ์คะแนน'!BM63 ->  | O57: ='3พิมพ์คะแนน'!BX63 ->  | Z57: 54
B58: 55 | E58: =IF(C58="","",ตรวจ!P61) ->  | F58: =IF(C58="","",ตรวจ!AG61) ->  | G58: =IF(C58="","",ตรวจ!AH61) ->  | H58: =IF(C58="","",ตรวจ!AR61) ->  | I58: =ตรวจ!AU61 ->  | J58: =IF(C58="","",ตรวจ!BE61) ->  | K58: =IF(OR(C58="", ตรวจ!BF61=0),"",ตรวจ!BF61) ->  | M58: =IF(C58="","",'6บันทึกคะแนน'!BG62) ->  | N58: ='3พิมพ์คะแนน'!BM64 ->  | O58: ='3พิมพ์คะแนน'!BX64 ->  | Z58: 55
B59: 56 | E59: =IF(C59="","",ตรวจ!P62) ->  | F59: =IF(C59="","",ตรวจ!AG62) ->  | G59: =IF(C59="","",ตรวจ!AH62) ->  | H59: =IF(C59="","",ตรวจ!AR62) ->  | I59: =ตรวจ!AU62 ->  | J59: =IF(C59="","",ตรวจ!BE62) ->  | K59: =IF(OR(C59="", ตรวจ!BF62=0),"",ตรวจ!BF62) ->  | M59: =IF(C59="","",'6บันทึกคะแนน'!BG63) ->  | N59: ='3พิมพ์คะแนน'!BM65 ->  | O59: ='3พิมพ์คะแนน'!BX65 ->  | Z59: 56
B60: 57 | E60: =IF(C60="","",ตรวจ!P63) ->  | F60: =IF(C60="","",ตรวจ!AG63) ->  | G60: =IF(C60="","",ตรวจ!AH63) ->  | H60: =IF(C60="","",ตรวจ!AR63) ->  | I60: =ตรวจ!AU63 ->  | J60: =IF(C60="","",ตรวจ!BE63) ->  | K60: =IF(OR(C60="", ตรวจ!BF63=0),"",ตรวจ!BF63) ->  | M60: =IF(C60="","",'6บันทึกคะแนน'!BG64) ->  | N60: ='3พิมพ์คะแนน'!BM66 ->  | O60: ='3พิมพ์คะแนน'!BX66 ->  | Z60: 57
B61: 58 | E61: =IF(C61="","",ตรวจ!P64) ->  | F61: =IF(C61="","",ตรวจ!AG64) ->  | G61: =IF(C61="","",ตรวจ!AH64) ->  | H61: =IF(C61="","",ตรวจ!AR64) ->  | I61: =ตรวจ!AU64 ->  | J61: =IF(C61="","",ตรวจ!BE64) ->  | K61: =IF(OR(C61="", ตรวจ!BF64=0),"",ตรวจ!BF64) ->  | M61: =IF(C61="","",'6บันทึกคะแนน'!BG65) ->  | N61: ='3พิมพ์คะแนน'!BM67 ->  | O61: ='3พิมพ์คะแนน'!BX67 ->  | Z61: 58
B62: 59 | E62: =IF(C62="","",ตรวจ!P65) ->  | F62: =IF(C62="","",ตรวจ!AG65) ->  | G62: =IF(C62="","",ตรวจ!AH65) ->  | H62: =IF(C62="","",ตรวจ!AR65) ->  | I62: =ตรวจ!AU65 ->  | J62: =IF(C62="","",ตรวจ!BE65) ->  | K62: =IF(OR(C62="", ตรวจ!BF65=0),"",ตรวจ!BF65) ->  | M62: =IF(C62="","",'6บันทึกคะแนน'!BG66) ->  | N62: ='3พิมพ์คะแนน'!BM68 ->  | O62: ='3พิมพ์คะแนน'!BX68 ->  | Z62: 59
B63: 60 | E63: =IF(C63="","",ตรวจ!P66) ->  | F63: =IF(C63="","",ตรวจ!AG66) ->  | G63: =IF(C63="","",ตรวจ!AH66) ->  | H63: =IF(C63="","",ตรวจ!AR66) ->  | I63: =ตรวจ!AU66 ->  | J63: =IF(C63="","",ตรวจ!BE66) ->  | K63: =IF(OR(C63="", ตรวจ!BF66=0),"",ตรวจ!BF66) ->  | M63: =IF(C63="","",'6บันทึกคะแนน'!BG67) ->  | N63: ='3พิมพ์คะแนน'!BM69 ->  | O63: ='3พิมพ์คะแนน'!BX69 ->  | Z63: 60
C68: ร
C69: มส
C70: -

Sheet 2วันเดือนปี
G1: <<ผู้สอน >> | H1: ='1ข้อมูลรายวิชา'!$Q$18 -> นายเจษฎา นินจันทร์ | R1: หน้านี้เป็นหน้ากรอก วัน เดือน ปี ในแต่ละคาบ/สัปดาห์ ให้กรอกเฉพาะ สัปดาห์แรก โปรแกรมจะคำนวณสัปดาห์ถัดไปให้อัติโนมัตนะคะ
D2: ตั้งค่าเวลามาเรียน | G2: วิชา | H2: ='1ข้อมูลรายวิชา'!$D$3 -> วิทยาการคำนวณ ว22103 3 ห้อง 1
B4: =D4+1 -> 14612 | D4: 1-40 | F4: 1 | G4: 2 | H4: 3 | I4: 4 | J4: 5 | R4: แต่ถ้าหากตั้งแต่สัปดาห์ที่ 2 สูตรหายไปให้ก็อปปี้สูตรจากสัปดาห์อื่นมาแล้ว อย่าลืม วางแบบสูตรนะคะ..
A5: 1 | B5: 21 | D5: สัปดาห์ที่ : | E5: 1 | Q5: << กรอกเฉพาะสัปดาห์แรก
A6: 2 | B6: 22 | D6: สัปดาห์ที่ : | E6: 2 | F6: =L6 ->  | G6: =M6 ->  | H6: =N6 ->  | I6: =O6 ->  | J6: =P6 ->  | K6: 1 | L6: =IF($Q$10>K6,IF(F5<>"",F5+7,""),"") ->  | M6: =IF($Q$10>K6,IF(G5<>"",G5+7,""),"") ->  | N6: =IF($Q$10>K6,IF(H5<>"",H5+7,""),"") ->  | O6: =IF($Q$10>K6,IF(I5<>"",I5+7,""),"") ->  | P6: =IF($Q$10>K6,IF(J5<>"",J5+7,""),"") -> 
A7: 3 | B7: 23 | D7: สัปดาห์ที่ : | E7: 3 | K7: 2 | Q7: เช็คตลอดภาคเรียน
A8: 4 | B8: 24 | D8: สัปดาห์ที่ : | E8: 4 | K8: 3
A9: 5 | B9: 25 | D9: สัปดาห์ที่ : | E9: 5 | K9: 4
A10: 6 | B10: 26 | D10: สัปดาห์ที่ : | E10: 6 | K10: 5 | Q10: 20
A11: 7 | B11: 27 | D11: สัปดาห์ที่ : | E11: 7 | K11: 6
A12: 8 | B12: 28 | D12: สัปดาห์ที่ : | E12: 8 | K12: 7
A13: 9 | B13: 29 | D13: สัปดาห์ที่ : | E13: 9 | K13: 8
A14: 10 | B14: 30 | D14: สัปดาห์ที่ : | E14: 10 | K14: 9
A15: 11 | B15: 31 | D15: สัปดาห์ที่ : | E15: 11 | K15: 10
A16: 12 | B16: 32 | D16: สัปดาห์ที่ : | E16: 12 | K16: 11
A17: 13 | B17: 33 | D17: สัปดาห์ที่ : | E17: 13 | K17: 12
A18: 14 | B18: 34 | D18: สัปดาห์ที่ : | E18: 14 | K18: 13
A19: 15 | B19: 35 | D19: สัปดาห์ที่ : | E19: 15 | K19: 14
A20: 16 | B20: 36 | D20: สัปดาห์ที่ : | E20: 16 | K20: 15
A21: 17 | B21: 37 | D21: สัปดาห์ที่ : | E21: 17 | K21: 16
A22: 18 | B22: 38 | D22: สัปดาห์ที่ : | E22: 18 | K22: 17
A23: 19 | B23: 39 | D23: สัปดาห์ที่ : | E23: 19 | K23: 18
A24: 20 | B24: 40 | D24: สัปดาห์ที่ : | E24: 20 | K24: 19
D25: สัปดาห์ที่ : | E25: 21 | K25: 20
D26: สัปดาห์ที่ : | E26: 22 | K26: 21
D27: สัปดาห์ที่ : | E27: 23 | K27: 22
D28: สัปดาห์ที่ : | E28: 24 | K28: 23
D29: สัปดาห์ที่ : | E29: 25 | K29: 24
D30: สัปดาห์ที่ : | E30: 26 | K30: 25
D31: สัปดาห์ที่ : | E31: 27 | K31: 26
D32: สัปดาห์ที่ : | E32: 28 | K32: 27
D33: สัปดาห์ที่ : | E33: 29 | K33: 28
D34: สัปดาห์ที่ : | E34: 30 | K34: 29
D35: สัปดาห์ที่ : | E35: 31 | K35: 30
D36: สัปดาห์ที่ : | E36: 32 | K36: 31
D37: สัปดาห์ที่ : | E37: 33 | K37: 32
D38: สัปดาห์ที่ : | E38: 34 | K38: 33
D39: สัปดาห์ที่ : | E39: 35 | K39: 34
D40: สัปดาห์ที่ : | E40: 36 | K40: 35
D41: สัปดาห์ที่ : | E41: 37 | K41: 36
D42: สัปดาห์ที่ : | E42: 38 | K42: 37
D43: สัปดาห์ที่ : | E43: 39 | K43: 38
D44: สัปดาห์ที่ : | E44: 40 | K44: 39

Sheet 3บันทึกจุดปรสงค์
A2: บันทึกจุดประสงค์ ให้เรียบร้อยเพื่อใช้ในการพิมพ์เป็นรูปเล่ม
B3: ="ปพ.5 ( "&'1พิมพ์ปกปพ'!$I$10&" )" -> ปพ.5 ( 3 ห้อง 1 )
B4: ตัวชี้วัด/ผลการเรียนรู้ รายวิชา : | H4: ='1พิมพ์ปกปพ'!$K$11&" " -> วิทยาการคำนวณ | N4: รหัสวิชา : | Q4: ='1พิมพ์ปกปพ'!$E$11 -> ว22103 | Z4: จปร3
B6: ตัวชี้วัด/ผลการเรียนรู้ | AB6: จปร 2 ช่อง 1 | AG6: จปร 2 ช่อง 2 | AL6: จปร 2 ช่อง 3 | AQ6: จปร 2 ช่อง 4 | AV6: จปร 2 ช่อง 5 | BA6: จปร 2 ช่อง 6 | BF6: จปร 2 ช่อง 7 | BK6: จปร 2 ช่อง8 | BP6: จปร 2 ช่อง 9 | BU6: จปร 2 ช่อง10 | BZ6: จปร 2 ช่อง 11 | CE6: จปร 2 ช่อง12 | CJ6: จปร 2 ช่อง 13 | CO6: จปร 2 ช่อง14 | CT6: จปร 2 ช่อง 15 | CY6: จปร 2 ช่อง16 | DD6: จปร 2 ช่อง 17 | DI6: จปร 2 ช่อง18 | DN6: จปร 2 ช่อง 19 | DS6: จปร 2 ช่อง20 | DX6: จปร 2 ช่อง 21 | EC6: จปร 2 ช่อง22 | EH6: จปร 2 ช่อง 23 | EM6: จปร 2 ช่อง24 | ER6: Link ไปเก็บคะแนน
V7: รวม | W7: จปร1 | X7: mid | Z7: จปร3 | AA7: ข้อ | AB7: จปร2 เริ่มข้อ | AD7: คะแนน | AE7: ช่อง 1 | AF7: ข้อ | AG7: จปร2 เริ่มข้อ | AI7: คะแนน | AJ7: ช่อง 2 | AK7: ข้อ | AL7: จปร2 เริ่มข้อ | AN7: คะแนน | AO7: ช่อง 3 | AP7: ข้อ | AQ7: จปร2 เริ่มข้อ | AS7: คะแนน | AT7: ช่อง 4 | AU7: ข้อ | AV7: จปร2 เริ่มข้อ | AX7: คะแนน | AY7: ช่อง 5 | AZ7: ข้อ | BA7: จปร2 เริ่มข้อ | BC7: คะแนน | BD7: ช่อง 6 | BE7: ข้อ | BF7: จปร2 เริ่มข้อ | BH7: คะแนน | BI7: ช่อง 7 | BJ7: ข้อ | BK7: จปร2 เริ่มข้อ | BM7: คะแนน | BN7: ช่อง 8 | BO7: ข้อ | BP7: จปร2 เริ่มข้อ | BR7: คะแนน | BS7: ช่อง 9 | BT7: ข้อ | BU7: จปร2 เริ่มข้อ | BW7: คะแนน | BX7: ช่อง 10 | BY7: ข้อ | BZ7: จปร2 เริ่มข้อ | CB7: คะแนน | CC7: ช่อง 11 | CD7: ข้อ | CE7: จปร2 เริ่มข้อ | CG7: คะแนน | CH7: ช่อง 12 | CI7: ข้อ | CJ7: จปร2 เริ่มข้อ | CL7: คะแนน | CM7: ช่อง 13 | CN7: ข้อ | CO7: จปร2 เริ่มข้อ | CQ7: คะแนน | CR7: ช่อง 14 | CS7: ข้อ | CT7: จปร2 เริ่มข้อ | CV7: คะแนน | CW7: ช่อง 15 | CX7: ข้อ | CY7: จปร2 เริ่มข้อ | DA7: คะแนน | DB7: ช่อง 16 | DC7: ข้อ | DD7: จปร2 เริ่มข้อ | DF7: คะแนน | DG7: ช่อง 17 | DH7: ข้อ | DI7: จปร2 เริ่มข้อ | DK7: คะแนน | DL7: ช่อง 18 | DM7: ข้อ | DN7: จปร2 เริ่มข้อ | DP7: คะแนน | DQ7: ช่อง 19 | DR7: ข้อ | DS7: จปร2 เริ่มข้อ | DU7: คะแนน | DV7: ช่อง 20 | DW7: ข้อ | DX7: จปร2 เริ่มข้อ | DZ7: คะแนน | EA7: ช่อง 21 | EB7: ข้อ | EC7: จปร2 เริ่มข้อ | EE7: คะแนน | EF7: ช่อง 22 | EG7: ข้อ | EH7: จปร2 เริ่มข้อ | EJ7: คะแนน | EK7: ช่อง 23 | EL7: ข้อ | EM7: จปร2 เริ่มข้อ | EO7: คะแนน | EP7: ช่อง 24 | ER7: 1 | ES7: 2 | ET7: 3 | EU7: 4 | EV7: จปร | EW7: ข้อ
V8: =SUM(O8:T8) -> 0 | W8: 4 | X8: 3 | Z8: =AE8+AJ8+AO8+AT8+AY8+BD8+BI8+BN8+BS8+BX8+CC8+CH8+CM8+CR8+CW8+DB8+DG8+DL8+DQ8+DV8+EA8+EF8+EK8+EP8 -> 0 | AA8: 1 | AB8: 6 | AC8: =IF(AB8=AA8,0) -> FALSE | AD8: 5 | AE8: =IF(AC8=0,AD8) -> FALSE | AF8: 1 | AG8: =AB8+1 -> 7 | AH8: =IF(AG8=AF8,0) -> FALSE | AI8: 8 | AJ8: =IF(AH8=0,AI8) -> FALSE | AK8: 1 | AL8: =AG8+1 -> 8 | AM8: =IF(AL8=AK8,0) -> FALSE | AN8: 7 | AO8: =IF(AM8=0,AN8) -> FALSE | AP8: 1 | AQ8: =AL8+1 -> 9 | AR8: =IF(AQ8=AP8,0) -> FALSE | AS8: 0 | AT8: =IF(AR8=0,AS8) -> FALSE | AU8: 1 | AV8: =AQ8+1 -> 10 | AW8: =IF(AV8=AU8,0) -> FALSE | AX8: 0 | AY8: =IF(AW8=0,AX8) -> FALSE | AZ8: 1 | BA8: =AV8+1 -> 11 | BB8: =IF(BA8=AZ8,0) -> FALSE | BC8: 0 | BD8: =IF(BB8=0,BC8) -> FALSE | BE8: 1 | BF8: =BA8+1 -> 12 | BG8: =IF(BF8=BE8,0) -> FALSE | BH8: 0 | BI8: =IF(BG8=0,BH8) -> FALSE | BJ8: 1 | BK8: =BF8+1 -> 13 | BL8: =IF(BK8=BJ8,0) -> FALSE | BM8: 0 | BN8: =IF(BL8=0,BM8) -> FALSE | BO8: 1 | BP8: =BK8+1 -> 14 | BQ8: =IF(BP8=BO8,0) -> FALSE | BR8: 0 | BS8: =IF(BQ8=0,BR8) -> FALSE | BT8: 1 | BU8: =BP8+1 -> 15 | BV8: =IF(BU8=BT8,0) -> FALSE | BW8: 0 | BX8: =IF(BV8=0,BW8) -> FALSE | BY8: 1 | BZ8: =BU8+1 -> 16 | CA8: =IF(BZ8=BY8,0) -> FALSE | CB8: 0 | CC8: =IF(CA8=0,CB8) -> FALSE | CD8: 1 | CE8: =BZ8+1 -> 17 | CF8: =IF(CE8=CD8,0) -> FALSE | CG8: 0 | CH8: =IF(CF8=0,CG8) -> FALSE | CI8: 1 | CJ8: =CE8+1 -> 18 | CK8: =IF(CJ8=CI8,0) -> FALSE | CL8: 0 | CM8: =IF(CK8=0,CL8) -> FALSE | CN8: 1 | CO8: =CJ8+1 -> 19 | CP8: =IF(CO8=CN8,0) -> FALSE | CQ8: 0 | CR8: =IF(CP8=0,CQ8) -> FALSE | CS8: 1 | CT8: =CO8+1 -> 20 | CU8: =IF(CT8=CS8,0) -> FALSE | CV8: 0 | CW8: =IF(CU8=0,CV8) -> FALSE | CX8: 1 | CY8: =CT8+1 -> 21 | CZ8: =IF(CY8=CX8,0) -> FALSE | DA8: 0 | DB8: =IF(CZ8=0,DA8) -> FALSE | DC8: 1 | DD8: =CY8+1 -> 22 | DE8: =IF(DD8=DC8,0) -> FALSE | DF8: 0 | DG8: =IF(DE8=0,DF8) -> FALSE | DH8: 1 | DI8: =DD8+1 -> 23 | DJ8: =IF(DI8=DH8,0) -> FALSE | DK8: 0 | DL8: =IF(DJ8=0,DK8) -> FALSE | DM8: 1 | DN8: =DI8+1 -> 24 | DO8: =IF(DN8=DM8,0) -> FALSE | DP8: 0 | DQ8: =IF(DO8=0,DP8) -> FALSE | DR8: 1 | DS8: =DN8+1 -> 25 | DT8: =IF(DS8=DR8,0) -> FALSE | DU8: 0 | DV8: =IF(DT8=0,DU8) -> FALSE | DW8: 1 | DX8: =DS8+1 -> 26 | DY8: =IF(DX8=DW8,0) -> FALSE | DZ8: 53 | EA8: =IF(DY8=0,DZ8) -> FALSE | EB8: 1 | EC8: =DX8+1 -> 27 | ED8: =IF(EC8=EB8,0) -> FALSE | EE8: 0 | EF8: =IF(ED8=0,EE8) -> FALSE | EG8: 1 | EH8: =EC8+1 -> 28 | EI8: =IF(EH8=EG8,0) -> FALSE | EJ8: 0 | EK8: =IF(EI8=0,EJ8) -> FALSE | EL8: 1 | EM8: =EH8+1 -> 29 | EN8: =IF(EM8=EL8,0) -> FALSE | EO8: 0 | EP8: =IF(EN8=0,EO8) -> FALSE | ER8: =IF(O8<U8,O8,0) -> 0 | ES8: =IF(P8<U8,P8,0) -> 0 | ET8: =IF(Q8<U8,Q8,0) -> 0 | EU8: =IF(R8<U8,R8,0) -> 0 | EV8: =ER8+ET8 -> 0 | EW8: 1
V9: =SUM(O9:T9) -> 0 | W9: 6 | X9: 9 | Z9: 0 | AA9: 2 | AB9: =AB8 -> 6 | AC9: FALSE | AD9: =AD8 -> 5 | AE9: FALSE | AF9: 2 | AG9: =AG8 -> 7 | AH9: FALSE | AI9: =AI8 -> 8 | AJ9: FALSE | AK9: 2 | AL9: =AL8 -> 8 | AM9: FALSE | AN9: =AN8 -> 7 | AO9: FALSE | AP9: 2 | AQ9: =AQ8 -> 9 | AR9: FALSE | AS9: =AS8 -> 0 | AT9: FALSE | AU9: 2 | AV9: =AV8 -> 10 | AW9: FALSE | AX9: =AX8 -> 0 | AY9: FALSE | AZ9: 2 | BA9: =BA8 -> 11 | BB9: FALSE | BC9: =BC8 -> 0 | BD9: FALSE | BE9: 2 | BF9: =BF8 -> 12 | BG9: FALSE | BH9: =BH8 -> 0 | BI9: FALSE | BJ9: 2 | BK9: =BK8 -> 13 | BL9: FALSE | BM9: =BM8 -> 0 | BN9: FALSE | BO9: 2 | BP9: =BP8 -> 14 | BQ9: FALSE | BR9: =BR8 -> 0 | BS9: FALSE | BT9: 2 | BU9: =BU8 -> 15 | BV9: FALSE | BW9: =BW8 -> 0 | BX9: FALSE | BY9: 2 | BZ9: =BZ8 -> 16 | CA9: FALSE | CB9: =CB8 -> 0 | CC9: FALSE | CD9: 2 | CE9: =CE8 -> 17 | CF9: FALSE | CG9: =CG8 -> 0 | CH9: FALSE | CI9: 2 | CJ9: =CJ8 -> 18 | CK9: FALSE | CL9: =CL8 -> 0 | CM9: FALSE | CN9: 2 | CO9: =CO8 -> 19 | CP9: FALSE | CQ9: =CQ8 -> 0 | CR9: FALSE | CS9: 2 | CT9: =CT8 -> 20 | CU9: FALSE | CV9: =CV8 -> 0 | CW9: FALSE | CX9: 2 | CY9: =CY8 -> 21 | CZ9: FALSE | DA9: =DA8 -> 0 | DB9: FALSE | DC9: 2 | DD9: =DD8 -> 22 | DE9: FALSE | DF9: =DF8 -> 0 | DG9: FALSE | DH9: 2 | DI9: =DI8 -> 23 | DJ9: FALSE | DK9: =DK8 -> 0 | DL9: FALSE | DM9: 2 | DN9: =DN8 -> 24 | DO9: FALSE | DP9: =DP8 -> 0 | DQ9: FALSE | DR9: 2 | DS9: =DS8 -> 25 | DT9: FALSE | DU9: =DU8 -> 0 | DV9: FALSE | DW9: 2 | DX9: =DX8 -> 26 | DY9: FALSE | DZ9: =DZ8 -> 53 | EA9: FALSE | EB9: 2 | EC9: =EC8 -> 27 | ED9: FALSE | EE9: =EE8 -> 0 | EF9: FALSE | EG9: 2 | EH9: =EH8 -> 28 | EI9: FALSE | EJ9: =EJ8 -> 0 | EK9: FALSE | EL9: 2 | EM9: =EM8 -> 29 | EN9: FALSE | EO9: =EO8 -> 0 | EP9: FALSE | ER9: 0 | ES9: 0 | ET9: 0 | EU9: 0 | EV9: 0 | EW9: 2
V10: =SUM(O10:T10) -> 0 | W10: 3 | X10: 5 | Z10: 0 | AA10: 3 | AB10: 6 | AC10: FALSE | AD10: 5 | AE10: FALSE | AF10: 3 | AG10: 7 | AH10: FALSE | AI10: 8 | AJ10: FALSE | AK10: 3 | AL10: 8 | AM10: FALSE | AN10: 7 | AO10: FALSE | AP10: 3 | AQ10: 9 | AR10: FALSE | AS10: 0 | AT10: FALSE | AU10: 3 | AV10: 10 | AW10: FALSE | AX10: 0 | AY10: FALSE | AZ10: 3 | BA10: 11 | BB10: FALSE | BC10: 0 | BD10: FALSE | BE10: 3 | BF10: 12 | BG10: FALSE | BH10: 0 | BI10: FALSE | BJ10: 3 | BK10: 13 | BL10: FALSE | BM10: 0 | BN10: FALSE | BO10: 3 | BP10: 14 | BQ10: FALSE | BR10: 0 | BS10: FALSE | BT10: 3 | BU10: 15 | BV10: FALSE | BW10: 0 | BX10: FALSE | BY10: 3 | BZ10: 16 | CA10: FALSE | CB10: 0 | CC10: FALSE | CD10: 3 | CE10: 17 | CF10: FALSE | CG10: 0 | CH10: FALSE | CI10: 3 | CJ10: 18 | CK10: FALSE | CL10: 0 | CM10: FALSE | CN10: 3 | CO10: 19 | CP10: FALSE | CQ10: 0 | CR10: FALSE | CS10: 3 | CT10: 20 | CU10: FALSE | CV10: 0 | CW10: FALSE | CX10: 3 | CY10: 21 | CZ10: FALSE | DA10: 0 | DB10: FALSE | DC10: 3 | DD10: 22 | DE10: FALSE | DF10: 0 | DG10: FALSE | DH10: 3 | DI10: 23 | DJ10: FALSE | DK10: 0 | DL10: FALSE | DM10: 3 | DN10: 24 | DO10: FALSE | DP10: 0 | DQ10: FALSE | DR10: 3 | DS10: 25 | DT10: FALSE | DU10: 0 | DV10: FALSE | DW10: 3 | DX10: 26 | DY10: FALSE | DZ10: 53 | EA10: FALSE | EB10: 3 | EC10: 27 | ED10: FALSE | EE10: 0 | EF10: FALSE | EG10: 3 | EH10: 28 | EI10: FALSE | EJ10: 0 | EK10: FALSE | EL10: 3 | EM10: 29 | EN10: FALSE | EO10: 0 | EP10: FALSE | ER10: 0 | ES10: 0 | ET10: 0 | EU10: 0 | EV10: 0 | EW10: 3
V11: =SUM(O11:R11) -> 0 | W11: 5 | X11: 7 | Z11: 0 | AA11: 4 | AB11: 6 | AC11: FALSE | AD11: 5 | AE11: FALSE | AF11: 4 | AG11: 7 | AH11: FALSE | AI11: 8 | AJ11: FALSE | AK11: 4 | AL11: 8 | AM11: FALSE | AN11: 7 | AO11: FALSE | AP11: 4 | AQ11: 9 | AR11: FALSE | AS11: 0 | AT11: FALSE | AU11: 4 | AV11: 10 | AW11: FALSE | AX11: 0 | AY11: FALSE | AZ11: 4 | BA11: 11 | BB11: FALSE | BC11: 0 | BD11: FALSE | BE11: 4 | BF11: 12 | BG11: FALSE | BH11: 0 | BI11: FALSE | BJ11: 4 | BK11: 13 | BL11: FALSE | BM11: 0 | BN11: FALSE | BO11: 4 | BP11: 14 | BQ11: FALSE | BR11: 0 | BS11: FALSE | BT11: 4 | BU11: 15 | BV11: FALSE | BW11: 0 | BX11: FALSE | BY11: 4 | BZ11: 16 | CA11: FALSE | CB11: 0 | CC11: FALSE | CD11: 4 | CE11: 17 | CF11: FALSE | CG11: 0 | CH11: FALSE | CI11: 4 | CJ11: 18 | CK11: FALSE | CL11: 0 | CM11: FALSE | CN11: 4 | CO11: 19 | CP11: FALSE | CQ11: 0 | CR11: FALSE | CS11: 4 | CT11: 20 | CU11: FALSE | CV11: 0 | CW11: FALSE | CX11: 4 | CY11: 21 | CZ11: FALSE | DA11: 0 | DB11: FALSE | DC11: 4 | DD11: 22 | DE11: FALSE | DF11: 0 | DG11: FALSE | DH11: 4 | DI11: 23 | DJ11: FALSE | DK11: 0 | DL11: FALSE | DM11: 4 | DN11: 24 | DO11: FALSE | DP11: 0 | DQ11: FALSE | DR11: 4 | DS11: 25 | DT11: FALSE | DU11: 0 | DV11: FALSE | DW11: 4 | DX11: 26 | DY11: FALSE | DZ11: 53 | EA11: FALSE | EB11: 4 | EC11: 27 | ED11: FALSE | EE11: 0 | EF11: FALSE | EG11: 4 | EH11: 28 | EI11: FALSE | EJ11: 0 | EK11: FALSE | EL11: 4 | EM11: 29 | EN11: FALSE | EO11: 0 | EP11: FALSE | ER11: 0 | ES11: 0 | ET11: 0 | EU11: 0 | EV11: 0 | EW11: 4
V12: =SUM(O12:R12) -> 0 | W12: 2 | X12: 6 | Z12: 0 | AA12: 5 | AB12: 6 | AC12: FALSE | AD12: 5 | AE12: FALSE | AF12: 5 | AG12: 7 | AH12: FALSE | AI12: 8 | AJ12: FALSE | AK12: 5 | AL12: 8 | AM12: FALSE | AN12: 7 | AO12: FALSE | AP12: 5 | AQ12: 9 | AR12: FALSE | AS12: 0 | AT12: FALSE | AU12: 5 | AV12: 10 | AW12: FALSE | AX12: 0 | AY12: FALSE | AZ12: 5 | BA12: 11 | BB12: FALSE | BC12: 0 | BD12: FALSE | BE12: 5 | BF12: 12 | BG12: FALSE | BH12: 0 | BI12: FALSE | BJ12: 5 | BK12: 13 | BL12: FALSE | BM12: 0 | BN12: FALSE | BO12: 5 | BP12: 14 | BQ12: FALSE | BR12: 0 | BS12: FALSE | BT12: 5 | BU12: 15 | BV12: FALSE | BW12: 0 | BX12: FALSE | BY12: 5 | BZ12: 16 | CA12: FALSE | CB12: 0 | CC12: FALSE | CD12: 5 | CE12: 17 | CF12: FALSE | CG12: 0 | CH12: FALSE | CI12: 5 | CJ12: 18 | CK12: FALSE | CL12: 0 | CM12: FALSE | CN12: 5 | CO12: 19 | CP12: FALSE | CQ12: 0 | CR12: FALSE | CS12: 5 | CT12: 20 | CU12: FALSE | CV12: 0 | CW12: FALSE | CX12: 5 | CY12: 21 | CZ12: FALSE | DA12: 0 | DB12: FALSE | DC12: 5 | DD12: 22 | DE12: FALSE | DF12: 0 | DG12: FALSE | DH12: 5 | DI12: 23 | DJ12: FALSE | DK12: 0 | DL12: FALSE | DM12: 5 | DN12: 24 | DO12: FALSE | DP12: 0 | DQ12: FALSE | DR12: 5 | DS12: 25 | DT12: FALSE | DU12: 0 | DV12: FALSE | DW12: 5 | DX12: 26 | DY12: FALSE | DZ12: 53 | EA12: FALSE | EB12: 5 | EC12: 27 | ED12: FALSE | EE12: 0 | EF12: FALSE | EG12: 5 | EH12: 28 | EI12: FALSE | EJ12: 0 | EK12: FALSE | EL12: 5 | EM12: 29 | EN12: FALSE | EO12: 0 | EP12: FALSE | ER12: 0 | ES12: 0 | ET12: 0 | EU12: 0 | EV12: 0 | EW12: 5
V13: =SUM(O13:R13) -> 0 | W13: 0 | X13: 0 | Z13: 5 | AA13: 6 | AB13: 6 | AC13: 0 | AD13: 5 | AE13: 5 | AF13: 6 | AG13: 7 | AH13: FALSE | AI13: 8 | AJ13: FALSE | AK13: 6 | AL13: 8 | AM13: FALSE | AN13: 7 | AO13: FALSE | AP13: 6 | AQ13: 9 | AR13: FALSE | AS13: 0 | AT13: FALSE | AU13: 6 | AV13: 10 | AW13: FALSE | AX13: 0 | AY13: FALSE | AZ13: 6 | BA13: 11 | BB13: FALSE | BC13: 0 | BD13: FALSE | BE13: 6 | BF13: 12 | BG13: FALSE | BH13: 0 | BI13: FALSE | BJ13: 6 | BK13: 13 | BL13: FALSE | BM13: 0 | BN13: FALSE | BO13: 6 | BP13: 14 | BQ13: FALSE | BR13: 0 | BS13: FALSE | BT13: 6 | BU13: 15 | BV13: FALSE | BW13: 0 | BX13: FALSE | BY13: 6 | BZ13: 16 | CA13: FALSE | CB13: 0 | CC13: FALSE | CD13: 6 | CE13: 17 | CF13: FALSE | CG13: 0 | CH13: FALSE | CI13: 6 | CJ13: 18 | CK13: FALSE | CL13: 0 | CM13: FALSE | CN13: 6 | CO13: 19 | CP13: FALSE | CQ13: 0 | CR13: FALSE | CS13: 6 | CT13: 20 | CU13: FALSE | CV13: 0 | CW13: FALSE | CX13: 6 | CY13: 21 | CZ13: FALSE | DA13: 0 | DB13: FALSE | DC13: 6 | DD13: 22 | DE13: FALSE | DF13: 0 | DG13: FALSE | DH13: 6 | DI13: 23 | DJ13: FALSE | DK13: 0 | DL13: FALSE | DM13: 6 | DN13: 24 | DO13: FALSE | DP13: 0 | DQ13: FALSE | DR13: 6 | DS13: 25 | DT13: FALSE | DU13: 0 | DV13: FALSE | DW13: 6 | DX13: 26 | DY13: FALSE | DZ13: 53 | EA13: FALSE | EB13: 6 | EC13: 27 | ED13: FALSE | EE13: 0 | EF13: FALSE | EG13: 6 | EH13: 28 | EI13: FALSE | EJ13: 0 | EK13: FALSE | EL13: 6 | EM13: 29 | EN13: FALSE | EO13: 0 | EP13: FALSE | ER13: 0 | ES13: 0 | ET13: 0 | EU13: 0 | EV13: 0 | EW13: 6
V14: =SUM(O14:R14) -> 0 | W14: 0 | X14: 0 | Z14: 8 | AA14: 7 | AB14: 6 | AC14: FALSE | AD14: 5 | AE14: FALSE | AF14: 7 | AG14: 7 | AH14: 0 | AI14: 8 | AJ14: 8 | AK14: 7 | AL14: 8 | AM14: FALSE | AN14: 7 | AO14: FALSE | AP14: 7 | AQ14: 9 | AR14: FALSE | AS14: 0 | AT14: FALSE | AU14: 7 | AV14: 10 | AW14: FALSE | AX14: 0 | AY14: FALSE | AZ14: 7 | BA14: 11 | BB14: FALSE | BC14: 0 | BD14: FALSE | BE14: 7 | BF14: 12 | BG14: FALSE | BH14: 0 | BI14: FALSE | BJ14: 7 | BK14: 13 | BL14: FALSE | BM14: 0 | BN14: FALSE | BO14: 7 | BP14: 14 | BQ14: FALSE | BR14: 0 | BS14: FALSE | BT14: 7 | BU14: 15 | BV14: FALSE | BW14: 0 | BX14: FALSE | BY14: 7 | BZ14: 16 | CA14: FALSE | CB14: 0 | CC14: FALSE | CD14: 7 | CE14: 17 | CF14: FALSE | CG14: 0 | CH14: FALSE | CI14: 7 | CJ14: 18 | CK14: FALSE | CL14: 0 | CM14: FALSE | CN14: 7 | CO14: 19 | CP14: FALSE | CQ14: 0 | CR14: FALSE | CS14: 7 | CT14: 20 | CU14: FALSE | CV14: 0 | CW14: FALSE | CX14: 7 | CY14: 21 | CZ14: FALSE | DA14: 0 | DB14: FALSE | DC14: 7 | DD14: 22 | DE14: FALSE | DF14: 0 | DG14: FALSE | DH14: 7 | DI14: 23 | DJ14: FALSE | DK14: 0 | DL14: FALSE | DM14: 7 | DN14: 24 | DO14: FALSE | DP14: 0 | DQ14: FALSE | DR14: 7 | DS14: 25 | DT14: FALSE | DU14: 0 | DV14: FALSE | DW14: 7 | DX14: 26 | DY14: FALSE | DZ14: 53 | EA14: FALSE | EB14: 7 | EC14: 27 | ED14: FALSE | EE14: 0 | EF14: FALSE | EG14: 7 | EH14: 28 | EI14: FALSE | EJ14: 0 | EK14: FALSE | EL14: 7 | EM14: 29 | EN14: FALSE | EO14: 0 | EP14: FALSE | ER14: 0 | ES14: 0 | ET14: 0 | EU14: 0 | EV14: 0 | EW14: 7
V23: =SUM(O23:R23) -> 0 | W23: 0 | X23: 0 | Z23: =AE23+AJ23+AO23+AT23+AY23+BD23+BI23+BN23+BS23+BX23+CC23+CH23+CM23+CR23+CW23+DB23+DG23+DL23+DQ23+DV23+EA23+EF23+EK23+EP23 -> 7 | AA23: 8 | AB23: =AB14 -> 6 | AC23: =IF(AB23=AA23,0) -> FALSE | AD23: =AD14 -> 5 | AE23: =IF(AC23=0,AD23) -> FALSE | AF23: 8 | AG23: =AG14 -> 7 | AH23: =IF(AG23=AF23,0) -> FALSE | AI23: =AI14 -> 8 | AJ23: =IF(AH23=0,AI23) -> FALSE | AK23: 8 | AL23: =AL14 -> 8 | AM23: =IF(AL23=AK23,0) -> 0 | AN23: =AN14 -> 7 | AO23: =IF(AM23=0,AN23) -> 7 | AP23: 8 | AQ23: =AQ14 -> 9 | AR23: =IF(AQ23=AP23,0) -> FALSE | AS23: =AS14 -> 0 | AT23: =IF(AR23=0,AS23) -> FALSE | AU23: 8 | AV23: =AV14 -> 10 | AW23: =IF(AV23=AU23,0) -> FALSE | AX23: =AX14 -> 0 | AY23: =IF(AW23=0,AX23) -> FALSE | AZ23: 8 | BA23: =BA14 -> 11 | BB23: =IF(BA23=AZ23,0) -> FALSE | BC23: =BC14 -> 0 | BD23: =IF(BB23=0,BC23) -> FALSE | BE23: 8 | BF23: =BF14 -> 12 | BG23: =IF(BF23=BE23,0) -> FALSE | BH23: =BH14 -> 0 | BI23: =IF(BG23=0,BH23) -> FALSE | BJ23: 8 | BK23: =BK14 -> 13 | BL23: =IF(BK23=BJ23,0) -> FALSE | BM23: =BM14 -> 0 | BN23: =IF(BL23=0,BM23) -> FALSE | BO23: 8 | BP23: =BP14 -> 14 | BQ23: =IF(BP23=BO23,0) -> FALSE | BR23: =BR14 -> 0 | BS23: =IF(BQ23=0,BR23) -> FALSE | BT23: 8 | BU23: =BU14 -> 15 | BV23: =IF(BU23=BT23,0) -> FALSE | BW23: =BW14 -> 0 | BX23: =IF(BV23=0,BW23) -> FALSE | BY23: 8 | BZ23: =BZ14 -> 16 | CA23: =IF(BZ23=BY23,0) -> FALSE | CB23: =CB14 -> 0 | CC23: =IF(CA23=0,CB23) -> FALSE | CD23: 8 | CE23: =CE14 -> 17 | CF23: =IF(CE23=CD23,0) -> FALSE | CG23: =CG14 -> 0 | CH23: =IF(CF23=0,CG23) -> FALSE | CI23: 8 | CJ23: =CJ14 -> 18 | CK23: =IF(CJ23=CI23,0) -> FALSE | CL23: =CL14 -> 0 | CM23: =IF(CK23=0,CL23) -> FALSE | CN23: 8 | CO23: =CO14 -> 19 | CP23: =IF(CO23=CN23,0) -> FALSE | CQ23: =CQ14 -> 0 | CR23: =IF(CP23=0,CQ23) -> FALSE | CS23: 8 | CT23: =CT14 -> 20 | CU23: =IF(CT23=CS23,0) -> FALSE | CV23: =CV14 -> 0 | CW23: =IF(CU23=0,CV23) -> FALSE | CX23: 8 | CY23: =CY14 -> 21 | CZ23: =IF(CY23=CX23,0) -> FALSE | DA23: =DA14 -> 0 | DB23: =IF(CZ23=0,DA23) -> FALSE | DC23: 8 | DD23: =DD14 -> 22 | DE23: =IF(DD23=DC23,0) -> FALSE | DF23: =DF14 -> 0 | DG23: =IF(DE23=0,DF23) -> FALSE | DH23: 8 | DI23: =DI14 -> 23 | DJ23: =IF(DI23=DH23,0) -> FALSE | DK23: =DK14 -> 0 | DL23: =IF(DJ23=0,DK23) -> FALSE | DM23: 8 | DN23: =DN14 -> 24 | DO23: =IF(DN23=DM23,0) -> FALSE | DP23: =DP14 -> 0 | DQ23: =IF(DO23=0,DP23) -> FALSE | DR23: 8 | DS23: =DS14 -> 25 | DT23: =IF(DS23=DR23,0) -> FALSE | DU23: =DU14 -> 0 | DV23: =IF(DT23=0,DU23) -> FALSE | DW23: 8 | DX23: =DX14 -> 26 | DY23: =IF(DX23=DW23,0) -> FALSE | DZ23: =DZ14 -> 53 | EA23: =IF(DY23=0,DZ23) -> FALSE | EB23: 8 | EC23: =EC14 -> 27 | ED23: =IF(EC23=EB23,0) -> FALSE | EE23: =EE14 -> 0 | EF23: =IF(ED23=0,EE23) -> FALSE | EG23: 8 | EH23: =EH14 -> 28 | EI23: =IF(EH23=EG23,0) -> FALSE | EJ23: =EJ14 -> 0 | EK23: =IF(EI23=0,EJ23) -> FALSE | EL23: 8 | EM23: =EM14 -> 29 | EN23: =IF(EM23=EL23,0) -> FALSE | EO23: =EO14 -> 0 | EP23: =IF(EN23=0,EO23) -> FALSE | ER23: =IF(O23<U23,O23,0) -> 0 | ES23: =IF(P23<U23,P23,0) -> 0 | ET23: =IF(Q23<U23,Q23,0) -> 0 | EU23: =IF(R23<U23,R23,0) -> 0 | EV23: =ER23+ET23 -> 0 | EW23: 8
V25: =SUM(O25:R25) -> 0 | W25: 0 | X25: 0 | Z25: =AE25+AJ25+AO25+AT25+AY25+BD25+BI25+BN25+BS25+BX25+CC25+CH25+CM25+CR25+CW25+DB25+DG25+DL25+DQ25+DV25+EA25+EF25+EK25+EP25 -> 0 | AA25: 9 | AB25: =AB23 -> 6 | AC25: =IF(AB25=AA25,0) -> FALSE | AD25: =AD23 -> 5 | AE25: =IF(AC25=0,AD25) -> FALSE | AF25: 9 | AG25: =AG23 -> 7 | AH25: =IF(AG25=AF25,0) -> FALSE | AI25: =AI23 -> 8 | AJ25: =IF(AH25=0,AI25) -> FALSE | AK25: 9 | AL25: =AL23 -> 8 | AM25: =IF(AL25=AK25,0) -> FALSE | AN25: =AN23 -> 7 | AO25: =IF(AM25=0,AN25) -> FALSE | AP25: 9 | AQ25: =AQ23 -> 9 | AR25: =IF(AQ25=AP25,0) -> 0 | AS25: =AS23 -> 0 | AT25: =IF(AR25=0,AS25) -> 0 | AU25: 9 | AV25: =AV23 -> 10 | AW25: =IF(AV25=AU25,0) -> FALSE | AX25: =AX23 -> 0 | AY25: =IF(AW25=0,AX25) -> FALSE | AZ25: 9 | BA25: =BA23 -> 11 | BB25: =IF(BA25=AZ25,0) -> FALSE | BC25: =BC23 -> 0 | BD25: =IF(BB25=0,BC25) -> FALSE | BE25: 9 | BF25: =BF23 -> 12 | BG25: =IF(BF25=BE25,0) -> FALSE | BH25: =BH23 -> 0 | BI25: =IF(BG25=0,BH25) -> FALSE | BJ25: 9 | BK25: =BK23 -> 13 | BL25: =IF(BK25=BJ25,0) -> FALSE | BM25: =BM23 -> 0 | BN25: =IF(BL25=0,BM25) -> FALSE | BO25: 9 | BP25: =BP23 -> 14 | BQ25: =IF(BP25=BO25,0) -> FALSE | BR25: =BR23 -> 0 | BS25: =IF(BQ25=0,BR25) -> FALSE | BT25: 9 | BU25: =BU23 -> 15 | BV25: =IF(BU25=BT25,0) -> FALSE | BW25: =BW23 -> 0 | BX25: =IF(BV25=0,BW25) -> FALSE | BY25: 9 | BZ25: =BZ23 -> 16 | CA25: =IF(BZ25=BY25,0) -> FALSE | CB25: =CB23 -> 0 | CC25: =IF(CA25=0,CB25) -> FALSE | CD25: 9 | CE25: =CE23 -> 17 | CF25: =IF(CE25=CD25,0) -> FALSE | CG25: =CG23 -> 0 | CH25: =IF(CF25=0,CG25) -> FALSE | CI25: 9 | CJ25: =CJ23 -> 18 | CK25: =IF(CJ25=CI25,0) -> FALSE | CL25: =CL23 -> 0 | CM25: =IF(CK25=0,CL25) -> FALSE | CN25: 9 | CO25: =CO23 -> 19 | CP25: =IF(CO25=CN25,0) -> FALSE | CQ25: =CQ23 -> 0 | CR25: =IF(CP25=0,CQ25) -> FALSE | CS25: 9 | CT25: =CT23 -> 20 | CU25: =IF(CT25=CS25,0) -> FALSE | CV25: =CV23 -> 0 | CW25: =IF(CU25=0,CV25) -> FALSE | CX25: 9 | CY25: =CY23 -> 21 | CZ25: =IF(CY25=CX25,0) -> FALSE | DA25: =DA23 -> 0 | DB25: =IF(CZ25=0,DA25) -> FALSE | DC25: 9 | DD25: =DD23 -> 22 | DE25: =IF(DD25=DC25,0) -> FALSE | DF25: =DF23 -> 0 | DG25: =IF(DE25=0,DF25) -> FALSE | DH25: 9 | DI25: =DI23 -> 23 | DJ25: =IF(DI25=DH25,0) -> FALSE | DK25: =DK23 -> 0 | DL25: =IF(DJ25=0,DK25) -> FALSE | DM25: 9 | DN25: =DN23 -> 24 | DO25: =IF(DN25=DM25,0) -> FALSE | DP25: =DP23 -> 0 | DQ25: =IF(DO25=0,DP25) -> FALSE | DR25: 9 | DS25: =DS23 -> 25 | DT25: =IF(DS25=DR25,0) -> FALSE | DU25: =DU23 -> 0 | DV25: =IF(DT25=0,DU25) -> FALSE | DW25: 9 | DX25: =DX23 -> 26 | DY25: =IF(DX25=DW25,0) -> FALSE | DZ25: =DZ23 -> 53 | EA25: =IF(DY25=0,DZ25) -> FALSE | EB25: 9 | EC25: =EC23 -> 27 | ED25: =IF(EC25=EB25,0) -> FALSE | EE25: =EE23 -> 0 | EF25: =IF(ED25=0,EE25) -> FALSE | EG25: 9 | EH25: =EH23 -> 28 | EI25: =IF(EH25=EG25,0) -> FALSE | EJ25: =EJ23 -> 0 | EK25: =IF(EI25=0,EJ25) -> FALSE | EL25: 9 | EM25: =EM23 -> 29 | EN25: =IF(EM25=EL25,0) -> FALSE | EO25: =EO23 -> 0 | EP25: =IF(EN25=0,EO25) -> FALSE | ER25: =IF(O25<U25,O25,0) -> 0 | ES25: =IF(P25<U25,P25,0) -> 0 | ET25: =IF(Q25<U25,Q25,0) -> 0 | EU25: =IF(R25<U25,R25,0) -> 0 | EV25: =ER25+ET25 -> 0 | EW25: 9
V26: 0 | W26: 0 | X26: 0 | Z26: 0 | AA26: 10 | AB26: =AB25 -> 6 | AC26: FALSE | AD26: =AD25 -> 5 | AE26: FALSE | AF26: 10 | AG26: =AG25 -> 7 | AH26: FALSE | AI26: =AI25 -> 8 | AJ26: FALSE | AK26: 10 | AL26: =AL25 -> 8 | AM26: FALSE | AN26: =AN25 -> 7 | AO26: FALSE | AP26: 10 | AQ26: =AQ25 -> 9 | AR26: FALSE | AS26: =AS25 -> 0 | AT26: FALSE | AU26: 10 | AV26: =AV25 -> 10 | AW26: 0 | AX26: =AX25 -> 0 | AY26: 0 | AZ26: 10 | BA26: =BA25 -> 11 | BB26: FALSE | BC26: =BC25 -> 0 | BD26: FALSE | BE26: 10 | BF26: =BF25 -> 12 | BG26: FALSE | BH26: =BH25 -> 0 | BI26: FALSE | BJ26: 10 | BK26: =BK25 -> 13 | BL26: FALSE | BM26: =BM25 -> 0 | BN26: FALSE | BO26: 10 | BP26: =BP25 -> 14 | BQ26: FALSE | BR26: =BR25 -> 0 | BS26: FALSE | BT26: 10 | BU26: =BU25 -> 15 | BV26: FALSE | BW26: =BW25 -> 0 | BX26: FALSE | BY26: 10 | BZ26: =BZ25 -> 16 | CA26: FALSE | CB26: =CB25 -> 0 | CC26: FALSE | CD26: 10 | CE26: =CE25 -> 17 | CF26: FALSE | CG26: =CG25 -> 0 | CH26: FALSE | CI26: 10 | CJ26: =CJ25 -> 18 | CK26: FALSE | CL26: =CL25 -> 0 | CM26: FALSE | CN26: 10 | CO26: =CO25 -> 19 | CP26: FALSE | CQ26: =CQ25 -> 0 | CR26: FALSE | CS26: 10 | CT26: =CT25 -> 20 | CU26: FALSE | CV26: =CV25 -> 0 | CW26: FALSE | CX26: 10 | CY26: =CY25 -> 21 | CZ26: FALSE | DA26: =DA25 -> 0 | DB26: FALSE | DC26: 10 | DD26: =DD25 -> 22 | DE26: FALSE | DF26: =DF25 -> 0 | DG26: FALSE | DH26: 10 | DI26: =DI25 -> 23 | DJ26: FALSE | DK26: =DK25 -> 0 | DL26: FALSE | DM26: 10 | DN26: =DN25 -> 24 | DO26: FALSE | DP26: =DP25 -> 0 | DQ26: FALSE | DR26: 10 | DS26: =DS25 -> 25 | DT26: FALSE | DU26: =DU25 -> 0 | DV26: FALSE | DW26: 10 | DX26: =DX25 -> 26 | DY26: FALSE | DZ26: =DZ25 -> 53 | EA26: FALSE | EB26: 10 | EC26: =EC25 -> 27 | ED26: FALSE | EE26: =EE25 -> 0 | EF26: FALSE | EG26: 10 | EH26: =EH25 -> 28 | EI26: FALSE | EJ26: =EJ25 -> 0 | EK26: FALSE | EL26: 10 | EM26: =EM25 -> 29 | EN26: FALSE | EO26: =EO25 -> 0 | EP26: FALSE | ER26: 0 | ES26: 0 | ET26: 0 | EU26: 0 | EV26: 0 | EW26: 10
V27: 0 | AA27: 18 | AB27: =#REF! ->  | AD27: =#REF! ->  | AF27: 18 | AG27: =#REF! ->  | AI27: =#REF! ->  | AK27: 18 | AL27: =#REF! ->  | AN27: =#REF! ->  | AP27: 18 | AQ27: =#REF! ->  | AS27: =#REF! ->  | AU27: 18 | AV27: =#REF! ->  | AX27: =#REF! ->  | AZ27: 18 | BA27: =#REF! ->  | BC27: =#REF! ->  | BE27: 18 | BF27: =#REF! ->  | BH27: =#REF! ->  | BJ27: 18 | BK27: =#REF! ->  | BM27: =#REF! ->  | BO27: 18 | BP27: =#REF! ->  | BR27: =#REF! ->  | BT27: 18 | BU27: =#REF! ->  | BW27: =#REF! ->  | BY27: 18 | BZ27: =#REF! ->  | CB27: =#REF! ->  | CD27: 18 | CE27: =#REF! ->  | CG27: =#REF! ->  | CI27: 18 | CJ27: =#REF! ->  | CL27: =#REF! ->  | CN27: 18 | CO27: =#REF! ->  | CQ27: =#REF! ->  | CS27: 18 | CT27: =#REF! ->  | CV27: =#REF! ->  | CX27: 18 | CY27: =#REF! ->  | DA27: =#REF! ->  | DC27: 18 | DD27: =#REF! ->  | DF27: =#REF! ->  | DH27: 18 | DI27: =#REF! ->  | DK27: =#REF! ->  | DM27: 18 | DN27: =#REF! ->  | DP27: =#REF! ->  | DR27: 18 | DS27: =#REF! ->  | DU27: =#REF! ->  | DW27: 18 | DX27: =#REF! ->  | DZ27: =#REF! ->  | EB27: 18 | EC27: =#REF! ->  | EE27: =#REF! ->  | EG27: 18 | EH27: =#REF! ->  | EJ27: =#REF! ->  | EL27: 18 | EM27: =#REF! ->  | EO27: =#REF! ->  | ER27: 0 | ES27: 0 | ET27: 0 | EU27: 0 | EV27: 0 | EW27: 18
V28: 0 | AA28: 19 | AB28: =AB27 ->  | AD28: =AD27 ->  | AF28: 19 | AG28: =AG27 ->  | AI28: =AI27 ->  | AK28: 19 | AL28: =AL27 ->  | AN28: =AN27 ->  | AP28: 19 | AQ28: =AQ27 ->  | AS28: =AS27 ->  | AU28: 19 | AV28: =AV27 ->  | AX28: =AX27 ->  | AZ28: 19 | BA28: =BA27 ->  | BC28: =BC27 ->  | BE28: 19 | BF28: =BF27 ->  | BH28: =BH27 ->  | BJ28: 19 | BK28: =BK27 ->  | BM28: =BM27 ->  | BO28: 19 | BP28: =BP27 ->  | BR28: =BR27 ->  | BT28: 19 | BU28: =BU27 ->  | BW28: =BW27 ->  | BY28: 19 | BZ28: =BZ27 ->  | CB28: =CB27 ->  | CD28: 19 | CE28: =CE27 ->  | CG28: =CG27 ->  | CI28: 19 | CJ28: =CJ27 ->  | CL28: =CL27 ->  | CN28: 19 | CO28: =CO27 ->  | CQ28: =CQ27 ->  | CS28: 19 | CT28: =CT27 ->  | CV28: =CV27 ->  | CX28: 19 | CY28: =CY27 ->  | DA28: =DA27 ->  | DC28: 19 | DD28: =DD27 ->  | DF28: =DF27 ->  | DH28: 19 | DI28: =DI27 ->  | DK28: =DK27 ->  | DM28: 19 | DN28: =DN27 ->  | DP28: =DP27 ->  | DR28: 19 | DS28: =DS27 ->  | DU28: =DU27 ->  | DW28: 19 | DX28: =DX27 ->  | DZ28: =DZ27 ->  | EB28: 19 | EC28: =EC27 ->  | EE28: =EE27 ->  | EG28: 19 | EH28: =EH27 ->  | EJ28: =EJ27 ->  | EL28: 19 | EM28: =EM27 ->  | EO28: =EO27 ->  | ER28: 0 | ES28: 0 | ET28: 0 | EU28: 0 | EV28: 0 | EW28: 19
V29: 0 | AA29: 20 | AF29: 20 | AK29: 20 | AP29: 20 | AU29: 20 | AZ29: 20 | BE29: 20 | BJ29: 20 | BO29: 20 | BT29: 20 | BY29: 20 | CD29: 20 | CI29: 20 | CN29: 20 | CS29: 20 | CX29: 20 | DC29: 20 | DH29: 20 | DM29: 20 | DR29: 20 | DW29: 20 | EB29: 20 | EG29: 20 | EL29: 20 | ER29: 0 | ES29: 0 | ET29: 0 | EU29: 0 | EV29: 0 | EW29: 20
V30: 0 | AA30: 21 | AF30: 21 | AK30: 21 | AP30: 21 | AU30: 21 | AZ30: 21 | BE30: 21 | BJ30: 21 | BO30: 21 | BT30: 21 | BY30: 21 | CD30: 21 | CI30: 21 | CN30: 21 | CS30: 21 | CX30: 21 | DC30: 21 | DH30: 21 | DM30: 21 | DR30: 21 | DW30: 21 | EB30: 21 | EG30: 21 | EL30: 21 | ER30: 0 | ES30: 0 | ET30: 0 | EU30: 0 | EV30: 0 | EW30: 21
V31: 0 | AA31: 22 | AF31: 22 | AK31: 22 | AP31: 22 | AU31: 22 | AZ31: 22 | BE31: 22 | BJ31: 22 | BO31: 22 | BT31: 22 | BY31: 22 | CD31: 22 | CI31: 22 | CN31: 22 | CS31: 22 | CX31: 22 | DC31: 22 | DH31: 22 | DM31: 22 | DR31: 22 | DW31: 22 | EB31: 22 | EG31: 22 | EL31: 22 | ER31: 0 | ES31: 0 | ET31: 0 | EU31: 0 | EV31: 0 | EW31: 22
V32: 0 | AA32: 23 | AF32: 23 | AK32: 23 | AP32: 23 | AU32: 23 | AZ32: 23 | BE32: 23 | BJ32: 23 | BO32: 23 | BT32: 23 | BY32: 23 | CD32: 23 | CI32: 23 | CN32: 23 | CS32: 23 | CX32: 23 | DC32: 23 | DH32: 23 | DM32: 23 | DR32: 23 | DW32: 23 | EB32: 23 | EG32: 23 | EL32: 23 | ER32: 0 | ES32: 0 | ET32: 0 | EU32: 0 | EV32: 0 | EW32: 23
V33: =SUM(O35:R35) -> 0 | AA33: 24 | AF33: 24 | AK33: 24 | AP33: 24 | AU33: 24 | AZ33: 24 | BE33: 24 | BJ33: 24 | BO33: 24 | BT33: 24 | BY33: 24 | CD33: 24 | CI33: 24 | CN33: 24 | CS33: 24 | CX33: 24 | DC33: 24 | DH33: 24 | DM33: 24 | DR33: 24 | DW33: 24 | EB33: 24 | EG33: 24 | EL33: 24 | ER33: =IF(O35<U33,O35,0) -> 0 | ES33: =IF(P35<U33,P35,0) -> 0 | ET33: =IF(Q35<U33,Q35,0) -> 0 | EU33: =IF(R35<U33,R35,0) -> 0 | EV33: 0 | EW33: 24
B34: วัดผลระหว่างเรียน คือ ตัวชี้วัด/ผลการเรียนรู้ ข้อที่ | Q34: อัตราส่วนคะแนน | W34: 0 | EW34: 25
B35: วัดผลกลางภาค คือ ตัวชี้วัด/ผลการเรียนรู้ ข้อที่ | Q35: ระหว่างภาค | S35: ปลายภาค
B36: วัดผลปลายภาค คือ ตัวชี้วัด/ผลการเรียนรู้ ข้อที่ | Q36: ='1ข้อมูลรายวิชา'!$Q$10 -> 80 | S36: ='1ข้อมูลรายวิชา'!$Q$11 -> 20
B37: เงื่อนไขการติด "ร"
B38: 1.
B39: 2.
B40: 3.
Z62: จปร 4 Final

Sheet DT (hidden)
A1: ไฟล์ต้นฉบับห้ามกระทำใดๆทั้งสิ้นนะคะ..(ถ้าไม่จำเป็น)
A2: Transcript_Id | B2: nameschool | C2: addschool | D2: Tfloor | E2: Tlevel | F2: Tterm | G2: Tyearin | H2: TyearSum | I2: TsubName | J2: TsubId | K2: TBasic | L2: Tgroup | M2: Tunit | N2: TteacherSub | O2: Tname1 | P2: Tname2
B3: ='1ข้อมูลรายวิชา'!$Q$22 -> โรงเรียนโคกสีพิทยาสรรพ์ | C3: ='1ข้อมูลรายวิชา'!$Q$23 -> ต.โคกสี อ.เมือง จ.ขอนแก่น 40000 | D3: ='1ข้อมูลรายวิชา'!$Q$17 -> 3 | E3: ='1ข้อมูลรายวิชา'!$Q$4 -> 3 ห้อง 1 | F3: ='1ข้อมูลรายวิชา'!$Q$15 -> 1 | G3: ='1ข้อมูลรายวิชา'!$Q$14 -> 2567 | H3: ='1ข้อมูลรายวิชา'!$Q$14 -> 2567 | I3: ='1ข้อมูลรายวิชา'!$Q$8 -> วิทยาการคำนวณ | J3: ='1ข้อมูลรายวิชา'!$Q$7 -> ว22103 | L3: ='1ข้อมูลรายวิชา'!$Q$19 -> วิทยาศาตร์และเทคโนโลยี | M3: ='1ข้อมูลรายวิชา'!$Q$9 -> 1 | N3: ='1ข้อมูลรายวิชา'!$Q$18 -> นายเจษฎา นินจันทร์ | O3: ='1ข้อมูลรายวิชา'!$Q$5 -> นางรัชนีย์ วงศ์ไกรสิน | P3: ='1ข้อมูลรายวิชา'!$Q$6 -> นายธีรวัฒน์ บรรยง
A4: .. | B4: .. | C4: สัปดาห์ | D4: .. | E4: 1 | J4: 2 | O4: 3 | T4: 4 | Y4: 5 | AD4: 6 | AI4: 7 | AN4: 8 | AS4: 9 | AX4: 10 | BC4: 11 | BH4: 12 | BM4: 13 | BR4: 14 | BW4: 15 | CB4: 16 | CG4: 17 | CL4: 18 | CQ4: 19 | CV4: 20 | DA4: (เต็มชั่วโมง) | DB4: ผ่าน | DC4: ก่อน | DD4: กลาง | DE4: แก้ | DF4: หลัง | DG4: ปฏิบัติ | DH4: ปลาย | DI4: อ่านคิดฯ | DJ4: คุณลักษณะ
DB5: 0.8
A6: เลขที่ | B6: เลข | C6: ชื่อ-สกุล | D6: เลขประชาชน | E6: =IF('2วันเดือนปี'!F5=0,"",'2วันเดือนปี'!F5) ->  | F6: =IF('2วันเดือนปี'!G5=0,"",'2วันเดือนปี'!G5) ->  | G6: =IF('2วันเดือนปี'!H5=0,"",'2วันเดือนปี'!H5) ->  | H6: =IF('2วันเดือนปี'!I5=0,"",'2วันเดือนปี'!I5) ->  | I6: =IF('2วันเดือนปี'!J5=0,"",'2วันเดือนปี'!J5) ->  | J6: ='2วันเดือนปี'!F6 ->  | K6: ='2วันเดือนปี'!G6 ->  | L6: ='2วันเดือนปี'!H6 ->  | M6: ='2วันเดือนปี'!I6 ->  | N6: ='2วันเดือนปี'!J6 ->  | O6: ='2วันเดือนปี'!F7 ->  | P6: ='2วันเดือนปี'!G7 ->  | Q6: ='2วันเดือนปี'!H7 ->  | R6: ='2วันเดือนปี'!I7 ->  | S6: ='2วันเดือนปี'!J7 ->  | T6: ='2วันเดือนปี'!F8 ->  | U6: ='2วันเดือนปี'!G8 ->  | V6: ='2วันเดือนปี'!H8 ->  | W6: ='2วันเดือนปี'!I8 ->  | X6: ='2วันเดือนปี'!J8 ->  | Y6: ='2วันเดือนปี'!F9 ->  | Z6: ='2วันเดือนปี'!G9 ->  | AA6: ='2วันเดือนปี'!H9 ->  | AB6: ='2วันเดือนปี'!I9 ->  | AC6: ='2วันเดือนปี'!J9 ->  | AD6: ='2วันเดือนปี'!F10 ->  | AE6: ='2วันเดือนปี'!G10 ->  | AF6: ='2วันเดือนปี'!H10 ->  | AG6: ='2วันเดือนปี'!I10 ->  | AH6: ='2วันเดือนปี'!J10 ->  | AI6: ='2วันเดือนปี'!F11 ->  | AJ6: ='2วันเดือนปี'!G11 ->  | AK6: ='2วันเดือนปี'!H11 ->  | AL6: ='2วันเดือนปี'!I11 ->  | AM6: ='2วันเดือนปี'!J11 ->  | AN6: ='2วันเดือนปี'!F12 ->  | AO6: ='2วันเดือนปี'!G12 ->  | AP6: ='2วันเดือนปี'!H12 ->  | AQ6: ='2วันเดือนปี'!I12 ->  | AR6: ='2วันเดือนปี'!J12 ->  | AS6: ='2วันเดือนปี'!F13 ->  | AT6: ='2วันเดือนปี'!G13 ->  | AU6: ='2วันเดือนปี'!H13 ->  | AV6: ='2วันเดือนปี'!I13 ->  | AW6: ='2วันเดือนปี'!J13 ->  | AX6: ='2วันเดือนปี'!F14 ->  | AY6: ='2วันเดือนปี'!G14 ->  | AZ6: ='2วันเดือนปี'!H14 ->  | BA6: ='2วันเดือนปี'!I14 ->  | BB6: ='2วันเดือนปี'!J14 ->  | BC6: ='2วันเดือนปี'!F15 ->  | BD6: ='2วันเดือนปี'!G15 ->  | BE6: ='2วันเดือนปี'!H15 ->  | BF6: ='2วันเดือนปี'!I15 ->  | BG6: ='2วันเดือนปี'!J15 ->  | BH6: ='2วันเดือนปี'!F16 ->  | BI6: ='2วันเดือนปี'!G16 ->  | BJ6: ='2วันเดือนปี'!H16 ->  | BK6: ='2วันเดือนปี'!I16 ->  | BL6: ='2วันเดือนปี'!J16 ->  | BM6: ='2วันเดือนปี'!F17 ->  | BN6: ='2วันเดือนปี'!G17 ->  | BO6: ='2วันเดือนปี'!H17 ->  | BP6: ='2วันเดือนปี'!I17 ->  | BQ6: ='2วันเดือนปี'!J17 ->  | BR6: ='2วันเดือนปี'!F18 ->  | BS6: ='2วันเดือนปี'!G18 ->  | BT6: ='2วันเดือนปี'!H18 ->  | BU6: ='2วันเดือนปี'!I18 ->  | BV6: ='2วันเดือนปี'!J18 ->  | BW6: ='2วันเดือนปี'!F19 ->  | BX6: ='2วันเดือนปี'!G19 ->  | BY6: ='2วันเดือนปี'!H19 ->  | BZ6: ='2วันเดือนปี'!I19 ->  | CA6: ='2วันเดือนปี'!J19 ->  | CB6: ='2วันเดือนปี'!F20 ->  | CC6: ='2วันเดือนปี'!G20 ->  | CD6: ='2วันเดือนปี'!H20 ->  | CE6: ='2วันเดือนปี'!I20 ->  | CF6: ='2วันเดือนปี'!J20 ->  | CG6: ='2วันเดือนปี'!F21 ->  | CH6: ='2วันเดือนปี'!G21 ->  | CI6: ='2วันเดือนปี'!H21 ->  | CJ6: ='2วันเดือนปี'!I21 ->  | CK6: ='2วันเดือนปี'!J21 ->  | CL6: ='2วันเดือนปี'!F22 ->  | CM6: ='2วันเดือนปี'!G22 ->  | CN6: ='2วันเดือนปี'!H22 ->  | CO6: ='2วันเดือนปี'!I22 ->  | CP6: ='2วันเดือนปี'!J22 ->  | CQ6: ='2วันเดือนปี'!F23 ->  | CR6: ='2วันเดือนปี'!G23 ->  | CS6: ='2วันเดือนปี'!H23 ->  | CT6: ='2วันเดือนปี'!I23 ->  | CU6: ='2วันเดือนปี'!J23 ->  | CV6: ='2วันเดือนปี'!F24 ->  | CW6: ='2วันเดือนปี'!G24 ->  | CX6: ='2วันเดือนปี'!H24 ->  | CY6: ='2วันเดือนปี'!I24 ->  | CZ6: ='2วันเดือนปี'!J24 ->  | DA6: 40 ชม. | DB6: 32 ชม. | DC6: ก่อน | DD6: กลาง | DE6: แก้ | DF6: หลัง | DG6: ปฏิบัติ | DH6: ปลาย | DI6: อ่านคิดฯ | DJ6: คุณลักษณะ
B7: ประจำ | E7: =IF('2วันเดือนปี'!F5=0,"",'2วันเดือนปี'!F5) ->  | F7: =IF('2วันเดือนปี'!G5=0,"",'2วันเดือนปี'!G5) ->  | G7: =IF('2วันเดือนปี'!H5=0,"",'2วันเดือนปี'!H5) ->  | H7: =IF('2วันเดือนปี'!I5=0,"",'2วันเดือนปี'!I5) ->  | I7: =IF('2วันเดือนปี'!J5=0,"",'2วันเดือนปี'!J5) ->  | J7: ='2วันเดือนปี'!F6 ->  | K7: ='2วันเดือนปี'!G6 ->  | L7: ='2วันเดือนปี'!H6 ->  | M7: ='2วันเดือนปี'!I6 ->  | N7: ='2วันเดือนปี'!J6 ->  | O7: ='2วันเดือนปี'!F7 ->  | P7: ='2วันเดือนปี'!G7 ->  | Q7: ='2วันเดือนปี'!H7 ->  | R7: ='2วันเดือนปี'!I7 ->  | S7: ='2วันเดือนปี'!J7 ->  | T7: ='2วันเดือนปี'!F8 ->  | U7: ='2วันเดือนปี'!G8 ->  | V7: ='2วันเดือนปี'!H8 ->  | W7: ='2วันเดือนปี'!I8 ->  | X7: ='2วันเดือนปี'!J8 ->  | Y7: ='2วันเดือนปี'!F9 ->  | Z7: ='2วันเดือนปี'!G9 ->  | AA7: ='2วันเดือนปี'!H9 ->  | AB7: ='2วันเดือนปี'!I9 ->  | AC7: ='2วันเดือนปี'!J9 ->  | AD7: ='2วันเดือนปี'!F10 ->  | AE7: ='2วันเดือนปี'!G10 ->  | AF7: ='2วันเดือนปี'!H10 ->  | AG7: ='2วันเดือนปี'!I10 ->  | AH7: ='2วันเดือนปี'!J10 ->  | AI7: ='2วันเดือนปี'!F11 ->  | AJ7: ='2วันเดือนปี'!G11 ->  | AK7: ='2วันเดือนปี'!H11 ->  | AL7: ='2วันเดือนปี'!I11 ->  | AM7: ='2วันเดือนปี'!J11 ->  | AN7: ='2วันเดือนปี'!F12 ->  | AO7: ='2วันเดือนปี'!G12 ->  | AP7: ='2วันเดือนปี'!H12 ->  | AQ7: ='2วันเดือนปี'!I12 ->  | AR7: ='2วันเดือนปี'!J12 ->  | AS7: ='2วันเดือนปี'!F13 ->  | AT7: ='2วันเดือนปี'!G13 ->  | AU7: ='2วันเดือนปี'!H13 ->  | AV7: ='2วันเดือนปี'!I13 ->  | AW7: ='2วันเดือนปี'!J13 ->  | AX7: ='2วันเดือนปี'!F14 ->  | AY7: ='2วันเดือนปี'!G14 ->  | AZ7: ='2วันเดือนปี'!H14 ->  | BA7: ='2วันเดือนปี'!I14 ->  | BB7: ='2วันเดือนปี'!J14 ->  | BC7: ='2วันเดือนปี'!F15 ->  | BD7: ='2วันเดือนปี'!G15 ->  | BE7: ='2วันเดือนปี'!H15 ->  | BF7: ='2วันเดือนปี'!I15 ->  | BG7: ='2วันเดือนปี'!J15 ->  | BH7: ='2วันเดือนปี'!F16 ->  | BI7: ='2วันเดือนปี'!G16 ->  | BJ7: ='2วันเดือนปี'!H16 ->  | BK7: ='2วันเดือนปี'!I16 ->  | BL7: ='2วันเดือนปี'!J16 ->  | BM7: ='2วันเดือนปี'!F17 ->  | BN7: ='2วันเดือนปี'!G17 ->  | BO7: ='2วันเดือนปี'!H17 ->  | BP7: ='2วันเดือนปี'!I17 ->  | BQ7: ='2วันเดือนปี'!J17 ->  | BR7: ='2วันเดือนปี'!F18 ->  | BS7: ='2วันเดือนปี'!G18 ->  | BT7: ='2วันเดือนปี'!H18 ->  | BU7: ='2วันเดือนปี'!I18 ->  | BV7: ='2วันเดือนปี'!J18 ->  | BW7: ='2วันเดือนปี'!F19 ->  | BX7: ='2วันเดือนปี'!G19 ->  | BY7: ='2วันเดือนปี'!H19 ->  | BZ7: ='2วันเดือนปี'!I19 ->  | CA7: ='2วันเดือนปี'!J19 ->  | CB7: ='2วันเดือนปี'!F20 ->  | CC7: ='2วันเดือนปี'!G20 ->  | CD7: ='2วันเดือนปี'!H20 ->  | CE7: ='2วันเดือนปี'!I20 ->  | CF7: ='2วันเดือนปี'!J20 ->  | CG7: ='2วันเดือนปี'!F21 ->  | CH7: ='2วันเดือนปี'!G21 ->  | CI7: ='2วันเดือนปี'!H21 ->  | CJ7: ='2วันเดือนปี'!I21 ->  | CK7: ='2วันเดือนปี'!J21 ->  | CL7: ='2วันเดือนปี'!F22 ->  | CM7: ='2วันเดือนปี'!G22 ->  | CN7: ='2วันเดือนปี'!H22 ->  | CO7: ='2วันเดือนปี'!I22 ->  | CP7: ='2วันเดือนปี'!J22 ->  | CQ7: ='2วันเดือนปี'!F23 ->  | CR7: ='2วันเดือนปี'!G23 ->  | CS7: ='2วันเดือนปี'!H23 ->  | CT7: ='2วันเดือนปี'!I23 ->  | CU7: ='2วันเดือนปี'!J23 ->  | CV7: ='2วันเดือนปี'!F24 ->  | CW7: ='2วันเดือนปี'!G24 ->  | CX7: ='2วันเดือนปี'!H24 ->  | CY7: ='2วันเดือนปี'!I24 ->  | CZ7: ='2วันเดือนปี'!J24 -> 
B8: ตัว | E8: =IF(E7 <> "",E4,0) -> 0 | F8: =IF(F7="",0,IF(E8=0,1,E8+1)) -> 0 | G8: =IF(G7="",0,IF(AND(F8=0,E8=0),E4,(MAX(E8:F8)+1))) -> 0 | H8: =IF(H7="",0,IF(AND(E8=0,G8=0,F8=0),1,(MAX(E8:G8)+1))) -> 0 | I8: =IF(I7="",0,IF(AND(E8=0,F8=0,H8=0,G8=0),1,(MAX(E8:H8)+1))) -> 0 | J8: =IF(J7 <> "",MAX(E8:I8)+1,0) -> 0 | K8: 0 | L8: 0 | M8: 0 | N8: 0 | O8: 0 | P8: 0 | Q8: 0 | R8: 0 | S8: 0 | T8: 0 | U8: 0 | V8: 0 | W8: 0 | X8: 0 | Y8: 0 | Z8: 0 | AA8: 0 | AB8: 0 | AC8: 0 | AD8: 0 | AE8: 0 | AF8: 0 | AG8: 0 | AH8: 0 | AI8: 0 | AJ8: 0 | AK8: 0 | AL8: 0 | AM8: 0 | AN8: 0 | AO8: 0 | AP8: 0 | AQ8: 0 | AR8: 0 | AS8: 0 | AT8: 0 | AU8: 0 | AV8: 0 | AW8: 0 | AX8: 0 | AY8: 0 | AZ8: 0 | BA8: 0 | BB8: 0 | BC8: 0 | BD8: 0 | BE8: 0 | BF8: 0 | BG8: 0 | BH8: 0 | BI8: 0 | BJ8: 0 | BK8: 0 | BL8: 0 | BM8: 0 | BN8: 0 | BO8: 0 | BP8: 0 | BQ8: 0 | BR8: 0 | BS8: 0 | BT8: 0 | BU8: 0 | BV8: 0 | BW8: 0 | BX8: 0 | BY8: 0 | BZ8: 0 | CA8: 0 | CB8: 0 | CC8: 0 | CD8: 0 | CE8: 0 | CF8: 0 | CG8: 0 | CH8: 0 | CI8: 0 | CJ8: 0 | CK8: 0 | CL8: 0 | CM8: 0 | CN8: 0 | CO8: 0 | CP8: 0 | CQ8: 0 | CR8: 0 | CS8: 0 | CT8: 0 | CU8: 0 | CV8: 0 | CW8: 0 | CX8: 0 | CY8: 0 | CZ8: 0
A9: 1 | B9: ='1ข้อมูลรายวิชา'!C4 -> 09441 | C9: ='1ข้อมูลรายวิชา'!D4 -> เด็กชายกัมปนาท สีทัดยศ | D9: ='1ข้อมูลรายวิชา'!#REF! ->  | E9: ='4บันทึกเวลาเรียน'!G7 -> - | F9: ='4บันทึกเวลาเรียน'!H7 -> - | G9: ='4บันทึกเวลาเรียน'!I7 -> - | H9: ='4บันทึกเวลาเรียน'!J7 -> - | I9: ='4บันทึกเวลาเรียน'!K7 -> - | J9: ='4บันทึกเวลาเรียน'!L7 -> - | K9: ='4บันทึกเวลาเรียน'!M7 -> - | L9: ='4บันทึกเวลาเรียน'!N7 -> - | M9: ='4บันทึกเวลาเรียน'!O7 -> - | N9: ='4บันทึกเวลาเรียน'!P7 -> - | O9: ='4บันทึกเวลาเรียน'!Q7 -> - | P9: ='4บันทึกเวลาเรียน'!R7 -> - | Q9: ='4บันทึกเวลาเรียน'!S7 -> - | R9: ='4บันทึกเวลาเรียน'!T7 -> - | S9: ='4บันทึกเวลาเรียน'!U7 -> - | T9: ='4บันทึกเวลาเรียน'!V7 -> - | U9: ='4บันทึกเวลาเรียน'!W7 -> - | V9: ='4บันทึกเวลาเรียน'!X7 -> - | W9: ='4บันทึกเวลาเรียน'!Y7 -> - | X9: ='4บันทึกเวลาเรียน'!Z7 -> - | Y9: ='4บันทึกเวลาเรียน'!AA7 -> - | Z9: ='4บันทึกเวลาเรียน'!AB7 -> - | AA9: ='4บันทึกเวลาเรียน'!AC7 -> - | AB9: ='4บันทึกเวลาเรียน'!AD7 -> - | AC9: ='4บันทึกเวลาเรียน'!AE7 -> - | AD9: ='4บันทึกเวลาเรียน'!AF7 -> - | AE9: ='4บันทึกเวลาเรียน'!AG7 -> - | AF9: ='4บันทึกเวลาเรียน'!AH7 -> - | AG9: ='4บันทึกเวลาเรียน'!AI7 -> - | AH9: ='4บันทึกเวลาเรียน'!AJ7 -> - | AI9: ='4บันทึกเวลาเรียน'!AK7 -> - | AJ9: ='4บันทึกเวลาเรียน'!AL7 -> - | AK9: ='4บันทึกเวลาเรียน'!AM7 -> - | AL9: ='4บันทึกเวลาเรียน'!AN7 -> - | AM9: ='4บันทึกเวลาเรียน'!AO7 -> - | AN9: ='4บันทึกเวลาเรียน'!AP7 -> - | AO9: ='4บันทึกเวลาเรียน'!AQ7 -> - | AP9: ='4บันทึกเวลาเรียน'!AR7 -> - | AQ9: ='4บันทึกเวลาเรียน'!AS7 -> - | AR9: ='4บันทึกเวลาเรียน'!AT7 -> - | AS9: ='4บันทึกเวลาเรียน'!AU7 -> - | AT9: ='4บันทึกเวลาเรียน'!AV7 -> - | AU9: ='4บันทึกเวลาเรียน'!AW7 -> - | AV9: ='4บันทึกเวลาเรียน'!AX7 -> - | AW9: ='4บันทึกเวลาเรียน'!AY7 -> - | AX9: ='4บันทึกเวลาเรียน'!AZ7 -> - | AY9: ='4บันทึกเวลาเรียน'!BA7 -> - | AZ9: ='4บันทึกเวลาเรียน'!BB7 -> - | BA9: ='4บันทึกเวลาเรียน'!BC7 -> - | BB9: ='4บันทึกเวลาเรียน'!BD7 -> - | BC9: ='4บันทึกเวลาเรียน'!BE7 -> - | BD9: ='4บันทึกเวลาเรียน'!BF7 -> - | BE9: ='4บันทึกเวลาเรียน'!BG7 -> - | BF9: ='4บันทึกเวลาเรียน'!BH7 -> - | BG9: ='4บันทึกเวลาเรียน'!BI7 -> - | BH9: ='4บันทึกเวลาเรียน'!BJ7 -> - | BI9: ='4บันทึกเวลาเรียน'!BK7 -> - | BJ9: ='4บันทึกเวลาเรียน'!BL7 -> - | BK9: ='4บันทึกเวลาเรียน'!BM7 -> - | BL9: ='4บันทึกเวลาเรียน'!BN7 -> - | BM9: ='4บันทึกเวลาเรียน'!BO7 -> - | BN9: ='4บันทึกเวลาเรียน'!BP7 -> - | BO9: ='4บันทึกเวลาเรียน'!BQ7 -> - | BP9: ='4บันทึกเวลาเรียน'!BR7 -> - | BQ9: ='4บันทึกเวลาเรียน'!BS7 -> - | BR9: ='4บันทึกเวลาเรียน'!BT7 -> - | BS9: ='4บันทึกเวลาเรียน'!BU7 -> - | BT9: ='4บันทึกเวลาเรียน'!BV7 -> - | BU9: ='4บันทึกเวลาเรียน'!BW7 -> - | BV9: ='4บันทึกเวลาเรียน'!BX7 -> - | BW9: ='4บันทึกเวลาเรียน'!BY7 -> - | BX9: ='4บันทึกเวลาเรียน'!BZ7 -> - | BY9: ='4บันทึกเวลาเรียน'!CA7 -> - | BZ9: ='4บันทึกเวลาเรียน'!CB7 -> - | CA9: ='4บันทึกเวลาเรียน'!CC7 -> - | CB9: ='4บันทึกเวลาเรียน'!CD7 -> - | CC9: ='4บันทึกเวลาเรียน'!CE7 -> - | CD9: ='4บันทึกเวลาเรียน'!CF7 -> - | CE9: ='4บันทึกเวลาเรียน'!CG7 -> - | CF9: ='4บันทึกเวลาเรียน'!CH7 -> - | CG9: ='4บันทึกเวลาเรียน'!CI7 -> - | CH9: ='4บันทึกเวลาเรียน'!CJ7 -> - | CI9: ='4บันทึกเวลาเรียน'!CK7 -> - | CJ9: ='4บันทึกเวลาเรียน'!CL7 -> - | CK9: ='4บันทึกเวลาเรียน'!CM7 -> - | CL9: ='4บันทึกเวลาเรียน'!CN7 -> - | CM9: ='4บันทึกเวลาเรียน'!CO7 -> - | CN9: ='4บันทึกเวลาเรียน'!CP7 -> - | CO9: ='4บันทึกเวลาเรียน'!CQ7 -> - | CP9: ='4บันทึกเวลาเรียน'!CR7 -> - | CQ9: ='4บันทึกเวลาเรียน'!CS7 -> - | CR9: ='4บันทึกเวลาเรียน'!CT7 -> - | CS9: ='4บันทึกเวลาเรียน'!CU7 -> - | CT9: ='4บันทึกเวลาเรียน'!CV7 -> - | CU9: ='4บันทึกเวลาเรียน'!CW7 -> - | CV9: ='4บันทึกเวลาเรียน'!CX7 -> - | CW9: ='4บันทึกเวลาเรียน'!CY7 -> - | CX9: ='4บันทึกเวลาเรียน'!CZ7 -> - | CY9: ='4บันทึกเวลาเรียน'!DA7 -> - | CZ9: ='4บันทึกเวลาเรียน'!DB7 -> - | DB9: - | DC9: ='1ข้อมูลรายวิชา'!E4 -> 0 | DD9: ='1ข้อมูลรายวิชา'!F4 -> 0 | DE9: ='1ข้อมูลรายวิชา'!G4 -> 0 | DF9: ='1ข้อมูลรายวิชา'!H4 -> 0 | DG9: ='1ข้อมูลรายวิชา'!I4 -> 0 | DH9: ='1ข้อมูลรายวิชา'!J4 -> 0 | DI9: ='1ข้อมูลรายวิชา'!N4 -> 3 | DJ9: ='1ข้อมูลรายวิชา'!O4 -> 3
A10: 2 | B10: ='1ข้อมูลรายวิชา'!C5 -> 09443 | C10: ='1ข้อมูลรายวิชา'!D5 -> เด็กชายณัฐวุฒิ แก้วนารี | D10: ='1ข้อมูลรายวิชา'!#REF! ->  | E10: ='4บันทึกเวลาเรียน'!G8 -> - | F10: ='4บันทึกเวลาเรียน'!H8 -> - | G10: ='4บันทึกเวลาเรียน'!I8 -> - | H10: ='4บันทึกเวลาเรียน'!J8 -> - | I10: ='4บันทึกเวลาเรียน'!K8 -> - | J10: ='4บันทึกเวลาเรียน'!L8 -> - | K10: ='4บันทึกเวลาเรียน'!M8 -> - | L10: ='4บันทึกเวลาเรียน'!N8 -> - | M10: ='4บันทึกเวลาเรียน'!O8 -> - | N10: ='4บันทึกเวลาเรียน'!P8 -> - | O10: ='4บันทึกเวลาเรียน'!Q8 -> - | P10: ='4บันทึกเวลาเรียน'!R8 -> - | Q10: ='4บันทึกเวลาเรียน'!S8 -> - | R10: ='4บันทึกเวลาเรียน'!T8 -> - | S10: ='4บันทึกเวลาเรียน'!U8 -> - | T10: ='4บันทึกเวลาเรียน'!V8 -> - | U10: ='4บันทึกเวลาเรียน'!W8 -> - | V10: ='4บันทึกเวลาเรียน'!X8 -> - | W10: ='4บันทึกเวลาเรียน'!Y8 -> - | X10: ='4บันทึกเวลาเรียน'!Z8 -> - | Y10: ='4บันทึกเวลาเรียน'!AA8 -> - | Z10: ='4บันทึกเวลาเรียน'!AB8 -> - | AA10: ='4บันทึกเวลาเรียน'!AC8 -> - | AB10: ='4บันทึกเวลาเรียน'!AD8 -> - | AC10: ='4บันทึกเวลาเรียน'!AE8 -> - | AD10: ='4บันทึกเวลาเรียน'!AF8 -> - | AE10: ='4บันทึกเวลาเรียน'!AG8 -> - | AF10: ='4บันทึกเวลาเรียน'!AH8 -> - | AG10: ='4บันทึกเวลาเรียน'!AI8 -> - | AH10: ='4บันทึกเวลาเรียน'!AJ8 -> - | AI10: ='4บันทึกเวลาเรียน'!AK8 -> - | AJ10: ='4บันทึกเวลาเรียน'!AL8 -> - | AK10: ='4บันทึกเวลาเรียน'!AM8 -> - | AL10: ='4บันทึกเวลาเรียน'!AN8 -> - | AM10: ='4บันทึกเวลาเรียน'!AO8 -> - | AN10: ='4บันทึกเวลาเรียน'!AP8 -> - | AO10: ='4บันทึกเวลาเรียน'!AQ8 -> - | AP10: ='4บันทึกเวลาเรียน'!AR8 -> - | AQ10: ='4บันทึกเวลาเรียน'!AS8 -> - | AR10: ='4บันทึกเวลาเรียน'!AT8 -> - | AS10: ='4บันทึกเวลาเรียน'!AU8 -> - | AT10: ='4บันทึกเวลาเรียน'!AV8 -> - | AU10: ='4บันทึกเวลาเรียน'!AW8 -> - | AV10: ='4บันทึกเวลาเรียน'!AX8 -> - | AW10: ='4บันทึกเวลาเรียน'!AY8 -> - | AX10: ='4บันทึกเวลาเรียน'!AZ8 -> - | AY10: ='4บันทึกเวลาเรียน'!BA8 -> - | AZ10: ='4บันทึกเวลาเรียน'!BB8 -> - | BA10: ='4บันทึกเวลาเรียน'!BC8 -> - | BB10: ='4บันทึกเวลาเรียน'!BD8 -> - | BC10: ='4บันทึกเวลาเรียน'!BE8 -> - | BD10: ='4บันทึกเวลาเรียน'!BF8 -> - | BE10: ='4บันทึกเวลาเรียน'!BG8 -> - | BF10: ='4บันทึกเวลาเรียน'!BH8 -> - | BG10: ='4บันทึกเวลาเรียน'!BI8 -> - | BH10: ='4บันทึกเวลาเรียน'!BJ8 -> - | BI10: ='4บันทึกเวลาเรียน'!BK8 -> - | BJ10: ='4บันทึกเวลาเรียน'!BL8 -> - | BK10: ='4บันทึกเวลาเรียน'!BM8 -> - | BL10: ='4บันทึกเวลาเรียน'!BN8 -> - | BM10: ='4บันทึกเวลาเรียน'!BO8 -> - | BN10: ='4บันทึกเวลาเรียน'!BP8 -> - | BO10: ='4บันทึกเวลาเรียน'!BQ8 -> - | BP10: ='4บันทึกเวลาเรียน'!BR8 -> - | BQ10: ='4บันทึกเวลาเรียน'!BS8 -> - | BR10: ='4บันทึกเวลาเรียน'!BT8 -> - | BS10: ='4บันทึกเวลาเรียน'!BU8 -> - | BT10: ='4บันทึกเวลาเรียน'!BV8 -> - | BU10: ='4บันทึกเวลาเรียน'!BW8 -> - | BV10: ='4บันทึกเวลาเรียน'!BX8 -> - | BW10: ='4บันทึกเวลาเรียน'!BY8 -> - | BX10: ='4บันทึกเวลาเรียน'!BZ8 -> - | BY10: ='4บันทึกเวลาเรียน'!CA8 -> - | BZ10: ='4บันทึกเวลาเรียน'!CB8 -> - | CA10: ='4บันทึกเวลาเรียน'!CC8 -> - | CB10: ='4บันทึกเวลาเรียน'!CD8 -> - | CC10: ='4บันทึกเวลาเรียน'!CE8 -> - | CD10: ='4บันทึกเวลาเรียน'!CF8 -> - | CE10: ='4บันทึกเวลาเรียน'!CG8 -> - | CF10: ='4บันทึกเวลาเรียน'!CH8 -> - | CG10: ='4บันทึกเวลาเรียน'!CI8 -> - | CH10: ='4บันทึกเวลาเรียน'!CJ8 -> - | CI10: ='4บันทึกเวลาเรียน'!CK8 -> - | CJ10: ='4บันทึกเวลาเรียน'!CL8 -> - | CK10: ='4บันทึกเวลาเรียน'!CM8 -> - | CL10: ='4บันทึกเวลาเรียน'!CN8 -> - | CM10: ='4บันทึกเวลาเรียน'!CO8 -> - | CN10: ='4บันทึกเวลาเรียน'!CP8 -> - | CO10: ='4บันทึกเวลาเรียน'!CQ8 -> - | CP10: ='4บันทึกเวลาเรียน'!CR8 -> - | CQ10: ='4บันทึกเวลาเรียน'!CS8 -> - | CR10: ='4บันทึกเวลาเรียน'!CT8 -> - | CS10: ='4บันทึกเวลาเรียน'!CU8 -> - | CT10: ='4บันทึกเวลาเรียน'!CV8 -> - | CU10: ='4บันทึกเวลาเรียน'!CW8 -> - | CV10: ='4บันทึกเวลาเรียน'!CX8 -> - | CW10: ='4บันทึกเวลาเรียน'!CY8 -> - | CX10: ='4บันทึกเวลาเรียน'!CZ8 -> - | CY10: ='4บันทึกเวลาเรียน'!DA8 -> - | CZ10: ='4บันทึกเวลาเรียน'!DB8 -> - | DB10: - | DC10: ='1ข้อมูลรายวิชา'!E5 -> 0 | DD10: ='1ข้อมูลรายวิชา'!F5 -> 0 | DE10: ='1ข้อมูลรายวิชา'!G5 -> 0 | DF10: ='1ข้อมูลรายวิชา'!H5 -> 0 | DG10: ='1ข้อมูลรายวิชา'!I5 -> 0 | DH10: ='1ข้อมูลรายวิชา'!J5 -> 0 | DI10: ='1ข้อมูลรายวิชา'!N5 -> 3 | DJ10: ='1ข้อมูลรายวิชา'!O5 -> 3
A11: 3 | B11: ='1ข้อมูลรายวิชา'!C6 -> 09444 | C11: ='1ข้อมูลรายวิชา'!D6 -> เด็กชายธีภพ แข็งแรง | D11: ='1ข้อมูลรายวิชา'!#REF! ->  | E11: ='4บันทึกเวลาเรียน'!G9 -> - | F11: ='4บันทึกเวลาเรียน'!H9 -> - | G11: ='4บันทึกเวลาเรียน'!I9 -> - | H11: ='4บันทึกเวลาเรียน'!J9 -> - | I11: ='4บันทึกเวลาเรียน'!K9 -> - | J11: ='4บันทึกเวลาเรียน'!L9 -> - | K11: ='4บันทึกเวลาเรียน'!M9 -> - | L11: ='4บันทึกเวลาเรียน'!N9 -> - | M11: ='4บันทึกเวลาเรียน'!O9 -> - | N11: ='4บันทึกเวลาเรียน'!P9 -> - | O11: ='4บันทึกเวลาเรียน'!Q9 -> - | P11: ='4บันทึกเวลาเรียน'!R9 -> - | Q11: ='4บันทึกเวลาเรียน'!S9 -> - | R11: ='4บันทึกเวลาเรียน'!T9 -> - | S11: ='4บันทึกเวลาเรียน'!U9 -> - | T11: ='4บันทึกเวลาเรียน'!V9 -> - | U11: ='4บันทึกเวลาเรียน'!W9 -> - | V11: ='4บันทึกเวลาเรียน'!X9 -> - | W11: ='4บันทึกเวลาเรียน'!Y9 -> - | X11: ='4บันทึกเวลาเรียน'!Z9 -> - | Y11: ='4บันทึกเวลาเรียน'!AA9 -> - | Z11: ='4บันทึกเวลาเรียน'!AB9 -> - | AA11: ='4บันทึกเวลาเรียน'!AC9 -> - | AB11: ='4บันทึกเวลาเรียน'!AD9 -> - | AC11: ='4บันทึกเวลาเรียน'!AE9 -> - | AD11: ='4บันทึกเวลาเรียน'!AF9 -> - | AE11: ='4บันทึกเวลาเรียน'!AG9 -> - | AF11: ='4บันทึกเวลาเรียน'!AH9 -> - | AG11: ='4บันทึกเวลาเรียน'!AI9 -> - | AH11: ='4บันทึกเวลาเรียน'!AJ9 -> - | AI11: ='4บันทึกเวลาเรียน'!AK9 -> - | AJ11: ='4บันทึกเวลาเรียน'!AL9 -> - | AK11: ='4บันทึกเวลาเรียน'!AM9 -> - | AL11: ='4บันทึกเวลาเรียน'!AN9 -> - | AM11: ='4บันทึกเวลาเรียน'!AO9 -> - | AN11: ='4บันทึกเวลาเรียน'!AP9 -> - | AO11: ='4บันทึกเวลาเรียน'!AQ9 -> - | AP11: ='4บันทึกเวลาเรียน'!AR9 -> - | AQ11: ='4บันทึกเวลาเรียน'!AS9 -> - | AR11: ='4บันทึกเวลาเรียน'!AT9 -> - | AS11: ='4บันทึกเวลาเรียน'!AU9 -> - | AT11: ='4บันทึกเวลาเรียน'!AV9 -> - | AU11: ='4บันทึกเวลาเรียน'!AW9 -> - | AV11: ='4บันทึกเวลาเรียน'!AX9 -> - | AW11: ='4บันทึกเวลาเรียน'!AY9 -> - | AX11: ='4บันทึกเวลาเรียน'!AZ9 -> - | AY11: ='4บันทึกเวลาเรียน'!BA9 -> - | AZ11: ='4บันทึกเวลาเรียน'!BB9 -> - | BA11: ='4บันทึกเวลาเรียน'!BC9 -> - | BB11: ='4บันทึกเวลาเรียน'!BD9 -> - | BC11: ='4บันทึกเวลาเรียน'!BE9 -> - | BD11: ='4บันทึกเวลาเรียน'!BF9 -> - | BE11: ='4บันทึกเวลาเรียน'!BG9 -> - | BF11: ='4บันทึกเวลาเรียน'!BH9 -> - | BG11: ='4บันทึกเวลาเรียน'!BI9 -> - | BH11: ='4บันทึกเวลาเรียน'!BJ9 -> - | BI11: ='4บันทึกเวลาเรียน'!BK9 -> - | BJ11: ='4บันทึกเวลาเรียน'!BL9 -> - | BK11: ='4บันทึกเวลาเรียน'!BM9 -> - | BL11: ='4บันทึกเวลาเรียน'!BN9 -> - | BM11: ='4บันทึกเวลาเรียน'!BO9 -> - | BN11: ='4บันทึกเวลาเรียน'!BP9 -> - | BO11: ='4บันทึกเวลาเรียน'!BQ9 -> - | BP11: ='4บันทึกเวลาเรียน'!BR9 -> - | BQ11: ='4บันทึกเวลาเรียน'!BS9 -> - | BR11: ='4บันทึกเวลาเรียน'!BT9 -> - | BS11: ='4บันทึกเวลาเรียน'!BU9 -> - | BT11: ='4บันทึกเวลาเรียน'!BV9 -> - | BU11: ='4บันทึกเวลาเรียน'!BW9 -> - | BV11: ='4บันทึกเวลาเรียน'!BX9 -> - | BW11: ='4บันทึกเวลาเรียน'!BY9 -> - | BX11: ='4บันทึกเวลาเรียน'!BZ9 -> - | BY11: ='4บันทึกเวลาเรียน'!CA9 -> - | BZ11: ='4บันทึกเวลาเรียน'!CB9 -> - | CA11: ='4บันทึกเวลาเรียน'!CC9 -> - | CB11: ='4บันทึกเวลาเรียน'!CD9 -> - | CC11: ='4บันทึกเวลาเรียน'!CE9 -> - | CD11: ='4บันทึกเวลาเรียน'!CF9 -> - | CE11: ='4บันทึกเวลาเรียน'!CG9 -> - | CF11: ='4บันทึกเวลาเรียน'!CH9 -> - | CG11: ='4บันทึกเวลาเรียน'!CI9 -> - | CH11: ='4บันทึกเวลาเรียน'!CJ9 -> - | CI11: ='4บันทึกเวลาเรียน'!CK9 -> - | CJ11: ='4บันทึกเวลาเรียน'!CL9 -> - | CK11: ='4บันทึกเวลาเรียน'!CM9 -> - | CL11: ='4บันทึกเวลาเรียน'!CN9 -> - | CM11: ='4บันทึกเวลาเรียน'!CO9 -> - | CN11: ='4บันทึกเวลาเรียน'!CP9 -> - | CO11: ='4บันทึกเวลาเรียน'!CQ9 -> - | CP11: ='4บันทึกเวลาเรียน'!CR9 -> - | CQ11: ='4บันทึกเวลาเรียน'!CS9 -> - | CR11: ='4บันทึกเวลาเรียน'!CT9 -> - | CS11: ='4บันทึกเวลาเรียน'!CU9 -> - | CT11: ='4บันทึกเวลาเรียน'!CV9 -> - | CU11: ='4บันทึกเวลาเรียน'!CW9 -> - | CV11: ='4บันทึกเวลาเรียน'!CX9 -> - | CW11: ='4บันทึกเวลาเรียน'!CY9 -> - | CX11: ='4บันทึกเวลาเรียน'!CZ9 -> - | CY11: ='4บันทึกเวลาเรียน'!DA9 -> - | CZ11: ='4บันทึกเวลาเรียน'!DB9 -> - | DB11: - | DC11: ='1ข้อมูลรายวิชา'!E6 -> 0 | DD11: ='1ข้อมูลรายวิชา'!F6 -> 0 | DE11: ='1ข้อมูลรายวิชา'!G6 -> 0 | DF11: ='1ข้อมูลรายวิชา'!H6 -> 0 | DG11: ='1ข้อมูลรายวิชา'!I6 -> 0 | DH11: ='1ข้อมูลรายวิชา'!J6 -> 0 | DI11: ='1ข้อมูลรายวิชา'!N6 -> 3 | DJ11: ='1ข้อมูลรายวิชา'!O6 -> 3
A12: 4 | B12: ='1ข้อมูลรายวิชา'!C7 -> 09445 | C12: ='1ข้อมูลรายวิชา'!D7 -> เด็กชายธีรภัทร เคนบู | D12: ='1ข้อมูลรายวิชา'!#REF! ->  | E12: ='4บันทึกเวลาเรียน'!G10 -> - | F12: ='4บันทึกเวลาเรียน'!H10 -> - | G12: ='4บันทึกเวลาเรียน'!I10 -> - | H12: ='4บันทึกเวลาเรียน'!J10 -> - | I12: ='4บันทึกเวลาเรียน'!K10 -> - | J12: ='4บันทึกเวลาเรียน'!L10 -> - | K12: ='4บันทึกเวลาเรียน'!M10 -> - | L12: ='4บันทึกเวลาเรียน'!N10 -> - | M12: ='4บันทึกเวลาเรียน'!O10 -> - | N12: ='4บันทึกเวลาเรียน'!P10 -> - | O12: ='4บันทึกเวลาเรียน'!Q10 -> - | P12: ='4บันทึกเวลาเรียน'!R10 -> - | Q12: ='4บันทึกเวลาเรียน'!S10 -> - | R12: ='4บันทึกเวลาเรียน'!T10 -> - | S12: ='4บันทึกเวลาเรียน'!U10 -> - | T12: ='4บันทึกเวลาเรียน'!V10 -> - | U12: ='4บันทึกเวลาเรียน'!W10 -> - | V12: ='4บันทึกเวลาเรียน'!X10 -> - | W12: ='4บันทึกเวลาเรียน'!Y10 -> - | X12: ='4บันทึกเวลาเรียน'!Z10 -> - | Y12: ='4บันทึกเวลาเรียน'!AA10 -> - | Z12: ='4บันทึกเวลาเรียน'!AB10 -> - | AA12: ='4บันทึกเวลาเรียน'!AC10 -> - | AB12: ='4บันทึกเวลาเรียน'!AD10 -> - | AC12: ='4บันทึกเวลาเรียน'!AE10 -> - | AD12: ='4บันทึกเวลาเรียน'!AF10 -> - | AE12: ='4บันทึกเวลาเรียน'!AG10 -> - | AF12: ='4บันทึกเวลาเรียน'!AH10 -> - | AG12: ='4บันทึกเวลาเรียน'!AI10 -> - | AH12: ='4บันทึกเวลาเรียน'!AJ10 -> - | AI12: ='4บันทึกเวลาเรียน'!AK10 -> - | AJ12: ='4บันทึกเวลาเรียน'!AL10 -> - | AK12: ='4บันทึกเวลาเรียน'!AM10 -> - | AL12: ='4บันทึกเวลาเรียน'!AN10 -> - | AM12: ='4บันทึกเวลาเรียน'!AO10 -> - | AN12: ='4บันทึกเวลาเรียน'!AP10 -> - | AO12: ='4บันทึกเวลาเรียน'!AQ10 -> - | AP12: ='4บันทึกเวลาเรียน'!AR10 -> - | AQ12: ='4บันทึกเวลาเรียน'!AS10 -> - | AR12: ='4บันทึกเวลาเรียน'!AT10 -> - | AS12: ='4บันทึกเวลาเรียน'!AU10 -> - | AT12: ='4บันทึกเวลาเรียน'!AV10 -> - | AU12: ='4บันทึกเวลาเรียน'!AW10 -> - | AV12: ='4บันทึกเวลาเรียน'!AX10 -> - | AW12: ='4บันทึกเวลาเรียน'!AY10 -> - | AX12: ='4บันทึกเวลาเรียน'!AZ10 -> - | AY12: ='4บันทึกเวลาเรียน'!BA10 -> - | AZ12: ='4บันทึกเวลาเรียน'!BB10 -> - | BA12: ='4บันทึกเวลาเรียน'!BC10 -> - | BB12: ='4บันทึกเวลาเรียน'!BD10 -> - | BC12: ='4บันทึกเวลาเรียน'!BE10 -> - | BD12: ='4บันทึกเวลาเรียน'!BF10 -> - | BE12: ='4บันทึกเวลาเรียน'!BG10 -> - | BF12: ='4บันทึกเวลาเรียน'!BH10 -> - | BG12: ='4บันทึกเวลาเรียน'!BI10 -> - | BH12: ='4บันทึกเวลาเรียน'!BJ10 -> - | BI12: ='4บันทึกเวลาเรียน'!BK10 -> - | BJ12: ='4บันทึกเวลาเรียน'!BL10 -> - | BK12: ='4บันทึกเวลาเรียน'!BM10 -> - | BL12: ='4บันทึกเวลาเรียน'!BN10 -> - | BM12: ='4บันทึกเวลาเรียน'!BO10 -> - | BN12: ='4บันทึกเวลาเรียน'!BP10 -> - | BO12: ='4บันทึกเวลาเรียน'!BQ10 -> - | BP12: ='4บันทึกเวลาเรียน'!BR10 -> - | BQ12: ='4บันทึกเวลาเรียน'!BS10 -> - | BR12: ='4บันทึกเวลาเรียน'!BT10 -> - | BS12: ='4บันทึกเวลาเรียน'!BU10 -> - | BT12: ='4บันทึกเวลาเรียน'!BV10 -> - | BU12: ='4บันทึกเวลาเรียน'!BW10 -> - | BV12: ='4บันทึกเวลาเรียน'!BX10 -> - | BW12: ='4บันทึกเวลาเรียน'!BY10 -> - | BX12: ='4บันทึกเวลาเรียน'!BZ10 -> - | BY12: ='4บันทึกเวลาเรียน'!CA10 -> - | BZ12: ='4บันทึกเวลาเรียน'!CB10 -> - | CA12: ='4บันทึกเวลาเรียน'!CC10 -> - | CB12: ='4บันทึกเวลาเรียน'!CD10 -> - | CC12: ='4บันทึกเวลาเรียน'!CE10 -> - | CD12: ='4บันทึกเวลาเรียน'!CF10 -> - | CE12: ='4บันทึกเวลาเรียน'!CG10 -> - | CF12: ='4บันทึกเวลาเรียน'!CH10 -> - | CG12: ='4บันทึกเวลาเรียน'!CI10 -> - | CH12: ='4บันทึกเวลาเรียน'!CJ10 -> - | CI12: ='4บันทึกเวลาเรียน'!CK10 -> - | CJ12: ='4บันทึกเวลาเรียน'!CL10 -> - | CK12: ='4บันทึกเวลาเรียน'!CM10 -> - | CL12: ='4บันทึกเวลาเรียน'!CN10 -> - | CM12: ='4บันทึกเวลาเรียน'!CO10 -> - | CN12: ='4บันทึกเวลาเรียน'!CP10 -> - | CO12: ='4บันทึกเวลาเรียน'!CQ10 -> - | CP12: ='4บันทึกเวลาเรียน'!CR10 -> - | CQ12: ='4บันทึกเวลาเรียน'!CS10 -> - | CR12: ='4บันทึกเวลาเรียน'!CT10 -> - | CS12: ='4บันทึกเวลาเรียน'!CU10 -> - | CT12: ='4บันทึกเวลาเรียน'!CV10 -> - | CU12: ='4บันทึกเวลาเรียน'!CW10 -> - | CV12: ='4บันทึกเวลาเรียน'!CX10 -> - | CW12: ='4บันทึกเวลาเรียน'!CY10 -> - | CX12: ='4บันทึกเวลาเรียน'!CZ10 -> - | CY12: ='4บันทึกเวลาเรียน'!DA10 -> - | CZ12: ='4บันทึกเวลาเรียน'!DB10 -> - | DB12: - | DC12: ='1ข้อมูลรายวิชา'!E7 -> 0 | DD12: ='1ข้อมูลรายวิชา'!F7 -> 0 | DE12: ='1ข้อมูลรายวิชา'!G7 -> 0 | DF12: ='1ข้อมูลรายวิชา'!H7 -> 0 | DG12: ='1ข้อมูลรายวิชา'!I7 -> 0 | DH12: ='1ข้อมูลรายวิชา'!J7 -> 0 | DI12: ='1ข้อมูลรายวิชา'!N7 -> 3 | DJ12: ='1ข้อมูลรายวิชา'!O7 -> 3
A13: 5 | B13: ='1ข้อมูลรายวิชา'!C8 -> 09446 | C13: ='1ข้อมูลรายวิชา'!D8 -> เด็กชายธีรวัฒน์ เผ้าหอม | D13: ='1ข้อมูลรายวิชา'!#REF! ->  | E13: ='4บันทึกเวลาเรียน'!G11 -> - | F13: ='4บันทึกเวลาเรียน'!H11 -> - | G13: ='4บันทึกเวลาเรียน'!I11 -> - | H13: ='4บันทึกเวลาเรียน'!J11 -> - | I13: ='4บันทึกเวลาเรียน'!K11 -> - | J13: ='4บันทึกเวลาเรียน'!L11 -> - | K13: ='4บันทึกเวลาเรียน'!M11 -> - | L13: ='4บันทึกเวลาเรียน'!N11 -> - | M13: ='4บันทึกเวลาเรียน'!O11 -> - | N13: ='4บันทึกเวลาเรียน'!P11 -> - | O13: ='4บันทึกเวลาเรียน'!Q11 -> - | P13: ='4บันทึกเวลาเรียน'!R11 -> - | Q13: ='4บันทึกเวลาเรียน'!S11 -> - | R13: ='4บันทึกเวลาเรียน'!T11 -> - | S13: ='4บันทึกเวลาเรียน'!U11 -> - | T13: ='4บันทึกเวลาเรียน'!V11 -> - | U13: ='4บันทึกเวลาเรียน'!W11 -> - | V13: ='4บันทึกเวลาเรียน'!X11 -> - | W13: ='4บันทึกเวลาเรียน'!Y11 -> - | X13: ='4บันทึกเวลาเรียน'!Z11 -> - | Y13: ='4บันทึกเวลาเรียน'!AA11 -> - | Z13: ='4บันทึกเวลาเรียน'!AB11 -> - | AA13: ='4บันทึกเวลาเรียน'!AC11 -> - | AB13: ='4บันทึกเวลาเรียน'!AD11 -> - | AC13: ='4บันทึกเวลาเรียน'!AE11 -> - | AD13: ='4บันทึกเวลาเรียน'!AF11 -> - | AE13: ='4บันทึกเวลาเรียน'!AG11 -> - | AF13: ='4บันทึกเวลาเรียน'!AH11 -> - | AG13: ='4บันทึกเวลาเรียน'!AI11 -> - | AH13: ='4บันทึกเวลาเรียน'!AJ11 -> - | AI13: ='4บันทึกเวลาเรียน'!AK11 -> - | AJ13: ='4บันทึกเวลาเรียน'!AL11 -> - | AK13: ='4บันทึกเวลาเรียน'!AM11 -> - | AL13: ='4บันทึกเวลาเรียน'!AN11 -> - | AM13: ='4บันทึกเวลาเรียน'!AO11 -> - | AN13: ='4บันทึกเวลาเรียน'!AP11 -> - | AO13: ='4บันทึกเวลาเรียน'!AQ11 -> - | AP13: ='4บันทึกเวลาเรียน'!AR11 -> - | AQ13: ='4บันทึกเวลาเรียน'!AS11 -> - | AR13: ='4บันทึกเวลาเรียน'!AT11 -> - | AS13: ='4บันทึกเวลาเรียน'!AU11 -> - | AT13: ='4บันทึกเวลาเรียน'!AV11 -> - | AU13: ='4บันทึกเวลาเรียน'!AW11 -> - | AV13: ='4บันทึกเวลาเรียน'!AX11 -> - | AW13: ='4บันทึกเวลาเรียน'!AY11 -> - | AX13: ='4บันทึกเวลาเรียน'!AZ11 -> - | AY13: ='4บันทึกเวลาเรียน'!BA11 -> - | AZ13: ='4บันทึกเวลาเรียน'!BB11 -> - | BA13: ='4บันทึกเวลาเรียน'!BC11 -> - | BB13: ='4บันทึกเวลาเรียน'!BD11 -> - | BC13: ='4บันทึกเวลาเรียน'!BE11 -> - | BD13: ='4บันทึกเวลาเรียน'!BF11 -> - | BE13: ='4บันทึกเวลาเรียน'!BG11 -> - | BF13: ='4บันทึกเวลาเรียน'!BH11 -> - | BG13: ='4บันทึกเวลาเรียน'!BI11 -> - | BH13: ='4บันทึกเวลาเรียน'!BJ11 -> - | BI13: ='4บันทึกเวลาเรียน'!BK11 -> - | BJ13: ='4บันทึกเวลาเรียน'!BL11 -> - | BK13: ='4บันทึกเวลาเรียน'!BM11 -> - | BL13: ='4บันทึกเวลาเรียน'!BN11 -> - | BM13: ='4บันทึกเวลาเรียน'!BO11 -> - | BN13: ='4บันทึกเวลาเรียน'!BP11 -> - | BO13: ='4บันทึกเวลาเรียน'!BQ11 -> - | BP13: ='4บันทึกเวลาเรียน'!BR11 -> - | BQ13: ='4บันทึกเวลาเรียน'!BS11 -> - | BR13: ='4บันทึกเวลาเรียน'!BT11 -> - | BS13: ='4บันทึกเวลาเรียน'!BU11 -> - | BT13: ='4บันทึกเวลาเรียน'!BV11 -> - | BU13: ='4บันทึกเวลาเรียน'!BW11 -> - | BV13: ='4บันทึกเวลาเรียน'!BX11 -> - | BW13: ='4บันทึกเวลาเรียน'!BY11 -> - | BX13: ='4บันทึกเวลาเรียน'!BZ11 -> - | BY13: ='4บันทึกเวลาเรียน'!CA11 -> - | BZ13: ='4บันทึกเวลาเรียน'!CB11 -> - | CA13: ='4บันทึกเวลาเรียน'!CC11 -> - | CB13: ='4บันทึกเวลาเรียน'!CD11 -> - | CC13: ='4บันทึกเวลาเรียน'!CE11 -> - | CD13: ='4บันทึกเวลาเรียน'!CF11 -> - | CE13: ='4บันทึกเวลาเรียน'!CG11 -> - | CF13: ='4บันทึกเวลาเรียน'!CH11 -> - | CG13: ='4บันทึกเวลาเรียน'!CI11 -> - | CH13: ='4บันทึกเวลาเรียน'!CJ11 -> - | CI13: ='4บันทึกเวลาเรียน'!CK11 -> - | CJ13: ='4บันทึกเวลาเรียน'!CL11 -> - | CK13: ='4บันทึกเวลาเรียน'!CM11 -> - | CL13: ='4บันทึกเวลาเรียน'!CN11 -> - | CM13: ='4บันทึกเวลาเรียน'!CO11 -> - | CN13: ='4บันทึกเวลาเรียน'!CP11 -> - | CO13: ='4บันทึกเวลาเรียน'!CQ11 -> - | CP13: ='4บันทึกเวลาเรียน'!CR11 -> - | CQ13: ='4บันทึกเวลาเรียน'!CS11 -> - | CR13: ='4บันทึกเวลาเรียน'!CT11 -> - | CS13: ='4บันทึกเวลาเรียน'!CU11 -> - | CT13: ='4บันทึกเวลาเรียน'!CV11 -> - | CU13: ='4บันทึกเวลาเรียน'!CW11 -> - | CV13: ='4บันทึกเวลาเรียน'!CX11 -> - | CW13: ='4บันทึกเวลาเรียน'!CY11 -> - | CX13: ='4บันทึกเวลาเรียน'!CZ11 -> - | CY13: ='4บันทึกเวลาเรียน'!DA11 -> - | CZ13: ='4บันทึกเวลาเรียน'!DB11 -> - | DB13: - | DC13: ='1ข้อมูลรายวิชา'!E8 -> 0 | DD13: ='1ข้อมูลรายวิชา'!F8 -> 0 | DE13: ='1ข้อมูลรายวิชา'!G8 -> 0 | DF13: ='1ข้อมูลรายวิชา'!H8 -> 0 | DG13: ='1ข้อมูลรายวิชา'!I8 -> 0 | DH13: ='1ข้อมูลรายวิชา'!J8 -> 0 | DI13: ='1ข้อมูลรายวิชา'!N8 -> 3 | DJ13: ='1ข้อมูลรายวิชา'!O8 -> 3
A14: 6 | B14: ='1ข้อมูลรายวิชา'!C9 -> 09447 | C14: ='1ข้อมูลรายวิชา'!D9 -> เด็กชายปกรณ์เกียรติ ศรีหนองบัว | D14: ='1ข้อมูลรายวิชา'!#REF! ->  | E14: ='4บันทึกเวลาเรียน'!G12 -> - | F14: ='4บันทึกเวลาเรียน'!H12 -> - | G14: ='4บันทึกเวลาเรียน'!I12 -> - | H14: ='4บันทึกเวลาเรียน'!J12 -> - | I14: ='4บันทึกเวลาเรียน'!K12 -> - | J14: ='4บันทึกเวลาเรียน'!L12 -> - | K14: ='4บันทึกเวลาเรียน'!M12 -> - | L14: ='4บันทึกเวลาเรียน'!N12 -> - | M14: ='4บันทึกเวลาเรียน'!O12 -> - | N14: ='4บันทึกเวลาเรียน'!P12 -> - | O14: ='4บันทึกเวลาเรียน'!Q12 -> - | P14: ='4บันทึกเวลาเรียน'!R12 -> - | Q14: ='4บันทึกเวลาเรียน'!S12 -> - | R14: ='4บันทึกเวลาเรียน'!T12 -> - | S14: ='4บันทึกเวลาเรียน'!U12 -> - | T14: ='4บันทึกเวลาเรียน'!V12 -> - | U14: ='4บันทึกเวลาเรียน'!W12 -> - | V14: ='4บันทึกเวลาเรียน'!X12 -> - | W14: ='4บันทึกเวลาเรียน'!Y12 -> - | X14: ='4บันทึกเวลาเรียน'!Z12 -> - | Y14: ='4บันทึกเวลาเรียน'!AA12 -> - | Z14: ='4บันทึกเวลาเรียน'!AB12 -> - | AA14: ='4บันทึกเวลาเรียน'!AC12 -> - | AB14: ='4บันทึกเวลาเรียน'!AD12 -> - | AC14: ='4บันทึกเวลาเรียน'!AE12 -> - | AD14: ='4บันทึกเวลาเรียน'!AF12 -> - | AE14: ='4บันทึกเวลาเรียน'!AG12 -> - | AF14: ='4บันทึกเวลาเรียน'!AH12 -> - | AG14: ='4บันทึกเวลาเรียน'!AI12 -> - | AH14: ='4บันทึกเวลาเรียน'!AJ12 -> - | AI14: ='4บันทึกเวลาเรียน'!AK12 -> - | AJ14: ='4บันทึกเวลาเรียน'!AL12 -> - | AK14: ='4บันทึกเวลาเรียน'!AM12 -> - | AL14: ='4บันทึกเวลาเรียน'!AN12 -> - | AM14: ='4บันทึกเวลาเรียน'!AO12 -> - | AN14: ='4บันทึกเวลาเรียน'!AP12 -> - | AO14: ='4บันทึกเวลาเรียน'!AQ12 -> - | AP14: ='4บันทึกเวลาเรียน'!AR12 -> - | AQ14: ='4บันทึกเวลาเรียน'!AS12 -> - | AR14: ='4บันทึกเวลาเรียน'!AT12 -> - | AS14: ='4บันทึกเวลาเรียน'!AU12 -> - | AT14: ='4บันทึกเวลาเรียน'!AV12 -> - | AU14: ='4บันทึกเวลาเรียน'!AW12 -> - | AV14: ='4บันทึกเวลาเรียน'!AX12 -> - | AW14: ='4บันทึกเวลาเรียน'!AY12 -> - | AX14: ='4บันทึกเวลาเรียน'!AZ12 -> - | AY14: ='4บันทึกเวลาเรียน'!BA12 -> - | AZ14: ='4บันทึกเวลาเรียน'!BB12 -> - | BA14: ='4บันทึกเวลาเรียน'!BC12 -> - | BB14: ='4บันทึกเวลาเรียน'!BD12 -> - | BC14: ='4บันทึกเวลาเรียน'!BE12 -> - | BD14: ='4บันทึกเวลาเรียน'!BF12 -> - | BE14: ='4บันทึกเวลาเรียน'!BG12 -> - | BF14: ='4บันทึกเวลาเรียน'!BH12 -> - | BG14: ='4บันทึกเวลาเรียน'!BI12 -> - | BH14: ='4บันทึกเวลาเรียน'!BJ12 -> - | BI14: ='4บันทึกเวลาเรียน'!BK12 -> - | BJ14: ='4บันทึกเวลาเรียน'!BL12 -> - | BK14: ='4บันทึกเวลาเรียน'!BM12 -> - | BL14: ='4บันทึกเวลาเรียน'!BN12 -> - | BM14: ='4บันทึกเวลาเรียน'!BO12 -> - | BN14: ='4บันทึกเวลาเรียน'!BP12 -> - | BO14: ='4บันทึกเวลาเรียน'!BQ12 -> - | BP14: ='4บันทึกเวลาเรียน'!BR12 -> - | BQ14: ='4บันทึกเวลาเรียน'!BS12 -> - | BR14: ='4บันทึกเวลาเรียน'!BT12 -> - | BS14: ='4บันทึกเวลาเรียน'!BU12 -> - | BT14: ='4บันทึกเวลาเรียน'!BV12 -> - | BU14: ='4บันทึกเวลาเรียน'!BW12 -> - | BV14: ='4บันทึกเวลาเรียน'!BX12 -> - | BW14: ='4บันทึกเวลาเรียน'!BY12 -> - | BX14: ='4บันทึกเวลาเรียน'!BZ12 -> - | BY14: ='4บันทึกเวลาเรียน'!CA12 -> - | BZ14: ='4บันทึกเวลาเรียน'!CB12 -> - | CA14: ='4บันทึกเวลาเรียน'!CC12 -> - | CB14: ='4บันทึกเวลาเรียน'!CD12 -> - | CC14: ='4บันทึกเวลาเรียน'!CE12 -> - | CD14: ='4บันทึกเวลาเรียน'!CF12 -> - | CE14: ='4บันทึกเวลาเรียน'!CG12 -> - | CF14: ='4บันทึกเวลาเรียน'!CH12 -> - | CG14: ='4บันทึกเวลาเรียน'!CI12 -> - | CH14: ='4บันทึกเวลาเรียน'!CJ12 -> - | CI14: ='4บันทึกเวลาเรียน'!CK12 -> - | CJ14: ='4บันทึกเวลาเรียน'!CL12 -> - | CK14: ='4บันทึกเวลาเรียน'!CM12 -> - | CL14: ='4บันทึกเวลาเรียน'!CN12 -> - | CM14: ='4บันทึกเวลาเรียน'!CO12 -> - | CN14: ='4บันทึกเวลาเรียน'!CP12 -> - | CO14: ='4บันทึกเวลาเรียน'!CQ12 -> - | CP14: ='4บันทึกเวลาเรียน'!CR12 -> - | CQ14: ='4บันทึกเวลาเรียน'!CS12 -> - | CR14: ='4บันทึกเวลาเรียน'!CT12 -> - | CS14: ='4บันทึกเวลาเรียน'!CU12 -> - | CT14: ='4บันทึกเวลาเรียน'!CV12 -> - | CU14: ='4บันทึกเวลาเรียน'!CW12 -> - | CV14: ='4บันทึกเวลาเรียน'!CX12 -> - | CW14: ='4บันทึกเวลาเรียน'!CY12 -> - | CX14: ='4บันทึกเวลาเรียน'!CZ12 -> - | CY14: ='4บันทึกเวลาเรียน'!DA12 -> - | CZ14: ='4บันทึกเวลาเรียน'!DB12 -> - | DB14: - | DC14: ='1ข้อมูลรายวิชา'!E9 -> 0 | DD14: ='1ข้อมูลรายวิชา'!F9 -> 0 | DE14: ='1ข้อมูลรายวิชา'!G9 -> 0 | DF14: ='1ข้อมูลรายวิชา'!H9 -> 0 | DG14: ='1ข้อมูลรายวิชา'!I9 -> 0 | DH14: ='1ข้อมูลรายวิชา'!J9 -> 0 | DI14: ='1ข้อมูลรายวิชา'!N9 -> 3 | DJ14: ='1ข้อมูลรายวิชา'!O9 -> 3
A15: 7 | B15: ='1ข้อมูลรายวิชา'!C10 -> 09448 | C15: ='1ข้อมูลรายวิชา'!D10 -> เด็กชายพงศกร แสงคำ | D15: ='1ข้อมูลรายวิชา'!#REF! ->  | E15: ='4บันทึกเวลาเรียน'!G13 -> - | F15: ='4บันทึกเวลาเรียน'!H13 -> - | G15: ='4บันทึกเวลาเรียน'!I13 -> - | H15: ='4บันทึกเวลาเรียน'!J13 -> - | I15: ='4บันทึกเวลาเรียน'!K13 -> - | J15: ='4บันทึกเวลาเรียน'!L13 -> - | K15: ='4บันทึกเวลาเรียน'!M13 -> - | L15: ='4บันทึกเวลาเรียน'!N13 -> - | M15: ='4บันทึกเวลาเรียน'!O13 -> - | N15: ='4บันทึกเวลาเรียน'!P13 -> - | O15: ='4บันทึกเวลาเรียน'!Q13 -> - | P15: ='4บันทึกเวลาเรียน'!R13 -> - | Q15: ='4บันทึกเวลาเรียน'!S13 -> - | R15: ='4บันทึกเวลาเรียน'!T13 -> - | S15: ='4บันทึกเวลาเรียน'!U13 -> - | T15: ='4บันทึกเวลาเรียน'!V13 -> - | U15: ='4บันทึกเวลาเรียน'!W13 -> - | V15: ='4บันทึกเวลาเรียน'!X13 -> - | W15: ='4บันทึกเวลาเรียน'!Y13 -> - | X15: ='4บันทึกเวลาเรียน'!Z13 -> - | Y15: ='4บันทึกเวลาเรียน'!AA13 -> - | Z15: ='4บันทึกเวลาเรียน'!AB13 -> - | AA15: ='4บันทึกเวลาเรียน'!AC13 -> - | AB15: ='4บันทึกเวลาเรียน'!AD13 -> - | AC15: ='4บันทึกเวลาเรียน'!AE13 -> - | AD15: ='4บันทึกเวลาเรียน'!AF13 -> - | AE15: ='4บันทึกเวลาเรียน'!AG13 -> - | AF15: ='4บันทึกเวลาเรียน'!AH13 -> - | AG15: ='4บันทึกเวลาเรียน'!AI13 -> - | AH15: ='4บันทึกเวลาเรียน'!AJ13 -> - | AI15: ='4บันทึกเวลาเรียน'!AK13 -> - | AJ15: ='4บันทึกเวลาเรียน'!AL13 -> - | AK15: ='4บันทึกเวลาเรียน'!AM13 -> - | AL15: ='4บันทึกเวลาเรียน'!AN13 -> - | AM15: ='4บันทึกเวลาเรียน'!AO13 -> - | AN15: ='4บันทึกเวลาเรียน'!AP13 -> - | AO15: ='4บันทึกเวลาเรียน'!AQ13 -> - | AP15: ='4บันทึกเวลาเรียน'!AR13 -> - | AQ15: ='4บันทึกเวลาเรียน'!AS13 -> - | AR15: ='4บันทึกเวลาเรียน'!AT13 -> - | AS15: ='4บันทึกเวลาเรียน'!AU13 -> - | AT15: ='4บันทึกเวลาเรียน'!AV13 -> - | AU15: ='4บันทึกเวลาเรียน'!AW13 -> - | AV15: ='4บันทึกเวลาเรียน'!AX13 -> - | AW15: ='4บันทึกเวลาเรียน'!AY13 -> - | AX15: ='4บันทึกเวลาเรียน'!AZ13 -> - | AY15: ='4บันทึกเวลาเรียน'!BA13 -> - | AZ15: ='4บันทึกเวลาเรียน'!BB13 -> - | BA15: ='4บันทึกเวลาเรียน'!BC13 -> - | BB15: ='4บันทึกเวลาเรียน'!BD13 -> - | BC15: ='4บันทึกเวลาเรียน'!BE13 -> - | BD15: ='4บันทึกเวลาเรียน'!BF13 -> - | BE15: ='4บันทึกเวลาเรียน'!BG13 -> - | BF15: ='4บันทึกเวลาเรียน'!BH13 -> - | BG15: ='4บันทึกเวลาเรียน'!BI13 -> - | BH15: ='4บันทึกเวลาเรียน'!BJ13 -> - | BI15: ='4บันทึกเวลาเรียน'!BK13 -> - | BJ15: ='4บันทึกเวลาเรียน'!BL13 -> - | BK15: ='4บันทึกเวลาเรียน'!BM13 -> - | BL15: ='4บันทึกเวลาเรียน'!BN13 -> - | BM15: ='4บันทึกเวลาเรียน'!BO13 -> - | BN15: ='4บันทึกเวลาเรียน'!BP13 -> - | BO15: ='4บันทึกเวลาเรียน'!BQ13 -> - | BP15: ='4บันทึกเวลาเรียน'!BR13 -> - | BQ15: ='4บันทึกเวลาเรียน'!BS13 -> - | BR15: ='4บันทึกเวลาเรียน'!BT13 -> - | BS15: ='4บันทึกเวลาเรียน'!BU13 -> - | BT15: ='4บันทึกเวลาเรียน'!BV13 -> - | BU15: ='4บันทึกเวลาเรียน'!BW13 -> - | BV15: ='4บันทึกเวลาเรียน'!BX13 -> - | BW15: ='4บันทึกเวลาเรียน'!BY13 -> - | BX15: ='4บันทึกเวลาเรียน'!BZ13 -> - | BY15: ='4บันทึกเวลาเรียน'!CA13 -> - | BZ15: ='4บันทึกเวลาเรียน'!CB13 -> - | CA15: ='4บันทึกเวลาเรียน'!CC13 -> - | CB15: ='4บันทึกเวลาเรียน'!CD13 -> - | CC15: ='4บันทึกเวลาเรียน'!CE13 -> - | CD15: ='4บันทึกเวลาเรียน'!CF13 -> - | CE15: ='4บันทึกเวลาเรียน'!CG13 -> - | CF15: ='4บันทึกเวลาเรียน'!CH13 -> - | CG15: ='4บันทึกเวลาเรียน'!CI13 -> - | CH15: ='4บันทึกเวลาเรียน'!CJ13 -> - | CI15: ='4บันทึกเวลาเรียน'!CK13 -> - | CJ15: ='4บันทึกเวลาเรียน'!CL13 -> - | CK15: ='4บันทึกเวลาเรียน'!CM13 -> - | CL15: ='4บันทึกเวลาเรียน'!CN13 -> - | CM15: ='4บันทึกเวลาเรียน'!CO13 -> - | CN15: ='4บันทึกเวลาเรียน'!CP13 -> - | CO15: ='4บันทึกเวลาเรียน'!CQ13 -> - | CP15: ='4บันทึกเวลาเรียน'!CR13 -> - | CQ15: ='4บันทึกเวลาเรียน'!CS13 -> - | CR15: ='4บันทึกเวลาเรียน'!CT13 -> - | CS15: ='4บันทึกเวลาเรียน'!CU13 -> - | CT15: ='4บันทึกเวลาเรียน'!CV13 -> - | CU15: ='4บันทึกเวลาเรียน'!CW13 -> - | CV15: ='4บันทึกเวลาเรียน'!CX13 -> - | CW15: ='4บันทึกเวลาเรียน'!CY13 -> - | CX15: ='4บันทึกเวลาเรียน'!CZ13 -> - | CY15: ='4บันทึกเวลาเรียน'!DA13 -> - | CZ15: ='4บันทึกเวลาเรียน'!DB13 -> - | DB15: - | DC15: ='1ข้อมูลรายวิชา'!E10 -> 0 | DD15: ='1ข้อมูลรายวิชา'!F10 -> 0 | DE15: ='1ข้อมูลรายวิชา'!G10 -> 0 | DF15: ='1ข้อมูลรายวิชา'!H10 -> 0 | DG15: ='1ข้อมูลรายวิชา'!I10 -> 0 | DH15: ='1ข้อมูลรายวิชา'!J10 -> 0 | DI15: ='1ข้อมูลรายวิชา'!N10 -> 3 | DJ15: ='1ข้อมูลรายวิชา'!O10 -> 3
A16: 8 | B16: ='1ข้อมูลรายวิชา'!C11 -> 09450 | C16: ='1ข้อมูลรายวิชา'!D11 -> เด็กชายพิชัยวัฒน์ จำวัน | D16: ='1ข้อมูลรายวิชา'!#REF! ->  | E16: ='4บันทึกเวลาเรียน'!G14 -> - | F16: ='4บันทึกเวลาเรียน'!H14 -> - | G16: ='4บันทึกเวลาเรียน'!I14 -> - | H16: ='4บันทึกเวลาเรียน'!J14 -> - | I16: ='4บันทึกเวลาเรียน'!K14 -> - | J16: ='4บันทึกเวลาเรียน'!L14 -> - | K16: ='4บันทึกเวลาเรียน'!M14 -> - | L16: ='4บันทึกเวลาเรียน'!N14 -> - | M16: ='4บันทึกเวลาเรียน'!O14 -> - | N16: ='4บันทึกเวลาเรียน'!P14 -> - | O16: ='4บันทึกเวลาเรียน'!Q14 -> - | P16: ='4บันทึกเวลาเรียน'!R14 -> - | Q16: ='4บันทึกเวลาเรียน'!S14 -> - | R16: ='4บันทึกเวลาเรียน'!T14 -> - | S16: ='4บันทึกเวลาเรียน'!U14 -> - | T16: ='4บันทึกเวลาเรียน'!V14 -> - | U16: ='4บันทึกเวลาเรียน'!W14 -> - | V16: ='4บันทึกเวลาเรียน'!X14 -> - | W16: ='4บันทึกเวลาเรียน'!Y14 -> - | X16: ='4บันทึกเวลาเรียน'!Z14 -> - | Y16: ='4บันทึกเวลาเรียน'!AA14 -> - | Z16: ='4บันทึกเวลาเรียน'!AB14 -> - | AA16: ='4บันทึกเวลาเรียน'!AC14 -> - | AB16: ='4บันทึกเวลาเรียน'!AD14 -> - | AC16: ='4บันทึกเวลาเรียน'!AE14 -> - | AD16: ='4บันทึกเวลาเรียน'!AF14 -> - | AE16: ='4บันทึกเวลาเรียน'!AG14 -> - | AF16: ='4บันทึกเวลาเรียน'!AH14 -> - | AG16: ='4บันทึกเวลาเรียน'!AI14 -> - | AH16: ='4บันทึกเวลาเรียน'!AJ14 -> - | AI16: ='4บันทึกเวลาเรียน'!AK14 -> - | AJ16: ='4บันทึกเวลาเรียน'!AL14 -> - | AK16: ='4บันทึกเวลาเรียน'!AM14 -> - | AL16: ='4บันทึกเวลาเรียน'!AN14 -> - | AM16: ='4บันทึกเวลาเรียน'!AO14 -> - | AN16: ='4บันทึกเวลาเรียน'!AP14 -> - | AO16: ='4บันทึกเวลาเรียน'!AQ14 -> - | AP16: ='4บันทึกเวลาเรียน'!AR14 -> - | AQ16: ='4บันทึกเวลาเรียน'!AS14 -> - | AR16: ='4บันทึกเวลาเรียน'!AT14 -> - | AS16: ='4บันทึกเวลาเรียน'!AU14 -> - | AT16: ='4บันทึกเวลาเรียน'!AV14 -> - | AU16: ='4บันทึกเวลาเรียน'!AW14 -> - | AV16: ='4บันทึกเวลาเรียน'!AX14 -> - | AW16: ='4บันทึกเวลาเรียน'!AY14 -> - | AX16: ='4บันทึกเวลาเรียน'!AZ14 -> - | AY16: ='4บันทึกเวลาเรียน'!BA14 -> - | AZ16: ='4บันทึกเวลาเรียน'!BB14 -> - | BA16: ='4บันทึกเวลาเรียน'!BC14 -> - | BB16: ='4บันทึกเวลาเรียน'!BD14 -> - | BC16: ='4บันทึกเวลาเรียน'!BE14 -> - | BD16: ='4บันทึกเวลาเรียน'!BF14 -> - | BE16: ='4บันทึกเวลาเรียน'!BG14 -> - | BF16: ='4บันทึกเวลาเรียน'!BH14 -> - | BG16: ='4บันทึกเวลาเรียน'!BI14 -> - | BH16: ='4บันทึกเวลาเรียน'!BJ14 -> - | BI16: ='4บันทึกเวลาเรียน'!BK14 -> - | BJ16: ='4บันทึกเวลาเรียน'!BL14 -> - | BK16: ='4บันทึกเวลาเรียน'!BM14 -> - | BL16: ='4บันทึกเวลาเรียน'!BN14 -> - | BM16: ='4บันทึกเวลาเรียน'!BO14 -> - | BN16: ='4บันทึกเวลาเรียน'!BP14 -> - | BO16: ='4บันทึกเวลาเรียน'!BQ14 -> - | BP16: ='4บันทึกเวลาเรียน'!BR14 -> - | BQ16: ='4บันทึกเวลาเรียน'!BS14 -> - | BR16: ='4บันทึกเวลาเรียน'!BT14 -> - | BS16: ='4บันทึกเวลาเรียน'!BU14 -> - | BT16: ='4บันทึกเวลาเรียน'!BV14 -> - | BU16: ='4บันทึกเวลาเรียน'!BW14 -> - | BV16: ='4บันทึกเวลาเรียน'!BX14 -> - | BW16: ='4บันทึกเวลาเรียน'!BY14 -> - | BX16: ='4บันทึกเวลาเรียน'!BZ14 -> - | BY16: ='4บันทึกเวลาเรียน'!CA14 -> - | BZ16: ='4บันทึกเวลาเรียน'!CB14 -> - | CA16: ='4บันทึกเวลาเรียน'!CC14 -> - | CB16: ='4บันทึกเวลาเรียน'!CD14 -> - | CC16: ='4บันทึกเวลาเรียน'!CE14 -> - | CD16: ='4บันทึกเวลาเรียน'!CF14 -> - | CE16: ='4บันทึกเวลาเรียน'!CG14 -> - | CF16: ='4บันทึกเวลาเรียน'!CH14 -> - | CG16: ='4บันทึกเวลาเรียน'!CI14 -> - | CH16: ='4บันทึกเวลาเรียน'!CJ14 -> - | CI16: ='4บันทึกเวลาเรียน'!CK14 -> - | CJ16: ='4บันทึกเวลาเรียน'!CL14 -> - | CK16: ='4บันทึกเวลาเรียน'!CM14 -> - | CL16: ='4บันทึกเวลาเรียน'!CN14 -> - | CM16: ='4บันทึกเวลาเรียน'!CO14 -> - | CN16: ='4บันทึกเวลาเรียน'!CP14 -> - | CO16: ='4บันทึกเวลาเรียน'!CQ14 -> - | CP16: ='4บันทึกเวลาเรียน'!CR14 -> - | CQ16: ='4บันทึกเวลาเรียน'!CS14 -> - | CR16: ='4บันทึกเวลาเรียน'!CT14 -> - | CS16: ='4บันทึกเวลาเรียน'!CU14 -> - | CT16: ='4บันทึกเวลาเรียน'!CV14 -> - | CU16: ='4บันทึกเวลาเรียน'!CW14 -> - | CV16: ='4บันทึกเวลาเรียน'!CX14 -> - | CW16: ='4บันทึกเวลาเรียน'!CY14 -> - | CX16: ='4บันทึกเวลาเรียน'!CZ14 -> - | CY16: ='4บันทึกเวลาเรียน'!DA14 -> - | CZ16: ='4บันทึกเวลาเรียน'!DB14 -> - | DB16: - | DC16: ='1ข้อมูลรายวิชา'!E11 -> 0 | DD16: ='1ข้อมูลรายวิชา'!F11 -> 0 | DE16: ='1ข้อมูลรายวิชา'!G11 -> 0 | DF16: ='1ข้อมูลรายวิชา'!H11 -> 0 | DG16: ='1ข้อมูลรายวิชา'!I11 -> 0 | DH16: ='1ข้อมูลรายวิชา'!J11 -> 0 | DI16: ='1ข้อมูลรายวิชา'!N11 -> 3 | DJ16: ='1ข้อมูลรายวิชา'!O11 -> 3
A17: 9 | B17: ='1ข้อมูลรายวิชา'!C12 -> 09451 | C17: ='1ข้อมูลรายวิชา'!D12 -> เด็กชายภาคิน ผ่านวงศ์ | D17: ='1ข้อมูลรายวิชา'!#REF! ->  | E17: ='4บันทึกเวลาเรียน'!G15 -> - | F17: ='4บันทึกเวลาเรียน'!H15 -> - | G17: ='4บันทึกเวลาเรียน'!I15 -> - | H17: ='4บันทึกเวลาเรียน'!J15 -> - | I17: ='4บันทึกเวลาเรียน'!K15 -> - | J17: ='4บันทึกเวลาเรียน'!L15 -> - | K17: ='4บันทึกเวลาเรียน'!M15 -> - | L17: ='4บันทึกเวลาเรียน'!N15 -> - | M17: ='4บันทึกเวลาเรียน'!O15 -> - | N17: ='4บันทึกเวลาเรียน'!P15 -> - | O17: ='4บันทึกเวลาเรียน'!Q15 -> - | P17: ='4บันทึกเวลาเรียน'!R15 -> - | Q17: ='4บันทึกเวลาเรียน'!S15 -> - | R17: ='4บันทึกเวลาเรียน'!T15 -> - | S17: ='4บันทึกเวลาเรียน'!U15 -> - | T17: ='4บันทึกเวลาเรียน'!V15 -> - | U17: ='4บันทึกเวลาเรียน'!W15 -> - | V17: ='4บันทึกเวลาเรียน'!X15 -> - | W17: ='4บันทึกเวลาเรียน'!Y15 -> - | X17: ='4บันทึกเวลาเรียน'!Z15 -> - | Y17: ='4บันทึกเวลาเรียน'!AA15 -> - | Z17: ='4บันทึกเวลาเรียน'!AB15 -> - | AA17: ='4บันทึกเวลาเรียน'!AC15 -> - | AB17: ='4บันทึกเวลาเรียน'!AD15 -> - | AC17: ='4บันทึกเวลาเรียน'!AE15 -> - | AD17: ='4บันทึกเวลาเรียน'!AF15 -> - | AE17: ='4บันทึกเวลาเรียน'!AG15 -> - | AF17: ='4บันทึกเวลาเรียน'!AH15 -> - | AG17: ='4บันทึกเวลาเรียน'!AI15 -> - | AH17: ='4บันทึกเวลาเรียน'!AJ15 -> - | AI17: ='4บันทึกเวลาเรียน'!AK15 -> - | AJ17: ='4บันทึกเวลาเรียน'!AL15 -> - | AK17: ='4บันทึกเวลาเรียน'!AM15 -> - | AL17: ='4บันทึกเวลาเรียน'!AN15 -> - | AM17: ='4บันทึกเวลาเรียน'!AO15 -> - | AN17: ='4บันทึกเวลาเรียน'!AP15 -> - | AO17: ='4บันทึกเวลาเรียน'!AQ15 -> - | AP17: ='4บันทึกเวลาเรียน'!AR15 -> - | AQ17: ='4บันทึกเวลาเรียน'!AS15 -> - | AR17: ='4บันทึกเวลาเรียน'!AT15 -> - | AS17: ='4บันทึกเวลาเรียน'!AU15 -> - | AT17: ='4บันทึกเวลาเรียน'!AV15 -> - | AU17: ='4บันทึกเวลาเรียน'!AW15 -> - | AV17: ='4บันทึกเวลาเรียน'!AX15 -> - | AW17: ='4บันทึกเวลาเรียน'!AY15 -> - | AX17: ='4บันทึกเวลาเรียน'!AZ15 -> - | AY17: ='4บันทึกเวลาเรียน'!BA15 -> - | AZ17: ='4บันทึกเวลาเรียน'!BB15 -> - | BA17: ='4บันทึกเวลาเรียน'!BC15 -> - | BB17: ='4บันทึกเวลาเรียน'!BD15 -> - | BC17: ='4บันทึกเวลาเรียน'!BE15 -> - | BD17: ='4บันทึกเวลาเรียน'!BF15 -> - | BE17: ='4บันทึกเวลาเรียน'!BG15 -> - | BF17: ='4บันทึกเวลาเรียน'!BH15 -> - | BG17: ='4บันทึกเวลาเรียน'!BI15 -> - | BH17: ='4บันทึกเวลาเรียน'!BJ15 -> - | BI17: ='4บันทึกเวลาเรียน'!BK15 -> - | BJ17: ='4บันทึกเวลาเรียน'!BL15 -> - | BK17: ='4บันทึกเวลาเรียน'!BM15 -> - | BL17: ='4บันทึกเวลาเรียน'!BN15 -> - | BM17: ='4บันทึกเวลาเรียน'!BO15 -> - | BN17: ='4บันทึกเวลาเรียน'!BP15 -> - | BO17: ='4บันทึกเวลาเรียน'!BQ15 -> - | BP17: ='4บันทึกเวลาเรียน'!BR15 -> - | BQ17: ='4บันทึกเวลาเรียน'!BS15 -> - | BR17: ='4บันทึกเวลาเรียน'!BT15 -> - | BS17: ='4บันทึกเวลาเรียน'!BU15 -> - | BT17: ='4บันทึกเวลาเรียน'!BV15 -> - | BU17: ='4บันทึกเวลาเรียน'!BW15 -> - | BV17: ='4บันทึกเวลาเรียน'!BX15 -> - | BW17: ='4บันทึกเวลาเรียน'!BY15 -> - | BX17: ='4บันทึกเวลาเรียน'!BZ15 -> - | BY17: ='4บันทึกเวลาเรียน'!CA15 -> - | BZ17: ='4บันทึกเวลาเรียน'!CB15 -> - | CA17: ='4บันทึกเวลาเรียน'!CC15 -> - | CB17: ='4บันทึกเวลาเรียน'!CD15 -> - | CC17: ='4บันทึกเวลาเรียน'!CE15 -> - | CD17: ='4บันทึกเวลาเรียน'!CF15 -> - | CE17: ='4บันทึกเวลาเรียน'!CG15 -> - | CF17: ='4บันทึกเวลาเรียน'!CH15 -> - | CG17: ='4บันทึกเวลาเรียน'!CI15 -> - | CH17: ='4บันทึกเวลาเรียน'!CJ15 -> - | CI17: ='4บันทึกเวลาเรียน'!CK15 -> - | CJ17: ='4บันทึกเวลาเรียน'!CL15 -> - | CK17: ='4บันทึกเวลาเรียน'!CM15 -> - | CL17: ='4บันทึกเวลาเรียน'!CN15 -> - | CM17: ='4บันทึกเวลาเรียน'!CO15 -> - | CN17: ='4บันทึกเวลาเรียน'!CP15 -> - | CO17: ='4บันทึกเวลาเรียน'!CQ15 -> - | CP17: ='4บันทึกเวลาเรียน'!CR15 -> - | CQ17: ='4บันทึกเวลาเรียน'!CS15 -> - | CR17: ='4บันทึกเวลาเรียน'!CT15 -> - | CS17: ='4บันทึกเวลาเรียน'!CU15 -> - | CT17: ='4บันทึกเวลาเรียน'!CV15 -> - | CU17: ='4บันทึกเวลาเรียน'!CW15 -> - | CV17: ='4บันทึกเวลาเรียน'!CX15 -> - | CW17: ='4บันทึกเวลาเรียน'!CY15 -> - | CX17: ='4บันทึกเวลาเรียน'!CZ15 -> - | CY17: ='4บันทึกเวลาเรียน'!DA15 -> - | CZ17: ='4บันทึกเวลาเรียน'!DB15 -> - | DB17: - | DC17: ='1ข้อมูลรายวิชา'!E12 -> 0 | DD17: ='1ข้อมูลรายวิชา'!F12 -> 0 | DE17: ='1ข้อมูลรายวิชา'!G12 -> 0 | DF17: ='1ข้อมูลรายวิชา'!H12 -> 0 | DG17: ='1ข้อมูลรายวิชา'!I12 -> 0 | DH17: ='1ข้อมูลรายวิชา'!J12 -> 0 | DI17: ='1ข้อมูลรายวิชา'!N12 -> 3 | DJ17: ='1ข้อมูลรายวิชา'!O12 -> 3
A18: 10 | B18: ='1ข้อมูลรายวิชา'!C13 -> 09452 | C18: ='1ข้อมูลรายวิชา'!D13 -> เด็กชายภูธารทอง สีพันดร | D18: ='1ข้อมูลรายวิชา'!#REF! ->  | E18: ='4บันทึกเวลาเรียน'!G16 -> - | F18: ='4บันทึกเวลาเรียน'!H16 -> - | G18: ='4บันทึกเวลาเรียน'!I16 -> - | H18: ='4บันทึกเวลาเรียน'!J16 -> - | I18: ='4บันทึกเวลาเรียน'!K16 -> - | J18: ='4บันทึกเวลาเรียน'!L16 -> - | K18: ='4บันทึกเวลาเรียน'!M16 -> - | L18: ='4บันทึกเวลาเรียน'!N16 -> - | M18: ='4บันทึกเวลาเรียน'!O16 -> - | N18: ='4บันทึกเวลาเรียน'!P16 -> - | O18: ='4บันทึกเวลาเรียน'!Q16 -> - | P18: ='4บันทึกเวลาเรียน'!R16 -> - | Q18: ='4บันทึกเวลาเรียน'!S16 -> - | R18: ='4บันทึกเวลาเรียน'!T16 -> - | S18: ='4บันทึกเวลาเรียน'!U16 -> - | T18: ='4บันทึกเวลาเรียน'!V16 -> - | U18: ='4บันทึกเวลาเรียน'!W16 -> - | V18: ='4บันทึกเวลาเรียน'!X16 -> - | W18: ='4บันทึกเวลาเรียน'!Y16 -> - | X18: ='4บันทึกเวลาเรียน'!Z16 -> - | Y18: ='4บันทึกเวลาเรียน'!AA16 -> - | Z18: ='4บันทึกเวลาเรียน'!AB16 -> - | AA18: ='4บันทึกเวลาเรียน'!AC16 -> - | AB18: ='4บันทึกเวลาเรียน'!AD16 -> - | AC18: ='4บันทึกเวลาเรียน'!AE16 -> - | AD18: ='4บันทึกเวลาเรียน'!AF16 -> - | AE18: ='4บันทึกเวลาเรียน'!AG16 -> - | AF18: ='4บันทึกเวลาเรียน'!AH16 -> - | AG18: ='4บันทึกเวลาเรียน'!AI16 -> - | AH18: ='4บันทึกเวลาเรียน'!AJ16 -> - | AI18: ='4บันทึกเวลาเรียน'!AK16 -> - | AJ18: ='4บันทึกเวลาเรียน'!AL16 -> - | AK18: ='4บันทึกเวลาเรียน'!AM16 -> - | AL18: ='4บันทึกเวลาเรียน'!AN16 -> - | AM18: ='4บันทึกเวลาเรียน'!AO16 -> - | AN18: ='4บันทึกเวลาเรียน'!AP16 -> - | AO18: ='4บันทึกเวลาเรียน'!AQ16 -> - | AP18: ='4บันทึกเวลาเรียน'!AR16 -> - | AQ18: ='4บันทึกเวลาเรียน'!AS16 -> - | AR18: ='4บันทึกเวลาเรียน'!AT16 -> - | AS18: ='4บันทึกเวลาเรียน'!AU16 -> - | AT18: ='4บันทึกเวลาเรียน'!AV16 -> - | AU18: ='4บันทึกเวลาเรียน'!AW16 -> - | AV18: ='4บันทึกเวลาเรียน'!AX16 -> - | AW18: ='4บันทึกเวลาเรียน'!AY16 -> - | AX18: ='4บันทึกเวลาเรียน'!AZ16 -> - | AY18: ='4บันทึกเวลาเรียน'!BA16 -> - | AZ18: ='4บันทึกเวลาเรียน'!BB16 -> - | BA18: ='4บันทึกเวลาเรียน'!BC16 -> - | BB18: ='4บันทึกเวลาเรียน'!BD16 -> - | BC18: ='4บันทึกเวลาเรียน'!BE16 -> - | BD18: ='4บันทึกเวลาเรียน'!BF16 -> - | BE18: ='4บันทึกเวลาเรียน'!BG16 -> - | BF18: ='4บันทึกเวลาเรียน'!BH16 -> - | BG18: ='4บันทึกเวลาเรียน'!BI16 -> - | BH18: ='4บันทึกเวลาเรียน'!BJ16 -> - | BI18: ='4บันทึกเวลาเรียน'!BK16 -> - | BJ18: ='4บันทึกเวลาเรียน'!BL16 -> - | BK18: ='4บันทึกเวลาเรียน'!BM16 -> - | BL18: ='4บันทึกเวลาเรียน'!BN16 -> - | BM18: ='4บันทึกเวลาเรียน'!BO16 -> - | BN18: ='4บันทึกเวลาเรียน'!BP16 -> - | BO18: ='4บันทึกเวลาเรียน'!BQ16 -> - | BP18: ='4บันทึกเวลาเรียน'!BR16 -> - | BQ18: ='4บันทึกเวลาเรียน'!BS16 -> - | BR18: ='4บันทึกเวลาเรียน'!BT16 -> - | BS18: ='4บันทึกเวลาเรียน'!BU16 -> - | BT18: ='4บันทึกเวลาเรียน'!BV16 -> - | BU18: ='4บันทึกเวลาเรียน'!BW16 -> - | BV18: ='4บันทึกเวลาเรียน'!BX16 -> - | BW18: ='4บันทึกเวลาเรียน'!BY16 -> - | BX18: ='4บันทึกเวลาเรียน'!BZ16 -> - | BY18: ='4บันทึกเวลาเรียน'!CA16 -> - | BZ18: ='4บันทึกเวลาเรียน'!CB16 -> - | CA18: ='4บันทึกเวลาเรียน'!CC16 -> - | CB18: ='4บันทึกเวลาเรียน'!CD16 -> - | CC18: ='4บันทึกเวลาเรียน'!CE16 -> - | CD18: ='4บันทึกเวลาเรียน'!CF16 -> - | CE18: ='4บันทึกเวลาเรียน'!CG16 -> - | CF18: ='4บันทึกเวลาเรียน'!CH16 -> - | CG18: ='4บันทึกเวลาเรียน'!CI16 -> - | CH18: ='4บันทึกเวลาเรียน'!CJ16 -> - | CI18: ='4บันทึกเวลาเรียน'!CK16 -> - | CJ18: ='4บันทึกเวลาเรียน'!CL16 -> - | CK18: ='4บันทึกเวลาเรียน'!CM16 -> - | CL18: ='4บันทึกเวลาเรียน'!CN16 -> - | CM18: ='4บันทึกเวลาเรียน'!CO16 -> - | CN18: ='4บันทึกเวลาเรียน'!CP16 -> - | CO18: ='4บันทึกเวลาเรียน'!CQ16 -> - | CP18: ='4บันทึกเวลาเรียน'!CR16 -> - | CQ18: ='4บันทึกเวลาเรียน'!CS16 -> - | CR18: ='4บันทึกเวลาเรียน'!CT16 -> - | CS18: ='4บันทึกเวลาเรียน'!CU16 -> - | CT18: ='4บันทึกเวลาเรียน'!CV16 -> - | CU18: ='4บันทึกเวลาเรียน'!CW16 -> - | CV18: ='4บันทึกเวลาเรียน'!CX16 -> - | CW18: ='4บันทึกเวลาเรียน'!CY16 -> - | CX18: ='4บันทึกเวลาเรียน'!CZ16 -> - | CY18: ='4บันทึกเวลาเรียน'!DA16 -> - | CZ18: ='4บันทึกเวลาเรียน'!DB16 -> - | DB18: - | DC18: ='1ข้อมูลรายวิชา'!E13 -> 0 | DD18: ='1ข้อมูลรายวิชา'!F13 -> 0 | DE18: ='1ข้อมูลรายวิชา'!G13 -> 0 | DF18: ='1ข้อมูลรายวิชา'!H13 -> 0 | DG18: ='1ข้อมูลรายวิชา'!I13 -> 0 | DH18: ='1ข้อมูลรายวิชา'!J13 -> 0 | DI18: ='1ข้อมูลรายวิชา'!N13 -> 3 | DJ18: ='1ข้อมูลรายวิชา'!O13 -> 3
A19: 11 | B19: ='1ข้อมูลรายวิชา'!C14 -> 09453 | C19: ='1ข้อมูลรายวิชา'!D14 -> เด็กชายเมคา นามหานวล | D19: ='1ข้อมูลรายวิชา'!#REF! ->  | E19: ='4บันทึกเวลาเรียน'!G17 -> - | F19: ='4บันทึกเวลาเรียน'!H17 -> - | G19: ='4บันทึกเวลาเรียน'!I17 -> - | H19: ='4บันทึกเวลาเรียน'!J17 -> - | I19: ='4บันทึกเวลาเรียน'!K17 -> - | J19: ='4บันทึกเวลาเรียน'!L17 -> - | K19: ='4บันทึกเวลาเรียน'!M17 -> - | L19: ='4บันทึกเวลาเรียน'!N17 -> - | M19: ='4บันทึกเวลาเรียน'!O17 -> - | N19: ='4บันทึกเวลาเรียน'!P17 -> - | O19: ='4บันทึกเวลาเรียน'!Q17 -> - | P19: ='4บันทึกเวลาเรียน'!R17 -> - | Q19: ='4บันทึกเวลาเรียน'!S17 -> - | R19: ='4บันทึกเวลาเรียน'!T17 -> - | S19: ='4บันทึกเวลาเรียน'!U17 -> - | T19: ='4บันทึกเวลาเรียน'!V17 -> - | U19: ='4บันทึกเวลาเรียน'!W17 -> - | V19: ='4บันทึกเวลาเรียน'!X17 -> - | W19: ='4บันทึกเวลาเรียน'!Y17 -> - | X19: ='4บันทึกเวลาเรียน'!Z17 -> - | Y19: ='4บันทึกเวลาเรียน'!AA17 -> - | Z19: ='4บันทึกเวลาเรียน'!AB17 -> - | AA19: ='4บันทึกเวลาเรียน'!AC17 -> - | AB19: ='4บันทึกเวลาเรียน'!AD17 -> - | AC19: ='4บันทึกเวลาเรียน'!AE17 -> - | AD19: ='4บันทึกเวลาเรียน'!AF17 -> - | AE19: ='4บันทึกเวลาเรียน'!AG17 -> - | AF19: ='4บันทึกเวลาเรียน'!AH17 -> - | AG19: ='4บันทึกเวลาเรียน'!AI17 -> - | AH19: ='4บันทึกเวลาเรียน'!AJ17 -> - | AI19: ='4บันทึกเวลาเรียน'!AK17 -> - | AJ19: ='4บันทึกเวลาเรียน'!AL17 -> - | AK19: ='4บันทึกเวลาเรียน'!AM17 -> - | AL19: ='4บันทึกเวลาเรียน'!AN17 -> - | AM19: ='4บันทึกเวลาเรียน'!AO17 -> - | AN19: ='4บันทึกเวลาเรียน'!AP17 -> - | AO19: ='4บันทึกเวลาเรียน'!AQ17 -> - | AP19: ='4บันทึกเวลาเรียน'!AR17 -> - | AQ19: ='4บันทึกเวลาเรียน'!AS17 -> - | AR19: ='4บันทึกเวลาเรียน'!AT17 -> - | AS19: ='4บันทึกเวลาเรียน'!AU17 -> - | AT19: ='4บันทึกเวลาเรียน'!AV17 -> - | AU19: ='4บันทึกเวลาเรียน'!AW17 -> - | AV19: ='4บันทึกเวลาเรียน'!AX17 -> - | AW19: ='4บันทึกเวลาเรียน'!AY17 -> - | AX19: ='4บันทึกเวลาเรียน'!AZ17 -> - | AY19: ='4บันทึกเวลาเรียน'!BA17 -> - | AZ19: ='4บันทึกเวลาเรียน'!BB17 -> - | BA19: ='4บันทึกเวลาเรียน'!BC17 -> - | BB19: ='4บันทึกเวลาเรียน'!BD17 -> - | BC19: ='4บันทึกเวลาเรียน'!BE17 -> - | BD19: ='4บันทึกเวลาเรียน'!BF17 -> - | BE19: ='4บันทึกเวลาเรียน'!BG17 -> - | BF19: ='4บันทึกเวลาเรียน'!BH17 -> - | BG19: ='4บันทึกเวลาเรียน'!BI17 -> - | BH19: ='4บันทึกเวลาเรียน'!BJ17 -> - | BI19: ='4บันทึกเวลาเรียน'!BK17 -> - | BJ19: ='4บันทึกเวลาเรียน'!BL17 -> - | BK19: ='4บันทึกเวลาเรียน'!BM17 -> - | BL19: ='4บันทึกเวลาเรียน'!BN17 -> - | BM19: ='4บันทึกเวลาเรียน'!BO17 -> - | BN19: ='4บันทึกเวลาเรียน'!BP17 -> - | BO19: ='4บันทึกเวลาเรียน'!BQ17 -> - | BP19: ='4บันทึกเวลาเรียน'!BR17 -> - | BQ19: ='4บันทึกเวลาเรียน'!BS17 -> - | BR19: ='4บันทึกเวลาเรียน'!BT17 -> - | BS19: ='4บันทึกเวลาเรียน'!BU17 -> - | BT19: ='4บันทึกเวลาเรียน'!BV17 -> - | BU19: ='4บันทึกเวลาเรียน'!BW17 -> - | BV19: ='4บันทึกเวลาเรียน'!BX17 -> - | BW19: ='4บันทึกเวลาเรียน'!BY17 -> - | BX19: ='4บันทึกเวลาเรียน'!BZ17 -> - | BY19: ='4บันทึกเวลาเรียน'!CA17 -> - | BZ19: ='4บันทึกเวลาเรียน'!CB17 -> - | CA19: ='4บันทึกเวลาเรียน'!CC17 -> - | CB19: ='4บันทึกเวลาเรียน'!CD17 -> - | CC19: ='4บันทึกเวลาเรียน'!CE17 -> - | CD19: ='4บันทึกเวลาเรียน'!CF17 -> - | CE19: ='4บันทึกเวลาเรียน'!CG17 -> - | CF19: ='4บันทึกเวลาเรียน'!CH17 -> - | CG19: ='4บันทึกเวลาเรียน'!CI17 -> - | CH19: ='4บันทึกเวลาเรียน'!CJ17 -> - | CI19: ='4บันทึกเวลาเรียน'!CK17 -> - | CJ19: ='4บันทึกเวลาเรียน'!CL17 -> - | CK19: ='4บันทึกเวลาเรียน'!CM17 -> - | CL19: ='4บันทึกเวลาเรียน'!CN17 -> - | CM19: ='4บันทึกเวลาเรียน'!CO17 -> - | CN19: ='4บันทึกเวลาเรียน'!CP17 -> - | CO19: ='4บันทึกเวลาเรียน'!CQ17 -> - | CP19: ='4บันทึกเวลาเรียน'!CR17 -> - | CQ19: ='4บันทึกเวลาเรียน'!CS17 -> - | CR19: ='4บันทึกเวลาเรียน'!CT17 -> - | CS19: ='4บันทึกเวลาเรียน'!CU17 -> - | CT19: ='4บันทึกเวลาเรียน'!CV17 -> - | CU19: ='4บันทึกเวลาเรียน'!CW17 -> - | CV19: ='4บันทึกเวลาเรียน'!CX17 -> - | CW19: ='4บันทึกเวลาเรียน'!CY17 -> - | CX19: ='4บันทึกเวลาเรียน'!CZ17 -> - | CY19: ='4บันทึกเวลาเรียน'!DA17 -> - | CZ19: ='4บันทึกเวลาเรียน'!DB17 -> - | DB19: - | DC19: ='1ข้อมูลรายวิชา'!E14 -> 0 | DD19: ='1ข้อมูลรายวิชา'!F14 -> 0 | DE19: ='1ข้อมูลรายวิชา'!G14 -> 0 | DF19: ='1ข้อมูลรายวิชา'!H14 -> 0 | DG19: ='1ข้อมูลรายวิชา'!I14 -> 0 | DH19: ='1ข้อมูลรายวิชา'!J14 -> 0 | DI19: ='1ข้อมูลรายวิชา'!N14 -> 3 | DJ19: ='1ข้อมูลรายวิชา'!O14 -> 3
A20: 12 | B20: ='1ข้อมูลรายวิชา'!C15 -> 09454 | C20: ='1ข้อมูลรายวิชา'!D15 -> เด็กชายเมฆินทร์ แสนศาลา | D20: ='1ข้อมูลรายวิชา'!#REF! ->  | E20: ='4บันทึกเวลาเรียน'!G18 -> - | F20: ='4บันทึกเวลาเรียน'!H18 -> - | G20: ='4บันทึกเวลาเรียน'!I18 -> - | H20: ='4บันทึกเวลาเรียน'!J18 -> - | I20: ='4บันทึกเวลาเรียน'!K18 -> - | J20: ='4บันทึกเวลาเรียน'!L18 -> - | K20: ='4บันทึกเวลาเรียน'!M18 -> - | L20: ='4บันทึกเวลาเรียน'!N18 -> - | M20: ='4บันทึกเวลาเรียน'!O18 -> - | N20: ='4บันทึกเวลาเรียน'!P18 -> - | O20: ='4บันทึกเวลาเรียน'!Q18 -> - | P20: ='4บันทึกเวลาเรียน'!R18 -> - | Q20: ='4บันทึกเวลาเรียน'!S18 -> - | R20: ='4บันทึกเวลาเรียน'!T18 -> - | S20: ='4บันทึกเวลาเรียน'!U18 -> - | T20: ='4บันทึกเวลาเรียน'!V18 -> - | U20: ='4บันทึกเวลาเรียน'!W18 -> - | V20: ='4บันทึกเวลาเรียน'!X18 -> - | W20: ='4บันทึกเวลาเรียน'!Y18 -> - | X20: ='4บันทึกเวลาเรียน'!Z18 -> - | Y20: ='4บันทึกเวลาเรียน'!AA18 -> - | Z20: ='4บันทึกเวลาเรียน'!AB18 -> - | AA20: ='4บันทึกเวลาเรียน'!AC18 -> - | AB20: ='4บันทึกเวลาเรียน'!AD18 -> - | AC20: ='4บันทึกเวลาเรียน'!AE18 -> - | AD20: ='4บันทึกเวลาเรียน'!AF18 -> - | AE20: ='4บันทึกเวลาเรียน'!AG18 -> - | AF20: ='4บันทึกเวลาเรียน'!AH18 -> - | AG20: ='4บันทึกเวลาเรียน'!AI18 -> - | AH20: ='4บันทึกเวลาเรียน'!AJ18 -> - | AI20: ='4บันทึกเวลาเรียน'!AK18 -> - | AJ20: ='4บันทึกเวลาเรียน'!AL18 -> - | AK20: ='4บันทึกเวลาเรียน'!AM18 -> - | AL20: ='4บันทึกเวลาเรียน'!AN18 -> - | AM20: ='4บันทึกเวลาเรียน'!AO18 -> - | AN20: ='4บันทึกเวลาเรียน'!AP18 -> - | AO20: ='4บันทึกเวลาเรียน'!AQ18 -> - | AP20: ='4บันทึกเวลาเรียน'!AR18 -> - | AQ20: ='4บันทึกเวลาเรียน'!AS18 -> - | AR20: ='4บันทึกเวลาเรียน'!AT18 -> - | AS20: ='4บันทึกเวลาเรียน'!AU18 -> - | AT20: ='4บันทึกเวลาเรียน'!AV18 -> - | AU20: ='4บันทึกเวลาเรียน'!AW18 -> - | AV20: ='4บันทึกเวลาเรียน'!AX18 -> - | AW20: ='4บันทึกเวลาเรียน'!AY18 -> - | AX20: ='4บันทึกเวลาเรียน'!AZ18 -> - | AY20: ='4บันทึกเวลาเรียน'!BA18 -> - | AZ20: ='4บันทึกเวลาเรียน'!BB18 -> - | BA20: ='4บันทึกเวลาเรียน'!BC18 -> - | BB20: ='4บันทึกเวลาเรียน'!BD18 -> - | BC20: ='4บันทึกเวลาเรียน'!BE18 -> - | BD20: ='4บันทึกเวลาเรียน'!BF18 -> - | BE20: ='4บันทึกเวลาเรียน'!BG18 -> - | BF20: ='4บันทึกเวลาเรียน'!BH18 -> - | BG20: ='4บันทึกเวลาเรียน'!BI18 -> - | BH20: ='4บันทึกเวลาเรียน'!BJ18 -> - | BI20: ='4บันทึกเวลาเรียน'!BK18 -> - | BJ20: ='4บันทึกเวลาเรียน'!BL18 -> - | BK20: ='4บันทึกเวลาเรียน'!BM18 -> - | BL20: ='4บันทึกเวลาเรียน'!BN18 -> - | BM20: ='4บันทึกเวลาเรียน'!BO18 -> - | BN20: ='4บันทึกเวลาเรียน'!BP18 -> - | BO20: ='4บันทึกเวลาเรียน'!BQ18 -> - | BP20: ='4บันทึกเวลาเรียน'!BR18 -> - | BQ20: ='4บันทึกเวลาเรียน'!BS18 -> - | BR20: ='4บันทึกเวลาเรียน'!BT18 -> - | BS20: ='4บันทึกเวลาเรียน'!BU18 -> - | BT20: ='4บันทึกเวลาเรียน'!BV18 -> - | BU20: ='4บันทึกเวลาเรียน'!BW18 -> - | BV20: ='4บันทึกเวลาเรียน'!BX18 -> - | BW20: ='4บันทึกเวลาเรียน'!BY18 -> - | BX20: ='4บันทึกเวลาเรียน'!BZ18 -> - | BY20: ='4บันทึกเวลาเรียน'!CA18 -> - | BZ20: ='4บันทึกเวลาเรียน'!CB18 -> - | CA20: ='4บันทึกเวลาเรียน'!CC18 -> - | CB20: ='4บันทึกเวลาเรียน'!CD18 -> - | CC20: ='4บันทึกเวลาเรียน'!CE18 -> - | CD20: ='4บันทึกเวลาเรียน'!CF18 -> - | CE20: ='4บันทึกเวลาเรียน'!CG18 -> - | CF20: ='4บันทึกเวลาเรียน'!CH18 -> - | CG20: ='4บันทึกเวลาเรียน'!CI18 -> - | CH20: ='4บันทึกเวลาเรียน'!CJ18 -> - | CI20: ='4บันทึกเวลาเรียน'!CK18 -> - | CJ20: ='4บันทึกเวลาเรียน'!CL18 -> - | CK20: ='4บันทึกเวลาเรียน'!CM18 -> - | CL20: ='4บันทึกเวลาเรียน'!CN18 -> - | CM20: ='4บันทึกเวลาเรียน'!CO18 -> - | CN20: ='4บันทึกเวลาเรียน'!CP18 -> - | CO20: ='4บันทึกเวลาเรียน'!CQ18 -> - | CP20: ='4บันทึกเวลาเรียน'!CR18 -> - | CQ20: ='4บันทึกเวลาเรียน'!CS18 -> - | CR20: ='4บันทึกเวลาเรียน'!CT18 -> - | CS20: ='4บันทึกเวลาเรียน'!CU18 -> - | CT20: ='4บันทึกเวลาเรียน'!CV18 -> - | CU20: ='4บันทึกเวลาเรียน'!CW18 -> - | CV20: ='4บันทึกเวลาเรียน'!CX18 -> - | CW20: ='4บันทึกเวลาเรียน'!CY18 -> - | CX20: ='4บันทึกเวลาเรียน'!CZ18 -> - | CY20: ='4บันทึกเวลาเรียน'!DA18 -> - | CZ20: ='4บันทึกเวลาเรียน'!DB18 -> - | DB20: - | DC20: ='1ข้อมูลรายวิชา'!E15 -> 0 | DD20: ='1ข้อมูลรายวิชา'!F15 -> 0 | DE20: ='1ข้อมูลรายวิชา'!G15 -> 0 | DF20: ='1ข้อมูลรายวิชา'!H15 -> 0 | DG20: ='1ข้อมูลรายวิชา'!I15 -> 0 | DH20: ='1ข้อมูลรายวิชา'!J15 -> 0 | DI20: ='1ข้อมูลรายวิชา'!N15 -> 3 | DJ20: ='1ข้อมูลรายวิชา'!O15 -> 3
A21: 13 | B21: ='1ข้อมูลรายวิชา'!C16 -> 09455 | C21: ='1ข้อมูลรายวิชา'!D16 -> เด็กชายวชิรวิทย์ พันพระสี | D21: ='1ข้อมูลรายวิชา'!#REF! ->  | E21: ='4บันทึกเวลาเรียน'!G19 -> - | F21: ='4บันทึกเวลาเรียน'!H19 -> - | G21: ='4บันทึกเวลาเรียน'!I19 -> - | H21: ='4บันทึกเวลาเรียน'!J19 -> - | I21: ='4บันทึกเวลาเรียน'!K19 -> - | J21: ='4บันทึกเวลาเรียน'!L19 -> - | K21: ='4บันทึกเวลาเรียน'!M19 -> - | L21: ='4บันทึกเวลาเรียน'!N19 -> - | M21: ='4บันทึกเวลาเรียน'!O19 -> - | N21: ='4บันทึกเวลาเรียน'!P19 -> - | O21: ='4บันทึกเวลาเรียน'!Q19 -> - | P21: ='4บันทึกเวลาเรียน'!R19 -> - | Q21: ='4บันทึกเวลาเรียน'!S19 -> - | R21: ='4บันทึกเวลาเรียน'!T19 -> - | S21: ='4บันทึกเวลาเรียน'!U19 -> - | T21: ='4บันทึกเวลาเรียน'!V19 -> - | U21: ='4บันทึกเวลาเรียน'!W19 -> - | V21: ='4บันทึกเวลาเรียน'!X19 -> - | W21: ='4บันทึกเวลาเรียน'!Y19 -> - | X21: ='4บันทึกเวลาเรียน'!Z19 -> - | Y21: ='4บันทึกเวลาเรียน'!AA19 -> - | Z21: ='4บันทึกเวลาเรียน'!AB19 -> - | AA21: ='4บันทึกเวลาเรียน'!AC19 -> - | AB21: ='4บันทึกเวลาเรียน'!AD19 -> - | AC21: ='4บันทึกเวลาเรียน'!AE19 -> - | AD21: ='4บันทึกเวลาเรียน'!AF19 -> - | AE21: ='4บันทึกเวลาเรียน'!AG19 -> - | AF21: ='4บันทึกเวลาเรียน'!AH19 -> - | AG21: ='4บันทึกเวลาเรียน'!AI19 -> - | AH21: ='4บันทึกเวลาเรียน'!AJ19 -> - | AI21: ='4บันทึกเวลาเรียน'!AK19 -> - | AJ21: ='4บันทึกเวลาเรียน'!AL19 -> - | AK21: ='4บันทึกเวลาเรียน'!AM19 -> - | AL21: ='4บันทึกเวลาเรียน'!AN19 -> - | AM21: ='4บันทึกเวลาเรียน'!AO19 -> - | AN21: ='4บันทึกเวลาเรียน'!AP19 -> - | AO21: ='4บันทึกเวลาเรียน'!AQ19 -> - | AP21: ='4บันทึกเวลาเรียน'!AR19 -> - | AQ21: ='4บันทึกเวลาเรียน'!AS19 -> - | AR21: ='4บันทึกเวลาเรียน'!AT19 -> - | AS21: ='4บันทึกเวลาเรียน'!AU19 -> - | AT21: ='4บันทึกเวลาเรียน'!AV19 -> - | AU21: ='4บันทึกเวลาเรียน'!AW19 -> - | AV21: ='4บันทึกเวลาเรียน'!AX19 -> - | AW21: ='4บันทึกเวลาเรียน'!AY19 -> - | AX21: ='4บันทึกเวลาเรียน'!AZ19 -> - | AY21: ='4บันทึกเวลาเรียน'!BA19 -> - | AZ21: ='4บันทึกเวลาเรียน'!BB19 -> - | BA21: ='4บันทึกเวลาเรียน'!BC19 -> - | BB21: ='4บันทึกเวลาเรียน'!BD19 -> - | BC21: ='4บันทึกเวลาเรียน'!BE19 -> - | BD21: ='4บันทึกเวลาเรียน'!BF19 -> - | BE21: ='4บันทึกเวลาเรียน'!BG19 -> - | BF21: ='4บันทึกเวลาเรียน'!BH19 -> - | BG21: ='4บันทึกเวลาเรียน'!BI19 -> - | BH21: ='4บันทึกเวลาเรียน'!BJ19 -> - | BI21: ='4บันทึกเวลาเรียน'!BK19 -> - | BJ21: ='4บันทึกเวลาเรียน'!BL19 -> - | BK21: ='4บันทึกเวลาเรียน'!BM19 -> - | BL21: ='4บันทึกเวลาเรียน'!BN19 -> - | BM21: ='4บันทึกเวลาเรียน'!BO19 -> - | BN21: ='4บันทึกเวลาเรียน'!BP19 -> - | BO21: ='4บันทึกเวลาเรียน'!BQ19 -> - | BP21: ='4บันทึกเวลาเรียน'!BR19 -> - | BQ21: ='4บันทึกเวลาเรียน'!BS19 -> - | BR21: ='4บันทึกเวลาเรียน'!BT19 -> - | BS21: ='4บันทึกเวลาเรียน'!BU19 -> - | BT21: ='4บันทึกเวลาเรียน'!BV19 -> - | BU21: ='4บันทึกเวลาเรียน'!BW19 -> - | BV21: ='4บันทึกเวลาเรียน'!BX19 -> - | BW21: ='4บันทึกเวลาเรียน'!BY19 -> - | BX21: ='4บันทึกเวลาเรียน'!BZ19 -> - | BY21: ='4บันทึกเวลาเรียน'!CA19 -> - | BZ21: ='4บันทึกเวลาเรียน'!CB19 -> - | CA21: ='4บันทึกเวลาเรียน'!CC19 -> - | CB21: ='4บันทึกเวลาเรียน'!CD19 -> - | CC21: ='4บันทึกเวลาเรียน'!CE19 -> - | CD21: ='4บันทึกเวลาเรียน'!CF19 -> - | CE21: ='4บันทึกเวลาเรียน'!CG19 -> - | CF21: ='4บันทึกเวลาเรียน'!CH19 -> - | CG21: ='4บันทึกเวลาเรียน'!CI19 -> - | CH21: ='4บันทึกเวลาเรียน'!CJ19 -> - | CI21: ='4บันทึกเวลาเรียน'!CK19 -> - | CJ21: ='4บันทึกเวลาเรียน'!CL19 -> - | CK21: ='4บันทึกเวลาเรียน'!CM19 -> - | CL21: ='4บันทึกเวลาเรียน'!CN19 -> - | CM21: ='4บันทึกเวลาเรียน'!CO19 -> - | CN21: ='4บันทึกเวลาเรียน'!CP19 -> - | CO21: ='4บันทึกเวลาเรียน'!CQ19 -> - | CP21: ='4บันทึกเวลาเรียน'!CR19 -> - | CQ21: ='4บันทึกเวลาเรียน'!CS19 -> - | CR21: ='4บันทึกเวลาเรียน'!CT19 -> - | CS21: ='4บันทึกเวลาเรียน'!CU19 -> - | CT21: ='4บันทึกเวลาเรียน'!CV19 -> - | CU21: ='4บันทึกเวลาเรียน'!CW19 -> - | CV21: ='4บันทึกเวลาเรียน'!CX19 -> - | CW21: ='4บันทึกเวลาเรียน'!CY19 -> - | CX21: ='4บันทึกเวลาเรียน'!CZ19 -> - | CY21: ='4บันทึกเวลาเรียน'!DA19 -> - | CZ21: ='4บันทึกเวลาเรียน'!DB19 -> - | DB21: - | DC21: ='1ข้อมูลรายวิชา'!E16 -> 0 | DD21: ='1ข้อมูลรายวิชา'!F16 -> 0 | DE21: ='1ข้อมูลรายวิชา'!G16 -> 0 | DF21: ='1ข้อมูลรายวิชา'!H16 -> 0 | DG21: ='1ข้อมูลรายวิชา'!I16 -> 0 | DH21: ='1ข้อมูลรายวิชา'!J16 -> 0 | DI21: ='1ข้อมูลรายวิชา'!N16 -> 3 | DJ21: ='1ข้อมูลรายวิชา'!O16 -> 3
A22: 14 | B22: ='1ข้อมูลรายวิชา'!C17 -> 09456 | C22: ='1ข้อมูลรายวิชา'!D17 -> เด็กชายวรินทร ผาดวงดี | D22: ='1ข้อมูลรายวิชา'!#REF! ->  | E22: ='4บันทึกเวลาเรียน'!G20 -> - | F22: ='4บันทึกเวลาเรียน'!H20 -> - | G22: ='4บันทึกเวลาเรียน'!I20 -> - | H22: ='4บันทึกเวลาเรียน'!J20 -> - | I22: ='4บันทึกเวลาเรียน'!K20 -> - | J22: ='4บันทึกเวลาเรียน'!L20 -> - | K22: ='4บันทึกเวลาเรียน'!M20 -> - | L22: ='4บันทึกเวลาเรียน'!N20 -> - | M22: ='4บันทึกเวลาเรียน'!O20 -> - | N22: ='4บันทึกเวลาเรียน'!P20 -> - | O22: ='4บันทึกเวลาเรียน'!Q20 -> - | P22: ='4บันทึกเวลาเรียน'!R20 -> - | Q22: ='4บันทึกเวลาเรียน'!S20 -> - | R22: ='4บันทึกเวลาเรียน'!T20 -> - | S22: ='4บันทึกเวลาเรียน'!U20 -> - | T22: ='4บันทึกเวลาเรียน'!V20 -> - | U22: ='4บันทึกเวลาเรียน'!W20 -> - | V22: ='4บันทึกเวลาเรียน'!X20 -> - | W22: ='4บันทึกเวลาเรียน'!Y20 -> - | X22: ='4บันทึกเวลาเรียน'!Z20 -> - | Y22: ='4บันทึกเวลาเรียน'!AA20 -> - | Z22: ='4บันทึกเวลาเรียน'!AB20 -> - | AA22: ='4บันทึกเวลาเรียน'!AC20 -> - | AB22: ='4บันทึกเวลาเรียน'!AD20 -> - | AC22: ='4บันทึกเวลาเรียน'!AE20 -> - | AD22: ='4บันทึกเวลาเรียน'!AF20 -> - | AE22: ='4บันทึกเวลาเรียน'!AG20 -> - | AF22: ='4บันทึกเวลาเรียน'!AH20 -> - | AG22: ='4บันทึกเวลาเรียน'!AI20 -> - | AH22: ='4บันทึกเวลาเรียน'!AJ20 -> - | AI22: ='4บันทึกเวลาเรียน'!AK20 -> - | AJ22: ='4บันทึกเวลาเรียน'!AL20 -> - | AK22: ='4บันทึกเวลาเรียน'!AM20 -> - | AL22: ='4บันทึกเวลาเรียน'!AN20 -> - | AM22: ='4บันทึกเวลาเรียน'!AO20 -> - | AN22: ='4บันทึกเวลาเรียน'!AP20 -> - | AO22: ='4บันทึกเวลาเรียน'!AQ20 -> - | AP22: ='4บันทึกเวลาเรียน'!AR20 -> - | AQ22: ='4บันทึกเวลาเรียน'!AS20 -> - | AR22: ='4บันทึกเวลาเรียน'!AT20 -> - | AS22: ='4บันทึกเวลาเรียน'!AU20 -> - | AT22: ='4บันทึกเวลาเรียน'!AV20 -> - | AU22: ='4บันทึกเวลาเรียน'!AW20 -> - | AV22: ='4บันทึกเวลาเรียน'!AX20 -> - | AW22: ='4บันทึกเวลาเรียน'!AY20 -> - | AX22: ='4บันทึกเวลาเรียน'!AZ20 -> - | AY22: ='4บันทึกเวลาเรียน'!BA20 -> - | AZ22: ='4บันทึกเวลาเรียน'!BB20 -> - | BA22: ='4บันทึกเวลาเรียน'!BC20 -> - | BB22: ='4บันทึกเวลาเรียน'!BD20 -> - | BC22: ='4บันทึกเวลาเรียน'!BE20 -> - | BD22: ='4บันทึกเวลาเรียน'!BF20 -> - | BE22: ='4บันทึกเวลาเรียน'!BG20 -> - | BF22: ='4บันทึกเวลาเรียน'!BH20 -> - | BG22: ='4บันทึกเวลาเรียน'!BI20 -> - | BH22: ='4บันทึกเวลาเรียน'!BJ20 -> - | BI22: ='4บันทึกเวลาเรียน'!BK20 -> - | BJ22: ='4บันทึกเวลาเรียน'!BL20 -> - | BK22: ='4บันทึกเวลาเรียน'!BM20 -> - | BL22: ='4บันทึกเวลาเรียน'!BN20 -> - | BM22: ='4บันทึกเวลาเรียน'!BO20 -> - | BN22: ='4บันทึกเวลาเรียน'!BP20 -> - | BO22: ='4บันทึกเวลาเรียน'!BQ20 -> - | BP22: ='4บันทึกเวลาเรียน'!BR20 -> - | BQ22: ='4บันทึกเวลาเรียน'!BS20 -> - | BR22: ='4บันทึกเวลาเรียน'!BT20 -> - | BS22: ='4บันทึกเวลาเรียน'!BU20 -> - | BT22: ='4บันทึกเวลาเรียน'!BV20 -> - | BU22: ='4บันทึกเวลาเรียน'!BW20 -> - | BV22: ='4บันทึกเวลาเรียน'!BX20 -> - | BW22: ='4บันทึกเวลาเรียน'!BY20 -> - | BX22: ='4บันทึกเวลาเรียน'!BZ20 -> - | BY22: ='4บันทึกเวลาเรียน'!CA20 -> - | BZ22: ='4บันทึกเวลาเรียน'!CB20 -> - | CA22: ='4บันทึกเวลาเรียน'!CC20 -> - | CB22: ='4บันทึกเวลาเรียน'!CD20 -> - | CC22: ='4บันทึกเวลาเรียน'!CE20 -> - | CD22: ='4บันทึกเวลาเรียน'!CF20 -> - | CE22: ='4บันทึกเวลาเรียน'!CG20 -> - | CF22: ='4บันทึกเวลาเรียน'!CH20 -> - | CG22: ='4บันทึกเวลาเรียน'!CI20 -> - | CH22: ='4บันทึกเวลาเรียน'!CJ20 -> - | CI22: ='4บันทึกเวลาเรียน'!CK20 -> - | CJ22: ='4บันทึกเวลาเรียน'!CL20 -> - | CK22: ='4บันทึกเวลาเรียน'!CM20 -> - | CL22: ='4บันทึกเวลาเรียน'!CN20 -> - | CM22: ='4บันทึกเวลาเรียน'!CO20 -> - | CN22: ='4บันทึกเวลาเรียน'!CP20 -> - | CO22: ='4บันทึกเวลาเรียน'!CQ20 -> - | CP22: ='4บันทึกเวลาเรียน'!CR20 -> - | CQ22: ='4บันทึกเวลาเรียน'!CS20 -> - | CR22: ='4บันทึกเวลาเรียน'!CT20 -> - | CS22: ='4บันทึกเวลาเรียน'!CU20 -> - | CT22: ='4บันทึกเวลาเรียน'!CV20 -> - | CU22: ='4บันทึกเวลาเรียน'!CW20 -> - | CV22: ='4บันทึกเวลาเรียน'!CX20 -> - | CW22: ='4บันทึกเวลาเรียน'!CY20 -> - | CX22: ='4บันทึกเวลาเรียน'!CZ20 -> - | CY22: ='4บันทึกเวลาเรียน'!DA20 -> - | CZ22: ='4บันทึกเวลาเรียน'!DB20 -> - | DB22: - | DC22: ='1ข้อมูลรายวิชา'!E17 -> 0 | DD22: ='1ข้อมูลรายวิชา'!F17 -> 0 | DE22: ='1ข้อมูลรายวิชา'!G17 -> 0 | DF22: ='1ข้อมูลรายวิชา'!H17 -> 0 | DG22: ='1ข้อมูลรายวิชา'!I17 -> 0 | DH22: ='1ข้อมูลรายวิชา'!J17 -> 0 | DI22: ='1ข้อมูลรายวิชา'!N17 -> 3 | DJ22: ='1ข้อมูลรายวิชา'!O17 -> 3
A23: 15 | B23: ='1ข้อมูลรายวิชา'!C18 -> 09457 | C23: ='1ข้อมูลรายวิชา'!D18 -> เด็กชายวีระศักดิ์ โสดาดง | D23: ='1ข้อมูลรายวิชา'!#REF! ->  | E23: ='4บันทึกเวลาเรียน'!G21 -> - | F23: ='4บันทึกเวลาเรียน'!H21 -> - | G23: ='4บันทึกเวลาเรียน'!I21 -> - | H23: ='4บันทึกเวลาเรียน'!J21 -> - | I23: ='4บันทึกเวลาเรียน'!K21 -> - | J23: ='4บันทึกเวลาเรียน'!L21 -> - | K23: ='4บันทึกเวลาเรียน'!M21 -> - | L23: ='4บันทึกเวลาเรียน'!N21 -> - | M23: ='4บันทึกเวลาเรียน'!O21 -> - | N23: ='4บันทึกเวลาเรียน'!P21 -> - | O23: ='4บันทึกเวลาเรียน'!Q21 -> - | P23: ='4บันทึกเวลาเรียน'!R21 -> - | Q23: ='4บันทึกเวลาเรียน'!S21 -> - | R23: ='4บันทึกเวลาเรียน'!T21 -> - | S23: ='4บันทึกเวลาเรียน'!U21 -> - | T23: ='4บันทึกเวลาเรียน'!V21 -> - | U23: ='4บันทึกเวลาเรียน'!W21 -> - | V23: ='4บันทึกเวลาเรียน'!X21 -> - | W23: ='4บันทึกเวลาเรียน'!Y21 -> - | X23: ='4บันทึกเวลาเรียน'!Z21 -> - | Y23: ='4บันทึกเวลาเรียน'!AA21 -> - | Z23: ='4บันทึกเวลาเรียน'!AB21 -> - | AA23: ='4บันทึกเวลาเรียน'!AC21 -> - | AB23: ='4บันทึกเวลาเรียน'!AD21 -> - | AC23: ='4บันทึกเวลาเรียน'!AE21 -> - | AD23: ='4บันทึกเวลาเรียน'!AF21 -> - | AE23: ='4บันทึกเวลาเรียน'!AG21 -> - | AF23: ='4บันทึกเวลาเรียน'!AH21 -> - | AG23: ='4บันทึกเวลาเรียน'!AI21 -> - | AH23: ='4บันทึกเวลาเรียน'!AJ21 -> - | AI23: ='4บันทึกเวลาเรียน'!AK21 -> - | AJ23: ='4บันทึกเวลาเรียน'!AL21 -> - | AK23: ='4บันทึกเวลาเรียน'!AM21 -> - | AL23: ='4บันทึกเวลาเรียน'!AN21 -> - | AM23: ='4บันทึกเวลาเรียน'!AO21 -> - | AN23: ='4บันทึกเวลาเรียน'!AP21 -> - | AO23: ='4บันทึกเวลาเรียน'!AQ21 -> - | AP23: ='4บันทึกเวลาเรียน'!AR21 -> - | AQ23: ='4บันทึกเวลาเรียน'!AS21 -> - | AR23: ='4บันทึกเวลาเรียน'!AT21 -> - | AS23: ='4บันทึกเวลาเรียน'!AU21 -> - | AT23: ='4บันทึกเวลาเรียน'!AV21 -> - | AU23: ='4บันทึกเวลาเรียน'!AW21 -> - | AV23: ='4บันทึกเวลาเรียน'!AX21 -> - | AW23: ='4บันทึกเวลาเรียน'!AY21 -> - | AX23: ='4บันทึกเวลาเรียน'!AZ21 -> - | AY23: ='4บันทึกเวลาเรียน'!BA21 -> - | AZ23: ='4บันทึกเวลาเรียน'!BB21 -> - | BA23: ='4บันทึกเวลาเรียน'!BC21 -> - | BB23: ='4บันทึกเวลาเรียน'!BD21 -> - | BC23: ='4บันทึกเวลาเรียน'!BE21 -> - | BD23: ='4บันทึกเวลาเรียน'!BF21 -> - | BE23: ='4บันทึกเวลาเรียน'!BG21 -> - | BF23: ='4บันทึกเวลาเรียน'!BH21 -> - | BG23: ='4บันทึกเวลาเรียน'!BI21 -> - | BH23: ='4บันทึกเวลาเรียน'!BJ21 -> - | BI23: ='4บันทึกเวลาเรียน'!BK21 -> - | BJ23: ='4บันทึกเวลาเรียน'!BL21 -> - | BK23: ='4บันทึกเวลาเรียน'!BM21 -> - | BL23: ='4บันทึกเวลาเรียน'!BN21 -> - | BM23: ='4บันทึกเวลาเรียน'!BO21 -> - | BN23: ='4บันทึกเวลาเรียน'!BP21 -> - | BO23: ='4บันทึกเวลาเรียน'!BQ21 -> - | BP23: ='4บันทึกเวลาเรียน'!BR21 -> - | BQ23: ='4บันทึกเวลาเรียน'!BS21 -> - | BR23: ='4บันทึกเวลาเรียน'!BT21 -> - | BS23: ='4บันทึกเวลาเรียน'!BU21 -> - | BT23: ='4บันทึกเวลาเรียน'!BV21 -> - | BU23: ='4บันทึกเวลาเรียน'!BW21 -> - | BV23: ='4บันทึกเวลาเรียน'!BX21 -> - | BW23: ='4บันทึกเวลาเรียน'!BY21 -> - | BX23: ='4บันทึกเวลาเรียน'!BZ21 -> - | BY23: ='4บันทึกเวลาเรียน'!CA21 -> - | BZ23: ='4บันทึกเวลาเรียน'!CB21 -> - | CA23: ='4บันทึกเวลาเรียน'!CC21 -> - | CB23: ='4บันทึกเวลาเรียน'!CD21 -> - | CC23: ='4บันทึกเวลาเรียน'!CE21 -> - | CD23: ='4บันทึกเวลาเรียน'!CF21 -> - | CE23: ='4บันทึกเวลาเรียน'!CG21 -> - | CF23: ='4บันทึกเวลาเรียน'!CH21 -> - | CG23: ='4บันทึกเวลาเรียน'!CI21 -> - | CH23: ='4บันทึกเวลาเรียน'!CJ21 -> - | CI23: ='4บันทึกเวลาเรียน'!CK21 -> - | CJ23: ='4บันทึกเวลาเรียน'!CL21 -> - | CK23: ='4บันทึกเวลาเรียน'!CM21 -> - | CL23: ='4บันทึกเวลาเรียน'!CN21 -> - | CM23: ='4บันทึกเวลาเรียน'!CO21 -> - | CN23: ='4บันทึกเวลาเรียน'!CP21 -> - | CO23: ='4บันทึกเวลาเรียน'!CQ21 -> - | CP23: ='4บันทึกเวลาเรียน'!CR21 -> - | CQ23: ='4บันทึกเวลาเรียน'!CS21 -> - | CR23: ='4บันทึกเวลาเรียน'!CT21 -> - | CS23: ='4บันทึกเวลาเรียน'!CU21 -> - | CT23: ='4บันทึกเวลาเรียน'!CV21 -> - | CU23: ='4บันทึกเวลาเรียน'!CW21 -> - | CV23: ='4บันทึกเวลาเรียน'!CX21 -> - | CW23: ='4บันทึกเวลาเรียน'!CY21 -> - | CX23: ='4บันทึกเวลาเรียน'!CZ21 -> - | CY23: ='4บันทึกเวลาเรียน'!DA21 -> - | CZ23: ='4บันทึกเวลาเรียน'!DB21 -> - | DB23: - | DC23: ='1ข้อมูลรายวิชา'!E18 -> 0 | DD23: ='1ข้อมูลรายวิชา'!F18 -> 0 | DE23: ='1ข้อมูลรายวิชา'!G18 -> 0 | DF23: ='1ข้อมูลรายวิชา'!H18 -> 0 | DG23: ='1ข้อมูลรายวิชา'!I18 -> 0 | DH23: ='1ข้อมูลรายวิชา'!J18 -> 0 | DI23: ='1ข้อมูลรายวิชา'!N18 -> 3 | DJ23: ='1ข้อมูลรายวิชา'!O18 -> 3
A24: 16 | B24: ='1ข้อมูลรายวิชา'!C19 -> 09458 | C24: ='1ข้อมูลรายวิชา'!D19 -> เด็กชายศักดิ์ดานุภาพ กุลลาว | D24: ='1ข้อมูลรายวิชา'!#REF! ->  | E24: ='4บันทึกเวลาเรียน'!G22 -> - | F24: ='4บันทึกเวลาเรียน'!H22 -> - | G24: ='4บันทึกเวลาเรียน'!I22 -> - | H24: ='4บันทึกเวลาเรียน'!J22 -> - | I24: ='4บันทึกเวลาเรียน'!K22 -> - | J24: ='4บันทึกเวลาเรียน'!L22 -> - | K24: ='4บันทึกเวลาเรียน'!M22 -> - | L24: ='4บันทึกเวลาเรียน'!N22 -> - | M24: ='4บันทึกเวลาเรียน'!O22 -> - | N24: ='4บันทึกเวลาเรียน'!P22 -> - | O24: ='4บันทึกเวลาเรียน'!Q22 -> - | P24: ='4บันทึกเวลาเรียน'!R22 -> - | Q24: ='4บันทึกเวลาเรียน'!S22 -> - | R24: ='4บันทึกเวลาเรียน'!T22 -> - | S24: ='4บันทึกเวลาเรียน'!U22 -> - | T24: ='4บันทึกเวลาเรียน'!V22 -> - | U24: ='4บันทึกเวลาเรียน'!W22 -> - | V24: ='4บันทึกเวลาเรียน'!X22 -> - | W24: ='4บันทึกเวลาเรียน'!Y22 -> - | X24: ='4บันทึกเวลาเรียน'!Z22 -> - | Y24: ='4บันทึกเวลาเรียน'!AA22 -> - | Z24: ='4บันทึกเวลาเรียน'!AB22 -> - | AA24: ='4บันทึกเวลาเรียน'!AC22 -> - | AB24: ='4บันทึกเวลาเรียน'!AD22 -> - | AC24: ='4บันทึกเวลาเรียน'!AE22 -> - | AD24: ='4บันทึกเวลาเรียน'!AF22 -> - | AE24: ='4บันทึกเวลาเรียน'!AG22 -> - | AF24: ='4บันทึกเวลาเรียน'!AH22 -> - | AG24: ='4บันทึกเวลาเรียน'!AI22 -> - | AH24: ='4บันทึกเวลาเรียน'!AJ22 -> - | AI24: ='4บันทึกเวลาเรียน'!AK22 -> - | AJ24: ='4บันทึกเวลาเรียน'!AL22 -> - | AK24: ='4บันทึกเวลาเรียน'!AM22 -> - | AL24: ='4บันทึกเวลาเรียน'!AN22 -> - | AM24: ='4บันทึกเวลาเรียน'!AO22 -> - | AN24: ='4บันทึกเวลาเรียน'!AP22 -> - | AO24: ='4บันทึกเวลาเรียน'!AQ22 -> - | AP24: ='4บันทึกเวลาเรียน'!AR22 -> - | AQ24: ='4บันทึกเวลาเรียน'!AS22 -> - | AR24: ='4บันทึกเวลาเรียน'!AT22 -> - | AS24: ='4บันทึกเวลาเรียน'!AU22 -> - | AT24: ='4บันทึกเวลาเรียน'!AV22 -> - | AU24: ='4บันทึกเวลาเรียน'!AW22 -> - | AV24: ='4บันทึกเวลาเรียน'!AX22 -> - | AW24: ='4บันทึกเวลาเรียน'!AY22 -> - | AX24: ='4บันทึกเวลาเรียน'!AZ22 -> - | AY24: ='4บันทึกเวลาเรียน'!BA22 -> - | AZ24: ='4บันทึกเวลาเรียน'!BB22 -> - | BA24: ='4บันทึกเวลาเรียน'!BC22 -> - | BB24: ='4บันทึกเวลาเรียน'!BD22 -> - | BC24: ='4บันทึกเวลาเรียน'!BE22 -> - | BD24: ='4บันทึกเวลาเรียน'!BF22 -> - | BE24: ='4บันทึกเวลาเรียน'!BG22 -> - | BF24: ='4บันทึกเวลาเรียน'!BH22 -> - | BG24: ='4บันทึกเวลาเรียน'!BI22 -> - | BH24: ='4บันทึกเวลาเรียน'!BJ22 -> - | BI24: ='4บันทึกเวลาเรียน'!BK22 -> - | BJ24: ='4บันทึกเวลาเรียน'!BL22 -> - | BK24: ='4บันทึกเวลาเรียน'!BM22 -> - | BL24: ='4บันทึกเวลาเรียน'!BN22 -> - | BM24: ='4บันทึกเวลาเรียน'!BO22 -> - | BN24: ='4บันทึกเวลาเรียน'!BP22 -> - | BO24: ='4บันทึกเวลาเรียน'!BQ22 -> - | BP24: ='4บันทึกเวลาเรียน'!BR22 -> - | BQ24: ='4บันทึกเวลาเรียน'!BS22 -> - | BR24: ='4บันทึกเวลาเรียน'!BT22 -> - | BS24: ='4บันทึกเวลาเรียน'!BU22 -> - | BT24: ='4บันทึกเวลาเรียน'!BV22 -> - | BU24: ='4บันทึกเวลาเรียน'!BW22 -> - | BV24: ='4บันทึกเวลาเรียน'!BX22 -> - | BW24: ='4บันทึกเวลาเรียน'!BY22 -> - | BX24: ='4บันทึกเวลาเรียน'!BZ22 -> - | BY24: ='4บันทึกเวลาเรียน'!CA22 -> - | BZ24: ='4บันทึกเวลาเรียน'!CB22 -> - | CA24: ='4บันทึกเวลาเรียน'!CC22 -> - | CB24: ='4บันทึกเวลาเรียน'!CD22 -> - | CC24: ='4บันทึกเวลาเรียน'!CE22 -> - | CD24: ='4บันทึกเวลาเรียน'!CF22 -> - | CE24: ='4บันทึกเวลาเรียน'!CG22 -> - | CF24: ='4บันทึกเวลาเรียน'!CH22 -> - | CG24: ='4บันทึกเวลาเรียน'!CI22 -> - | CH24: ='4บันทึกเวลาเรียน'!CJ22 -> - | CI24: ='4บันทึกเวลาเรียน'!CK22 -> - | CJ24: ='4บันทึกเวลาเรียน'!CL22 -> - | CK24: ='4บันทึกเวลาเรียน'!CM22 -> - | CL24: ='4บันทึกเวลาเรียน'!CN22 -> - | CM24: ='4บันทึกเวลาเรียน'!CO22 -> - | CN24: ='4บันทึกเวลาเรียน'!CP22 -> - | CO24: ='4บันทึกเวลาเรียน'!CQ22 -> - | CP24: ='4บันทึกเวลาเรียน'!CR22 -> - | CQ24: ='4บันทึกเวลาเรียน'!CS22 -> - | CR24: ='4บันทึกเวลาเรียน'!CT22 -> - | CS24: ='4บันทึกเวลาเรียน'!CU22 -> - | CT24: ='4บันทึกเวลาเรียน'!CV22 -> - | CU24: ='4บันทึกเวลาเรียน'!CW22 -> - | CV24: ='4บันทึกเวลาเรียน'!CX22 -> - | CW24: ='4บันทึกเวลาเรียน'!CY22 -> - | CX24: ='4บันทึกเวลาเรียน'!CZ22 -> - | CY24: ='4บันทึกเวลาเรียน'!DA22 -> - | CZ24: ='4บันทึกเวลาเรียน'!DB22 -> - | DB24: - | DC24: ='1ข้อมูลรายวิชา'!E19 -> 0 | DD24: ='1ข้อมูลรายวิชา'!F19 -> 0 | DE24: ='1ข้อมูลรายวิชา'!G19 -> 0 | DF24: ='1ข้อมูลรายวิชา'!H19 -> 0 | DG24: ='1ข้อมูลรายวิชา'!I19 -> 0 | DH24: ='1ข้อมูลรายวิชา'!J19 -> 0 | DI24: ='1ข้อมูลรายวิชา'!N19 -> 3 | DJ24: ='1ข้อมูลรายวิชา'!O19 -> 3
A25: 17 | B25: ='1ข้อมูลรายวิชา'!C20 -> 09459 | C25: ='1ข้อมูลรายวิชา'!D20 -> เด็กชายสิวภพ ปราบนอก | D25: ='1ข้อมูลรายวิชา'!#REF! ->  | E25: ='4บันทึกเวลาเรียน'!G23 -> - | F25: ='4บันทึกเวลาเรียน'!H23 -> - | G25: ='4บันทึกเวลาเรียน'!I23 -> - | H25: ='4บันทึกเวลาเรียน'!J23 -> - | I25: ='4บันทึกเวลาเรียน'!K23 -> - | J25: ='4บันทึกเวลาเรียน'!L23 -> - | K25: ='4บันทึกเวลาเรียน'!M23 -> - | L25: ='4บันทึกเวลาเรียน'!N23 -> - | M25: ='4บันทึกเวลาเรียน'!O23 -> - | N25: ='4บันทึกเวลาเรียน'!P23 -> - | O25: ='4บันทึกเวลาเรียน'!Q23 -> - | P25: ='4บันทึกเวลาเรียน'!R23 -> - | Q25: ='4บันทึกเวลาเรียน'!S23 -> - | R25: ='4บันทึกเวลาเรียน'!T23 -> - | S25: ='4บันทึกเวลาเรียน'!U23 -> - | T25: ='4บันทึกเวลาเรียน'!V23 -> - | U25: ='4บันทึกเวลาเรียน'!W23 -> - | V25: ='4บันทึกเวลาเรียน'!X23 -> - | W25: ='4บันทึกเวลาเรียน'!Y23 -> - | X25: ='4บันทึกเวลาเรียน'!Z23 -> - | Y25: ='4บันทึกเวลาเรียน'!AA23 -> - | Z25: ='4บันทึกเวลาเรียน'!AB23 -> - | AA25: ='4บันทึกเวลาเรียน'!AC23 -> - | AB25: ='4บันทึกเวลาเรียน'!AD23 -> - | AC25: ='4บันทึกเวลาเรียน'!AE23 -> - | AD25: ='4บันทึกเวลาเรียน'!AF23 -> - | AE25: ='4บันทึกเวลาเรียน'!AG23 -> - | AF25: ='4บันทึกเวลาเรียน'!AH23 -> - | AG25: ='4บันทึกเวลาเรียน'!AI23 -> - | AH25: ='4บันทึกเวลาเรียน'!AJ23 -> - | AI25: ='4บันทึกเวลาเรียน'!AK23 -> - | AJ25: ='4บันทึกเวลาเรียน'!AL23 -> - | AK25: ='4บันทึกเวลาเรียน'!AM23 -> - | AL25: ='4บันทึกเวลาเรียน'!AN23 -> - | AM25: ='4บันทึกเวลาเรียน'!AO23 -> - | AN25: ='4บันทึกเวลาเรียน'!AP23 -> - | AO25: ='4บันทึกเวลาเรียน'!AQ23 -> - | AP25: ='4บันทึกเวลาเรียน'!AR23 -> - | AQ25: ='4บันทึกเวลาเรียน'!AS23 -> - | AR25: ='4บันทึกเวลาเรียน'!AT23 -> - | AS25: ='4บันทึกเวลาเรียน'!AU23 -> - | AT25: ='4บันทึกเวลาเรียน'!AV23 -> - | AU25: ='4บันทึกเวลาเรียน'!AW23 -> - | AV25: ='4บันทึกเวลาเรียน'!AX23 -> - | AW25: ='4บันทึกเวลาเรียน'!AY23 -> - | AX25: ='4บันทึกเวลาเรียน'!AZ23 -> - | AY25: ='4บันทึกเวลาเรียน'!BA23 -> - | AZ25: ='4บันทึกเวลาเรียน'!BB23 -> - | BA25: ='4บันทึกเวลาเรียน'!BC23 -> - | BB25: ='4บันทึกเวลาเรียน'!BD23 -> - | BC25: ='4บันทึกเวลาเรียน'!BE23 -> - | BD25: ='4บันทึกเวลาเรียน'!BF23 -> - | BE25: ='4บันทึกเวลาเรียน'!BG23 -> - | BF25: ='4บันทึกเวลาเรียน'!BH23 -> - | BG25: ='4บันทึกเวลาเรียน'!BI23 -> - | BH25: ='4บันทึกเวลาเรียน'!BJ23 -> - | BI25: ='4บันทึกเวลาเรียน'!BK23 -> - | BJ25: ='4บันทึกเวลาเรียน'!BL23 -> - | BK25: ='4บันทึกเวลาเรียน'!BM23 -> - | BL25: ='4บันทึกเวลาเรียน'!BN23 -> - | BM25: ='4บันทึกเวลาเรียน'!BO23 -> - | BN25: ='4บันทึกเวลาเรียน'!BP23 -> - | BO25: ='4บันทึกเวลาเรียน'!BQ23 -> - | BP25: ='4บันทึกเวลาเรียน'!BR23 -> - | BQ25: ='4บันทึกเวลาเรียน'!BS23 -> - | BR25: ='4บันทึกเวลาเรียน'!BT23 -> - | BS25: ='4บันทึกเวลาเรียน'!BU23 -> - | BT25: ='4บันทึกเวลาเรียน'!BV23 -> - | BU25: ='4บันทึกเวลาเรียน'!BW23 -> - | BV25: ='4บันทึกเวลาเรียน'!BX23 -> - | BW25: ='4บันทึกเวลาเรียน'!BY23 -> - | BX25: ='4บันทึกเวลาเรียน'!BZ23 -> - | BY25: ='4บันทึกเวลาเรียน'!CA23 -> - | BZ25: ='4บันทึกเวลาเรียน'!CB23 -> - | CA25: ='4บันทึกเวลาเรียน'!CC23 -> - | CB25: ='4บันทึกเวลาเรียน'!CD23 -> - | CC25: ='4บันทึกเวลาเรียน'!CE23 -> - | CD25: ='4บันทึกเวลาเรียน'!CF23 -> - | CE25: ='4บันทึกเวลาเรียน'!CG23 -> - | CF25: ='4บันทึกเวลาเรียน'!CH23 -> - | CG25: ='4บันทึกเวลาเรียน'!CI23 -> - | CH25: ='4บันทึกเวลาเรียน'!CJ23 -> - | CI25: ='4บันทึกเวลาเรียน'!CK23 -> - | CJ25: ='4บันทึกเวลาเรียน'!CL23 -> - | CK25: ='4บันทึกเวลาเรียน'!CM23 -> - | CL25: ='4บันทึกเวลาเรียน'!CN23 -> - | CM25: ='4บันทึกเวลาเรียน'!CO23 -> - | CN25: ='4บันทึกเวลาเรียน'!CP23 -> - | CO25: ='4บันทึกเวลาเรียน'!CQ23 -> - | CP25: ='4บันทึกเวลาเรียน'!CR23 -> - | CQ25: ='4บันทึกเวลาเรียน'!CS23 -> - | CR25: ='4บันทึกเวลาเรียน'!CT23 -> - | CS25: ='4บันทึกเวลาเรียน'!CU23 -> - | CT25: ='4บันทึกเวลาเรียน'!CV23 -> - | CU25: ='4บันทึกเวลาเรียน'!CW23 -> - | CV25: ='4บันทึกเวลาเรียน'!CX23 -> - | CW25: ='4บันทึกเวลาเรียน'!CY23 -> - | CX25: ='4บันทึกเวลาเรียน'!CZ23 -> - | CY25: ='4บันทึกเวลาเรียน'!DA23 -> - | CZ25: ='4บันทึกเวลาเรียน'!DB23 -> - | DB25: - | DC25: ='1ข้อมูลรายวิชา'!E20 -> 0 | DD25: ='1ข้อมูลรายวิชา'!F20 -> 0 | DE25: ='1ข้อมูลรายวิชา'!G20 -> 0 | DF25: ='1ข้อมูลรายวิชา'!H20 -> 0 | DG25: ='1ข้อมูลรายวิชา'!I20 -> 0 | DH25: ='1ข้อมูลรายวิชา'!J20 -> 0 | DI25: ='1ข้อมูลรายวิชา'!N20 -> 3 | DJ25: ='1ข้อมูลรายวิชา'!O20 -> 3
A26: 18 | B26: ='1ข้อมูลรายวิชา'!C21 -> 09460 | C26: ='1ข้อมูลรายวิชา'!D21 -> เด็กชายสุจิตร เพียผิว | D26: ='1ข้อมูลรายวิชา'!#REF! ->  | E26: ='4บันทึกเวลาเรียน'!G24 -> - | F26: ='4บันทึกเวลาเรียน'!H24 -> - | G26: ='4บันทึกเวลาเรียน'!I24 -> - | H26: ='4บันทึกเวลาเรียน'!J24 -> - | I26: ='4บันทึกเวลาเรียน'!K24 -> - | J26: ='4บันทึกเวลาเรียน'!L24 -> - | K26: ='4บันทึกเวลาเรียน'!M24 -> - | L26: ='4บันทึกเวลาเรียน'!N24 -> - | M26: ='4บันทึกเวลาเรียน'!O24 -> - | N26: ='4บันทึกเวลาเรียน'!P24 -> - | O26: ='4บันทึกเวลาเรียน'!Q24 -> - | P26: ='4บันทึกเวลาเรียน'!R24 -> - | Q26: ='4บันทึกเวลาเรียน'!S24 -> - | R26: ='4บันทึกเวลาเรียน'!T24 -> - | S26: ='4บันทึกเวลาเรียน'!U24 -> - | T26: ='4บันทึกเวลาเรียน'!V24 -> - | U26: ='4บันทึกเวลาเรียน'!W24 -> - | V26: ='4บันทึกเวลาเรียน'!X24 -> - | W26: ='4บันทึกเวลาเรียน'!Y24 -> - | X26: ='4บันทึกเวลาเรียน'!Z24 -> - | Y26: ='4บันทึกเวลาเรียน'!AA24 -> - | Z26: ='4บันทึกเวลาเรียน'!AB24 -> - | AA26: ='4บันทึกเวลาเรียน'!AC24 -> - | AB26: ='4บันทึกเวลาเรียน'!AD24 -> - | AC26: ='4บันทึกเวลาเรียน'!AE24 -> - | AD26: ='4บันทึกเวลาเรียน'!AF24 -> - | AE26: ='4บันทึกเวลาเรียน'!AG24 -> - | AF26: ='4บันทึกเวลาเรียน'!AH24 -> - | AG26: ='4บันทึกเวลาเรียน'!AI24 -> - | AH26: ='4บันทึกเวลาเรียน'!AJ24 -> - | AI26: ='4บันทึกเวลาเรียน'!AK24 -> - | AJ26: ='4บันทึกเวลาเรียน'!AL24 -> - | AK26: ='4บันทึกเวลาเรียน'!AM24 -> - | AL26: ='4บันทึกเวลาเรียน'!AN24 -> - | AM26: ='4บันทึกเวลาเรียน'!AO24 -> - | AN26: ='4บันทึกเวลาเรียน'!AP24 -> - | AO26: ='4บันทึกเวลาเรียน'!AQ24 -> - | AP26: ='4บันทึกเวลาเรียน'!AR24 -> - | AQ26: ='4บันทึกเวลาเรียน'!AS24 -> - | AR26: ='4บันทึกเวลาเรียน'!AT24 -> - | AS26: ='4บันทึกเวลาเรียน'!AU24 -> - | AT26: ='4บันทึกเวลาเรียน'!AV24 -> - | AU26: ='4บันทึกเวลาเรียน'!AW24 -> - | AV26: ='4บันทึกเวลาเรียน'!AX24 -> - | AW26: ='4บันทึกเวลาเรียน'!AY24 -> - | AX26: ='4บันทึกเวลาเรียน'!AZ24 -> - | AY26: ='4บันทึกเวลาเรียน'!BA24 -> - | AZ26: ='4บันทึกเวลาเรียน'!BB24 -> - | BA26: ='4บันทึกเวลาเรียน'!BC24 -> - | BB26: ='4บันทึกเวลาเรียน'!BD24 -> - | BC26: ='4บันทึกเวลาเรียน'!BE24 -> - | BD26: ='4บันทึกเวลาเรียน'!BF24 -> - | BE26: ='4บันทึกเวลาเรียน'!BG24 -> - | BF26: ='4บันทึกเวลาเรียน'!BH24 -> - | BG26: ='4บันทึกเวลาเรียน'!BI24 -> - | BH26: ='4บันทึกเวลาเรียน'!BJ24 -> - | BI26: ='4บันทึกเวลาเรียน'!BK24 -> - | BJ26: ='4บันทึกเวลาเรียน'!BL24 -> - | BK26: ='4บันทึกเวลาเรียน'!BM24 -> - | BL26: ='4บันทึกเวลาเรียน'!BN24 -> - | BM26: ='4บันทึกเวลาเรียน'!BO24 -> - | BN26: ='4บันทึกเวลาเรียน'!BP24 -> - | BO26: ='4บันทึกเวลาเรียน'!BQ24 -> - | BP26: ='4บันทึกเวลาเรียน'!BR24 -> - | BQ26: ='4บันทึกเวลาเรียน'!BS24 -> - | BR26: ='4บันทึกเวลาเรียน'!BT24 -> - | BS26: ='4บันทึกเวลาเรียน'!BU24 -> - | BT26: ='4บันทึกเวลาเรียน'!BV24 -> - | BU26: ='4บันทึกเวลาเรียน'!BW24 -> - | BV26: ='4บันทึกเวลาเรียน'!BX24 -> - | BW26: ='4บันทึกเวลาเรียน'!BY24 -> - | BX26: ='4บันทึกเวลาเรียน'!BZ24 -> - | BY26: ='4บันทึกเวลาเรียน'!CA24 -> - | BZ26: ='4บันทึกเวลาเรียน'!CB24 -> - | CA26: ='4บันทึกเวลาเรียน'!CC24 -> - | CB26: ='4บันทึกเวลาเรียน'!CD24 -> - | CC26: ='4บันทึกเวลาเรียน'!CE24 -> - | CD26: ='4บันทึกเวลาเรียน'!CF24 -> - | CE26: ='4บันทึกเวลาเรียน'!CG24 -> - | CF26: ='4บันทึกเวลาเรียน'!CH24 -> - | CG26: ='4บันทึกเวลาเรียน'!CI24 -> - | CH26: ='4บันทึกเวลาเรียน'!CJ24 -> - | CI26: ='4บันทึกเวลาเรียน'!CK24 -> - | CJ26: ='4บันทึกเวลาเรียน'!CL24 -> - | CK26: ='4บันทึกเวลาเรียน'!CM24 -> - | CL26: ='4บันทึกเวลาเรียน'!CN24 -> - | CM26: ='4บันทึกเวลาเรียน'!CO24 -> - | CN26: ='4บันทึกเวลาเรียน'!CP24 -> - | CO26: ='4บันทึกเวลาเรียน'!CQ24 -> - | CP26: ='4บันทึกเวลาเรียน'!CR24 -> - | CQ26: ='4บันทึกเวลาเรียน'!CS24 -> - | CR26: ='4บันทึกเวลาเรียน'!CT24 -> - | CS26: ='4บันทึกเวลาเรียน'!CU24 -> - | CT26: ='4บันทึกเวลาเรียน'!CV24 -> - | CU26: ='4บันทึกเวลาเรียน'!CW24 -> - | CV26: ='4บันทึกเวลาเรียน'!CX24 -> - | CW26: ='4บันทึกเวลาเรียน'!CY24 -> - | CX26: ='4บันทึกเวลาเรียน'!CZ24 -> - | CY26: ='4บันทึกเวลาเรียน'!DA24 -> - | CZ26: ='4บันทึกเวลาเรียน'!DB24 -> - | DB26: - | DC26: ='1ข้อมูลรายวิชา'!E21 -> 0 | DD26: ='1ข้อมูลรายวิชา'!F21 -> 0 | DE26: ='1ข้อมูลรายวิชา'!G21 -> 0 | DF26: ='1ข้อมูลรายวิชา'!H21 -> 0 | DG26: ='1ข้อมูลรายวิชา'!I21 -> 0 | DH26: ='1ข้อมูลรายวิชา'!J21 -> 0 | DI26: ='1ข้อมูลรายวิชา'!N21 -> 3 | DJ26: ='1ข้อมูลรายวิชา'!O21 -> 3
A27: 19 | B27: ='1ข้อมูลรายวิชา'!C22 -> 09461 | C27: ='1ข้อมูลรายวิชา'!D22 -> เด็กชายสุรศักดิ์ มากเขียน | D27: ='1ข้อมูลรายวิชา'!#REF! ->  | E27: ='4บันทึกเวลาเรียน'!G25 -> - | F27: ='4บันทึกเวลาเรียน'!H25 -> - | G27: ='4บันทึกเวลาเรียน'!I25 -> - | H27: ='4บันทึกเวลาเรียน'!J25 -> - | I27: ='4บันทึกเวลาเรียน'!K25 -> - | J27: ='4บันทึกเวลาเรียน'!L25 -> - | K27: ='4บันทึกเวลาเรียน'!M25 -> - | L27: ='4บันทึกเวลาเรียน'!N25 -> - | M27: ='4บันทึกเวลาเรียน'!O25 -> - | N27: ='4บันทึกเวลาเรียน'!P25 -> - | O27: ='4บันทึกเวลาเรียน'!Q25 -> - | P27: ='4บันทึกเวลาเรียน'!R25 -> - | Q27: ='4บันทึกเวลาเรียน'!S25 -> - | R27: ='4บันทึกเวลาเรียน'!T25 -> - | S27: ='4บันทึกเวลาเรียน'!U25 -> - | T27: ='4บันทึกเวลาเรียน'!V25 -> - | U27: ='4บันทึกเวลาเรียน'!W25 -> - | V27: ='4บันทึกเวลาเรียน'!X25 -> - | W27: ='4บันทึกเวลาเรียน'!Y25 -> - | X27: ='4บันทึกเวลาเรียน'!Z25 -> - | Y27: ='4บันทึกเวลาเรียน'!AA25 -> - | Z27: ='4บันทึกเวลาเรียน'!AB25 -> - | AA27: ='4บันทึกเวลาเรียน'!AC25 -> - | AB27: ='4บันทึกเวลาเรียน'!AD25 -> - | AC27: ='4บันทึกเวลาเรียน'!AE25 -> - | AD27: ='4บันทึกเวลาเรียน'!AF25 -> - | AE27: ='4บันทึกเวลาเรียน'!AG25 -> - | AF27: ='4บันทึกเวลาเรียน'!AH25 -> - | AG27: ='4บันทึกเวลาเรียน'!AI25 -> - | AH27: ='4บันทึกเวลาเรียน'!AJ25 -> - | AI27: ='4บันทึกเวลาเรียน'!AK25 -> - | AJ27: ='4บันทึกเวลาเรียน'!AL25 -> - | AK27: ='4บันทึกเวลาเรียน'!AM25 -> - | AL27: ='4บันทึกเวลาเรียน'!AN25 -> - | AM27: ='4บันทึกเวลาเรียน'!AO25 -> - | AN27: ='4บันทึกเวลาเรียน'!AP25 -> - | AO27: ='4บันทึกเวลาเรียน'!AQ25 -> - | AP27: ='4บันทึกเวลาเรียน'!AR25 -> - | AQ27: ='4บันทึกเวลาเรียน'!AS25 -> - | AR27: ='4บันทึกเวลาเรียน'!AT25 -> - | AS27: ='4บันทึกเวลาเรียน'!AU25 -> - | AT27: ='4บันทึกเวลาเรียน'!AV25 -> - | AU27: ='4บันทึกเวลาเรียน'!AW25 -> - | AV27: ='4บันทึกเวลาเรียน'!AX25 -> - | AW27: ='4บันทึกเวลาเรียน'!AY25 -> - | AX27: ='4บันทึกเวลาเรียน'!AZ25 -> - | AY27: ='4บันทึกเวลาเรียน'!BA25 -> - | AZ27: ='4บันทึกเวลาเรียน'!BB25 -> - | BA27: ='4บันทึกเวลาเรียน'!BC25 -> - | BB27: ='4บันทึกเวลาเรียน'!BD25 -> - | BC27: ='4บันทึกเวลาเรียน'!BE25 -> - | BD27: ='4บันทึกเวลาเรียน'!BF25 -> - | BE27: ='4บันทึกเวลาเรียน'!BG25 -> - | BF27: ='4บันทึกเวลาเรียน'!BH25 -> - | BG27: ='4บันทึกเวลาเรียน'!BI25 -> - | BH27: ='4บันทึกเวลาเรียน'!BJ25 -> - | BI27: ='4บันทึกเวลาเรียน'!BK25 -> - | BJ27: ='4บันทึกเวลาเรียน'!BL25 -> - | BK27: ='4บันทึกเวลาเรียน'!BM25 -> - | BL27: ='4บันทึกเวลาเรียน'!BN25 -> - | BM27: ='4บันทึกเวลาเรียน'!BO25 -> - | BN27: ='4บันทึกเวลาเรียน'!BP25 -> - | BO27: ='4บันทึกเวลาเรียน'!BQ25 -> - | BP27: ='4บันทึกเวลาเรียน'!BR25 -> - | BQ27: ='4บันทึกเวลาเรียน'!BS25 -> - | BR27: ='4บันทึกเวลาเรียน'!BT25 -> - | BS27: ='4บันทึกเวลาเรียน'!BU25 -> - | BT27: ='4บันทึกเวลาเรียน'!BV25 -> - | BU27: ='4บันทึกเวลาเรียน'!BW25 -> - | BV27: ='4บันทึกเวลาเรียน'!BX25 -> - | BW27: ='4บันทึกเวลาเรียน'!BY25 -> - | BX27: ='4บันทึกเวลาเรียน'!BZ25 -> - | BY27: ='4บันทึกเวลาเรียน'!CA25 -> - | BZ27: ='4บันทึกเวลาเรียน'!CB25 -> - | CA27: ='4บันทึกเวลาเรียน'!CC25 -> - | CB27: ='4บันทึกเวลาเรียน'!CD25 -> - | CC27: ='4บันทึกเวลาเรียน'!CE25 -> - | CD27: ='4บันทึกเวลาเรียน'!CF25 -> - | CE27: ='4บันทึกเวลาเรียน'!CG25 -> - | CF27: ='4บันทึกเวลาเรียน'!CH25 -> - | CG27: ='4บันทึกเวลาเรียน'!CI25 -> - | CH27: ='4บันทึกเวลาเรียน'!CJ25 -> - | CI27: ='4บันทึกเวลาเรียน'!CK25 -> - | CJ27: ='4บันทึกเวลาเรียน'!CL25 -> - | CK27: ='4บันทึกเวลาเรียน'!CM25 -> - | CL27: ='4บันทึกเวลาเรียน'!CN25 -> - | CM27: ='4บันทึกเวลาเรียน'!CO25 -> - | CN27: ='4บันทึกเวลาเรียน'!CP25 -> - | CO27: ='4บันทึกเวลาเรียน'!CQ25 -> - | CP27: ='4บันทึกเวลาเรียน'!CR25 -> - | CQ27: ='4บันทึกเวลาเรียน'!CS25 -> - | CR27: ='4บันทึกเวลาเรียน'!CT25 -> - | CS27: ='4บันทึกเวลาเรียน'!CU25 -> - | CT27: ='4บันทึกเวลาเรียน'!CV25 -> - | CU27: ='4บันทึกเวลาเรียน'!CW25 -> - | CV27: ='4บันทึกเวลาเรียน'!CX25 -> - | CW27: ='4บันทึกเวลาเรียน'!CY25 -> - | CX27: ='4บันทึกเวลาเรียน'!CZ25 -> - | CY27: ='4บันทึกเวลาเรียน'!DA25 -> - | CZ27: ='4บันทึกเวลาเรียน'!DB25 -> - | DB27: - | DC27: ='1ข้อมูลรายวิชา'!E22 -> 0 | DD27: ='1ข้อมูลรายวิชา'!F22 -> 0 | DE27: ='1ข้อมูลรายวิชา'!G22 -> 0 | DF27: ='1ข้อมูลรายวิชา'!H22 -> 0 | DG27: ='1ข้อมูลรายวิชา'!I22 -> 0 | DH27: ='1ข้อมูลรายวิชา'!J22 -> 0 | DI27: ='1ข้อมูลรายวิชา'!N22 -> 3 | DJ27: ='1ข้อมูลรายวิชา'!O22 -> 3
A28: 20 | B28: ='1ข้อมูลรายวิชา'!C23 -> 09462 | C28: ='1ข้อมูลรายวิชา'!D23 -> เด็กชายอัครพล เทศแสงทอง | D28: ='1ข้อมูลรายวิชา'!#REF! ->  | E28: ='4บันทึกเวลาเรียน'!G26 -> - | F28: ='4บันทึกเวลาเรียน'!H26 -> - | G28: ='4บันทึกเวลาเรียน'!I26 -> - | H28: ='4บันทึกเวลาเรียน'!J26 -> - | I28: ='4บันทึกเวลาเรียน'!K26 -> - | J28: ='4บันทึกเวลาเรียน'!L26 -> - | K28: ='4บันทึกเวลาเรียน'!M26 -> - | L28: ='4บันทึกเวลาเรียน'!N26 -> - | M28: ='4บันทึกเวลาเรียน'!O26 -> - | N28: ='4บันทึกเวลาเรียน'!P26 -> - | O28: ='4บันทึกเวลาเรียน'!Q26 -> - | P28: ='4บันทึกเวลาเรียน'!R26 -> - | Q28: ='4บันทึกเวลาเรียน'!S26 -> - | R28: ='4บันทึกเวลาเรียน'!T26 -> - | S28: ='4บันทึกเวลาเรียน'!U26 -> - | T28: ='4บันทึกเวลาเรียน'!V26 -> - | U28: ='4บันทึกเวลาเรียน'!W26 -> - | V28: ='4บันทึกเวลาเรียน'!X26 -> - | W28: ='4บันทึกเวลาเรียน'!Y26 -> - | X28: ='4บันทึกเวลาเรียน'!Z26 -> - | Y28: ='4บันทึกเวลาเรียน'!AA26 -> - | Z28: ='4บันทึกเวลาเรียน'!AB26 -> - | AA28: ='4บันทึกเวลาเรียน'!AC26 -> - | AB28: ='4บันทึกเวลาเรียน'!AD26 -> - | AC28: ='4บันทึกเวลาเรียน'!AE26 -> - | AD28: ='4บันทึกเวลาเรียน'!AF26 -> - | AE28: ='4บันทึกเวลาเรียน'!AG26 -> - | AF28: ='4บันทึกเวลาเรียน'!AH26 -> - | AG28: ='4บันทึกเวลาเรียน'!AI26 -> - | AH28: ='4บันทึกเวลาเรียน'!AJ26 -> - | AI28: ='4บันทึกเวลาเรียน'!AK26 -> - | AJ28: ='4บันทึกเวลาเรียน'!AL26 -> - | AK28: ='4บันทึกเวลาเรียน'!AM26 -> - | AL28: ='4บันทึกเวลาเรียน'!AN26 -> - | AM28: ='4บันทึกเวลาเรียน'!AO26 -> - | AN28: ='4บันทึกเวลาเรียน'!AP26 -> - | AO28: ='4บันทึกเวลาเรียน'!AQ26 -> - | AP28: ='4บันทึกเวลาเรียน'!AR26 -> - | AQ28: ='4บันทึกเวลาเรียน'!AS26 -> - | AR28: ='4บันทึกเวลาเรียน'!AT26 -> - | AS28: ='4บันทึกเวลาเรียน'!AU26 -> - | AT28: ='4บันทึกเวลาเรียน'!AV26 -> - | AU28: ='4บันทึกเวลาเรียน'!AW26 -> - | AV28: ='4บันทึกเวลาเรียน'!AX26 -> - | AW28: ='4บันทึกเวลาเรียน'!AY26 -> - | AX28: ='4บันทึกเวลาเรียน'!AZ26 -> - | AY28: ='4บันทึกเวลาเรียน'!BA26 -> - | AZ28: ='4บันทึกเวลาเรียน'!BB26 -> - | BA28: ='4บันทึกเวลาเรียน'!BC26 -> - | BB28: ='4บันทึกเวลาเรียน'!BD26 -> - | BC28: ='4บันทึกเวลาเรียน'!BE26 -> - | BD28: ='4บันทึกเวลาเรียน'!BF26 -> - | BE28: ='4บันทึกเวลาเรียน'!BG26 -> - | BF28: ='4บันทึกเวลาเรียน'!BH26 -> - | BG28: ='4บันทึกเวลาเรียน'!BI26 -> - | BH28: ='4บันทึกเวลาเรียน'!BJ26 -> - | BI28: ='4บันทึกเวลาเรียน'!BK26 -> - | BJ28: ='4บันทึกเวลาเรียน'!BL26 -> - | BK28: ='4บันทึกเวลาเรียน'!BM26 -> - | BL28: ='4บันทึกเวลาเรียน'!BN26 -> - | BM28: ='4บันทึกเวลาเรียน'!BO26 -> - | BN28: ='4บันทึกเวลาเรียน'!BP26 -> - | BO28: ='4บันทึกเวลาเรียน'!BQ26 -> - | BP28: ='4บันทึกเวลาเรียน'!BR26 -> - | BQ28: ='4บันทึกเวลาเรียน'!BS26 -> - | BR28: ='4บันทึกเวลาเรียน'!BT26 -> - | BS28: ='4บันทึกเวลาเรียน'!BU26 -> - | BT28: ='4บันทึกเวลาเรียน'!BV26 -> - | BU28: ='4บันทึกเวลาเรียน'!BW26 -> - | BV28: ='4บันทึกเวลาเรียน'!BX26 -> - | BW28: ='4บันทึกเวลาเรียน'!BY26 -> - | BX28: ='4บันทึกเวลาเรียน'!BZ26 -> - | BY28: ='4บันทึกเวลาเรียน'!CA26 -> - | BZ28: ='4บันทึกเวลาเรียน'!CB26 -> - | CA28: ='4บันทึกเวลาเรียน'!CC26 -> - | CB28: ='4บันทึกเวลาเรียน'!CD26 -> - | CC28: ='4บันทึกเวลาเรียน'!CE26 -> - | CD28: ='4บันทึกเวลาเรียน'!CF26 -> - | CE28: ='4บันทึกเวลาเรียน'!CG26 -> - | CF28: ='4บันทึกเวลาเรียน'!CH26 -> - | CG28: ='4บันทึกเวลาเรียน'!CI26 -> - | CH28: ='4บันทึกเวลาเรียน'!CJ26 -> - | CI28: ='4บันทึกเวลาเรียน'!CK26 -> - | CJ28: ='4บันทึกเวลาเรียน'!CL26 -> - | CK28: ='4บันทึกเวลาเรียน'!CM26 -> - | CL28: ='4บันทึกเวลาเรียน'!CN26 -> - | CM28: ='4บันทึกเวลาเรียน'!CO26 -> - | CN28: ='4บันทึกเวลาเรียน'!CP26 -> - | CO28: ='4บันทึกเวลาเรียน'!CQ26 -> - | CP28: ='4บันทึกเวลาเรียน'!CR26 -> - | CQ28: ='4บันทึกเวลาเรียน'!CS26 -> - | CR28: ='4บันทึกเวลาเรียน'!CT26 -> - | CS28: ='4บันทึกเวลาเรียน'!CU26 -> - | CT28: ='4บันทึกเวลาเรียน'!CV26 -> - | CU28: ='4บันทึกเวลาเรียน'!CW26 -> - | CV28: ='4บันทึกเวลาเรียน'!CX26 -> - | CW28: ='4บันทึกเวลาเรียน'!CY26 -> - | CX28: ='4บันทึกเวลาเรียน'!CZ26 -> - | CY28: ='4บันทึกเวลาเรียน'!DA26 -> - | CZ28: ='4บันทึกเวลาเรียน'!DB26 -> - | DB28: - | DC28: ='1ข้อมูลรายวิชา'!E23 -> 0 | DD28: ='1ข้อมูลรายวิชา'!F23 -> 0 | DE28: ='1ข้อมูลรายวิชา'!G23 -> 0 | DF28: ='1ข้อมูลรายวิชา'!H23 -> 0 | DG28: ='1ข้อมูลรายวิชา'!I23 -> 0 | DH28: ='1ข้อมูลรายวิชา'!J23 -> 0 | DI28: ='1ข้อมูลรายวิชา'!N23 -> 3 | DJ28: ='1ข้อมูลรายวิชา'!O23 -> 3
A29: 21 | B29: ='1ข้อมูลรายวิชา'!C24 -> 09463 | C29: ='1ข้อมูลรายวิชา'!D24 -> เด็กหญิงมินตรา รัตนประกอบ | D29: ='1ข้อมูลรายวิชา'!#REF! ->  | E29: ='4บันทึกเวลาเรียน'!G27 -> - | F29: ='4บันทึกเวลาเรียน'!H27 -> - | G29: ='4บันทึกเวลาเรียน'!I27 -> - | H29: ='4บันทึกเวลาเรียน'!J27 -> - | I29: ='4บันทึกเวลาเรียน'!K27 -> - | J29: ='4บันทึกเวลาเรียน'!L27 -> - | K29: ='4บันทึกเวลาเรียน'!M27 -> - | L29: ='4บันทึกเวลาเรียน'!N27 -> - | M29: ='4บันทึกเวลาเรียน'!O27 -> - | N29: ='4บันทึกเวลาเรียน'!P27 -> - | O29: ='4บันทึกเวลาเรียน'!Q27 -> - | P29: ='4บันทึกเวลาเรียน'!R27 -> - | Q29: ='4บันทึกเวลาเรียน'!S27 -> - | R29: ='4บันทึกเวลาเรียน'!T27 -> - | S29: ='4บันทึกเวลาเรียน'!U27 -> - | T29: ='4บันทึกเวลาเรียน'!V27 -> - | U29: ='4บันทึกเวลาเรียน'!W27 -> - | V29: ='4บันทึกเวลาเรียน'!X27 -> - | W29: ='4บันทึกเวลาเรียน'!Y27 -> - | X29: ='4บันทึกเวลาเรียน'!Z27 -> - | Y29: ='4บันทึกเวลาเรียน'!AA27 -> - | Z29: ='4บันทึกเวลาเรียน'!AB27 -> - | AA29: ='4บันทึกเวลาเรียน'!AC27 -> - | AB29: ='4บันทึกเวลาเรียน'!AD27 -> - | AC29: ='4บันทึกเวลาเรียน'!AE27 -> - | AD29: ='4บันทึกเวลาเรียน'!AF27 -> - | AE29: ='4บันทึกเวลาเรียน'!AG27 -> - | AF29: ='4บันทึกเวลาเรียน'!AH27 -> - | AG29: ='4บันทึกเวลาเรียน'!AI27 -> - | AH29: ='4บันทึกเวลาเรียน'!AJ27 -> - | AI29: ='4บันทึกเวลาเรียน'!AK27 -> - | AJ29: ='4บันทึกเวลาเรียน'!AL27 -> - | AK29: ='4บันทึกเวลาเรียน'!AM27 -> - | AL29: ='4บันทึกเวลาเรียน'!AN27 -> - | AM29: ='4บันทึกเวลาเรียน'!AO27 -> - | AN29: ='4บันทึกเวลาเรียน'!AP27 -> - | AO29: ='4บันทึกเวลาเรียน'!AQ27 -> - | AP29: ='4บันทึกเวลาเรียน'!AR27 -> - | AQ29: ='4บันทึกเวลาเรียน'!AS27 -> - | AR29: ='4บันทึกเวลาเรียน'!AT27 -> - | AS29: ='4บันทึกเวลาเรียน'!AU27 -> - | AT29: ='4บันทึกเวลาเรียน'!AV27 -> - | AU29: ='4บันทึกเวลาเรียน'!AW27 -> - | AV29: ='4บันทึกเวลาเรียน'!AX27 -> - | AW29: ='4บันทึกเวลาเรียน'!AY27 -> - | AX29: ='4บันทึกเวลาเรียน'!AZ27 -> - | AY29: ='4บันทึกเวลาเรียน'!BA27 -> - | AZ29: ='4บันทึกเวลาเรียน'!BB27 -> - | BA29: ='4บันทึกเวลาเรียน'!BC27 -> - | BB29: ='4บันทึกเวลาเรียน'!BD27 -> - | BC29: ='4บันทึกเวลาเรียน'!BE27 -> - | BD29: ='4บันทึกเวลาเรียน'!BF27 -> - | BE29: ='4บันทึกเวลาเรียน'!BG27 -> - | BF29: ='4บันทึกเวลาเรียน'!BH27 -> - | BG29: ='4บันทึกเวลาเรียน'!BI27 -> - | BH29: ='4บันทึกเวลาเรียน'!BJ27 -> - | BI29: ='4บันทึกเวลาเรียน'!BK27 -> - | BJ29: ='4บันทึกเวลาเรียน'!BL27 -> - | BK29: ='4บันทึกเวลาเรียน'!BM27 -> - | BL29: ='4บันทึกเวลาเรียน'!BN27 -> - | BM29: ='4บันทึกเวลาเรียน'!BO27 -> - | BN29: ='4บันทึกเวลาเรียน'!BP27 -> - | BO29: ='4บันทึกเวลาเรียน'!BQ27 -> - | BP29: ='4บันทึกเวลาเรียน'!BR27 -> - | BQ29: ='4บันทึกเวลาเรียน'!BS27 -> - | BR29: ='4บันทึกเวลาเรียน'!BT27 -> - | BS29: ='4บันทึกเวลาเรียน'!BU27 -> - | BT29: ='4บันทึกเวลาเรียน'!BV27 -> - | BU29: ='4บันทึกเวลาเรียน'!BW27 -> - | BV29: ='4บันทึกเวลาเรียน'!BX27 -> - | BW29: ='4บันทึกเวลาเรียน'!BY27 -> - | BX29: ='4บันทึกเวลาเรียน'!BZ27 -> - | BY29: ='4บันทึกเวลาเรียน'!CA27 -> - | BZ29: ='4บันทึกเวลาเรียน'!CB27 -> - | CA29: ='4บันทึกเวลาเรียน'!CC27 -> - | CB29: ='4บันทึกเวลาเรียน'!CD27 -> - | CC29: ='4บันทึกเวลาเรียน'!CE27 -> - | CD29: ='4บันทึกเวลาเรียน'!CF27 -> - | CE29: ='4บันทึกเวลาเรียน'!CG27 -> - | CF29: ='4บันทึกเวลาเรียน'!CH27 -> - | CG29: ='4บันทึกเวลาเรียน'!CI27 -> - | CH29: ='4บันทึกเวลาเรียน'!CJ27 -> - | CI29: ='4บันทึกเวลาเรียน'!CK27 -> - | CJ29: ='4บันทึกเวลาเรียน'!CL27 -> - | CK29: ='4บันทึกเวลาเรียน'!CM27 -> - | CL29: ='4บันทึกเวลาเรียน'!CN27 -> - | CM29: ='4บันทึกเวลาเรียน'!CO27 -> - | CN29: ='4บันทึกเวลาเรียน'!CP27 -> - | CO29: ='4บันทึกเวลาเรียน'!CQ27 -> - | CP29: ='4บันทึกเวลาเรียน'!CR27 -> - | CQ29: ='4บันทึกเวลาเรียน'!CS27 -> - | CR29: ='4บันทึกเวลาเรียน'!CT27 -> - | CS29: ='4บันทึกเวลาเรียน'!CU27 -> - | CT29: ='4บันทึกเวลาเรียน'!CV27 -> - | CU29: ='4บันทึกเวลาเรียน'!CW27 -> - | CV29: ='4บันทึกเวลาเรียน'!CX27 -> - | CW29: ='4บันทึกเวลาเรียน'!CY27 -> - | CX29: ='4บันทึกเวลาเรียน'!CZ27 -> - | CY29: ='4บันทึกเวลาเรียน'!DA27 -> - | CZ29: ='4บันทึกเวลาเรียน'!DB27 -> - | DB29: - | DC29: ='1ข้อมูลรายวิชา'!E24 -> 0 | DD29: ='1ข้อมูลรายวิชา'!F24 -> 0 | DE29: ='1ข้อมูลรายวิชา'!G24 -> 0 | DF29: ='1ข้อมูลรายวิชา'!H24 -> 0 | DG29: ='1ข้อมูลรายวิชา'!I24 -> 0 | DH29: ='1ข้อมูลรายวิชา'!J24 -> 0 | DI29: ='1ข้อมูลรายวิชา'!N24 -> 3 | DJ29: ='1ข้อมูลรายวิชา'!O24 -> 3
A30: 22 | B30: ='1ข้อมูลรายวิชา'!C25 -> 09464 | C30: ='1ข้อมูลรายวิชา'!D25 -> เด็กหญิงชัญญานุช พันธ์เทพ | D30: ='1ข้อมูลรายวิชา'!#REF! ->  | E30: ='4บันทึกเวลาเรียน'!G28 -> - | F30: ='4บันทึกเวลาเรียน'!H28 -> - | G30: ='4บันทึกเวลาเรียน'!I28 -> - | H30: ='4บันทึกเวลาเรียน'!J28 -> - | I30: ='4บันทึกเวลาเรียน'!K28 -> - | J30: ='4บันทึกเวลาเรียน'!L28 -> - | K30: ='4บันทึกเวลาเรียน'!M28 -> - | L30: ='4บันทึกเวลาเรียน'!N28 -> - | M30: ='4บันทึกเวลาเรียน'!O28 -> - | N30: ='4บันทึกเวลาเรียน'!P28 -> - | O30: ='4บันทึกเวลาเรียน'!Q28 -> - | P30: ='4บันทึกเวลาเรียน'!R28 -> - | Q30: ='4บันทึกเวลาเรียน'!S28 -> - | R30: ='4บันทึกเวลาเรียน'!T28 -> - | S30: ='4บันทึกเวลาเรียน'!U28 -> - | T30: ='4บันทึกเวลาเรียน'!V28 -> - | U30: ='4บันทึกเวลาเรียน'!W28 -> - | V30: ='4บันทึกเวลาเรียน'!X28 -> - | W30: ='4บันทึกเวลาเรียน'!Y28 -> - | X30: ='4บันทึกเวลาเรียน'!Z28 -> - | Y30: ='4บันทึกเวลาเรียน'!AA28 -> - | Z30: ='4บันทึกเวลาเรียน'!AB28 -> - | AA30: ='4บันทึกเวลาเรียน'!AC28 -> - | AB30: ='4บันทึกเวลาเรียน'!AD28 -> - | AC30: ='4บันทึกเวลาเรียน'!AE28 -> - | AD30: ='4บันทึกเวลาเรียน'!AF28 -> - | AE30: ='4บันทึกเวลาเรียน'!AG28 -> - | AF30: ='4บันทึกเวลาเรียน'!AH28 -> - | AG30: ='4บันทึกเวลาเรียน'!AI28 -> - | AH30: ='4บันทึกเวลาเรียน'!AJ28 -> - | AI30: ='4บันทึกเวลาเรียน'!AK28 -> - | AJ30: ='4บันทึกเวลาเรียน'!AL28 -> - | AK30: ='4บันทึกเวลาเรียน'!AM28 -> - | AL30: ='4บันทึกเวลาเรียน'!AN28 -> - | AM30: ='4บันทึกเวลาเรียน'!AO28 -> - | AN30: ='4บันทึกเวลาเรียน'!AP28 -> - | AO30: ='4บันทึกเวลาเรียน'!AQ28 -> - | AP30: ='4บันทึกเวลาเรียน'!AR28 -> - | AQ30: ='4บันทึกเวลาเรียน'!AS28 -> - | AR30: ='4บันทึกเวลาเรียน'!AT28 -> - | AS30: ='4บันทึกเวลาเรียน'!AU28 -> - | AT30: ='4บันทึกเวลาเรียน'!AV28 -> - | AU30: ='4บันทึกเวลาเรียน'!AW28 -> - | AV30: ='4บันทึกเวลาเรียน'!AX28 -> - | AW30: ='4บันทึกเวลาเรียน'!AY28 -> - | AX30: ='4บันทึกเวลาเรียน'!AZ28 -> - | AY30: ='4บันทึกเวลาเรียน'!BA28 -> - | AZ30: ='4บันทึกเวลาเรียน'!BB28 -> - | BA30: ='4บันทึกเวลาเรียน'!BC28 -> - | BB30: ='4บันทึกเวลาเรียน'!BD28 -> - | BC30: ='4บันทึกเวลาเรียน'!BE28 -> - | BD30: ='4บันทึกเวลาเรียน'!BF28 -> - | BE30: ='4บันทึกเวลาเรียน'!BG28 -> - | BF30: ='4บันทึกเวลาเรียน'!BH28 -> - | BG30: ='4บันทึกเวลาเรียน'!BI28 -> - | BH30: ='4บันทึกเวลาเรียน'!BJ28 -> - | BI30: ='4บันทึกเวลาเรียน'!BK28 -> - | BJ30: ='4บันทึกเวลาเรียน'!BL28 -> - | BK30: ='4บันทึกเวลาเรียน'!BM28 -> - | BL30: ='4บันทึกเวลาเรียน'!BN28 -> - | BM30: ='4บันทึกเวลาเรียน'!BO28 -> - | BN30: ='4บันทึกเวลาเรียน'!BP28 -> - | BO30: ='4บันทึกเวลาเรียน'!BQ28 -> - | BP30: ='4บันทึกเวลาเรียน'!BR28 -> - | BQ30: ='4บันทึกเวลาเรียน'!BS28 -> - | BR30: ='4บันทึกเวลาเรียน'!BT28 -> - | BS30: ='4บันทึกเวลาเรียน'!BU28 -> - | BT30: ='4บันทึกเวลาเรียน'!BV28 -> - | BU30: ='4บันทึกเวลาเรียน'!BW28 -> - | BV30: ='4บันทึกเวลาเรียน'!BX28 -> - | BW30: ='4บันทึกเวลาเรียน'!BY28 -> - | BX30: ='4บันทึกเวลาเรียน'!BZ28 -> - | BY30: ='4บันทึกเวลาเรียน'!CA28 -> - | BZ30: ='4บันทึกเวลาเรียน'!CB28 -> - | CA30: ='4บันทึกเวลาเรียน'!CC28 -> - | CB30: ='4บันทึกเวลาเรียน'!CD28 -> - | CC30: ='4บันทึกเวลาเรียน'!CE28 -> - | CD30: ='4บันทึกเวลาเรียน'!CF28 -> - | CE30: ='4บันทึกเวลาเรียน'!CG28 -> - | CF30: ='4บันทึกเวลาเรียน'!CH28 -> - | CG30: ='4บันทึกเวลาเรียน'!CI28 -> - | CH30: ='4บันทึกเวลาเรียน'!CJ28 -> - | CI30: ='4บันทึกเวลาเรียน'!CK28 -> - | CJ30: ='4บันทึกเวลาเรียน'!CL28 -> - | CK30: ='4บันทึกเวลาเรียน'!CM28 -> - | CL30: ='4บันทึกเวลาเรียน'!CN28 -> - | CM30: ='4บันทึกเวลาเรียน'!CO28 -> - | CN30: ='4บันทึกเวลาเรียน'!CP28 -> - | CO30: ='4บันทึกเวลาเรียน'!CQ28 -> - | CP30: ='4บันทึกเวลาเรียน'!CR28 -> - | CQ30: ='4บันทึกเวลาเรียน'!CS28 -> - | CR30: ='4บันทึกเวลาเรียน'!CT28 -> - | CS30: ='4บันทึกเวลาเรียน'!CU28 -> - | CT30: ='4บันทึกเวลาเรียน'!CV28 -> - | CU30: ='4บันทึกเวลาเรียน'!CW28 -> - | CV30: ='4บันทึกเวลาเรียน'!CX28 -> - | CW30: ='4บันทึกเวลาเรียน'!CY28 -> - | CX30: ='4บันทึกเวลาเรียน'!CZ28 -> - | CY30: ='4บันทึกเวลาเรียน'!DA28 -> - | CZ30: ='4บันทึกเวลาเรียน'!DB28 -> - | DB30: - | DC30: ='1ข้อมูลรายวิชา'!E25 -> 0 | DD30: ='1ข้อมูลรายวิชา'!F25 -> 0 | DE30: ='1ข้อมูลรายวิชา'!G25 -> 0 | DF30: ='1ข้อมูลรายวิชา'!H25 -> 0 | DG30: ='1ข้อมูลรายวิชา'!I25 -> 0 | DH30: ='1ข้อมูลรายวิชา'!J25 -> 0 | DI30: ='1ข้อมูลรายวิชา'!N25 -> 3 | DJ30: ='1ข้อมูลรายวิชา'!O25 -> 3
A31: 23 | B31: ='1ข้อมูลรายวิชา'!C26 -> 09465 | C31: ='1ข้อมูลรายวิชา'!D26 -> เด็กหญิงธิภาดา จันศรีลา | D31: ='1ข้อมูลรายวิชา'!#REF! ->  | E31: ='4บันทึกเวลาเรียน'!G29 -> - | F31: ='4บันทึกเวลาเรียน'!H29 -> - | G31: ='4บันทึกเวลาเรียน'!I29 -> - | H31: ='4บันทึกเวลาเรียน'!J29 -> - | I31: ='4บันทึกเวลาเรียน'!K29 -> - | J31: ='4บันทึกเวลาเรียน'!L29 -> - | K31: ='4บันทึกเวลาเรียน'!M29 -> - | L31: ='4บันทึกเวลาเรียน'!N29 -> - | M31: ='4บันทึกเวลาเรียน'!O29 -> - | N31: ='4บันทึกเวลาเรียน'!P29 -> - | O31: ='4บันทึกเวลาเรียน'!Q29 -> - | P31: ='4บันทึกเวลาเรียน'!R29 -> - | Q31: ='4บันทึกเวลาเรียน'!S29 -> - | R31: ='4บันทึกเวลาเรียน'!T29 -> - | S31: ='4บันทึกเวลาเรียน'!U29 -> - | T31: ='4บันทึกเวลาเรียน'!V29 -> - | U31: ='4บันทึกเวลาเรียน'!W29 -> - | V31: ='4บันทึกเวลาเรียน'!X29 -> - | W31: ='4บันทึกเวลาเรียน'!Y29 -> - | X31: ='4บันทึกเวลาเรียน'!Z29 -> - | Y31: ='4บันทึกเวลาเรียน'!AA29 -> - | Z31: ='4บันทึกเวลาเรียน'!AB29 -> - | AA31: ='4บันทึกเวลาเรียน'!AC29 -> - | AB31: ='4บันทึกเวลาเรียน'!AD29 -> - | AC31: ='4บันทึกเวลาเรียน'!AE29 -> - | AD31: ='4บันทึกเวลาเรียน'!AF29 -> - | AE31: ='4บันทึกเวลาเรียน'!AG29 -> - | AF31: ='4บันทึกเวลาเรียน'!AH29 -> - | AG31: ='4บันทึกเวลาเรียน'!AI29 -> - | AH31: ='4บันทึกเวลาเรียน'!AJ29 -> - | AI31: ='4บันทึกเวลาเรียน'!AK29 -> - | AJ31: ='4บันทึกเวลาเรียน'!AL29 -> - | AK31: ='4บันทึกเวลาเรียน'!AM29 -> - | AL31: ='4บันทึกเวลาเรียน'!AN29 -> - | AM31: ='4บันทึกเวลาเรียน'!AO29 -> - | AN31: ='4บันทึกเวลาเรียน'!AP29 -> - | AO31: ='4บันทึกเวลาเรียน'!AQ29 -> - | AP31: ='4บันทึกเวลาเรียน'!AR29 -> - | AQ31: ='4บันทึกเวลาเรียน'!AS29 -> - | AR31: ='4บันทึกเวลาเรียน'!AT29 -> - | AS31: ='4บันทึกเวลาเรียน'!AU29 -> - | AT31: ='4บันทึกเวลาเรียน'!AV29 -> - | AU31: ='4บันทึกเวลาเรียน'!AW29 -> - | AV31: ='4บันทึกเวลาเรียน'!AX29 -> - | AW31: ='4บันทึกเวลาเรียน'!AY29 -> - | AX31: ='4บันทึกเวลาเรียน'!AZ29 -> - | AY31: ='4บันทึกเวลาเรียน'!BA29 -> - | AZ31: ='4บันทึกเวลาเรียน'!BB29 -> - | BA31: ='4บันทึกเวลาเรียน'!BC29 -> - | BB31: ='4บันทึกเวลาเรียน'!BD29 -> - | BC31: ='4บันทึกเวลาเรียน'!BE29 -> - | BD31: ='4บันทึกเวลาเรียน'!BF29 -> - | BE31: ='4บันทึกเวลาเรียน'!BG29 -> - | BF31: ='4บันทึกเวลาเรียน'!BH29 -> - | BG31: ='4บันทึกเวลาเรียน'!BI29 -> - | BH31: ='4บันทึกเวลาเรียน'!BJ29 -> - | BI31: ='4บันทึกเวลาเรียน'!BK29 -> - | BJ31: ='4บันทึกเวลาเรียน'!BL29 -> - | BK31: ='4บันทึกเวลาเรียน'!BM29 -> - | BL31: ='4บันทึกเวลาเรียน'!BN29 -> - | BM31: ='4บันทึกเวลาเรียน'!BO29 -> - | BN31: ='4บันทึกเวลาเรียน'!BP29 -> - | BO31: ='4บันทึกเวลาเรียน'!BQ29 -> - | BP31: ='4บันทึกเวลาเรียน'!BR29 -> - | BQ31: ='4บันทึกเวลาเรียน'!BS29 -> - | BR31: ='4บันทึกเวลาเรียน'!BT29 -> - | BS31: ='4บันทึกเวลาเรียน'!BU29 -> - | BT31: ='4บันทึกเวลาเรียน'!BV29 -> - | BU31: ='4บันทึกเวลาเรียน'!BW29 -> - | BV31: ='4บันทึกเวลาเรียน'!BX29 -> - | BW31: ='4บันทึกเวลาเรียน'!BY29 -> - | BX31: ='4บันทึกเวลาเรียน'!BZ29 -> - | BY31: ='4บันทึกเวลาเรียน'!CA29 -> - | BZ31: ='4บันทึกเวลาเรียน'!CB29 -> - | CA31: ='4บันทึกเวลาเรียน'!CC29 -> - | CB31: ='4บันทึกเวลาเรียน'!CD29 -> - | CC31: ='4บันทึกเวลาเรียน'!CE29 -> - | CD31: ='4บันทึกเวลาเรียน'!CF29 -> - | CE31: ='4บันทึกเวลาเรียน'!CG29 -> - | CF31: ='4บันทึกเวลาเรียน'!CH29 -> - | CG31: ='4บันทึกเวลาเรียน'!CI29 -> - | CH31: ='4บันทึกเวลาเรียน'!CJ29 -> - | CI31: ='4บันทึกเวลาเรียน'!CK29 -> - | CJ31: ='4บันทึกเวลาเรียน'!CL29 -> - | CK31: ='4บันทึกเวลาเรียน'!CM29 -> - | CL31: ='4บันทึกเวลาเรียน'!CN29 -> - | CM31: ='4บันทึกเวลาเรียน'!CO29 -> - | CN31: ='4บันทึกเวลาเรียน'!CP29 -> - | CO31: ='4บันทึกเวลาเรียน'!CQ29 -> - | CP31: ='4บันทึกเวลาเรียน'!CR29 -> - | CQ31: ='4บันทึกเวลาเรียน'!CS29 -> - | CR31: ='4บันทึกเวลาเรียน'!CT29 -> - | CS31: ='4บันทึกเวลาเรียน'!CU29 -> - | CT31: ='4บันทึกเวลาเรียน'!CV29 -> - | CU31: ='4บันทึกเวลาเรียน'!CW29 -> - | CV31: ='4บันทึกเวลาเรียน'!CX29 -> - | CW31: ='4บันทึกเวลาเรียน'!CY29 -> - | CX31: ='4บันทึกเวลาเรียน'!CZ29 -> - | CY31: ='4บันทึกเวลาเรียน'!DA29 -> - | CZ31: ='4บันทึกเวลาเรียน'!DB29 -> - | DB31: - | DC31: ='1ข้อมูลรายวิชา'!E26 -> 0 | DD31: ='1ข้อมูลรายวิชา'!F26 -> 0 | DE31: ='1ข้อมูลรายวิชา'!G26 -> 0 | DF31: ='1ข้อมูลรายวิชา'!H26 -> 0 | DG31: ='1ข้อมูลรายวิชา'!I26 -> 0 | DH31: ='1ข้อมูลรายวิชา'!J26 -> 0 | DI31: ='1ข้อมูลรายวิชา'!N26 -> 3 | DJ31: ='1ข้อมูลรายวิชา'!O26 -> 3
A32: 24 | B32: ='1ข้อมูลรายวิชา'!C27 -> 09466 | C32: ='1ข้อมูลรายวิชา'!D27 -> เด็กหญิงนิศามณี นาคสวัสดิ์ | D32: ='1ข้อมูลรายวิชา'!#REF! ->  | E32: ='4บันทึกเวลาเรียน'!G30 -> - | F32: ='4บันทึกเวลาเรียน'!H30 -> - | G32: ='4บันทึกเวลาเรียน'!I30 -> - | H32: ='4บันทึกเวลาเรียน'!J30 -> - | I32: ='4บันทึกเวลาเรียน'!K30 -> - | J32: ='4บันทึกเวลาเรียน'!L30 -> - | K32: ='4บันทึกเวลาเรียน'!M30 -> - | L32: ='4บันทึกเวลาเรียน'!N30 -> - | M32: ='4บันทึกเวลาเรียน'!O30 -> - | N32: ='4บันทึกเวลาเรียน'!P30 -> - | O32: ='4บันทึกเวลาเรียน'!Q30 -> - | P32: ='4บันทึกเวลาเรียน'!R30 -> - | Q32: ='4บันทึกเวลาเรียน'!S30 -> - | R32: ='4บันทึกเวลาเรียน'!T30 -> - | S32: ='4บันทึกเวลาเรียน'!U30 -> - | T32: ='4บันทึกเวลาเรียน'!V30 -> - | U32: ='4บันทึกเวลาเรียน'!W30 -> - | V32: ='4บันทึกเวลาเรียน'!X30 -> - | W32: ='4บันทึกเวลาเรียน'!Y30 -> - | X32: ='4บันทึกเวลาเรียน'!Z30 -> - | Y32: ='4บันทึกเวลาเรียน'!AA30 -> - | Z32: ='4บันทึกเวลาเรียน'!AB30 -> - | AA32: ='4บันทึกเวลาเรียน'!AC30 -> - | AB32: ='4บันทึกเวลาเรียน'!AD30 -> - | AC32: ='4บันทึกเวลาเรียน'!AE30 -> - | AD32: ='4บันทึกเวลาเรียน'!AF30 -> - | AE32: ='4บันทึกเวลาเรียน'!AG30 -> - | AF32: ='4บันทึกเวลาเรียน'!AH30 -> - | AG32: ='4บันทึกเวลาเรียน'!AI30 -> - | AH32: ='4บันทึกเวลาเรียน'!AJ30 -> - | AI32: ='4บันทึกเวลาเรียน'!AK30 -> - | AJ32: ='4บันทึกเวลาเรียน'!AL30 -> - | AK32: ='4บันทึกเวลาเรียน'!AM30 -> - | AL32: ='4บันทึกเวลาเรียน'!AN30 -> - | AM32: ='4บันทึกเวลาเรียน'!AO30 -> - | AN32: ='4บันทึกเวลาเรียน'!AP30 -> - | AO32: ='4บันทึกเวลาเรียน'!AQ30 -> - | AP32: ='4บันทึกเวลาเรียน'!AR30 -> - | AQ32: ='4บันทึกเวลาเรียน'!AS30 -> - | AR32: ='4บันทึกเวลาเรียน'!AT30 -> - | AS32: ='4บันทึกเวลาเรียน'!AU30 -> - | AT32: ='4บันทึกเวลาเรียน'!AV30 -> - | AU32: ='4บันทึกเวลาเรียน'!AW30 -> - | AV32: ='4บันทึกเวลาเรียน'!AX30 -> - | AW32: ='4บันทึกเวลาเรียน'!AY30 -> - | AX32: ='4บันทึกเวลาเรียน'!AZ30 -> - | AY32: ='4บันทึกเวลาเรียน'!BA30 -> - | AZ32: ='4บันทึกเวลาเรียน'!BB30 -> - | BA32: ='4บันทึกเวลาเรียน'!BC30 -> - | BB32: ='4บันทึกเวลาเรียน'!BD30 -> - | BC32: ='4บันทึกเวลาเรียน'!BE30 -> - | BD32: ='4บันทึกเวลาเรียน'!BF30 -> - | BE32: ='4บันทึกเวลาเรียน'!BG30 -> - | BF32: ='4บันทึกเวลาเรียน'!BH30 -> - | BG32: ='4บันทึกเวลาเรียน'!BI30 -> - | BH32: ='4บันทึกเวลาเรียน'!BJ30 -> - | BI32: ='4บันทึกเวลาเรียน'!BK30 -> - | BJ32: ='4บันทึกเวลาเรียน'!BL30 -> - | BK32: ='4บันทึกเวลาเรียน'!BM30 -> - | BL32: ='4บันทึกเวลาเรียน'!BN30 -> - | BM32: ='4บันทึกเวลาเรียน'!BO30 -> - | BN32: ='4บันทึกเวลาเรียน'!BP30 -> - | BO32: ='4บันทึกเวลาเรียน'!BQ30 -> - | BP32: ='4บันทึกเวลาเรียน'!BR30 -> - | BQ32: ='4บันทึกเวลาเรียน'!BS30 -> - | BR32: ='4บันทึกเวลาเรียน'!BT30 -> - | BS32: ='4บันทึกเวลาเรียน'!BU30 -> - | BT32: ='4บันทึกเวลาเรียน'!BV30 -> - | BU32: ='4บันทึกเวลาเรียน'!BW30 -> - | BV32: ='4บันทึกเวลาเรียน'!BX30 -> - | BW32: ='4บันทึกเวลาเรียน'!BY30 -> - | BX32: ='4บันทึกเวลาเรียน'!BZ30 -> - | BY32: ='4บันทึกเวลาเรียน'!CA30 -> - | BZ32: ='4บันทึกเวลาเรียน'!CB30 -> - | CA32: ='4บันทึกเวลาเรียน'!CC30 -> - | CB32: ='4บันทึกเวลาเรียน'!CD30 -> - | CC32: ='4บันทึกเวลาเรียน'!CE30 -> - | CD32: ='4บันทึกเวลาเรียน'!CF30 -> - | CE32: ='4บันทึกเวลาเรียน'!CG30 -> - | CF32: ='4บันทึกเวลาเรียน'!CH30 -> - | CG32: ='4บันทึกเวลาเรียน'!CI30 -> - | CH32: ='4บันทึกเวลาเรียน'!CJ30 -> - | CI32: ='4บันทึกเวลาเรียน'!CK30 -> - | CJ32: ='4บันทึกเวลาเรียน'!CL30 -> - | CK32: ='4บันทึกเวลาเรียน'!CM30 -> - | CL32: ='4บันทึกเวลาเรียน'!CN30 -> - | CM32: ='4บันทึกเวลาเรียน'!CO30 -> - | CN32: ='4บันทึกเวลาเรียน'!CP30 -> - | CO32: ='4บันทึกเวลาเรียน'!CQ30 -> - | CP32: ='4บันทึกเวลาเรียน'!CR30 -> - | CQ32: ='4บันทึกเวลาเรียน'!CS30 -> - | CR32: ='4บันทึกเวลาเรียน'!CT30 -> - | CS32: ='4บันทึกเวลาเรียน'!CU30 -> - | CT32: ='4บันทึกเวลาเรียน'!CV30 -> - | CU32: ='4บันทึกเวลาเรียน'!CW30 -> - | CV32: ='4บันทึกเวลาเรียน'!CX30 -> - | CW32: ='4บันทึกเวลาเรียน'!CY30 -> - | CX32: ='4บันทึกเวลาเรียน'!CZ30 -> - | CY32: ='4บันทึกเวลาเรียน'!DA30 -> - | CZ32: ='4บันทึกเวลาเรียน'!DB30 -> - | DB32: - | DC32: ='1ข้อมูลรายวิชา'!E27 -> 0 | DD32: ='1ข้อมูลรายวิชา'!F27 -> 0 | DE32: ='1ข้อมูลรายวิชา'!G27 -> 0 | DF32: ='1ข้อมูลรายวิชา'!H27 -> 0 | DG32: ='1ข้อมูลรายวิชา'!I27 -> 0 | DH32: ='1ข้อมูลรายวิชา'!J27 -> 0 | DI32: ='1ข้อมูลรายวิชา'!N27 -> 3 | DJ32: ='1ข้อมูลรายวิชา'!O27 -> 3
A33: 25 | B33: ='1ข้อมูลรายวิชา'!C28 -> 09467 | C33: ='1ข้อมูลรายวิชา'!D28 -> เด็กหญิงบุณยาพร มาเอี่ยม | D33: ='1ข้อมูลรายวิชา'!#REF! ->  | E33: ='4บันทึกเวลาเรียน'!G31 -> - | F33: ='4บันทึกเวลาเรียน'!H31 -> - | G33: ='4บันทึกเวลาเรียน'!I31 -> - | H33: ='4บันทึกเวลาเรียน'!J31 -> - | I33: ='4บันทึกเวลาเรียน'!K31 -> - | J33: ='4บันทึกเวลาเรียน'!L31 -> - | K33: ='4บันทึกเวลาเรียน'!M31 -> - | L33: ='4บันทึกเวลาเรียน'!N31 -> - | M33: ='4บันทึกเวลาเรียน'!O31 -> - | N33: ='4บันทึกเวลาเรียน'!P31 -> - | O33: ='4บันทึกเวลาเรียน'!Q31 -> - | P33: ='4บันทึกเวลาเรียน'!R31 -> - | Q33: ='4บันทึกเวลาเรียน'!S31 -> - | R33: ='4บันทึกเวลาเรียน'!T31 -> - | S33: ='4บันทึกเวลาเรียน'!U31 -> - | T33: ='4บันทึกเวลาเรียน'!V31 -> - | U33: ='4บันทึกเวลาเรียน'!W31 -> - | V33: ='4บันทึกเวลาเรียน'!X31 -> - | W33: ='4บันทึกเวลาเรียน'!Y31 -> - | X33: ='4บันทึกเวลาเรียน'!Z31 -> - | Y33: ='4บันทึกเวลาเรียน'!AA31 -> - | Z33: ='4บันทึกเวลาเรียน'!AB31 -> - | AA33: ='4บันทึกเวลาเรียน'!AC31 -> - | AB33: ='4บันทึกเวลาเรียน'!AD31 -> - | AC33: ='4บันทึกเวลาเรียน'!AE31 -> - | AD33: ='4บันทึกเวลาเรียน'!AF31 -> - | AE33: ='4บันทึกเวลาเรียน'!AG31 -> - | AF33: ='4บันทึกเวลาเรียน'!AH31 -> - | AG33: ='4บันทึกเวลาเรียน'!AI31 -> - | AH33: ='4บันทึกเวลาเรียน'!AJ31 -> - | AI33: ='4บันทึกเวลาเรียน'!AK31 -> - | AJ33: ='4บันทึกเวลาเรียน'!AL31 -> - | AK33: ='4บันทึกเวลาเรียน'!AM31 -> - | AL33: ='4บันทึกเวลาเรียน'!AN31 -> - | AM33: ='4บันทึกเวลาเรียน'!AO31 -> - | AN33: ='4บันทึกเวลาเรียน'!AP31 -> - | AO33: ='4บันทึกเวลาเรียน'!AQ31 -> - | AP33: ='4บันทึกเวลาเรียน'!AR31 -> - | AQ33: ='4บันทึกเวลาเรียน'!AS31 -> - | AR33: ='4บันทึกเวลาเรียน'!AT31 -> - | AS33: ='4บันทึกเวลาเรียน'!AU31 -> - | AT33: ='4บันทึกเวลาเรียน'!AV31 -> - | AU33: ='4บันทึกเวลาเรียน'!AW31 -> - | AV33: ='4บันทึกเวลาเรียน'!AX31 -> - | AW33: ='4บันทึกเวลาเรียน'!AY31 -> - | AX33: ='4บันทึกเวลาเรียน'!AZ31 -> - | AY33: ='4บันทึกเวลาเรียน'!BA31 -> - | AZ33: ='4บันทึกเวลาเรียน'!BB31 -> - | BA33: ='4บันทึกเวลาเรียน'!BC31 -> - | BB33: ='4บันทึกเวลาเรียน'!BD31 -> - | BC33: ='4บันทึกเวลาเรียน'!BE31 -> - | BD33: ='4บันทึกเวลาเรียน'!BF31 -> - | BE33: ='4บันทึกเวลาเรียน'!BG31 -> - | BF33: ='4บันทึกเวลาเรียน'!BH31 -> - | BG33: ='4บันทึกเวลาเรียน'!BI31 -> - | BH33: ='4บันทึกเวลาเรียน'!BJ31 -> - | BI33: ='4บันทึกเวลาเรียน'!BK31 -> - | BJ33: ='4บันทึกเวลาเรียน'!BL31 -> - | BK33: ='4บันทึกเวลาเรียน'!BM31 -> - | BL33: ='4บันทึกเวลาเรียน'!BN31 -> - | BM33: ='4บันทึกเวลาเรียน'!BO31 -> - | BN33: ='4บันทึกเวลาเรียน'!BP31 -> - | BO33: ='4บันทึกเวลาเรียน'!BQ31 -> - | BP33: ='4บันทึกเวลาเรียน'!BR31 -> - | BQ33: ='4บันทึกเวลาเรียน'!BS31 -> - | BR33: ='4บันทึกเวลาเรียน'!BT31 -> - | BS33: ='4บันทึกเวลาเรียน'!BU31 -> - | BT33: ='4บันทึกเวลาเรียน'!BV31 -> - | BU33: ='4บันทึกเวลาเรียน'!BW31 -> - | BV33: ='4บันทึกเวลาเรียน'!BX31 -> - | BW33: ='4บันทึกเวลาเรียน'!BY31 -> - | BX33: ='4บันทึกเวลาเรียน'!BZ31 -> - | BY33: ='4บันทึกเวลาเรียน'!CA31 -> - | BZ33: ='4บันทึกเวลาเรียน'!CB31 -> - | CA33: ='4บันทึกเวลาเรียน'!CC31 -> - | CB33: ='4บันทึกเวลาเรียน'!CD31 -> - | CC33: ='4บันทึกเวลาเรียน'!CE31 -> - | CD33: ='4บันทึกเวลาเรียน'!CF31 -> - | CE33: ='4บันทึกเวลาเรียน'!CG31 -> - | CF33: ='4บันทึกเวลาเรียน'!CH31 -> - | CG33: ='4บันทึกเวลาเรียน'!CI31 -> - | CH33: ='4บันทึกเวลาเรียน'!CJ31 -> - | CI33: ='4บันทึกเวลาเรียน'!CK31 -> - | CJ33: ='4บันทึกเวลาเรียน'!CL31 -> - | CK33: ='4บันทึกเวลาเรียน'!CM31 -> - | CL33: ='4บันทึกเวลาเรียน'!CN31 -> - | CM33: ='4บันทึกเวลาเรียน'!CO31 -> - | CN33: ='4บันทึกเวลาเรียน'!CP31 -> - | CO33: ='4บันทึกเวลาเรียน'!CQ31 -> - | CP33: ='4บันทึกเวลาเรียน'!CR31 -> - | CQ33: ='4บันทึกเวลาเรียน'!CS31 -> - | CR33: ='4บันทึกเวลาเรียน'!CT31 -> - | CS33: ='4บันทึกเวลาเรียน'!CU31 -> - | CT33: ='4บันทึกเวลาเรียน'!CV31 -> - | CU33: ='4บันทึกเวลาเรียน'!CW31 -> - | CV33: ='4บันทึกเวลาเรียน'!CX31 -> - | CW33: ='4บันทึกเวลาเรียน'!CY31 -> - | CX33: ='4บันทึกเวลาเรียน'!CZ31 -> - | CY33: ='4บันทึกเวลาเรียน'!DA31 -> - | CZ33: ='4บันทึกเวลาเรียน'!DB31 -> - | DB33: - | DC33: ='1ข้อมูลรายวิชา'!E28 -> 0 | DD33: ='1ข้อมูลรายวิชา'!F28 -> 0 | DE33: ='1ข้อมูลรายวิชา'!G28 -> 0 | DF33: ='1ข้อมูลรายวิชา'!H28 -> 0 | DG33: ='1ข้อมูลรายวิชา'!I28 -> 0 | DH33: ='1ข้อมูลรายวิชา'!J28 -> 0 | DI33: ='1ข้อมูลรายวิชา'!N28 -> 3 | DJ33: ='1ข้อมูลรายวิชา'!O28 -> 3
A34: 26 | B34: ='1ข้อมูลรายวิชา'!C29 -> 09468 | C34: ='1ข้อมูลรายวิชา'!D29 -> เด็กหญิงปิยะวดี วรรณสุทธิ์ | D34: ='1ข้อมูลรายวิชา'!#REF! ->  | E34: ='4บันทึกเวลาเรียน'!G32 -> - | F34: ='4บันทึกเวลาเรียน'!H32 -> - | G34: ='4บันทึกเวลาเรียน'!I32 -> - | H34: ='4บันทึกเวลาเรียน'!J32 -> - | I34: ='4บันทึกเวลาเรียน'!K32 -> - | J34: ='4บันทึกเวลาเรียน'!L32 -> - | K34: ='4บันทึกเวลาเรียน'!M32 -> - | L34: ='4บันทึกเวลาเรียน'!N32 -> - | M34: ='4บันทึกเวลาเรียน'!O32 -> - | N34: ='4บันทึกเวลาเรียน'!P32 -> - | O34: ='4บันทึกเวลาเรียน'!Q32 -> - | P34: ='4บันทึกเวลาเรียน'!R32 -> - | Q34: ='4บันทึกเวลาเรียน'!S32 -> - | R34: ='4บันทึกเวลาเรียน'!T32 -> - | S34: ='4บันทึกเวลาเรียน'!U32 -> - | T34: ='4บันทึกเวลาเรียน'!V32 -> - | U34: ='4บันทึกเวลาเรียน'!W32 -> - | V34: ='4บันทึกเวลาเรียน'!X32 -> - | W34: ='4บันทึกเวลาเรียน'!Y32 -> - | X34: ='4บันทึกเวลาเรียน'!Z32 -> - | Y34: ='4บันทึกเวลาเรียน'!AA32 -> - | Z34: ='4บันทึกเวลาเรียน'!AB32 -> - | AA34: ='4บันทึกเวลาเรียน'!AC32 -> - | AB34: ='4บันทึกเวลาเรียน'!AD32 -> - | AC34: ='4บันทึกเวลาเรียน'!AE32 -> - | AD34: ='4บันทึกเวลาเรียน'!AF32 -> - | AE34: ='4บันทึกเวลาเรียน'!AG32 -> - | AF34: ='4บันทึกเวลาเรียน'!AH32 -> - | AG34: ='4บันทึกเวลาเรียน'!AI32 -> - | AH34: ='4บันทึกเวลาเรียน'!AJ32 -> - | AI34: ='4บันทึกเวลาเรียน'!AK32 -> - | AJ34: ='4บันทึกเวลาเรียน'!AL32 -> - | AK34: ='4บันทึกเวลาเรียน'!AM32 -> - | AL34: ='4บันทึกเวลาเรียน'!AN32 -> - | AM34: ='4บันทึกเวลาเรียน'!AO32 -> - | AN34: ='4บันทึกเวลาเรียน'!AP32 -> - | AO34: ='4บันทึกเวลาเรียน'!AQ32 -> - | AP34: ='4บันทึกเวลาเรียน'!AR32 -> - | AQ34: ='4บันทึกเวลาเรียน'!AS32 -> - | AR34: ='4บันทึกเวลาเรียน'!AT32 -> - | AS34: ='4บันทึกเวลาเรียน'!AU32 -> - | AT34: ='4บันทึกเวลาเรียน'!AV32 -> - | AU34: ='4บันทึกเวลาเรียน'!AW32 -> - | AV34: ='4บันทึกเวลาเรียน'!AX32 -> - | AW34: ='4บันทึกเวลาเรียน'!AY32 -> - | AX34: ='4บันทึกเวลาเรียน'!AZ32 -> - | AY34: ='4บันทึกเวลาเรียน'!BA32 -> - | AZ34: ='4บันทึกเวลาเรียน'!BB32 -> - | BA34: ='4บันทึกเวลาเรียน'!BC32 -> - | BB34: ='4บันทึกเวลาเรียน'!BD32 -> - | BC34: ='4บันทึกเวลาเรียน'!BE32 -> - | BD34: ='4บันทึกเวลาเรียน'!BF32 -> - | BE34: ='4บันทึกเวลาเรียน'!BG32 -> - | BF34: ='4บันทึกเวลาเรียน'!BH32 -> - | BG34: ='4บันทึกเวลาเรียน'!BI32 -> - | BH34: ='4บันทึกเวลาเรียน'!BJ32 -> - | BI34: ='4บันทึกเวลาเรียน'!BK32 -> - | BJ34: ='4บันทึกเวลาเรียน'!BL32 -> - | BK34: ='4บันทึกเวลาเรียน'!BM32 -> - | BL34: ='4บันทึกเวลาเรียน'!BN32 -> - | BM34: ='4บันทึกเวลาเรียน'!BO32 -> - | BN34: ='4บันทึกเวลาเรียน'!BP32 -> - | BO34: ='4บันทึกเวลาเรียน'!BQ32 -> - | BP34: ='4บันทึกเวลาเรียน'!BR32 -> - | BQ34: ='4บันทึกเวลาเรียน'!BS32 -> - | BR34: ='4บันทึกเวลาเรียน'!BT32 -> - | BS34: ='4บันทึกเวลาเรียน'!BU32 -> - | BT34: ='4บันทึกเวลาเรียน'!BV32 -> - | BU34: ='4บันทึกเวลาเรียน'!BW32 -> - | BV34: ='4บันทึกเวลาเรียน'!BX32 -> - | BW34: ='4บันทึกเวลาเรียน'!BY32 -> - | BX34: ='4บันทึกเวลาเรียน'!BZ32 -> - | BY34: ='4บันทึกเวลาเรียน'!CA32 -> - | BZ34: ='4บันทึกเวลาเรียน'!CB32 -> - | CA34: ='4บันทึกเวลาเรียน'!CC32 -> - | CB34: ='4บันทึกเวลาเรียน'!CD32 -> - | CC34: ='4บันทึกเวลาเรียน'!CE32 -> - | CD34: ='4บันทึกเวลาเรียน'!CF32 -> - | CE34: ='4บันทึกเวลาเรียน'!CG32 -> - | CF34: ='4บันทึกเวลาเรียน'!CH32 -> - | CG34: ='4บันทึกเวลาเรียน'!CI32 -> - | CH34: ='4บันทึกเวลาเรียน'!CJ32 -> - | CI34: ='4บันทึกเวลาเรียน'!CK32 -> - | CJ34: ='4บันทึกเวลาเรียน'!CL32 -> - | CK34: ='4บันทึกเวลาเรียน'!CM32 -> - | CL34: ='4บันทึกเวลาเรียน'!CN32 -> - | CM34: ='4บันทึกเวลาเรียน'!CO32 -> - | CN34: ='4บันทึกเวลาเรียน'!CP32 -> - | CO34: ='4บันทึกเวลาเรียน'!CQ32 -> - | CP34: ='4บันทึกเวลาเรียน'!CR32 -> - | CQ34: ='4บันทึกเวลาเรียน'!CS32 -> - | CR34: ='4บันทึกเวลาเรียน'!CT32 -> - | CS34: ='4บันทึกเวลาเรียน'!CU32 -> - | CT34: ='4บันทึกเวลาเรียน'!CV32 -> - | CU34: ='4บันทึกเวลาเรียน'!CW32 -> - | CV34: ='4บันทึกเวลาเรียน'!CX32 -> - | CW34: ='4บันทึกเวลาเรียน'!CY32 -> - | CX34: ='4บันทึกเวลาเรียน'!CZ32 -> - | CY34: ='4บันทึกเวลาเรียน'!DA32 -> - | CZ34: ='4บันทึกเวลาเรียน'!DB32 -> - | DB34: - | DC34: ='1ข้อมูลรายวิชา'!E29 -> 0 | DD34: ='1ข้อมูลรายวิชา'!F29 -> 0 | DE34: ='1ข้อมูลรายวิชา'!G29 -> 0 | DF34: ='1ข้อมูลรายวิชา'!H29 -> 0 | DG34: ='1ข้อมูลรายวิชา'!I29 -> 0 | DH34: ='1ข้อมูลรายวิชา'!J29 -> 0 | DI34: ='1ข้อมูลรายวิชา'!N29 -> 3 | DJ34: ='1ข้อมูลรายวิชา'!O29 -> 3
A35: 27 | B35: ='1ข้อมูลรายวิชา'!C30 -> 09470 | C35: ='1ข้อมูลรายวิชา'!D30 -> เด็กหญิงภัทริดา นามหานวล | D35: ='1ข้อมูลรายวิชา'!#REF! ->  | E35: ='4บันทึกเวลาเรียน'!G33 -> - | F35: ='4บันทึกเวลาเรียน'!H33 -> - | G35: ='4บันทึกเวลาเรียน'!I33 -> - | H35: ='4บันทึกเวลาเรียน'!J33 -> - | I35: ='4บันทึกเวลาเรียน'!K33 -> - | J35: ='4บันทึกเวลาเรียน'!L33 -> - | K35: ='4บันทึกเวลาเรียน'!M33 -> - | L35: ='4บันทึกเวลาเรียน'!N33 -> - | M35: ='4บันทึกเวลาเรียน'!O33 -> - | N35: ='4บันทึกเวลาเรียน'!P33 -> - | O35: ='4บันทึกเวลาเรียน'!Q33 -> - | P35: ='4บันทึกเวลาเรียน'!R33 -> - | Q35: ='4บันทึกเวลาเรียน'!S33 -> - | R35: ='4บันทึกเวลาเรียน'!T33 -> - | S35: ='4บันทึกเวลาเรียน'!U33 -> - | T35: ='4บันทึกเวลาเรียน'!V33 -> - | U35: ='4บันทึกเวลาเรียน'!W33 -> - | V35: ='4บันทึกเวลาเรียน'!X33 -> - | W35: ='4บันทึกเวลาเรียน'!Y33 -> - | X35: ='4บันทึกเวลาเรียน'!Z33 -> - | Y35: ='4บันทึกเวลาเรียน'!AA33 -> - | Z35: ='4บันทึกเวลาเรียน'!AB33 -> - | AA35: ='4บันทึกเวลาเรียน'!AC33 -> - | AB35: ='4บันทึกเวลาเรียน'!AD33 -> - | AC35: ='4บันทึกเวลาเรียน'!AE33 -> - | AD35: ='4บันทึกเวลาเรียน'!AF33 -> - | AE35: ='4บันทึกเวลาเรียน'!AG33 -> - | AF35: ='4บันทึกเวลาเรียน'!AH33 -> - | AG35: ='4บันทึกเวลาเรียน'!AI33 -> - | AH35: ='4บันทึกเวลาเรียน'!AJ33 -> - | AI35: ='4บันทึกเวลาเรียน'!AK33 -> - | AJ35: ='4บันทึกเวลาเรียน'!AL33 -> - | AK35: ='4บันทึกเวลาเรียน'!AM33 -> - | AL35: ='4บันทึกเวลาเรียน'!AN33 -> - | AM35: ='4บันทึกเวลาเรียน'!AO33 -> - | AN35: ='4บันทึกเวลาเรียน'!AP33 -> - | AO35: ='4บันทึกเวลาเรียน'!AQ33 -> - | AP35: ='4บันทึกเวลาเรียน'!AR33 -> - | AQ35: ='4บันทึกเวลาเรียน'!AS33 -> - | AR35: ='4บันทึกเวลาเรียน'!AT33 -> - | AS35: ='4บันทึกเวลาเรียน'!AU33 -> - | AT35: ='4บันทึกเวลาเรียน'!AV33 -> - | AU35: ='4บันทึกเวลาเรียน'!AW33 -> - | AV35: ='4บันทึกเวลาเรียน'!AX33 -> - | AW35: ='4บันทึกเวลาเรียน'!AY33 -> - | AX35: ='4บันทึกเวลาเรียน'!AZ33 -> - | AY35: ='4บันทึกเวลาเรียน'!BA33 -> - | AZ35: ='4บันทึกเวลาเรียน'!BB33 -> - | BA35: ='4บันทึกเวลาเรียน'!BC33 -> - | BB35: ='4บันทึกเวลาเรียน'!BD33 -> - | BC35: ='4บันทึกเวลาเรียน'!BE33 -> - | BD35: ='4บันทึกเวลาเรียน'!BF33 -> - | BE35: ='4บันทึกเวลาเรียน'!BG33 -> - | BF35: ='4บันทึกเวลาเรียน'!BH33 -> - | BG35: ='4บันทึกเวลาเรียน'!BI33 -> - | BH35: ='4บันทึกเวลาเรียน'!BJ33 -> - | BI35: ='4บันทึกเวลาเรียน'!BK33 -> - | BJ35: ='4บันทึกเวลาเรียน'!BL33 -> - | BK35: ='4บันทึกเวลาเรียน'!BM33 -> - | BL35: ='4บันทึกเวลาเรียน'!BN33 -> - | BM35: ='4บันทึกเวลาเรียน'!BO33 -> - | BN35: ='4บันทึกเวลาเรียน'!BP33 -> - | BO35: ='4บันทึกเวลาเรียน'!BQ33 -> - | BP35: ='4บันทึกเวลาเรียน'!BR33 -> - | BQ35: ='4บันทึกเวลาเรียน'!BS33 -> - | BR35: ='4บันทึกเวลาเรียน'!BT33 -> - | BS35: ='4บันทึกเวลาเรียน'!BU33 -> - | BT35: ='4บันทึกเวลาเรียน'!BV33 -> - | BU35: ='4บันทึกเวลาเรียน'!BW33 -> - | BV35: ='4บันทึกเวลาเรียน'!BX33 -> - | BW35: ='4บันทึกเวลาเรียน'!BY33 -> - | BX35: ='4บันทึกเวลาเรียน'!BZ33 -> - | BY35: ='4บันทึกเวลาเรียน'!CA33 -> - | BZ35: ='4บันทึกเวลาเรียน'!CB33 -> - | CA35: ='4บันทึกเวลาเรียน'!CC33 -> - | CB35: ='4บันทึกเวลาเรียน'!CD33 -> - | CC35: ='4บันทึกเวลาเรียน'!CE33 -> - | CD35: ='4บันทึกเวลาเรียน'!CF33 -> - | CE35: ='4บันทึกเวลาเรียน'!CG33 -> - | CF35: ='4บันทึกเวลาเรียน'!CH33 -> - | CG35: ='4บันทึกเวลาเรียน'!CI33 -> - | CH35: ='4บันทึกเวลาเรียน'!CJ33 -> - | CI35: ='4บันทึกเวลาเรียน'!CK33 -> - | CJ35: ='4บันทึกเวลาเรียน'!CL33 -> - | CK35: ='4บันทึกเวลาเรียน'!CM33 -> - | CL35: ='4บันทึกเวลาเรียน'!CN33 -> - | CM35: ='4บันทึกเวลาเรียน'!CO33 -> - | CN35: ='4บันทึกเวลาเรียน'!CP33 -> - | CO35: ='4บันทึกเวลาเรียน'!CQ33 -> - | CP35: ='4บันทึกเวลาเรียน'!CR33 -> - | CQ35: ='4บันทึกเวลาเรียน'!CS33 -> - | CR35: ='4บันทึกเวลาเรียน'!CT33 -> - | CS35: ='4บันทึกเวลาเรียน'!CU33 -> - | CT35: ='4บันทึกเวลาเรียน'!CV33 -> - | CU35: ='4บันทึกเวลาเรียน'!CW33 -> - | CV35: ='4บันทึกเวลาเรียน'!CX33 -> - | CW35: ='4บันทึกเวลาเรียน'!CY33 -> - | CX35: ='4บันทึกเวลาเรียน'!CZ33 -> - | CY35: ='4บันทึกเวลาเรียน'!DA33 -> - | CZ35: ='4บันทึกเวลาเรียน'!DB33 -> - | DB35: - | DC35: ='1ข้อมูลรายวิชา'!E30 -> 0 | DD35: ='1ข้อมูลรายวิชา'!F30 -> 0 | DE35: ='1ข้อมูลรายวิชา'!G30 -> 0 | DF35: ='1ข้อมูลรายวิชา'!H30 -> 0 | DG35: ='1ข้อมูลรายวิชา'!I30 -> 0 | DH35: ='1ข้อมูลรายวิชา'!J30 -> 0 | DI35: ='1ข้อมูลรายวิชา'!N30 -> 3 | DJ35: ='1ข้อมูลรายวิชา'!O30 -> 3
A36: 28 | B36: ='1ข้อมูลรายวิชา'!C31 -> 09471 | C36: ='1ข้อมูลรายวิชา'!D31 -> เด็กหญิงธิชาพัชร์ โนนทิง | D36: ='1ข้อมูลรายวิชา'!#REF! ->  | E36: ='4บันทึกเวลาเรียน'!G34 -> - | F36: ='4บันทึกเวลาเรียน'!H34 -> - | G36: ='4บันทึกเวลาเรียน'!I34 -> - | H36: ='4บันทึกเวลาเรียน'!J34 -> - | I36: ='4บันทึกเวลาเรียน'!K34 -> - | J36: ='4บันทึกเวลาเรียน'!L34 -> - | K36: ='4บันทึกเวลาเรียน'!M34 -> - | L36: ='4บันทึกเวลาเรียน'!N34 -> - | M36: ='4บันทึกเวลาเรียน'!O34 -> - | N36: ='4บันทึกเวลาเรียน'!P34 -> - | O36: ='4บันทึกเวลาเรียน'!Q34 -> - | P36: ='4บันทึกเวลาเรียน'!R34 -> - | Q36: ='4บันทึกเวลาเรียน'!S34 -> - | R36: ='4บันทึกเวลาเรียน'!T34 -> - | S36: ='4บันทึกเวลาเรียน'!U34 -> - | T36: ='4บันทึกเวลาเรียน'!V34 -> - | U36: ='4บันทึกเวลาเรียน'!W34 -> - | V36: ='4บันทึกเวลาเรียน'!X34 -> - | W36: ='4บันทึกเวลาเรียน'!Y34 -> - | X36: ='4บันทึกเวลาเรียน'!Z34 -> - | Y36: ='4บันทึกเวลาเรียน'!AA34 -> - | Z36: ='4บันทึกเวลาเรียน'!AB34 -> - | AA36: ='4บันทึกเวลาเรียน'!AC34 -> - | AB36: ='4บันทึกเวลาเรียน'!AD34 -> - | AC36: ='4บันทึกเวลาเรียน'!AE34 -> - | AD36: ='4บันทึกเวลาเรียน'!AF34 -> - | AE36: ='4บันทึกเวลาเรียน'!AG34 -> - | AF36: ='4บันทึกเวลาเรียน'!AH34 -> - | AG36: ='4บันทึกเวลาเรียน'!AI34 -> - | AH36: ='4บันทึกเวลาเรียน'!AJ34 -> - | AI36: ='4บันทึกเวลาเรียน'!AK34 -> - | AJ36: ='4บันทึกเวลาเรียน'!AL34 -> - | AK36: ='4บันทึกเวลาเรียน'!AM34 -> - | AL36: ='4บันทึกเวลาเรียน'!AN34 -> - | AM36: ='4บันทึกเวลาเรียน'!AO34 -> - | AN36: ='4บันทึกเวลาเรียน'!AP34 -> - | AO36: ='4บันทึกเวลาเรียน'!AQ34 -> - | AP36: ='4บันทึกเวลาเรียน'!AR34 -> - | AQ36: ='4บันทึกเวลาเรียน'!AS34 -> - | AR36: ='4บันทึกเวลาเรียน'!AT34 -> - | AS36: ='4บันทึกเวลาเรียน'!AU34 -> - | AT36: ='4บันทึกเวลาเรียน'!AV34 -> - | AU36: ='4บันทึกเวลาเรียน'!AW34 -> - | AV36: ='4บันทึกเวลาเรียน'!AX34 -> - | AW36: ='4บันทึกเวลาเรียน'!AY34 -> - | AX36: ='4บันทึกเวลาเรียน'!AZ34 -> - | AY36: ='4บันทึกเวลาเรียน'!BA34 -> - | AZ36: ='4บันทึกเวลาเรียน'!BB34 -> - | BA36: ='4บันทึกเวลาเรียน'!BC34 -> - | BB36: ='4บันทึกเวลาเรียน'!BD34 -> - | BC36: ='4บันทึกเวลาเรียน'!BE34 -> - | BD36: ='4บันทึกเวลาเรียน'!BF34 -> - | BE36: ='4บันทึกเวลาเรียน'!BG34 -> - | BF36: ='4บันทึกเวลาเรียน'!BH34 -> - | BG36: ='4บันทึกเวลาเรียน'!BI34 -> - | BH36: ='4บันทึกเวลาเรียน'!BJ34 -> - | BI36: ='4บันทึกเวลาเรียน'!BK34 -> - | BJ36: ='4บันทึกเวลาเรียน'!BL34 -> - | BK36: ='4บันทึกเวลาเรียน'!BM34 -> - | BL36: ='4บันทึกเวลาเรียน'!BN34 -> - | BM36: ='4บันทึกเวลาเรียน'!BO34 -> - | BN36: ='4บันทึกเวลาเรียน'!BP34 -> - | BO36: ='4บันทึกเวลาเรียน'!BQ34 -> - | BP36: ='4บันทึกเวลาเรียน'!BR34 -> - | BQ36: ='4บันทึกเวลาเรียน'!BS34 -> - | BR36: ='4บันทึกเวลาเรียน'!BT34 -> - | BS36: ='4บันทึกเวลาเรียน'!BU34 -> - | BT36: ='4บันทึกเวลาเรียน'!BV34 -> - | BU36: ='4บันทึกเวลาเรียน'!BW34 -> - | BV36: ='4บันทึกเวลาเรียน'!BX34 -> - | BW36: ='4บันทึกเวลาเรียน'!BY34 -> - | BX36: ='4บันทึกเวลาเรียน'!BZ34 -> - | BY36: ='4บันทึกเวลาเรียน'!CA34 -> - | BZ36: ='4บันทึกเวลาเรียน'!CB34 -> - | CA36: ='4บันทึกเวลาเรียน'!CC34 -> - | CB36: ='4บันทึกเวลาเรียน'!CD34 -> - | CC36: ='4บันทึกเวลาเรียน'!CE34 -> - | CD36: ='4บันทึกเวลาเรียน'!CF34 -> - | CE36: ='4บันทึกเวลาเรียน'!CG34 -> - | CF36: ='4บันทึกเวลาเรียน'!CH34 -> - | CG36: ='4บันทึกเวลาเรียน'!CI34 -> - | CH36: ='4บันทึกเวลาเรียน'!CJ34 -> - | CI36: ='4บันทึกเวลาเรียน'!CK34 -> - | CJ36: ='4บันทึกเวลาเรียน'!CL34 -> - | CK36: ='4บันทึกเวลาเรียน'!CM34 -> - | CL36: ='4บันทึกเวลาเรียน'!CN34 -> - | CM36: ='4บันทึกเวลาเรียน'!CO34 -> - | CN36: ='4บันทึกเวลาเรียน'!CP34 -> - | CO36: ='4บันทึกเวลาเรียน'!CQ34 -> - | CP36: ='4บันทึกเวลาเรียน'!CR34 -> - | CQ36: ='4บันทึกเวลาเรียน'!CS34 -> - | CR36: ='4บันทึกเวลาเรียน'!CT34 -> - | CS36: ='4บันทึกเวลาเรียน'!CU34 -> - | CT36: ='4บันทึกเวลาเรียน'!CV34 -> - | CU36: ='4บันทึกเวลาเรียน'!CW34 -> - | CV36: ='4บันทึกเวลาเรียน'!CX34 -> - | CW36: ='4บันทึกเวลาเรียน'!CY34 -> - | CX36: ='4บันทึกเวลาเรียน'!CZ34 -> - | CY36: ='4บันทึกเวลาเรียน'!DA34 -> - | CZ36: ='4บันทึกเวลาเรียน'!DB34 -> - | DB36: - | DC36: ='1ข้อมูลรายวิชา'!E31 -> 0 | DD36: ='1ข้อมูลรายวิชา'!F31 -> 0 | DE36: ='1ข้อมูลรายวิชา'!G31 -> 0 | DF36: ='1ข้อมูลรายวิชา'!H31 -> 0 | DG36: ='1ข้อมูลรายวิชา'!I31 -> 0 | DH36: ='1ข้อมูลรายวิชา'!J31 -> 0 | DI36: ='1ข้อมูลรายวิชา'!N31 -> 3 | DJ36: ='1ข้อมูลรายวิชา'!O31 -> 3
A37: 29 | B37: ='1ข้อมูลรายวิชา'!C32 -> 09472 | C37: ='1ข้อมูลรายวิชา'!D32 -> เด็กหญิงวารัญญา จำวัน | D37: ='1ข้อมูลรายวิชา'!#REF! ->  | E37: ='4บันทึกเวลาเรียน'!G35 -> - | F37: ='4บันทึกเวลาเรียน'!H35 -> - | G37: ='4บันทึกเวลาเรียน'!I35 -> - | H37: ='4บันทึกเวลาเรียน'!J35 -> - | I37: ='4บันทึกเวลาเรียน'!K35 -> - | J37: ='4บันทึกเวลาเรียน'!L35 -> - | K37: ='4บันทึกเวลาเรียน'!M35 -> - | L37: ='4บันทึกเวลาเรียน'!N35 -> - | M37: ='4บันทึกเวลาเรียน'!O35 -> - | N37: ='4บันทึกเวลาเรียน'!P35 -> - | O37: ='4บันทึกเวลาเรียน'!Q35 -> - | P37: ='4บันทึกเวลาเรียน'!R35 -> - | Q37: ='4บันทึกเวลาเรียน'!S35 -> - | R37: ='4บันทึกเวลาเรียน'!T35 -> - | S37: ='4บันทึกเวลาเรียน'!U35 -> - | T37: ='4บันทึกเวลาเรียน'!V35 -> - | U37: ='4บันทึกเวลาเรียน'!W35 -> - | V37: ='4บันทึกเวลาเรียน'!X35 -> - | W37: ='4บันทึกเวลาเรียน'!Y35 -> - | X37: ='4บันทึกเวลาเรียน'!Z35 -> - | Y37: ='4บันทึกเวลาเรียน'!AA35 -> - | Z37: ='4บันทึกเวลาเรียน'!AB35 -> - | AA37: ='4บันทึกเวลาเรียน'!AC35 -> - | AB37: ='4บันทึกเวลาเรียน'!AD35 -> - | AC37: ='4บันทึกเวลาเรียน'!AE35 -> - | AD37: ='4บันทึกเวลาเรียน'!AF35 -> - | AE37: ='4บันทึกเวลาเรียน'!AG35 -> - | AF37: ='4บันทึกเวลาเรียน'!AH35 -> - | AG37: ='4บันทึกเวลาเรียน'!AI35 -> - | AH37: ='4บันทึกเวลาเรียน'!AJ35 -> - | AI37: ='4บันทึกเวลาเรียน'!AK35 -> - | AJ37: ='4บันทึกเวลาเรียน'!AL35 -> - | AK37: ='4บันทึกเวลาเรียน'!AM35 -> - | AL37: ='4บันทึกเวลาเรียน'!AN35 -> - | AM37: ='4บันทึกเวลาเรียน'!AO35 -> - | AN37: ='4บันทึกเวลาเรียน'!AP35 -> - | AO37: ='4บันทึกเวลาเรียน'!AQ35 -> - | AP37: ='4บันทึกเวลาเรียน'!AR35 -> - | AQ37: ='4บันทึกเวลาเรียน'!AS35 -> - | AR37: ='4บันทึกเวลาเรียน'!AT35 -> - | AS37: ='4บันทึกเวลาเรียน'!AU35 -> - | AT37: ='4บันทึกเวลาเรียน'!AV35 -> - | AU37: ='4บันทึกเวลาเรียน'!AW35 -> - | AV37: ='4บันทึกเวลาเรียน'!AX35 -> - | AW37: ='4บันทึกเวลาเรียน'!AY35 -> - | AX37: ='4บันทึกเวลาเรียน'!AZ35 -> - | AY37: ='4บันทึกเวลาเรียน'!BA35 -> - | AZ37: ='4บันทึกเวลาเรียน'!BB35 -> - | BA37: ='4บันทึกเวลาเรียน'!BC35 -> - | BB37: ='4บันทึกเวลาเรียน'!BD35 -> - | BC37: ='4บันทึกเวลาเรียน'!BE35 -> - | BD37: ='4บันทึกเวลาเรียน'!BF35 -> - | BE37: ='4บันทึกเวลาเรียน'!BG35 -> - | BF37: ='4บันทึกเวลาเรียน'!BH35 -> - | BG37: ='4บันทึกเวลาเรียน'!BI35 -> - | BH37: ='4บันทึกเวลาเรียน'!BJ35 -> - | BI37: ='4บันทึกเวลาเรียน'!BK35 -> - | BJ37: ='4บันทึกเวลาเรียน'!BL35 -> - | BK37: ='4บันทึกเวลาเรียน'!BM35 -> - | BL37: ='4บันทึกเวลาเรียน'!BN35 -> - | BM37: ='4บันทึกเวลาเรียน'!BO35 -> - | BN37: ='4บันทึกเวลาเรียน'!BP35 -> - | BO37: ='4บันทึกเวลาเรียน'!BQ35 -> - | BP37: ='4บันทึกเวลาเรียน'!BR35 -> - | BQ37: ='4บันทึกเวลาเรียน'!BS35 -> - | BR37: ='4บันทึกเวลาเรียน'!BT35 -> - | BS37: ='4บันทึกเวลาเรียน'!BU35 -> - | BT37: ='4บันทึกเวลาเรียน'!BV35 -> - | BU37: ='4บันทึกเวลาเรียน'!BW35 -> - | BV37: ='4บันทึกเวลาเรียน'!BX35 -> - | BW37: ='4บันทึกเวลาเรียน'!BY35 -> - | BX37: ='4บันทึกเวลาเรียน'!BZ35 -> - | BY37: ='4บันทึกเวลาเรียน'!CA35 -> - | BZ37: ='4บันทึกเวลาเรียน'!CB35 -> - | CA37: ='4บันทึกเวลาเรียน'!CC35 -> - | CB37: ='4บันทึกเวลาเรียน'!CD35 -> - | CC37: ='4บันทึกเวลาเรียน'!CE35 -> - | CD37: ='4บันทึกเวลาเรียน'!CF35 -> - | CE37: ='4บันทึกเวลาเรียน'!CG35 -> - | CF37: ='4บันทึกเวลาเรียน'!CH35 -> - | CG37: ='4บันทึกเวลาเรียน'!CI35 -> - | CH37: ='4บันทึกเวลาเรียน'!CJ35 -> - | CI37: ='4บันทึกเวลาเรียน'!CK35 -> - | CJ37: ='4บันทึกเวลาเรียน'!CL35 -> - | CK37: ='4บันทึกเวลาเรียน'!CM35 -> - | CL37: ='4บันทึกเวลาเรียน'!CN35 -> - | CM37: ='4บันทึกเวลาเรียน'!CO35 -> - | CN37: ='4บันทึกเวลาเรียน'!CP35 -> - | CO37: ='4บันทึกเวลาเรียน'!CQ35 -> - | CP37: ='4บันทึกเวลาเรียน'!CR35 -> - | CQ37: ='4บันทึกเวลาเรียน'!CS35 -> - | CR37: ='4บันทึกเวลาเรียน'!CT35 -> - | CS37: ='4บันทึกเวลาเรียน'!CU35 -> - | CT37: ='4บันทึกเวลาเรียน'!CV35 -> - | CU37: ='4บันทึกเวลาเรียน'!CW35 -> - | CV37: ='4บันทึกเวลาเรียน'!CX35 -> - | CW37: ='4บันทึกเวลาเรียน'!CY35 -> - | CX37: ='4บันทึกเวลาเรียน'!CZ35 -> - | CY37: ='4บันทึกเวลาเรียน'!DA35 -> - | CZ37: ='4บันทึกเวลาเรียน'!DB35 -> - | DB37: - | DC37: ='1ข้อมูลรายวิชา'!E32 -> 0 | DD37: ='1ข้อมูลรายวิชา'!F32 -> 0 | DE37: ='1ข้อมูลรายวิชา'!G32 -> 0 | DF37: ='1ข้อมูลรายวิชา'!H32 -> 0 | DG37: ='1ข้อมูลรายวิชา'!I32 -> 0 | DH37: ='1ข้อมูลรายวิชา'!J32 -> 0 | DI37: ='1ข้อมูลรายวิชา'!N32 -> 3 | DJ37: ='1ข้อมูลรายวิชา'!O32 -> 3
A38: 30 | B38: ='1ข้อมูลรายวิชา'!C33 -> 09473 | C38: ='1ข้อมูลรายวิชา'!D33 -> เด็กหญิงวารุณี อรัญทอง | D38: ='1ข้อมูลรายวิชา'!#REF! ->  | E38: ='4บันทึกเวลาเรียน'!G36 -> - | F38: ='4บันทึกเวลาเรียน'!H36 -> - | G38: ='4บันทึกเวลาเรียน'!I36 -> - | H38: ='4บันทึกเวลาเรียน'!J36 -> - | I38: ='4บันทึกเวลาเรียน'!K36 -> - | J38: ='4บันทึกเวลาเรียน'!L36 -> - | K38: ='4บันทึกเวลาเรียน'!M36 -> - | L38: ='4บันทึกเวลาเรียน'!N36 -> - | M38: ='4บันทึกเวลาเรียน'!O36 -> - | N38: ='4บันทึกเวลาเรียน'!P36 -> - | O38: ='4บันทึกเวลาเรียน'!Q36 -> - | P38: ='4บันทึกเวลาเรียน'!R36 -> - | Q38: ='4บันทึกเวลาเรียน'!S36 -> - | R38: ='4บันทึกเวลาเรียน'!T36 -> - | S38: ='4บันทึกเวลาเรียน'!U36 -> - | T38: ='4บันทึกเวลาเรียน'!V36 -> - | U38: ='4บันทึกเวลาเรียน'!W36 -> - | V38: ='4บันทึกเวลาเรียน'!X36 -> - | W38: ='4บันทึกเวลาเรียน'!Y36 -> - | X38: ='4บันทึกเวลาเรียน'!Z36 -> - | Y38: ='4บันทึกเวลาเรียน'!AA36 -> - | Z38: ='4บันทึกเวลาเรียน'!AB36 -> - | AA38: ='4บันทึกเวลาเรียน'!AC36 -> - | AB38: ='4บันทึกเวลาเรียน'!AD36 -> - | AC38: ='4บันทึกเวลาเรียน'!AE36 -> - | AD38: ='4บันทึกเวลาเรียน'!AF36 -> - | AE38: ='4บันทึกเวลาเรียน'!AG36 -> - | AF38: ='4บันทึกเวลาเรียน'!AH36 -> - | AG38: ='4บันทึกเวลาเรียน'!AI36 -> - | AH38: ='4บันทึกเวลาเรียน'!AJ36 -> - | AI38: ='4บันทึกเวลาเรียน'!AK36 -> - | AJ38: ='4บันทึกเวลาเรียน'!AL36 -> - | AK38: ='4บันทึกเวลาเรียน'!AM36 -> - | AL38: ='4บันทึกเวลาเรียน'!AN36 -> - | AM38: ='4บันทึกเวลาเรียน'!AO36 -> - | AN38: ='4บันทึกเวลาเรียน'!AP36 -> - | AO38: ='4บันทึกเวลาเรียน'!AQ36 -> - | AP38: ='4บันทึกเวลาเรียน'!AR36 -> - | AQ38: ='4บันทึกเวลาเรียน'!AS36 -> - | AR38: ='4บันทึกเวลาเรียน'!AT36 -> - | AS38: ='4บันทึกเวลาเรียน'!AU36 -> - | AT38: ='4บันทึกเวลาเรียน'!AV36 -> - | AU38: ='4บันทึกเวลาเรียน'!AW36 -> - | AV38: ='4บันทึกเวลาเรียน'!AX36 -> - | AW38: ='4บันทึกเวลาเรียน'!AY36 -> - | AX38: ='4บันทึกเวลาเรียน'!AZ36 -> - | AY38: ='4บันทึกเวลาเรียน'!BA36 -> - | AZ38: ='4บันทึกเวลาเรียน'!BB36 -> - | BA38: ='4บันทึกเวลาเรียน'!BC36 -> - | BB38: ='4บันทึกเวลาเรียน'!BD36 -> - | BC38: ='4บันทึกเวลาเรียน'!BE36 -> - | BD38: ='4บันทึกเวลาเรียน'!BF36 -> - | BE38: ='4บันทึกเวลาเรียน'!BG36 -> - | BF38: ='4บันทึกเวลาเรียน'!BH36 -> - | BG38: ='4บันทึกเวลาเรียน'!BI36 -> - | BH38: ='4บันทึกเวลาเรียน'!BJ36 -> - | BI38: ='4บันทึกเวลาเรียน'!BK36 -> - | BJ38: ='4บันทึกเวลาเรียน'!BL36 -> - | BK38: ='4บันทึกเวลาเรียน'!BM36 -> - | BL38: ='4บันทึกเวลาเรียน'!BN36 -> - | BM38: ='4บันทึกเวลาเรียน'!BO36 -> - | BN38: ='4บันทึกเวลาเรียน'!BP36 -> - | BO38: ='4บันทึกเวลาเรียน'!BQ36 -> - | BP38: ='4บันทึกเวลาเรียน'!BR36 -> - | BQ38: ='4บันทึกเวลาเรียน'!BS36 -> - | BR38: ='4บันทึกเวลาเรียน'!BT36 -> - | BS38: ='4บันทึกเวลาเรียน'!BU36 -> - | BT38: ='4บันทึกเวลาเรียน'!BV36 -> - | BU38: ='4บันทึกเวลาเรียน'!BW36 -> - | BV38: ='4บันทึกเวลาเรียน'!BX36 -> - | BW38: ='4บันทึกเวลาเรียน'!BY36 -> - | BX38: ='4บันทึกเวลาเรียน'!BZ36 -> - | BY38: ='4บันทึกเวลาเรียน'!CA36 -> - | BZ38: ='4บันทึกเวลาเรียน'!CB36 -> - | CA38: ='4บันทึกเวลาเรียน'!CC36 -> - | CB38: ='4บันทึกเวลาเรียน'!CD36 -> - | CC38: ='4บันทึกเวลาเรียน'!CE36 -> - | CD38: ='4บันทึกเวลาเรียน'!CF36 -> - | CE38: ='4บันทึกเวลาเรียน'!CG36 -> - | CF38: ='4บันทึกเวลาเรียน'!CH36 -> - | CG38: ='4บันทึกเวลาเรียน'!CI36 -> - | CH38: ='4บันทึกเวลาเรียน'!CJ36 -> - | CI38: ='4บันทึกเวลาเรียน'!CK36 -> - | CJ38: ='4บันทึกเวลาเรียน'!CL36 -> - | CK38: ='4บันทึกเวลาเรียน'!CM36 -> - | CL38: ='4บันทึกเวลาเรียน'!CN36 -> - | CM38: ='4บันทึกเวลาเรียน'!CO36 -> - | CN38: ='4บันทึกเวลาเรียน'!CP36 -> - | CO38: ='4บันทึกเวลาเรียน'!CQ36 -> - | CP38: ='4บันทึกเวลาเรียน'!CR36 -> - | CQ38: ='4บันทึกเวลาเรียน'!CS36 -> - | CR38: ='4บันทึกเวลาเรียน'!CT36 -> - | CS38: ='4บันทึกเวลาเรียน'!CU36 -> - | CT38: ='4บันทึกเวลาเรียน'!CV36 -> - | CU38: ='4บันทึกเวลาเรียน'!CW36 -> - | CV38: ='4บันทึกเวลาเรียน'!CX36 -> - | CW38: ='4บันทึกเวลาเรียน'!CY36 -> - | CX38: ='4บันทึกเวลาเรียน'!CZ36 -> - | CY38: ='4บันทึกเวลาเรียน'!DA36 -> - | CZ38: ='4บันทึกเวลาเรียน'!DB36 -> - | DB38: - | DC38: ='1ข้อมูลรายวิชา'!E33 -> 0 | DD38: ='1ข้อมูลรายวิชา'!F33 -> 0 | DE38: ='1ข้อมูลรายวิชา'!G33 -> 0 | DF38: ='1ข้อมูลรายวิชา'!H33 -> 0 | DG38: ='1ข้อมูลรายวิชา'!I33 -> 0 | DH38: ='1ข้อมูลรายวิชา'!J33 -> 0 | DI38: ='1ข้อมูลรายวิชา'!N33 -> 3 | DJ38: ='1ข้อมูลรายวิชา'!O33 -> 3
A39: 31 | B39: ='1ข้อมูลรายวิชา'!C34 -> 09474 | C39: ='1ข้อมูลรายวิชา'!D34 -> เด็กหญิงสุพรรษา จำปาบุญ | D39: ='1ข้อมูลรายวิชา'!#REF! ->  | E39: ='4บันทึกเวลาเรียน'!G37 -> - | F39: ='4บันทึกเวลาเรียน'!H37 -> - | G39: ='4บันทึกเวลาเรียน'!I37 -> - | H39: ='4บันทึกเวลาเรียน'!J37 -> - | I39: ='4บันทึกเวลาเรียน'!K37 -> - | J39: ='4บันทึกเวลาเรียน'!L37 -> - | K39: ='4บันทึกเวลาเรียน'!M37 -> - | L39: ='4บันทึกเวลาเรียน'!N37 -> - | M39: ='4บันทึกเวลาเรียน'!O37 -> - | N39: ='4บันทึกเวลาเรียน'!P37 -> - | O39: ='4บันทึกเวลาเรียน'!Q37 -> - | P39: ='4บันทึกเวลาเรียน'!R37 -> - | Q39: ='4บันทึกเวลาเรียน'!S37 -> - | R39: ='4บันทึกเวลาเรียน'!T37 -> - | S39: ='4บันทึกเวลาเรียน'!U37 -> - | T39: ='4บันทึกเวลาเรียน'!V37 -> - | U39: ='4บันทึกเวลาเรียน'!W37 -> - | V39: ='4บันทึกเวลาเรียน'!X37 -> - | W39: ='4บันทึกเวลาเรียน'!Y37 -> - | X39: ='4บันทึกเวลาเรียน'!Z37 -> - | Y39: ='4บันทึกเวลาเรียน'!AA37 -> - | Z39: ='4บันทึกเวลาเรียน'!AB37 -> - | AA39: ='4บันทึกเวลาเรียน'!AC37 -> - | AB39: ='4บันทึกเวลาเรียน'!AD37 -> - | AC39: ='4บันทึกเวลาเรียน'!AE37 -> - | AD39: ='4บันทึกเวลาเรียน'!AF37 -> - | AE39: ='4บันทึกเวลาเรียน'!AG37 -> - | AF39: ='4บันทึกเวลาเรียน'!AH37 -> - | AG39: ='4บันทึกเวลาเรียน'!AI37 -> - | AH39: ='4บันทึกเวลาเรียน'!AJ37 -> - | AI39: ='4บันทึกเวลาเรียน'!AK37 -> - | AJ39: ='4บันทึกเวลาเรียน'!AL37 -> - | AK39: ='4บันทึกเวลาเรียน'!AM37 -> - | AL39: ='4บันทึกเวลาเรียน'!AN37 -> - | AM39: ='4บันทึกเวลาเรียน'!AO37 -> - | AN39: ='4บันทึกเวลาเรียน'!AP37 -> - | AO39: ='4บันทึกเวลาเรียน'!AQ37 -> - | AP39: ='4บันทึกเวลาเรียน'!AR37 -> - | AQ39: ='4บันทึกเวลาเรียน'!AS37 -> - | AR39: ='4บันทึกเวลาเรียน'!AT37 -> - | AS39: ='4บันทึกเวลาเรียน'!AU37 -> - | AT39: ='4บันทึกเวลาเรียน'!AV37 -> - | AU39: ='4บันทึกเวลาเรียน'!AW37 -> - | AV39: ='4บันทึกเวลาเรียน'!AX37 -> - | AW39: ='4บันทึกเวลาเรียน'!AY37 -> - | AX39: ='4บันทึกเวลาเรียน'!AZ37 -> - | AY39: ='4บันทึกเวลาเรียน'!BA37 -> - | AZ39: ='4บันทึกเวลาเรียน'!BB37 -> - | BA39: ='4บันทึกเวลาเรียน'!BC37 -> - | BB39: ='4บันทึกเวลาเรียน'!BD37 -> - | BC39: ='4บันทึกเวลาเรียน'!BE37 -> - | BD39: ='4บันทึกเวลาเรียน'!BF37 -> - | BE39: ='4บันทึกเวลาเรียน'!BG37 -> - | BF39: ='4บันทึกเวลาเรียน'!BH37 -> - | BG39: ='4บันทึกเวลาเรียน'!BI37 -> - | BH39: ='4บันทึกเวลาเรียน'!BJ37 -> - | BI39: ='4บันทึกเวลาเรียน'!BK37 -> - | BJ39: ='4บันทึกเวลาเรียน'!BL37 -> - | BK39: ='4บันทึกเวลาเรียน'!BM37 -> - | BL39: ='4บันทึกเวลาเรียน'!BN37 -> - | BM39: ='4บันทึกเวลาเรียน'!BO37 -> - | BN39: ='4บันทึกเวลาเรียน'!BP37 -> - | BO39: ='4บันทึกเวลาเรียน'!BQ37 -> - | BP39: ='4บันทึกเวลาเรียน'!BR37 -> - | BQ39: ='4บันทึกเวลาเรียน'!BS37 -> - | BR39: ='4บันทึกเวลาเรียน'!BT37 -> - | BS39: ='4บันทึกเวลาเรียน'!BU37 -> - | BT39: ='4บันทึกเวลาเรียน'!BV37 -> - | BU39: ='4บันทึกเวลาเรียน'!BW37 -> - | BV39: ='4บันทึกเวลาเรียน'!BX37 -> - | BW39: ='4บันทึกเวลาเรียน'!BY37 -> - | BX39: ='4บันทึกเวลาเรียน'!BZ37 -> - | BY39: ='4บันทึกเวลาเรียน'!CA37 -> - | BZ39: ='4บันทึกเวลาเรียน'!CB37 -> - | CA39: ='4บันทึกเวลาเรียน'!CC37 -> - | CB39: ='4บันทึกเวลาเรียน'!CD37 -> - | CC39: ='4บันทึกเวลาเรียน'!CE37 -> - | CD39: ='4บันทึกเวลาเรียน'!CF37 -> - | CE39: ='4บันทึกเวลาเรียน'!CG37 -> - | CF39: ='4บันทึกเวลาเรียน'!CH37 -> - | CG39: ='4บันทึกเวลาเรียน'!CI37 -> - | CH39: ='4บันทึกเวลาเรียน'!CJ37 -> - | CI39: ='4บันทึกเวลาเรียน'!CK37 -> - | CJ39: ='4บันทึกเวลาเรียน'!CL37 -> - | CK39: ='4บันทึกเวลาเรียน'!CM37 -> - | CL39: ='4บันทึกเวลาเรียน'!CN37 -> - | CM39: ='4บันทึกเวลาเรียน'!CO37 -> - | CN39: ='4บันทึกเวลาเรียน'!CP37 -> - | CO39: ='4บันทึกเวลาเรียน'!CQ37 -> - | CP39: ='4บันทึกเวลาเรียน'!CR37 -> - | CQ39: ='4บันทึกเวลาเรียน'!CS37 -> - | CR39: ='4บันทึกเวลาเรียน'!CT37 -> - | CS39: ='4บันทึกเวลาเรียน'!CU37 -> - | CT39: ='4บันทึกเวลาเรียน'!CV37 -> - | CU39: ='4บันทึกเวลาเรียน'!CW37 -> - | CV39: ='4บันทึกเวลาเรียน'!CX37 -> - | CW39: ='4บันทึกเวลาเรียน'!CY37 -> - | CX39: ='4บันทึกเวลาเรียน'!CZ37 -> - | CY39: ='4บันทึกเวลาเรียน'!DA37 -> - | CZ39: ='4บันทึกเวลาเรียน'!DB37 -> - | DB39: - | DC39: ='1ข้อมูลรายวิชา'!E34 -> 0 | DD39: ='1ข้อมูลรายวิชา'!F34 -> 0 | DE39: ='1ข้อมูลรายวิชา'!G34 -> 0 | DF39: ='1ข้อมูลรายวิชา'!H34 -> 0 | DG39: ='1ข้อมูลรายวิชา'!I34 -> 0 | DH39: ='1ข้อมูลรายวิชา'!J34 -> 0 | DI39: ='1ข้อมูลรายวิชา'!N34 -> 3 | DJ39: ='1ข้อมูลรายวิชา'!O34 -> 3
A40: 32 | B40: ='1ข้อมูลรายวิชา'!C35 -> 09475 | C40: ='1ข้อมูลรายวิชา'!D35 -> เด็กหญิงเอมมิกา ยิ่งชาติ | D40: ='1ข้อมูลรายวิชา'!#REF! ->  | E40: ='4บันทึกเวลาเรียน'!G38 -> - | F40: ='4บันทึกเวลาเรียน'!H38 -> - | G40: ='4บันทึกเวลาเรียน'!I38 -> - | H40: ='4บันทึกเวลาเรียน'!J38 -> - | I40: ='4บันทึกเวลาเรียน'!K38 -> - | J40: ='4บันทึกเวลาเรียน'!L38 -> - | K40: ='4บันทึกเวลาเรียน'!M38 -> - | L40: ='4บันทึกเวลาเรียน'!N38 -> - | M40: ='4บันทึกเวลาเรียน'!O38 -> - | N40: ='4บันทึกเวลาเรียน'!P38 -> - | O40: ='4บันทึกเวลาเรียน'!Q38 -> - | P40: ='4บันทึกเวลาเรียน'!R38 -> - | Q40: ='4บันทึกเวลาเรียน'!S38 -> - | R40: ='4บันทึกเวลาเรียน'!T38 -> - | S40: ='4บันทึกเวลาเรียน'!U38 -> - | T40: ='4บันทึกเวลาเรียน'!V38 -> - | U40: ='4บันทึกเวลาเรียน'!W38 -> - | V40: ='4บันทึกเวลาเรียน'!X38 -> - | W40: ='4บันทึกเวลาเรียน'!Y38 -> - | X40: ='4บันทึกเวลาเรียน'!Z38 -> - | Y40: ='4บันทึกเวลาเรียน'!AA38 -> - | Z40: ='4บันทึกเวลาเรียน'!AB38 -> - | AA40: ='4บันทึกเวลาเรียน'!AC38 -> - | AB40: ='4บันทึกเวลาเรียน'!AD38 -> - | AC40: ='4บันทึกเวลาเรียน'!AE38 -> - | AD40: ='4บันทึกเวลาเรียน'!AF38 -> - | AE40: ='4บันทึกเวลาเรียน'!AG38 -> - | AF40: ='4บันทึกเวลาเรียน'!AH38 -> - | AG40: ='4บันทึกเวลาเรียน'!AI38 -> - | AH40: ='4บันทึกเวลาเรียน'!AJ38 -> - | AI40: ='4บันทึกเวลาเรียน'!AK38 -> - | AJ40: ='4บันทึกเวลาเรียน'!AL38 -> - | AK40: ='4บันทึกเวลาเรียน'!AM38 -> - | AL40: ='4บันทึกเวลาเรียน'!AN38 -> - | AM40: ='4บันทึกเวลาเรียน'!AO38 -> - | AN40: ='4บันทึกเวลาเรียน'!AP38 -> - | AO40: ='4บันทึกเวลาเรียน'!AQ38 -> - | AP40: ='4บันทึกเวลาเรียน'!AR38 -> - | AQ40: ='4บันทึกเวลาเรียน'!AS38 -> - | AR40: ='4บันทึกเวลาเรียน'!AT38 -> - | AS40: ='4บันทึกเวลาเรียน'!AU38 -> - | AT40: ='4บันทึกเวลาเรียน'!AV38 -> - | AU40: ='4บันทึกเวลาเรียน'!AW38 -> - | AV40: ='4บันทึกเวลาเรียน'!AX38 -> - | AW40: ='4บันทึกเวลาเรียน'!AY38 -> - | AX40: ='4บันทึกเวลาเรียน'!AZ38 -> - | AY40: ='4บันทึกเวลาเรียน'!BA38 -> - | AZ40: ='4บันทึกเวลาเรียน'!BB38 -> - | BA40: ='4บันทึกเวลาเรียน'!BC38 -> - | BB40: ='4บันทึกเวลาเรียน'!BD38 -> - | BC40: ='4บันทึกเวลาเรียน'!BE38 -> - | BD40: ='4บันทึกเวลาเรียน'!BF38 -> - | BE40: ='4บันทึกเวลาเรียน'!BG38 -> - | BF40: ='4บันทึกเวลาเรียน'!BH38 -> - | BG40: ='4บันทึกเวลาเรียน'!BI38 -> - | BH40: ='4บันทึกเวลาเรียน'!BJ38 -> - | BI40: ='4บันทึกเวลาเรียน'!BK38 -> - | BJ40: ='4บันทึกเวลาเรียน'!BL38 -> - | BK40: ='4บันทึกเวลาเรียน'!BM38 -> - | BL40: ='4บันทึกเวลาเรียน'!BN38 -> - | BM40: ='4บันทึกเวลาเรียน'!BO38 -> - | BN40: ='4บันทึกเวลาเรียน'!BP38 -> - | BO40: ='4บันทึกเวลาเรียน'!BQ38 -> - | BP40: ='4บันทึกเวลาเรียน'!BR38 -> - | BQ40: ='4บันทึกเวลาเรียน'!BS38 -> - | BR40: ='4บันทึกเวลาเรียน'!BT38 -> - | BS40: ='4บันทึกเวลาเรียน'!BU38 -> - | BT40: ='4บันทึกเวลาเรียน'!BV38 -> - | BU40: ='4บันทึกเวลาเรียน'!BW38 -> - | BV40: ='4บันทึกเวลาเรียน'!BX38 -> - | BW40: ='4บันทึกเวลาเรียน'!BY38 -> - | BX40: ='4บันทึกเวลาเรียน'!BZ38 -> - | BY40: ='4บันทึกเวลาเรียน'!CA38 -> - | BZ40: ='4บันทึกเวลาเรียน'!CB38 -> - | CA40: ='4บันทึกเวลาเรียน'!CC38 -> - | CB40: ='4บันทึกเวลาเรียน'!CD38 -> - | CC40: ='4บันทึกเวลาเรียน'!CE38 -> - | CD40: ='4บันทึกเวลาเรียน'!CF38 -> - | CE40: ='4บันทึกเวลาเรียน'!CG38 -> - | CF40: ='4บันทึกเวลาเรียน'!CH38 -> - | CG40: ='4บันทึกเวลาเรียน'!CI38 -> - | CH40: ='4บันทึกเวลาเรียน'!CJ38 -> - | CI40: ='4บันทึกเวลาเรียน'!CK38 -> - | CJ40: ='4บันทึกเวลาเรียน'!CL38 -> - | CK40: ='4บันทึกเวลาเรียน'!CM38 -> - | CL40: ='4บันทึกเวลาเรียน'!CN38 -> - | CM40: ='4บันทึกเวลาเรียน'!CO38 -> - | CN40: ='4บันทึกเวลาเรียน'!CP38 -> - | CO40: ='4บันทึกเวลาเรียน'!CQ38 -> - | CP40: ='4บันทึกเวลาเรียน'!CR38 -> - | CQ40: ='4บันทึกเวลาเรียน'!CS38 -> - | CR40: ='4บันทึกเวลาเรียน'!CT38 -> - | CS40: ='4บันทึกเวลาเรียน'!CU38 -> - | CT40: ='4บันทึกเวลาเรียน'!CV38 -> - | CU40: ='4บันทึกเวลาเรียน'!CW38 -> - | CV40: ='4บันทึกเวลาเรียน'!CX38 -> - | CW40: ='4บันทึกเวลาเรียน'!CY38 -> - | CX40: ='4บันทึกเวลาเรียน'!CZ38 -> - | CY40: ='4บันทึกเวลาเรียน'!DA38 -> - | CZ40: ='4บันทึกเวลาเรียน'!DB38 -> - | DB40: - | DC40: ='1ข้อมูลรายวิชา'!E35 -> 0 | DD40: ='1ข้อมูลรายวิชา'!F35 -> 0 | DE40: ='1ข้อมูลรายวิชา'!G35 -> 0 | DF40: ='1ข้อมูลรายวิชา'!H35 -> 0 | DG40: ='1ข้อมูลรายวิชา'!I35 -> 0 | DH40: ='1ข้อมูลรายวิชา'!J35 -> 0 | DI40: ='1ข้อมูลรายวิชา'!N35 -> 3 | DJ40: ='1ข้อมูลรายวิชา'!O35 -> 3
A41: 33 | B41: ='1ข้อมูลรายวิชา'!C36 -> 09537 | C41: ='1ข้อมูลรายวิชา'!D36 -> เด็กหญิงปิยธิดา ชาญรอบรู้ | D41: ='1ข้อมูลรายวิชา'!#REF! ->  | E41: ='4บันทึกเวลาเรียน'!G39 -> - | F41: ='4บันทึกเวลาเรียน'!H39 -> - | G41: ='4บันทึกเวลาเรียน'!I39 -> - | H41: ='4บันทึกเวลาเรียน'!J39 -> - | I41: ='4บันทึกเวลาเรียน'!K39 -> - | J41: ='4บันทึกเวลาเรียน'!L39 -> - | K41: ='4บันทึกเวลาเรียน'!M39 -> - | L41: ='4บันทึกเวลาเรียน'!N39 -> - | M41: ='4บันทึกเวลาเรียน'!O39 -> - | N41: ='4บันทึกเวลาเรียน'!P39 -> - | O41: ='4บันทึกเวลาเรียน'!Q39 -> - | P41: ='4บันทึกเวลาเรียน'!R39 -> - | Q41: ='4บันทึกเวลาเรียน'!S39 -> - | R41: ='4บันทึกเวลาเรียน'!T39 -> - | S41: ='4บันทึกเวลาเรียน'!U39 -> - | T41: ='4บันทึกเวลาเรียน'!V39 -> - | U41: ='4บันทึกเวลาเรียน'!W39 -> - | V41: ='4บันทึกเวลาเรียน'!X39 -> - | W41: ='4บันทึกเวลาเรียน'!Y39 -> - | X41: ='4บันทึกเวลาเรียน'!Z39 -> - | Y41: ='4บันทึกเวลาเรียน'!AA39 -> - | Z41: ='4บันทึกเวลาเรียน'!AB39 -> - | AA41: ='4บันทึกเวลาเรียน'!AC39 -> - | AB41: ='4บันทึกเวลาเรียน'!AD39 -> - | AC41: ='4บันทึกเวลาเรียน'!AE39 -> - | AD41: ='4บันทึกเวลาเรียน'!AF39 -> - | AE41: ='4บันทึกเวลาเรียน'!AG39 -> - | AF41: ='4บันทึกเวลาเรียน'!AH39 -> - | AG41: ='4บันทึกเวลาเรียน'!AI39 -> - | AH41: ='4บันทึกเวลาเรียน'!AJ39 -> - | AI41: ='4บันทึกเวลาเรียน'!AK39 -> - | AJ41: ='4บันทึกเวลาเรียน'!AL39 -> - | AK41: ='4บันทึกเวลาเรียน'!AM39 -> - | AL41: ='4บันทึกเวลาเรียน'!AN39 -> - | AM41: ='4บันทึกเวลาเรียน'!AO39 -> - | AN41: ='4บันทึกเวลาเรียน'!AP39 -> - | AO41: ='4บันทึกเวลาเรียน'!AQ39 -> - | AP41: ='4บันทึกเวลาเรียน'!AR39 -> - | AQ41: ='4บันทึกเวลาเรียน'!AS39 -> - | AR41: ='4บันทึกเวลาเรียน'!AT39 -> - | AS41: ='4บันทึกเวลาเรียน'!AU39 -> - | AT41: ='4บันทึกเวลาเรียน'!AV39 -> - | AU41: ='4บันทึกเวลาเรียน'!AW39 -> - | AV41: ='4บันทึกเวลาเรียน'!AX39 -> - | AW41: ='4บันทึกเวลาเรียน'!AY39 -> - | AX41: ='4บันทึกเวลาเรียน'!AZ39 -> - | AY41: ='4บันทึกเวลาเรียน'!BA39 -> - | AZ41: ='4บันทึกเวลาเรียน'!BB39 -> - | BA41: ='4บันทึกเวลาเรียน'!BC39 -> - | BB41: ='4บันทึกเวลาเรียน'!BD39 -> - | BC41: ='4บันทึกเวลาเรียน'!BE39 -> - | BD41: ='4บันทึกเวลาเรียน'!BF39 -> - | BE41: ='4บันทึกเวลาเรียน'!BG39 -> - | BF41: ='4บันทึกเวลาเรียน'!BH39 -> - | BG41: ='4บันทึกเวลาเรียน'!BI39 -> - | BH41: ='4บันทึกเวลาเรียน'!BJ39 -> - | BI41: ='4บันทึกเวลาเรียน'!BK39 -> - | BJ41: ='4บันทึกเวลาเรียน'!BL39 -> - | BK41: ='4บันทึกเวลาเรียน'!BM39 -> - | BL41: ='4บันทึกเวลาเรียน'!BN39 -> - | BM41: ='4บันทึกเวลาเรียน'!BO39 -> - | BN41: ='4บันทึกเวลาเรียน'!BP39 -> - | BO41: ='4บันทึกเวลาเรียน'!BQ39 -> - | BP41: ='4บันทึกเวลาเรียน'!BR39 -> - | BQ41: ='4บันทึกเวลาเรียน'!BS39 -> - | BR41: ='4บันทึกเวลาเรียน'!BT39 -> - | BS41: ='4บันทึกเวลาเรียน'!BU39 -> - | BT41: ='4บันทึกเวลาเรียน'!BV39 -> - | BU41: ='4บันทึกเวลาเรียน'!BW39 -> - | BV41: ='4บันทึกเวลาเรียน'!BX39 -> - | BW41: ='4บันทึกเวลาเรียน'!BY39 -> - | BX41: ='4บันทึกเวลาเรียน'!BZ39 -> - | BY41: ='4บันทึกเวลาเรียน'!CA39 -> - | BZ41: ='4บันทึกเวลาเรียน'!CB39 -> - | CA41: ='4บันทึกเวลาเรียน'!CC39 -> - | CB41: ='4บันทึกเวลาเรียน'!CD39 -> - | CC41: ='4บันทึกเวลาเรียน'!CE39 -> - | CD41: ='4บันทึกเวลาเรียน'!CF39 -> - | CE41: ='4บันทึกเวลาเรียน'!CG39 -> - | CF41: ='4บันทึกเวลาเรียน'!CH39 -> - | CG41: ='4บันทึกเวลาเรียน'!CI39 -> - | CH41: ='4บันทึกเวลาเรียน'!CJ39 -> - | CI41: ='4บันทึกเวลาเรียน'!CK39 -> - | CJ41: ='4บันทึกเวลาเรียน'!CL39 -> - | CK41: ='4บันทึกเวลาเรียน'!CM39 -> - | CL41: ='4บันทึกเวลาเรียน'!CN39 -> - | CM41: ='4บันทึกเวลาเรียน'!CO39 -> - | CN41: ='4บันทึกเวลาเรียน'!CP39 -> - | CO41: ='4บันทึกเวลาเรียน'!CQ39 -> - | CP41: ='4บันทึกเวลาเรียน'!CR39 -> - | CQ41: ='4บันทึกเวลาเรียน'!CS39 -> - | CR41: ='4บันทึกเวลาเรียน'!CT39 -> - | CS41: ='4บันทึกเวลาเรียน'!CU39 -> - | CT41: ='4บันทึกเวลาเรียน'!CV39 -> - | CU41: ='4บันทึกเวลาเรียน'!CW39 -> - | CV41: ='4บันทึกเวลาเรียน'!CX39 -> - | CW41: ='4บันทึกเวลาเรียน'!CY39 -> - | CX41: ='4บันทึกเวลาเรียน'!CZ39 -> - | CY41: ='4บันทึกเวลาเรียน'!DA39 -> - | CZ41: ='4บันทึกเวลาเรียน'!DB39 -> - | DB41: - | DC41: ='1ข้อมูลรายวิชา'!E36 -> 0 | DD41: ='1ข้อมูลรายวิชา'!F36 -> 0 | DE41: ='1ข้อมูลรายวิชา'!G36 -> 0 | DF41: ='1ข้อมูลรายวิชา'!H36 -> 0 | DG41: ='1ข้อมูลรายวิชา'!I36 -> 0 | DH41: ='1ข้อมูลรายวิชา'!J36 -> 0 | DI41: ='1ข้อมูลรายวิชา'!N36 -> 3 | DJ41: ='1ข้อมูลรายวิชา'!O36 -> 3
A42: 34 | B42: ='1ข้อมูลรายวิชา'!C37 -> 09539 | C42: ='1ข้อมูลรายวิชา'!D37 -> เด็กชายกิตติคุณ พานิชศิริ | D42: ='1ข้อมูลรายวิชา'!#REF! ->  | E42: ='4บันทึกเวลาเรียน'!G40 -> - | F42: ='4บันทึกเวลาเรียน'!H40 -> - | G42: ='4บันทึกเวลาเรียน'!I40 -> - | H42: ='4บันทึกเวลาเรียน'!J40 -> - | I42: ='4บันทึกเวลาเรียน'!K40 -> - | J42: ='4บันทึกเวลาเรียน'!L40 -> - | K42: ='4บันทึกเวลาเรียน'!M40 -> - | L42: ='4บันทึกเวลาเรียน'!N40 -> - | M42: ='4บันทึกเวลาเรียน'!O40 -> - | N42: ='4บันทึกเวลาเรียน'!P40 -> - | O42: ='4บันทึกเวลาเรียน'!Q40 -> - | P42: ='4บันทึกเวลาเรียน'!R40 -> - | Q42: ='4บันทึกเวลาเรียน'!S40 -> - | R42: ='4บันทึกเวลาเรียน'!T40 -> - | S42: ='4บันทึกเวลาเรียน'!U40 -> - | T42: ='4บันทึกเวลาเรียน'!V40 -> - | U42: ='4บันทึกเวลาเรียน'!W40 -> - | V42: ='4บันทึกเวลาเรียน'!X40 -> - | W42: ='4บันทึกเวลาเรียน'!Y40 -> - | X42: ='4บันทึกเวลาเรียน'!Z40 -> - | Y42: ='4บันทึกเวลาเรียน'!AA40 -> - | Z42: ='4บันทึกเวลาเรียน'!AB40 -> - | AA42: ='4บันทึกเวลาเรียน'!AC40 -> - | AB42: ='4บันทึกเวลาเรียน'!AD40 -> - | AC42: ='4บันทึกเวลาเรียน'!AE40 -> - | AD42: ='4บันทึกเวลาเรียน'!AF40 -> - | AE42: ='4บันทึกเวลาเรียน'!AG40 -> - | AF42: ='4บันทึกเวลาเรียน'!AH40 -> - | AG42: ='4บันทึกเวลาเรียน'!AI40 -> - | AH42: ='4บันทึกเวลาเรียน'!AJ40 -> - | AI42: ='4บันทึกเวลาเรียน'!AK40 -> - | AJ42: ='4บันทึกเวลาเรียน'!AL40 -> - | AK42: ='4บันทึกเวลาเรียน'!AM40 -> - | AL42: ='4บันทึกเวลาเรียน'!AN40 -> - | AM42: ='4บันทึกเวลาเรียน'!AO40 -> - | AN42: ='4บันทึกเวลาเรียน'!AP40 -> - | AO42: ='4บันทึกเวลาเรียน'!AQ40 -> - | AP42: ='4บันทึกเวลาเรียน'!AR40 -> - | AQ42: ='4บันทึกเวลาเรียน'!AS40 -> - | AR42: ='4บันทึกเวลาเรียน'!AT40 -> - | AS42: ='4บันทึกเวลาเรียน'!AU40 -> - | AT42: ='4บันทึกเวลาเรียน'!AV40 -> - | AU42: ='4บันทึกเวลาเรียน'!AW40 -> - | AV42: ='4บันทึกเวลาเรียน'!AX40 -> - | AW42: ='4บันทึกเวลาเรียน'!AY40 -> - | AX42: ='4บันทึกเวลาเรียน'!AZ40 -> - | AY42: ='4บันทึกเวลาเรียน'!BA40 -> - | AZ42: ='4บันทึกเวลาเรียน'!BB40 -> - | BA42: ='4บันทึกเวลาเรียน'!BC40 -> - | BB42: ='4บันทึกเวลาเรียน'!BD40 -> - | BC42: ='4บันทึกเวลาเรียน'!BE40 -> - | BD42: ='4บันทึกเวลาเรียน'!BF40 -> - | BE42: ='4บันทึกเวลาเรียน'!BG40 -> - | BF42: ='4บันทึกเวลาเรียน'!BH40 -> - | BG42: ='4บันทึกเวลาเรียน'!BI40 -> - | BH42: ='4บันทึกเวลาเรียน'!BJ40 -> - | BI42: ='4บันทึกเวลาเรียน'!BK40 -> - | BJ42: ='4บันทึกเวลาเรียน'!BL40 -> - | BK42: ='4บันทึกเวลาเรียน'!BM40 -> - | BL42: ='4บันทึกเวลาเรียน'!BN40 -> - | BM42: ='4บันทึกเวลาเรียน'!BO40 -> - | BN42: ='4บันทึกเวลาเรียน'!BP40 -> - | BO42: ='4บันทึกเวลาเรียน'!BQ40 -> - | BP42: ='4บันทึกเวลาเรียน'!BR40 -> - | BQ42: ='4บันทึกเวลาเรียน'!BS40 -> - | BR42: ='4บันทึกเวลาเรียน'!BT40 -> - | BS42: ='4บันทึกเวลาเรียน'!BU40 -> - | BT42: ='4บันทึกเวลาเรียน'!BV40 -> - | BU42: ='4บันทึกเวลาเรียน'!BW40 -> - | BV42: ='4บันทึกเวลาเรียน'!BX40 -> - | BW42: ='4บันทึกเวลาเรียน'!BY40 -> - | BX42: ='4บันทึกเวลาเรียน'!BZ40 -> - | BY42: ='4บันทึกเวลาเรียน'!CA40 -> - | BZ42: ='4บันทึกเวลาเรียน'!CB40 -> - | CA42: ='4บันทึกเวลาเรียน'!CC40 -> - | CB42: ='4บันทึกเวลาเรียน'!CD40 -> - | CC42: ='4บันทึกเวลาเรียน'!CE40 -> - | CD42: ='4บันทึกเวลาเรียน'!CF40 -> - | CE42: ='4บันทึกเวลาเรียน'!CG40 -> - | CF42: ='4บันทึกเวลาเรียน'!CH40 -> - | CG42: ='4บันทึกเวลาเรียน'!CI40 -> - | CH42: ='4บันทึกเวลาเรียน'!CJ40 -> - | CI42: ='4บันทึกเวลาเรียน'!CK40 -> - | CJ42: ='4บันทึกเวลาเรียน'!CL40 -> - | CK42: ='4บันทึกเวลาเรียน'!CM40 -> - | CL42: ='4บันทึกเวลาเรียน'!CN40 -> - | CM42: ='4บันทึกเวลาเรียน'!CO40 -> - | CN42: ='4บันทึกเวลาเรียน'!CP40 -> - | CO42: ='4บันทึกเวลาเรียน'!CQ40 -> - | CP42: ='4บันทึกเวลาเรียน'!CR40 -> - | CQ42: ='4บันทึกเวลาเรียน'!CS40 -> - | CR42: ='4บันทึกเวลาเรียน'!CT40 -> - | CS42: ='4บันทึกเวลาเรียน'!CU40 -> - | CT42: ='4บันทึกเวลาเรียน'!CV40 -> - | CU42: ='4บันทึกเวลาเรียน'!CW40 -> - | CV42: ='4บันทึกเวลาเรียน'!CX40 -> - | CW42: ='4บันทึกเวลาเรียน'!CY40 -> - | CX42: ='4บันทึกเวลาเรียน'!CZ40 -> - | CY42: ='4บันทึกเวลาเรียน'!DA40 -> - | CZ42: ='4บันทึกเวลาเรียน'!DB40 -> - | DB42: - | DC42: ='1ข้อมูลรายวิชา'!E37 -> 0 | DD42: ='1ข้อมูลรายวิชา'!F37 -> 0 | DE42: ='1ข้อมูลรายวิชา'!G37 -> 0 | DF42: ='1ข้อมูลรายวิชา'!H37 -> 0 | DG42: ='1ข้อมูลรายวิชา'!I37 -> 0 | DH42: ='1ข้อมูลรายวิชา'!J37 -> 0 | DI42: ='1ข้อมูลรายวิชา'!N37 -> 3 | DJ42: ='1ข้อมูลรายวิชา'!O37 -> 3
A43: 35 | B43: ='1ข้อมูลรายวิชา'!C38 -> 09541 | C43: ='1ข้อมูลรายวิชา'!D38 -> เด็กชายพีรพัฒน์ ศึกษากิจ | D43: ='1ข้อมูลรายวิชา'!#REF! ->  | E43: ='4บันทึกเวลาเรียน'!G41 -> - | F43: ='4บันทึกเวลาเรียน'!H41 -> - | G43: ='4บันทึกเวลาเรียน'!I41 -> - | H43: ='4บันทึกเวลาเรียน'!J41 -> - | I43: ='4บันทึกเวลาเรียน'!K41 -> - | J43: ='4บันทึกเวลาเรียน'!L41 -> - | K43: ='4บันทึกเวลาเรียน'!M41 -> - | L43: ='4บันทึกเวลาเรียน'!N41 -> - | M43: ='4บันทึกเวลาเรียน'!O41 -> - | N43: ='4บันทึกเวลาเรียน'!P41 -> - | O43: ='4บันทึกเวลาเรียน'!Q41 -> - | P43: ='4บันทึกเวลาเรียน'!R41 -> - | Q43: ='4บันทึกเวลาเรียน'!S41 -> - | R43: ='4บันทึกเวลาเรียน'!T41 -> - | S43: ='4บันทึกเวลาเรียน'!U41 -> - | T43: ='4บันทึกเวลาเรียน'!V41 -> - | U43: ='4บันทึกเวลาเรียน'!W41 -> - | V43: ='4บันทึกเวลาเรียน'!X41 -> - | W43: ='4บันทึกเวลาเรียน'!Y41 -> - | X43: ='4บันทึกเวลาเรียน'!Z41 -> - | Y43: ='4บันทึกเวลาเรียน'!AA41 -> - | Z43: ='4บันทึกเวลาเรียน'!AB41 -> - | AA43: ='4บันทึกเวลาเรียน'!AC41 -> - | AB43: ='4บันทึกเวลาเรียน'!AD41 -> - | AC43: ='4บันทึกเวลาเรียน'!AE41 -> - | AD43: ='4บันทึกเวลาเรียน'!AF41 -> - | AE43: ='4บันทึกเวลาเรียน'!AG41 -> - | AF43: ='4บันทึกเวลาเรียน'!AH41 -> - | AG43: ='4บันทึกเวลาเรียน'!AI41 -> - | AH43: ='4บันทึกเวลาเรียน'!AJ41 -> - | AI43: ='4บันทึกเวลาเรียน'!AK41 -> - | AJ43: ='4บันทึกเวลาเรียน'!AL41 -> - | AK43: ='4บันทึกเวลาเรียน'!AM41 -> - | AL43: ='4บันทึกเวลาเรียน'!AN41 -> - | AM43: ='4บันทึกเวลาเรียน'!AO41 -> - | AN43: ='4บันทึกเวลาเรียน'!AP41 -> - | AO43: ='4บันทึกเวลาเรียน'!AQ41 -> - | AP43: ='4บันทึกเวลาเรียน'!AR41 -> - | AQ43: ='4บันทึกเวลาเรียน'!AS41 -> - | AR43: ='4บันทึกเวลาเรียน'!AT41 -> - | AS43: ='4บันทึกเวลาเรียน'!AU41 -> - | AT43: ='4บันทึกเวลาเรียน'!AV41 -> - | AU43: ='4บันทึกเวลาเรียน'!AW41 -> - | AV43: ='4บันทึกเวลาเรียน'!AX41 -> - | AW43: ='4บันทึกเวลาเรียน'!AY41 -> - | AX43: ='4บันทึกเวลาเรียน'!AZ41 -> - | AY43: ='4บันทึกเวลาเรียน'!BA41 -> - | AZ43: ='4บันทึกเวลาเรียน'!BB41 -> - | BA43: ='4บันทึกเวลาเรียน'!BC41 -> - | BB43: ='4บันทึกเวลาเรียน'!BD41 -> - | BC43: ='4บันทึกเวลาเรียน'!BE41 -> - | BD43: ='4บันทึกเวลาเรียน'!BF41 -> - | BE43: ='4บันทึกเวลาเรียน'!BG41 -> - | BF43: ='4บันทึกเวลาเรียน'!BH41 -> - | BG43: ='4บันทึกเวลาเรียน'!BI41 -> - | BH43: ='4บันทึกเวลาเรียน'!BJ41 -> - | BI43: ='4บันทึกเวลาเรียน'!BK41 -> - | BJ43: ='4บันทึกเวลาเรียน'!BL41 -> - | BK43: ='4บันทึกเวลาเรียน'!BM41 -> - | BL43: ='4บันทึกเวลาเรียน'!BN41 -> - | BM43: ='4บันทึกเวลาเรียน'!BO41 -> - | BN43: ='4บันทึกเวลาเรียน'!BP41 -> - | BO43: ='4บันทึกเวลาเรียน'!BQ41 -> - | BP43: ='4บันทึกเวลาเรียน'!BR41 -> - | BQ43: ='4บันทึกเวลาเรียน'!BS41 -> - | BR43: ='4บันทึกเวลาเรียน'!BT41 -> - | BS43: ='4บันทึกเวลาเรียน'!BU41 -> - | BT43: ='4บันทึกเวลาเรียน'!BV41 -> - | BU43: ='4บันทึกเวลาเรียน'!BW41 -> - | BV43: ='4บันทึกเวลาเรียน'!BX41 -> - | BW43: ='4บันทึกเวลาเรียน'!BY41 -> - | BX43: ='4บันทึกเวลาเรียน'!BZ41 -> - | BY43: ='4บันทึกเวลาเรียน'!CA41 -> - | BZ43: ='4บันทึกเวลาเรียน'!CB41 -> - | CA43: ='4บันทึกเวลาเรียน'!CC41 -> - | CB43: ='4บันทึกเวลาเรียน'!CD41 -> - | CC43: ='4บันทึกเวลาเรียน'!CE41 -> - | CD43: ='4บันทึกเวลาเรียน'!CF41 -> - | CE43: ='4บันทึกเวลาเรียน'!CG41 -> - | CF43: ='4บันทึกเวลาเรียน'!CH41 -> - | CG43: ='4บันทึกเวลาเรียน'!CI41 -> - | CH43: ='4บันทึกเวลาเรียน'!CJ41 -> - | CI43: ='4บันทึกเวลาเรียน'!CK41 -> - | CJ43: ='4บันทึกเวลาเรียน'!CL41 -> - | CK43: ='4บันทึกเวลาเรียน'!CM41 -> - | CL43: ='4บันทึกเวลาเรียน'!CN41 -> - | CM43: ='4บันทึกเวลาเรียน'!CO41 -> - | CN43: ='4บันทึกเวลาเรียน'!CP41 -> - | CO43: ='4บันทึกเวลาเรียน'!CQ41 -> - | CP43: ='4บันทึกเวลาเรียน'!CR41 -> - | CQ43: ='4บันทึกเวลาเรียน'!CS41 -> - | CR43: ='4บันทึกเวลาเรียน'!CT41 -> - | CS43: ='4บันทึกเวลาเรียน'!CU41 -> - | CT43: ='4บันทึกเวลาเรียน'!CV41 -> - | CU43: ='4บันทึกเวลาเรียน'!CW41 -> - | CV43: ='4บันทึกเวลาเรียน'!CX41 -> - | CW43: ='4บันทึกเวลาเรียน'!CY41 -> - | CX43: ='4บันทึกเวลาเรียน'!CZ41 -> - | CY43: ='4บันทึกเวลาเรียน'!DA41 -> - | CZ43: ='4บันทึกเวลาเรียน'!DB41 -> - | DB43: - | DC43: ='1ข้อมูลรายวิชา'!E38 -> 0 | DD43: ='1ข้อมูลรายวิชา'!F38 -> 0 | DE43: ='1ข้อมูลรายวิชา'!G38 -> 0 | DF43: ='1ข้อมูลรายวิชา'!H38 -> 0 | DG43: ='1ข้อมูลรายวิชา'!I38 -> 0 | DH43: ='1ข้อมูลรายวิชา'!J38 -> 0 | DI43: ='1ข้อมูลรายวิชา'!N38 -> 3 | DJ43: ='1ข้อมูลรายวิชา'!O38 -> 3
A44: 36 | B44: ='1ข้อมูลรายวิชา'!C39 -> 09609 | C44: ='1ข้อมูลรายวิชา'!D39 -> เด็กหญิงนลินทิพย์ ทองชมภู | D44: ='1ข้อมูลรายวิชา'!#REF! ->  | E44: ='4บันทึกเวลาเรียน'!G42 -> - | F44: ='4บันทึกเวลาเรียน'!H42 -> - | G44: ='4บันทึกเวลาเรียน'!I42 -> - | H44: ='4บันทึกเวลาเรียน'!J42 -> - | I44: ='4บันทึกเวลาเรียน'!K42 -> - | J44: ='4บันทึกเวลาเรียน'!L42 -> - | K44: ='4บันทึกเวลาเรียน'!M42 -> - | L44: ='4บันทึกเวลาเรียน'!N42 -> - | M44: ='4บันทึกเวลาเรียน'!O42 -> - | N44: ='4บันทึกเวลาเรียน'!P42 -> - | O44: ='4บันทึกเวลาเรียน'!Q42 -> - | P44: ='4บันทึกเวลาเรียน'!R42 -> - | Q44: ='4บันทึกเวลาเรียน'!S42 -> - | R44: ='4บันทึกเวลาเรียน'!T42 -> - | S44: ='4บันทึกเวลาเรียน'!U42 -> - | T44: ='4บันทึกเวลาเรียน'!V42 -> - | U44: ='4บันทึกเวลาเรียน'!W42 -> - | V44: ='4บันทึกเวลาเรียน'!X42 -> - | W44: ='4บันทึกเวลาเรียน'!Y42 -> - | X44: ='4บันทึกเวลาเรียน'!Z42 -> - | Y44: ='4บันทึกเวลาเรียน'!AA42 -> - | Z44: ='4บันทึกเวลาเรียน'!AB42 -> - | AA44: ='4บันทึกเวลาเรียน'!AC42 -> - | AB44: ='4บันทึกเวลาเรียน'!AD42 -> - | AC44: ='4บันทึกเวลาเรียน'!AE42 -> - | AD44: ='4บันทึกเวลาเรียน'!AF42 -> - | AE44: ='4บันทึกเวลาเรียน'!AG42 -> - | AF44: ='4บันทึกเวลาเรียน'!AH42 -> - | AG44: ='4บันทึกเวลาเรียน'!AI42 -> - | AH44: ='4บันทึกเวลาเรียน'!AJ42 -> - | AI44: ='4บันทึกเวลาเรียน'!AK42 -> - | AJ44: ='4บันทึกเวลาเรียน'!AL42 -> - | AK44: ='4บันทึกเวลาเรียน'!AM42 -> - | AL44: ='4บันทึกเวลาเรียน'!AN42 -> - | AM44: ='4บันทึกเวลาเรียน'!AO42 -> - | AN44: ='4บันทึกเวลาเรียน'!AP42 -> - | AO44: ='4บันทึกเวลาเรียน'!AQ42 -> - | AP44: ='4บันทึกเวลาเรียน'!AR42 -> - | AQ44: ='4บันทึกเวลาเรียน'!AS42 -> - | AR44: ='4บันทึกเวลาเรียน'!AT42 -> - | AS44: ='4บันทึกเวลาเรียน'!AU42 -> - | AT44: ='4บันทึกเวลาเรียน'!AV42 -> - | AU44: ='4บันทึกเวลาเรียน'!AW42 -> - | AV44: ='4บันทึกเวลาเรียน'!AX42 -> - | AW44: ='4บันทึกเวลาเรียน'!AY42 -> - | AX44: ='4บันทึกเวลาเรียน'!AZ42 -> - | AY44: ='4บันทึกเวลาเรียน'!BA42 -> - | AZ44: ='4บันทึกเวลาเรียน'!BB42 -> - | BA44: ='4บันทึกเวลาเรียน'!BC42 -> - | BB44: ='4บันทึกเวลาเรียน'!BD42 -> - | BC44: ='4บันทึกเวลาเรียน'!BE42 -> - | BD44: ='4บันทึกเวลาเรียน'!BF42 -> - | BE44: ='4บันทึกเวลาเรียน'!BG42 -> - | BF44: ='4บันทึกเวลาเรียน'!BH42 -> - | BG44: ='4บันทึกเวลาเรียน'!BI42 -> - | BH44: ='4บันทึกเวลาเรียน'!BJ42 -> - | BI44: ='4บันทึกเวลาเรียน'!BK42 -> - | BJ44: ='4บันทึกเวลาเรียน'!BL42 -> - | BK44: ='4บันทึกเวลาเรียน'!BM42 -> - | BL44: ='4บันทึกเวลาเรียน'!BN42 -> - | BM44: ='4บันทึกเวลาเรียน'!BO42 -> - | BN44: ='4บันทึกเวลาเรียน'!BP42 -> - | BO44: ='4บันทึกเวลาเรียน'!BQ42 -> - | BP44: ='4บันทึกเวลาเรียน'!BR42 -> - | BQ44: ='4บันทึกเวลาเรียน'!BS42 -> - | BR44: ='4บันทึกเวลาเรียน'!BT42 -> - | BS44: ='4บันทึกเวลาเรียน'!BU42 -> - | BT44: ='4บันทึกเวลาเรียน'!BV42 -> - | BU44: ='4บันทึกเวลาเรียน'!BW42 -> - | BV44: ='4บันทึกเวลาเรียน'!BX42 -> - | BW44: ='4บันทึกเวลาเรียน'!BY42 -> - | BX44: ='4บันทึกเวลาเรียน'!BZ42 -> - | BY44: ='4บันทึกเวลาเรียน'!CA42 -> - | BZ44: ='4บันทึกเวลาเรียน'!CB42 -> - | CA44: ='4บันทึกเวลาเรียน'!CC42 -> - | CB44: ='4บันทึกเวลาเรียน'!CD42 -> - | CC44: ='4บันทึกเวลาเรียน'!CE42 -> - | CD44: ='4บันทึกเวลาเรียน'!CF42 -> - | CE44: ='4บันทึกเวลาเรียน'!CG42 -> - | CF44: ='4บันทึกเวลาเรียน'!CH42 -> - | CG44: ='4บันทึกเวลาเรียน'!CI42 -> - | CH44: ='4บันทึกเวลาเรียน'!CJ42 -> - | CI44: ='4บันทึกเวลาเรียน'!CK42 -> - | CJ44: ='4บันทึกเวลาเรียน'!CL42 -> - | CK44: ='4บันทึกเวลาเรียน'!CM42 -> - | CL44: ='4บันทึกเวลาเรียน'!CN42 -> - | CM44: ='4บันทึกเวลาเรียน'!CO42 -> - | CN44: ='4บันทึกเวลาเรียน'!CP42 -> - | CO44: ='4บันทึกเวลาเรียน'!CQ42 -> - | CP44: ='4บันทึกเวลาเรียน'!CR42 -> - | CQ44: ='4บันทึกเวลาเรียน'!CS42 -> - | CR44: ='4บันทึกเวลาเรียน'!CT42 -> - | CS44: ='4บันทึกเวลาเรียน'!CU42 -> - | CT44: ='4บันทึกเวลาเรียน'!CV42 -> - | CU44: ='4บันทึกเวลาเรียน'!CW42 -> - | CV44: ='4บันทึกเวลาเรียน'!CX42 -> - | CW44: ='4บันทึกเวลาเรียน'!CY42 -> - | CX44: ='4บันทึกเวลาเรียน'!CZ42 -> - | CY44: ='4บันทึกเวลาเรียน'!DA42 -> - | CZ44: ='4บันทึกเวลาเรียน'!DB42 -> - | DB44: - | DC44: ='1ข้อมูลรายวิชา'!E39 -> 0 | DD44: ='1ข้อมูลรายวิชา'!F39 -> 0 | DE44: ='1ข้อมูลรายวิชา'!G39 -> 0 | DF44: ='1ข้อมูลรายวิชา'!H39 -> 0 | DG44: ='1ข้อมูลรายวิชา'!I39 -> 0 | DH44: ='1ข้อมูลรายวิชา'!J39 -> 0 | DI44: ='1ข้อมูลรายวิชา'!N39 -> 3 | DJ44: ='1ข้อมูลรายวิชา'!O39 -> 3
A45: 37 | B45: ='1ข้อมูลรายวิชา'!C40 -> 09610 | C45: ='1ข้อมูลรายวิชา'!D40 -> เด็กชายปพัฐษดา ผิวแดง | D45: ='1ข้อมูลรายวิชา'!#REF! ->  | E45: ='4บันทึกเวลาเรียน'!G43 -> - | F45: ='4บันทึกเวลาเรียน'!H43 -> - | G45: ='4บันทึกเวลาเรียน'!I43 -> - | H45: ='4บันทึกเวลาเรียน'!J43 -> - | I45: ='4บันทึกเวลาเรียน'!K43 -> - | J45: ='4บันทึกเวลาเรียน'!L43 -> - | K45: ='4บันทึกเวลาเรียน'!M43 -> - | L45: ='4บันทึกเวลาเรียน'!N43 -> - | M45: ='4บันทึกเวลาเรียน'!O43 -> - | N45: ='4บันทึกเวลาเรียน'!P43 -> - | O45: ='4บันทึกเวลาเรียน'!Q43 -> - | P45: ='4บันทึกเวลาเรียน'!R43 -> - | Q45: ='4บันทึกเวลาเรียน'!S43 -> - | R45: ='4บันทึกเวลาเรียน'!T43 -> - | S45: ='4บันทึกเวลาเรียน'!U43 -> - | T45: ='4บันทึกเวลาเรียน'!V43 -> - | U45: ='4บันทึกเวลาเรียน'!W43 -> - | V45: ='4บันทึกเวลาเรียน'!X43 -> - | W45: ='4บันทึกเวลาเรียน'!Y43 -> - | X45: ='4บันทึกเวลาเรียน'!Z43 -> - | Y45: ='4บันทึกเวลาเรียน'!AA43 -> - | Z45: ='4บันทึกเวลาเรียน'!AB43 -> - | AA45: ='4บันทึกเวลาเรียน'!AC43 -> - | AB45: ='4บันทึกเวลาเรียน'!AD43 -> - | AC45: ='4บันทึกเวลาเรียน'!AE43 -> - | AD45: ='4บันทึกเวลาเรียน'!AF43 -> - | AE45: ='4บันทึกเวลาเรียน'!AG43 -> - | AF45: ='4บันทึกเวลาเรียน'!AH43 -> - | AG45: ='4บันทึกเวลาเรียน'!AI43 -> - | AH45: ='4บันทึกเวลาเรียน'!AJ43 -> - | AI45: ='4บันทึกเวลาเรียน'!AK43 -> - | AJ45: ='4บันทึกเวลาเรียน'!AL43 -> - | AK45: ='4บันทึกเวลาเรียน'!AM43 -> - | AL45: ='4บันทึกเวลาเรียน'!AN43 -> - | AM45: ='4บันทึกเวลาเรียน'!AO43 -> - | AN45: ='4บันทึกเวลาเรียน'!AP43 -> - | AO45: ='4บันทึกเวลาเรียน'!AQ43 -> - | AP45: ='4บันทึกเวลาเรียน'!AR43 -> - | AQ45: ='4บันทึกเวลาเรียน'!AS43 -> - | AR45: ='4บันทึกเวลาเรียน'!AT43 -> - | AS45: ='4บันทึกเวลาเรียน'!AU43 -> - | AT45: ='4บันทึกเวลาเรียน'!AV43 -> - | AU45: ='4บันทึกเวลาเรียน'!AW43 -> - | AV45: ='4บันทึกเวลาเรียน'!AX43 -> - | AW45: ='4บันทึกเวลาเรียน'!AY43 -> - | AX45: ='4บันทึกเวลาเรียน'!AZ43 -> - | AY45: ='4บันทึกเวลาเรียน'!BA43 -> - | AZ45: ='4บันทึกเวลาเรียน'!BB43 -> - | BA45: ='4บันทึกเวลาเรียน'!BC43 -> - | BB45: ='4บันทึกเวลาเรียน'!BD43 -> - | BC45: ='4บันทึกเวลาเรียน'!BE43 -> - | BD45: ='4บันทึกเวลาเรียน'!BF43 -> - | BE45: ='4บันทึกเวลาเรียน'!BG43 -> - | BF45: ='4บันทึกเวลาเรียน'!BH43 -> - | BG45: ='4บันทึกเวลาเรียน'!BI43 -> - | BH45: ='4บันทึกเวลาเรียน'!BJ43 -> - | BI45: ='4บันทึกเวลาเรียน'!BK43 -> - | BJ45: ='4บันทึกเวลาเรียน'!BL43 -> - | BK45: ='4บันทึกเวลาเรียน'!BM43 -> - | BL45: ='4บันทึกเวลาเรียน'!BN43 -> - | BM45: ='4บันทึกเวลาเรียน'!BO43 -> - | BN45: ='4บันทึกเวลาเรียน'!BP43 -> - | BO45: ='4บันทึกเวลาเรียน'!BQ43 -> - | BP45: ='4บันทึกเวลาเรียน'!BR43 -> - | BQ45: ='4บันทึกเวลาเรียน'!BS43 -> - | BR45: ='4บันทึกเวลาเรียน'!BT43 -> - | BS45: ='4บันทึกเวลาเรียน'!BU43 -> - | BT45: ='4บันทึกเวลาเรียน'!BV43 -> - | BU45: ='4บันทึกเวลาเรียน'!BW43 -> - | BV45: ='4บันทึกเวลาเรียน'!BX43 -> - | BW45: ='4บันทึกเวลาเรียน'!BY43 -> - | BX45: ='4บันทึกเวลาเรียน'!BZ43 -> - | BY45: ='4บันทึกเวลาเรียน'!CA43 -> - | BZ45: ='4บันทึกเวลาเรียน'!CB43 -> - | CA45: ='4บันทึกเวลาเรียน'!CC43 -> - | CB45: ='4บันทึกเวลาเรียน'!CD43 -> - | CC45: ='4บันทึกเวลาเรียน'!CE43 -> - | CD45: ='4บันทึกเวลาเรียน'!CF43 -> - | CE45: ='4บันทึกเวลาเรียน'!CG43 -> - | CF45: ='4บันทึกเวลาเรียน'!CH43 -> - | CG45: ='4บันทึกเวลาเรียน'!CI43 -> - | CH45: ='4บันทึกเวลาเรียน'!CJ43 -> - | CI45: ='4บันทึกเวลาเรียน'!CK43 -> - | CJ45: ='4บันทึกเวลาเรียน'!CL43 -> - | CK45: ='4บันทึกเวลาเรียน'!CM43 -> - | CL45: ='4บันทึกเวลาเรียน'!CN43 -> - | CM45: ='4บันทึกเวลาเรียน'!CO43 -> - | CN45: ='4บันทึกเวลาเรียน'!CP43 -> - | CO45: ='4บันทึกเวลาเรียน'!CQ43 -> - | CP45: ='4บันทึกเวลาเรียน'!CR43 -> - | CQ45: ='4บันทึกเวลาเรียน'!CS43 -> - | CR45: ='4บันทึกเวลาเรียน'!CT43 -> - | CS45: ='4บันทึกเวลาเรียน'!CU43 -> - | CT45: ='4บันทึกเวลาเรียน'!CV43 -> - | CU45: ='4บันทึกเวลาเรียน'!CW43 -> - | CV45: ='4บันทึกเวลาเรียน'!CX43 -> - | CW45: ='4บันทึกเวลาเรียน'!CY43 -> - | CX45: ='4บันทึกเวลาเรียน'!CZ43 -> - | CY45: ='4บันทึกเวลาเรียน'!DA43 -> - | CZ45: ='4บันทึกเวลาเรียน'!DB43 -> - | DB45: - | DC45: ='1ข้อมูลรายวิชา'!E40 -> 0 | DD45: ='1ข้อมูลรายวิชา'!F40 -> 0 | DE45: ='1ข้อมูลรายวิชา'!G40 -> 0 | DF45: ='1ข้อมูลรายวิชา'!H40 -> 0 | DG45: ='1ข้อมูลรายวิชา'!I40 -> 0 | DH45: ='1ข้อมูลรายวิชา'!J40 -> 0 | DI45: ='1ข้อมูลรายวิชา'!N40 -> 3 | DJ45: ='1ข้อมูลรายวิชา'!O40 -> 3
A46: 38 | B46: ='1ข้อมูลรายวิชา'!C41 -> 09620 | C46: ='1ข้อมูลรายวิชา'!D41 -> เด็กชายธันวา สีเขียว | D46: ='1ข้อมูลรายวิชา'!#REF! ->  | E46: ='4บันทึกเวลาเรียน'!G44 -> - | F46: ='4บันทึกเวลาเรียน'!H44 -> - | G46: ='4บันทึกเวลาเรียน'!I44 -> - | H46: ='4บันทึกเวลาเรียน'!J44 -> - | I46: ='4บันทึกเวลาเรียน'!K44 -> - | J46: ='4บันทึกเวลาเรียน'!L44 -> - | K46: ='4บันทึกเวลาเรียน'!M44 -> - | L46: ='4บันทึกเวลาเรียน'!N44 -> - | M46: ='4บันทึกเวลาเรียน'!O44 -> - | N46: ='4บันทึกเวลาเรียน'!P44 -> - | O46: ='4บันทึกเวลาเรียน'!Q44 -> - | P46: ='4บันทึกเวลาเรียน'!R44 -> - | Q46: ='4บันทึกเวลาเรียน'!S44 -> - | R46: ='4บันทึกเวลาเรียน'!T44 -> - | S46: ='4บันทึกเวลาเรียน'!U44 -> - | T46: ='4บันทึกเวลาเรียน'!V44 -> - | U46: ='4บันทึกเวลาเรียน'!W44 -> - | V46: ='4บันทึกเวลาเรียน'!X44 -> - | W46: ='4บันทึกเวลาเรียน'!Y44 -> - | X46: ='4บันทึกเวลาเรียน'!Z44 -> - | Y46: ='4บันทึกเวลาเรียน'!AA44 -> - | Z46: ='4บันทึกเวลาเรียน'!AB44 -> - | AA46: ='4บันทึกเวลาเรียน'!AC44 -> - | AB46: ='4บันทึกเวลาเรียน'!AD44 -> - | AC46: ='4บันทึกเวลาเรียน'!AE44 -> - | AD46: ='4บันทึกเวลาเรียน'!AF44 -> - | AE46: ='4บันทึกเวลาเรียน'!AG44 -> - | AF46: ='4บันทึกเวลาเรียน'!AH44 -> - | AG46: ='4บันทึกเวลาเรียน'!AI44 -> - | AH46: ='4บันทึกเวลาเรียน'!AJ44 -> - | AI46: ='4บันทึกเวลาเรียน'!AK44 -> - | AJ46: ='4บันทึกเวลาเรียน'!AL44 -> - | AK46: ='4บันทึกเวลาเรียน'!AM44 -> - | AL46: ='4บันทึกเวลาเรียน'!AN44 -> - | AM46: ='4บันทึกเวลาเรียน'!AO44 -> - | AN46: ='4บันทึกเวลาเรียน'!AP44 -> - | AO46: ='4บันทึกเวลาเรียน'!AQ44 -> - | AP46: ='4บันทึกเวลาเรียน'!AR44 -> - | AQ46: ='4บันทึกเวลาเรียน'!AS44 -> - | AR46: ='4บันทึกเวลาเรียน'!AT44 -> - | AS46: ='4บันทึกเวลาเรียน'!AU44 -> - | AT46: ='4บันทึกเวลาเรียน'!AV44 -> - | AU46: ='4บันทึกเวลาเรียน'!AW44 -> - | AV46: ='4บันทึกเวลาเรียน'!AX44 -> - | AW46: ='4บันทึกเวลาเรียน'!AY44 -> - | AX46: ='4บันทึกเวลาเรียน'!AZ44 -> - | AY46: ='4บันทึกเวลาเรียน'!BA44 -> - | AZ46: ='4บันทึกเวลาเรียน'!BB44 -> - | BA46: ='4บันทึกเวลาเรียน'!BC44 -> - | BB46: ='4บันทึกเวลาเรียน'!BD44 -> - | BC46: ='4บันทึกเวลาเรียน'!BE44 -> - | BD46: ='4บันทึกเวลาเรียน'!BF44 -> - | BE46: ='4บันทึกเวลาเรียน'!BG44 -> - | BF46: ='4บันทึกเวลาเรียน'!BH44 -> - | BG46: ='4บันทึกเวลาเรียน'!BI44 -> - | BH46: ='4บันทึกเวลาเรียน'!BJ44 -> - | BI46: ='4บันทึกเวลาเรียน'!BK44 -> - | BJ46: ='4บันทึกเวลาเรียน'!BL44 -> - | BK46: ='4บันทึกเวลาเรียน'!BM44 -> - | BL46: ='4บันทึกเวลาเรียน'!BN44 -> - | BM46: ='4บันทึกเวลาเรียน'!BO44 -> - | BN46: ='4บันทึกเวลาเรียน'!BP44 -> - | BO46: ='4บันทึกเวลาเรียน'!BQ44 -> - | BP46: ='4บันทึกเวลาเรียน'!BR44 -> - | BQ46: ='4บันทึกเวลาเรียน'!BS44 -> - | BR46: ='4บันทึกเวลาเรียน'!BT44 -> - | BS46: ='4บันทึกเวลาเรียน'!BU44 -> - | BT46: ='4บันทึกเวลาเรียน'!BV44 -> - | BU46: ='4บันทึกเวลาเรียน'!BW44 -> - | BV46: ='4บันทึกเวลาเรียน'!BX44 -> - | BW46: ='4บันทึกเวลาเรียน'!BY44 -> - | BX46: ='4บันทึกเวลาเรียน'!BZ44 -> - | BY46: ='4บันทึกเวลาเรียน'!CA44 -> - | BZ46: ='4บันทึกเวลาเรียน'!CB44 -> - | CA46: ='4บันทึกเวลาเรียน'!CC44 -> - | CB46: ='4บันทึกเวลาเรียน'!CD44 -> - | CC46: ='4บันทึกเวลาเรียน'!CE44 -> - | CD46: ='4บันทึกเวลาเรียน'!CF44 -> - | CE46: ='4บันทึกเวลาเรียน'!CG44 -> - | CF46: ='4บันทึกเวลาเรียน'!CH44 -> - | CG46: ='4บันทึกเวลาเรียน'!CI44 -> - | CH46: ='4บันทึกเวลาเรียน'!CJ44 -> - | CI46: ='4บันทึกเวลาเรียน'!CK44 -> - | CJ46: ='4บันทึกเวลาเรียน'!CL44 -> - | CK46: ='4บันทึกเวลาเรียน'!CM44 -> - | CL46: ='4บันทึกเวลาเรียน'!CN44 -> - | CM46: ='4บันทึกเวลาเรียน'!CO44 -> - | CN46: ='4บันทึกเวลาเรียน'!CP44 -> - | CO46: ='4บันทึกเวลาเรียน'!CQ44 -> - | CP46: ='4บันทึกเวลาเรียน'!CR44 -> - | CQ46: ='4บันทึกเวลาเรียน'!CS44 -> - | CR46: ='4บันทึกเวลาเรียน'!CT44 -> - | CS46: ='4บันทึกเวลาเรียน'!CU44 -> - | CT46: ='4บันทึกเวลาเรียน'!CV44 -> - | CU46: ='4บันทึกเวลาเรียน'!CW44 -> - | CV46: ='4บันทึกเวลาเรียน'!CX44 -> - | CW46: ='4บันทึกเวลาเรียน'!CY44 -> - | CX46: ='4บันทึกเวลาเรียน'!CZ44 -> - | CY46: ='4บันทึกเวลาเรียน'!DA44 -> - | CZ46: ='4บันทึกเวลาเรียน'!DB44 -> - | DB46: - | DC46: ='1ข้อมูลรายวิชา'!E41 -> 0 | DD46: ='1ข้อมูลรายวิชา'!F41 -> 0 | DE46: ='1ข้อมูลรายวิชา'!G41 -> 0 | DF46: ='1ข้อมูลรายวิชา'!H41 -> 0 | DG46: ='1ข้อมูลรายวิชา'!I41 -> 0 | DH46: ='1ข้อมูลรายวิชา'!J41 -> 0 | DI46: ='1ข้อมูลรายวิชา'!N41 -> 3 | DJ46: ='1ข้อมูลรายวิชา'!O41 -> 3
A47: 39 | B47: ='1ข้อมูลรายวิชา'!C42 -> 09733 | C47: ='1ข้อมูลรายวิชา'!D42 -> เด็กชายพีรพัฒน์ ดาทุมมา | D47: ='1ข้อมูลรายวิชา'!#REF! ->  | E47: ='4บันทึกเวลาเรียน'!G45 -> - | F47: ='4บันทึกเวลาเรียน'!H45 -> - | G47: ='4บันทึกเวลาเรียน'!I45 -> - | H47: ='4บันทึกเวลาเรียน'!J45 -> - | I47: ='4บันทึกเวลาเรียน'!K45 -> - | J47: ='4บันทึกเวลาเรียน'!L45 -> - | K47: ='4บันทึกเวลาเรียน'!M45 -> - | L47: ='4บันทึกเวลาเรียน'!N45 -> - | M47: ='4บันทึกเวลาเรียน'!O45 -> - | N47: ='4บันทึกเวลาเรียน'!P45 -> - | O47: ='4บันทึกเวลาเรียน'!Q45 -> - | P47: ='4บันทึกเวลาเรียน'!R45 -> - | Q47: ='4บันทึกเวลาเรียน'!S45 -> - | R47: ='4บันทึกเวลาเรียน'!T45 -> - | S47: ='4บันทึกเวลาเรียน'!U45 -> - | T47: ='4บันทึกเวลาเรียน'!V45 -> - | U47: ='4บันทึกเวลาเรียน'!W45 -> - | V47: ='4บันทึกเวลาเรียน'!X45 -> - | W47: ='4บันทึกเวลาเรียน'!Y45 -> - | X47: ='4บันทึกเวลาเรียน'!Z45 -> - | Y47: ='4บันทึกเวลาเรียน'!AA45 -> - | Z47: ='4บันทึกเวลาเรียน'!AB45 -> - | AA47: ='4บันทึกเวลาเรียน'!AC45 -> - | AB47: ='4บันทึกเวลาเรียน'!AD45 -> - | AC47: ='4บันทึกเวลาเรียน'!AE45 -> - | AD47: ='4บันทึกเวลาเรียน'!AF45 -> - | AE47: ='4บันทึกเวลาเรียน'!AG45 -> - | AF47: ='4บันทึกเวลาเรียน'!AH45 -> - | AG47: ='4บันทึกเวลาเรียน'!AI45 -> - | AH47: ='4บันทึกเวลาเรียน'!AJ45 -> - | AI47: ='4บันทึกเวลาเรียน'!AK45 -> - | AJ47: ='4บันทึกเวลาเรียน'!AL45 -> - | AK47: ='4บันทึกเวลาเรียน'!AM45 -> - | AL47: ='4บันทึกเวลาเรียน'!AN45 -> - | AM47: ='4บันทึกเวลาเรียน'!AO45 -> - | AN47: ='4บันทึกเวลาเรียน'!AP45 -> - | AO47: ='4บันทึกเวลาเรียน'!AQ45 -> - | AP47: ='4บันทึกเวลาเรียน'!AR45 -> - | AQ47: ='4บันทึกเวลาเรียน'!AS45 -> - | AR47: ='4บันทึกเวลาเรียน'!AT45 -> - | AS47: ='4บันทึกเวลาเรียน'!AU45 -> - | AT47: ='4บันทึกเวลาเรียน'!AV45 -> - | AU47: ='4บันทึกเวลาเรียน'!AW45 -> - | AV47: ='4บันทึกเวลาเรียน'!AX45 -> - | AW47: ='4บันทึกเวลาเรียน'!AY45 -> - | AX47: ='4บันทึกเวลาเรียน'!AZ45 -> - | AY47: ='4บันทึกเวลาเรียน'!BA45 -> - | AZ47: ='4บันทึกเวลาเรียน'!BB45 -> - | BA47: ='4บันทึกเวลาเรียน'!BC45 -> - | BB47: ='4บันทึกเวลาเรียน'!BD45 -> - | BC47: ='4บันทึกเวลาเรียน'!BE45 -> - | BD47: ='4บันทึกเวลาเรียน'!BF45 -> - | BE47: ='4บันทึกเวลาเรียน'!BG45 -> - | BF47: ='4บันทึกเวลาเรียน'!BH45 -> - | BG47: ='4บันทึกเวลาเรียน'!BI45 -> - | BH47: ='4บันทึกเวลาเรียน'!BJ45 -> - | BI47: ='4บันทึกเวลาเรียน'!BK45 -> - | BJ47: ='4บันทึกเวลาเรียน'!BL45 -> - | BK47: ='4บันทึกเวลาเรียน'!BM45 -> - | BL47: ='4บันทึกเวลาเรียน'!BN45 -> - | BM47: ='4บันทึกเวลาเรียน'!BO45 -> - | BN47: ='4บันทึกเวลาเรียน'!BP45 -> - | BO47: ='4บันทึกเวลาเรียน'!BQ45 -> - | BP47: ='4บันทึกเวลาเรียน'!BR45 -> - | BQ47: ='4บันทึกเวลาเรียน'!BS45 -> - | BR47: ='4บันทึกเวลาเรียน'!BT45 -> - | BS47: ='4บันทึกเวลาเรียน'!BU45 -> - | BT47: ='4บันทึกเวลาเรียน'!BV45 -> - | BU47: ='4บันทึกเวลาเรียน'!BW45 -> - | BV47: ='4บันทึกเวลาเรียน'!BX45 -> - | BW47: ='4บันทึกเวลาเรียน'!BY45 -> - | BX47: ='4บันทึกเวลาเรียน'!BZ45 -> - | BY47: ='4บันทึกเวลาเรียน'!CA45 -> - | BZ47: ='4บันทึกเวลาเรียน'!CB45 -> - | CA47: ='4บันทึกเวลาเรียน'!CC45 -> - | CB47: ='4บันทึกเวลาเรียน'!CD45 -> - | CC47: ='4บันทึกเวลาเรียน'!CE45 -> - | CD47: ='4บันทึกเวลาเรียน'!CF45 -> - | CE47: ='4บันทึกเวลาเรียน'!CG45 -> - | CF47: ='4บันทึกเวลาเรียน'!CH45 -> - | CG47: ='4บันทึกเวลาเรียน'!CI45 -> - | CH47: ='4บันทึกเวลาเรียน'!CJ45 -> - | CI47: ='4บันทึกเวลาเรียน'!CK45 -> - | CJ47: ='4บันทึกเวลาเรียน'!CL45 -> - | CK47: ='4บันทึกเวลาเรียน'!CM45 -> - | CL47: ='4บันทึกเวลาเรียน'!CN45 -> - | CM47: ='4บันทึกเวลาเรียน'!CO45 -> - | CN47: ='4บันทึกเวลาเรียน'!CP45 -> - | CO47: ='4บันทึกเวลาเรียน'!CQ45 -> - | CP47: ='4บันทึกเวลาเรียน'!CR45 -> - | CQ47: ='4บันทึกเวลาเรียน'!CS45 -> - | CR47: ='4บันทึกเวลาเรียน'!CT45 -> - | CS47: ='4บันทึกเวลาเรียน'!CU45 -> - | CT47: ='4บันทึกเวลาเรียน'!CV45 -> - | CU47: ='4บันทึกเวลาเรียน'!CW45 -> - | CV47: ='4บันทึกเวลาเรียน'!CX45 -> - | CW47: ='4บันทึกเวลาเรียน'!CY45 -> - | CX47: ='4บันทึกเวลาเรียน'!CZ45 -> - | CY47: ='4บันทึกเวลาเรียน'!DA45 -> - | CZ47: ='4บันทึกเวลาเรียน'!DB45 -> - | DB47: - | DC47: ='1ข้อมูลรายวิชา'!E42 -> 0 | DD47: ='1ข้อมูลรายวิชา'!F42 -> 0 | DE47: ='1ข้อมูลรายวิชา'!G42 -> 0 | DF47: ='1ข้อมูลรายวิชา'!H42 -> 0 | DG47: ='1ข้อมูลรายวิชา'!I42 -> 0 | DH47: ='1ข้อมูลรายวิชา'!J42 -> 0 | DI47: ='1ข้อมูลรายวิชา'!N42 -> 3 | DJ47: ='1ข้อมูลรายวิชา'!O42 -> 3
A48: 40 | B48: ='1ข้อมูลรายวิชา'!C43 -> 09734 | C48: ='1ข้อมูลรายวิชา'!D43 -> เด็กชายมงคล จิตรบรรจง | D48: ='1ข้อมูลรายวิชา'!#REF! ->  | E48: ='4บันทึกเวลาเรียน'!G46 -> - | F48: ='4บันทึกเวลาเรียน'!H46 -> - | G48: ='4บันทึกเวลาเรียน'!I46 -> - | H48: ='4บันทึกเวลาเรียน'!J46 -> - | I48: ='4บันทึกเวลาเรียน'!K46 -> - | J48: ='4บันทึกเวลาเรียน'!L46 -> - | K48: ='4บันทึกเวลาเรียน'!M46 -> - | L48: ='4บันทึกเวลาเรียน'!N46 -> - | M48: ='4บันทึกเวลาเรียน'!O46 -> - | N48: ='4บันทึกเวลาเรียน'!P46 -> - | O48: ='4บันทึกเวลาเรียน'!Q46 -> - | P48: ='4บันทึกเวลาเรียน'!R46 -> - | Q48: ='4บันทึกเวลาเรียน'!S46 -> - | R48: ='4บันทึกเวลาเรียน'!T46 -> - | S48: ='4บันทึกเวลาเรียน'!U46 -> - | T48: ='4บันทึกเวลาเรียน'!V46 -> - | U48: ='4บันทึกเวลาเรียน'!W46 -> - | V48: ='4บันทึกเวลาเรียน'!X46 -> - | W48: ='4บันทึกเวลาเรียน'!Y46 -> - | X48: ='4บันทึกเวลาเรียน'!Z46 -> - | Y48: ='4บันทึกเวลาเรียน'!AA46 -> - | Z48: ='4บันทึกเวลาเรียน'!AB46 -> - | AA48: ='4บันทึกเวลาเรียน'!AC46 -> - | AB48: ='4บันทึกเวลาเรียน'!AD46 -> - | AC48: ='4บันทึกเวลาเรียน'!AE46 -> - | AD48: ='4บันทึกเวลาเรียน'!AF46 -> - | AE48: ='4บันทึกเวลาเรียน'!AG46 -> - | AF48: ='4บันทึกเวลาเรียน'!AH46 -> - | AG48: ='4บันทึกเวลาเรียน'!AI46 -> - | AH48: ='4บันทึกเวลาเรียน'!AJ46 -> - | AI48: ='4บันทึกเวลาเรียน'!AK46 -> - | AJ48: ='4บันทึกเวลาเรียน'!AL46 -> - | AK48: ='4บันทึกเวลาเรียน'!AM46 -> - | AL48: ='4บันทึกเวลาเรียน'!AN46 -> - | AM48: ='4บันทึกเวลาเรียน'!AO46 -> - | AN48: ='4บันทึกเวลาเรียน'!AP46 -> - | AO48: ='4บันทึกเวลาเรียน'!AQ46 -> - | AP48: ='4บันทึกเวลาเรียน'!AR46 -> - | AQ48: ='4บันทึกเวลาเรียน'!AS46 -> - | AR48: ='4บันทึกเวลาเรียน'!AT46 -> - | AS48: ='4บันทึกเวลาเรียน'!AU46 -> - | AT48: ='4บันทึกเวลาเรียน'!AV46 -> - | AU48: ='4บันทึกเวลาเรียน'!AW46 -> - | AV48: ='4บันทึกเวลาเรียน'!AX46 -> - | AW48: ='4บันทึกเวลาเรียน'!AY46 -> - | AX48: ='4บันทึกเวลาเรียน'!AZ46 -> - | AY48: ='4บันทึกเวลาเรียน'!BA46 -> - | AZ48: ='4บันทึกเวลาเรียน'!BB46 -> - | BA48: ='4บันทึกเวลาเรียน'!BC46 -> - | BB48: ='4บันทึกเวลาเรียน'!BD46 -> - | BC48: ='4บันทึกเวลาเรียน'!BE46 -> - | BD48: ='4บันทึกเวลาเรียน'!BF46 -> - | BE48: ='4บันทึกเวลาเรียน'!BG46 -> - | BF48: ='4บันทึกเวลาเรียน'!BH46 -> - | BG48: ='4บันทึกเวลาเรียน'!BI46 -> - | BH48: ='4บันทึกเวลาเรียน'!BJ46 -> - | BI48: ='4บันทึกเวลาเรียน'!BK46 -> - | BJ48: ='4บันทึกเวลาเรียน'!BL46 -> - | BK48: ='4บันทึกเวลาเรียน'!BM46 -> - | BL48: ='4บันทึกเวลาเรียน'!BN46 -> - | BM48: ='4บันทึกเวลาเรียน'!BO46 -> - | BN48: ='4บันทึกเวลาเรียน'!BP46 -> - | BO48: ='4บันทึกเวลาเรียน'!BQ46 -> - | BP48: ='4บันทึกเวลาเรียน'!BR46 -> - | BQ48: ='4บันทึกเวลาเรียน'!BS46 -> - | BR48: ='4บันทึกเวลาเรียน'!BT46 -> - | BS48: ='4บันทึกเวลาเรียน'!BU46 -> - | BT48: ='4บันทึกเวลาเรียน'!BV46 -> - | BU48: ='4บันทึกเวลาเรียน'!BW46 -> - | BV48: ='4บันทึกเวลาเรียน'!BX46 -> - | BW48: ='4บันทึกเวลาเรียน'!BY46 -> - | BX48: ='4บันทึกเวลาเรียน'!BZ46 -> - | BY48: ='4บันทึกเวลาเรียน'!CA46 -> - | BZ48: ='4บันทึกเวลาเรียน'!CB46 -> - | CA48: ='4บันทึกเวลาเรียน'!CC46 -> - | CB48: ='4บันทึกเวลาเรียน'!CD46 -> - | CC48: ='4บันทึกเวลาเรียน'!CE46 -> - | CD48: ='4บันทึกเวลาเรียน'!CF46 -> - | CE48: ='4บันทึกเวลาเรียน'!CG46 -> - | CF48: ='4บันทึกเวลาเรียน'!CH46 -> - | CG48: ='4บันทึกเวลาเรียน'!CI46 -> - | CH48: ='4บันทึกเวลาเรียน'!CJ46 -> - | CI48: ='4บันทึกเวลาเรียน'!CK46 -> - | CJ48: ='4บันทึกเวลาเรียน'!CL46 -> - | CK48: ='4บันทึกเวลาเรียน'!CM46 -> - | CL48: ='4บันทึกเวลาเรียน'!CN46 -> - | CM48: ='4บันทึกเวลาเรียน'!CO46 -> - | CN48: ='4บันทึกเวลาเรียน'!CP46 -> - | CO48: ='4บันทึกเวลาเรียน'!CQ46 -> - | CP48: ='4บันทึกเวลาเรียน'!CR46 -> - | CQ48: ='4บันทึกเวลาเรียน'!CS46 -> - | CR48: ='4บันทึกเวลาเรียน'!CT46 -> - | CS48: ='4บันทึกเวลาเรียน'!CU46 -> - | CT48: ='4บันทึกเวลาเรียน'!CV46 -> - | CU48: ='4บันทึกเวลาเรียน'!CW46 -> - | CV48: ='4บันทึกเวลาเรียน'!CX46 -> - | CW48: ='4บันทึกเวลาเรียน'!CY46 -> - | CX48: ='4บันทึกเวลาเรียน'!CZ46 -> - | CY48: ='4บันทึกเวลาเรียน'!DA46 -> - | CZ48: ='4บันทึกเวลาเรียน'!DB46 -> - | DB48: - | DC48: ='1ข้อมูลรายวิชา'!E43 -> 0 | DD48: ='1ข้อมูลรายวิชา'!F43 -> 0 | DE48: ='1ข้อมูลรายวิชา'!G43 -> 0 | DF48: ='1ข้อมูลรายวิชา'!H43 -> 0 | DG48: ='1ข้อมูลรายวิชา'!I43 -> 0 | DH48: ='1ข้อมูลรายวิชา'!J43 -> 0 | DI48: ='1ข้อมูลรายวิชา'!N43 -> 3 | DJ48: ='1ข้อมูลรายวิชา'!O43 -> 3
A49: 41 | B49: ='1ข้อมูลรายวิชา'!C44 -> 09738 | C49: ='1ข้อมูลรายวิชา'!D44 -> เด็กหญิงวิภาวดี ร้อยพรหมมา | D49: ='1ข้อมูลรายวิชา'!#REF! ->  | E49: ='4บันทึกเวลาเรียน'!G47 -> - | F49: ='4บันทึกเวลาเรียน'!H47 -> - | G49: ='4บันทึกเวลาเรียน'!I47 -> - | H49: ='4บันทึกเวลาเรียน'!J47 -> - | I49: ='4บันทึกเวลาเรียน'!K47 -> - | J49: ='4บันทึกเวลาเรียน'!L47 -> - | K49: ='4บันทึกเวลาเรียน'!M47 -> - | L49: ='4บันทึกเวลาเรียน'!N47 -> - | M49: ='4บันทึกเวลาเรียน'!O47 -> - | N49: ='4บันทึกเวลาเรียน'!P47 -> - | O49: ='4บันทึกเวลาเรียน'!Q47 -> - | P49: ='4บันทึกเวลาเรียน'!R47 -> - | Q49: ='4บันทึกเวลาเรียน'!S47 -> - | R49: ='4บันทึกเวลาเรียน'!T47 -> - | S49: ='4บันทึกเวลาเรียน'!U47 -> - | T49: ='4บันทึกเวลาเรียน'!V47 -> - | U49: ='4บันทึกเวลาเรียน'!W47 -> - | V49: ='4บันทึกเวลาเรียน'!X47 -> - | W49: ='4บันทึกเวลาเรียน'!Y47 -> - | X49: ='4บันทึกเวลาเรียน'!Z47 -> - | Y49: ='4บันทึกเวลาเรียน'!AA47 -> - | Z49: ='4บันทึกเวลาเรียน'!AB47 -> - | AA49: ='4บันทึกเวลาเรียน'!AC47 -> - | AB49: ='4บันทึกเวลาเรียน'!AD47 -> - | AC49: ='4บันทึกเวลาเรียน'!AE47 -> - | AD49: ='4บันทึกเวลาเรียน'!AF47 -> - | AE49: ='4บันทึกเวลาเรียน'!AG47 -> - | AF49: ='4บันทึกเวลาเรียน'!AH47 -> - | AG49: ='4บันทึกเวลาเรียน'!AI47 -> - | AH49: ='4บันทึกเวลาเรียน'!AJ47 -> - | AI49: ='4บันทึกเวลาเรียน'!AK47 -> - | AJ49: ='4บันทึกเวลาเรียน'!AL47 -> - | AK49: ='4บันทึกเวลาเรียน'!AM47 -> - | AL49: ='4บันทึกเวลาเรียน'!AN47 -> - | AM49: ='4บันทึกเวลาเรียน'!AO47 -> - | AN49: ='4บันทึกเวลาเรียน'!AP47 -> - | AO49: ='4บันทึกเวลาเรียน'!AQ47 -> - | AP49: ='4บันทึกเวลาเรียน'!AR47 -> - | AQ49: ='4บันทึกเวลาเรียน'!AS47 -> - | AR49: ='4บันทึกเวลาเรียน'!AT47 -> - | AS49: ='4บันทึกเวลาเรียน'!AU47 -> - | AT49: ='4บันทึกเวลาเรียน'!AV47 -> - | AU49: ='4บันทึกเวลาเรียน'!AW47 -> - | AV49: ='4บันทึกเวลาเรียน'!AX47 -> - | AW49: ='4บันทึกเวลาเรียน'!AY47 -> - | AX49: ='4บันทึกเวลาเรียน'!AZ47 -> - | AY49: ='4บันทึกเวลาเรียน'!BA47 -> - | AZ49: ='4บันทึกเวลาเรียน'!BB47 -> - | BA49: ='4บันทึกเวลาเรียน'!BC47 -> - | BB49: ='4บันทึกเวลาเรียน'!BD47 -> - | BC49: ='4บันทึกเวลาเรียน'!BE47 -> - | BD49: ='4บันทึกเวลาเรียน'!BF47 -> - | BE49: ='4บันทึกเวลาเรียน'!BG47 -> - | BF49: ='4บันทึกเวลาเรียน'!BH47 -> - | BG49: ='4บันทึกเวลาเรียน'!BI47 -> - | BH49: ='4บันทึกเวลาเรียน'!BJ47 -> - | BI49: ='4บันทึกเวลาเรียน'!BK47 -> - | BJ49: ='4บันทึกเวลาเรียน'!BL47 -> - | BK49: ='4บันทึกเวลาเรียน'!BM47 -> - | BL49: ='4บันทึกเวลาเรียน'!BN47 -> - | BM49: ='4บันทึกเวลาเรียน'!BO47 -> - | BN49: ='4บันทึกเวลาเรียน'!BP47 -> - | BO49: ='4บันทึกเวลาเรียน'!BQ47 -> - | BP49: ='4บันทึกเวลาเรียน'!BR47 -> - | BQ49: ='4บันทึกเวลาเรียน'!BS47 -> - | BR49: ='4บันทึกเวลาเรียน'!BT47 -> - | BS49: ='4บันทึกเวลาเรียน'!BU47 -> - | BT49: ='4บันทึกเวลาเรียน'!BV47 -> - | BU49: ='4บันทึกเวลาเรียน'!BW47 -> - | BV49: ='4บันทึกเวลาเรียน'!BX47 -> - | BW49: ='4บันทึกเวลาเรียน'!BY47 -> - | BX49: ='4บันทึกเวลาเรียน'!BZ47 -> - | BY49: ='4บันทึกเวลาเรียน'!CA47 -> - | BZ49: ='4บันทึกเวลาเรียน'!CB47 -> - | CA49: ='4บันทึกเวลาเรียน'!CC47 -> - | CB49: ='4บันทึกเวลาเรียน'!CD47 -> - | CC49: ='4บันทึกเวลาเรียน'!CE47 -> - | CD49: ='4บันทึกเวลาเรียน'!CF47 -> - | CE49: ='4บันทึกเวลาเรียน'!CG47 -> - | CF49: ='4บันทึกเวลาเรียน'!CH47 -> - | CG49: ='4บันทึกเวลาเรียน'!CI47 -> - | CH49: ='4บันทึกเวลาเรียน'!CJ47 -> - | CI49: ='4บันทึกเวลาเรียน'!CK47 -> - | CJ49: ='4บันทึกเวลาเรียน'!CL47 -> - | CK49: ='4บันทึกเวลาเรียน'!CM47 -> - | CL49: ='4บันทึกเวลาเรียน'!CN47 -> - | CM49: ='4บันทึกเวลาเรียน'!CO47 -> - | CN49: ='4บันทึกเวลาเรียน'!CP47 -> - | CO49: ='4บันทึกเวลาเรียน'!CQ47 -> - | CP49: ='4บันทึกเวลาเรียน'!CR47 -> - | CQ49: ='4บันทึกเวลาเรียน'!CS47 -> - | CR49: ='4บันทึกเวลาเรียน'!CT47 -> - | CS49: ='4บันทึกเวลาเรียน'!CU47 -> - | CT49: ='4บันทึกเวลาเรียน'!CV47 -> - | CU49: ='4บันทึกเวลาเรียน'!CW47 -> - | CV49: ='4บันทึกเวลาเรียน'!CX47 -> - | CW49: ='4บันทึกเวลาเรียน'!CY47 -> - | CX49: ='4บันทึกเวลาเรียน'!CZ47 -> - | CY49: ='4บันทึกเวลาเรียน'!DA47 -> - | CZ49: ='4บันทึกเวลาเรียน'!DB47 -> - | DB49: - | DC49: ='1ข้อมูลรายวิชา'!E44 -> 0 | DD49: ='1ข้อมูลรายวิชา'!F44 -> 0 | DE49: ='1ข้อมูลรายวิชา'!G44 -> 0 | DF49: ='1ข้อมูลรายวิชา'!H44 -> 0 | DG49: ='1ข้อมูลรายวิชา'!I44 -> 0 | DH49: ='1ข้อมูลรายวิชา'!J44 -> 0 | DI49: ='1ข้อมูลรายวิชา'!N44 -> 3 | DJ49: ='1ข้อมูลรายวิชา'!O44 -> 3
A50: 42 | B50: ='1ข้อมูลรายวิชา'!C45 ->  | C50: ='1ข้อมูลรายวิชา'!D45 ->  | D50: ='1ข้อมูลรายวิชา'!#REF! ->  | E50: ='4บันทึกเวลาเรียน'!G48 -> - | F50: ='4บันทึกเวลาเรียน'!H48 -> - | G50: ='4บันทึกเวลาเรียน'!I48 -> - | H50: ='4บันทึกเวลาเรียน'!J48 -> - | I50: ='4บันทึกเวลาเรียน'!K48 -> - | J50: ='4บันทึกเวลาเรียน'!L48 -> - | K50: ='4บันทึกเวลาเรียน'!M48 -> - | L50: ='4บันทึกเวลาเรียน'!N48 -> - | M50: ='4บันทึกเวลาเรียน'!O48 -> - | N50: ='4บันทึกเวลาเรียน'!P48 -> - | O50: ='4บันทึกเวลาเรียน'!Q48 -> - | P50: ='4บันทึกเวลาเรียน'!R48 -> - | Q50: ='4บันทึกเวลาเรียน'!S48 -> - | R50: ='4บันทึกเวลาเรียน'!T48 -> - | S50: ='4บันทึกเวลาเรียน'!U48 -> - | T50: ='4บันทึกเวลาเรียน'!V48 -> - | U50: ='4บันทึกเวลาเรียน'!W48 -> - | V50: ='4บันทึกเวลาเรียน'!X48 -> - | W50: ='4บันทึกเวลาเรียน'!Y48 -> - | X50: ='4บันทึกเวลาเรียน'!Z48 -> - | Y50: ='4บันทึกเวลาเรียน'!AA48 -> - | Z50: ='4บันทึกเวลาเรียน'!AB48 -> - | AA50: ='4บันทึกเวลาเรียน'!AC48 -> - | AB50: ='4บันทึกเวลาเรียน'!AD48 -> - | AC50: ='4บันทึกเวลาเรียน'!AE48 -> - | AD50: ='4บันทึกเวลาเรียน'!AF48 -> - | AE50: ='4บันทึกเวลาเรียน'!AG48 -> - | AF50: ='4บันทึกเวลาเรียน'!AH48 -> - | AG50: ='4บันทึกเวลาเรียน'!AI48 -> - | AH50: ='4บันทึกเวลาเรียน'!AJ48 -> - | AI50: ='4บันทึกเวลาเรียน'!AK48 -> - | AJ50: ='4บันทึกเวลาเรียน'!AL48 -> - | AK50: ='4บันทึกเวลาเรียน'!AM48 -> - | AL50: ='4บันทึกเวลาเรียน'!AN48 -> - | AM50: ='4บันทึกเวลาเรียน'!AO48 -> - | AN50: ='4บันทึกเวลาเรียน'!AP48 -> - | AO50: ='4บันทึกเวลาเรียน'!AQ48 -> - | AP50: ='4บันทึกเวลาเรียน'!AR48 -> - | AQ50: ='4บันทึกเวลาเรียน'!AS48 -> - | AR50: ='4บันทึกเวลาเรียน'!AT48 -> - | AS50: ='4บันทึกเวลาเรียน'!AU48 -> - | AT50: ='4บันทึกเวลาเรียน'!AV48 -> - | AU50: ='4บันทึกเวลาเรียน'!AW48 -> - | AV50: ='4บันทึกเวลาเรียน'!AX48 -> - | AW50: ='4บันทึกเวลาเรียน'!AY48 -> - | AX50: ='4บันทึกเวลาเรียน'!AZ48 -> - | AY50: ='4บันทึกเวลาเรียน'!BA48 -> - | AZ50: ='4บันทึกเวลาเรียน'!BB48 -> - | BA50: ='4บันทึกเวลาเรียน'!BC48 -> - | BB50: ='4บันทึกเวลาเรียน'!BD48 -> - | BC50: ='4บันทึกเวลาเรียน'!BE48 -> - | BD50: ='4บันทึกเวลาเรียน'!BF48 -> - | BE50: ='4บันทึกเวลาเรียน'!BG48 -> - | BF50: ='4บันทึกเวลาเรียน'!BH48 -> - | BG50: ='4บันทึกเวลาเรียน'!BI48 -> - | BH50: ='4บันทึกเวลาเรียน'!BJ48 -> - | BI50: ='4บันทึกเวลาเรียน'!BK48 -> - | BJ50: ='4บันทึกเวลาเรียน'!BL48 -> - | BK50: ='4บันทึกเวลาเรียน'!BM48 -> - | BL50: ='4บันทึกเวลาเรียน'!BN48 -> - | BM50: ='4บันทึกเวลาเรียน'!BO48 -> - | BN50: ='4บันทึกเวลาเรียน'!BP48 -> - | BO50: ='4บันทึกเวลาเรียน'!BQ48 -> - | BP50: ='4บันทึกเวลาเรียน'!BR48 -> - | BQ50: ='4บันทึกเวลาเรียน'!BS48 -> - | BR50: ='4บันทึกเวลาเรียน'!BT48 -> - | BS50: ='4บันทึกเวลาเรียน'!BU48 -> - | BT50: ='4บันทึกเวลาเรียน'!BV48 -> - | BU50: ='4บันทึกเวลาเรียน'!BW48 -> - | BV50: ='4บันทึกเวลาเรียน'!BX48 -> - | BW50: ='4บันทึกเวลาเรียน'!BY48 -> - | BX50: ='4บันทึกเวลาเรียน'!BZ48 -> - | BY50: ='4บันทึกเวลาเรียน'!CA48 -> - | BZ50: ='4บันทึกเวลาเรียน'!CB48 -> - | CA50: ='4บันทึกเวลาเรียน'!CC48 -> - | CB50: ='4บันทึกเวลาเรียน'!CD48 -> - | CC50: ='4บันทึกเวลาเรียน'!CE48 -> - | CD50: ='4บันทึกเวลาเรียน'!CF48 -> - | CE50: ='4บันทึกเวลาเรียน'!CG48 -> - | CF50: ='4บันทึกเวลาเรียน'!CH48 -> - | CG50: ='4บันทึกเวลาเรียน'!CI48 -> - | CH50: ='4บันทึกเวลาเรียน'!CJ48 -> - | CI50: ='4บันทึกเวลาเรียน'!CK48 -> - | CJ50: ='4บันทึกเวลาเรียน'!CL48 -> - | CK50: ='4บันทึกเวลาเรียน'!CM48 -> - | CL50: ='4บันทึกเวลาเรียน'!CN48 -> - | CM50: ='4บันทึกเวลาเรียน'!CO48 -> - | CN50: ='4บันทึกเวลาเรียน'!CP48 -> - | CO50: ='4บันทึกเวลาเรียน'!CQ48 -> - | CP50: ='4บันทึกเวลาเรียน'!CR48 -> - | CQ50: ='4บันทึกเวลาเรียน'!CS48 -> - | CR50: ='4บันทึกเวลาเรียน'!CT48 -> - | CS50: ='4บันทึกเวลาเรียน'!CU48 -> - | CT50: ='4บันทึกเวลาเรียน'!CV48 -> - | CU50: ='4บันทึกเวลาเรียน'!CW48 -> - | CV50: ='4บันทึกเวลาเรียน'!CX48 -> - | CW50: ='4บันทึกเวลาเรียน'!CY48 -> - | CX50: ='4บันทึกเวลาเรียน'!CZ48 -> - | CY50: ='4บันทึกเวลาเรียน'!DA48 -> - | CZ50: ='4บันทึกเวลาเรียน'!DB48 -> - | DB50: - | DC50: ='1ข้อมูลรายวิชา'!E45 ->  | DD50: ='1ข้อมูลรายวิชา'!F45 ->  | DE50: ='1ข้อมูลรายวิชา'!G45 ->  | DF50: ='1ข้อมูลรายวิชา'!H45 ->  | DG50: ='1ข้อมูลรายวิชา'!I45 ->  | DH50: ='1ข้อมูลรายวิชา'!J45 ->  | DI50: ='1ข้อมูลรายวิชา'!N45 ->  | DJ50: ='1ข้อมูลรายวิชา'!O45 -> 
A51: 43 | B51: ='1ข้อมูลรายวิชา'!C46 ->  | C51: ='1ข้อมูลรายวิชา'!D46 ->  | D51: ='1ข้อมูลรายวิชา'!#REF! ->  | E51: ='4บันทึกเวลาเรียน'!G49 -> - | F51: ='4บันทึกเวลาเรียน'!H49 -> - | G51: ='4บันทึกเวลาเรียน'!I49 -> - | H51: ='4บันทึกเวลาเรียน'!J49 -> - | I51: ='4บันทึกเวลาเรียน'!K49 -> - | J51: ='4บันทึกเวลาเรียน'!L49 -> - | K51: ='4บันทึกเวลาเรียน'!M49 -> - | L51: ='4บันทึกเวลาเรียน'!N49 -> - | M51: ='4บันทึกเวลาเรียน'!O49 -> - | N51: ='4บันทึกเวลาเรียน'!P49 -> - | O51: ='4บันทึกเวลาเรียน'!Q49 -> - | P51: ='4บันทึกเวลาเรียน'!R49 -> - | Q51: ='4บันทึกเวลาเรียน'!S49 -> - | R51: ='4บันทึกเวลาเรียน'!T49 -> - | S51: ='4บันทึกเวลาเรียน'!U49 -> - | T51: ='4บันทึกเวลาเรียน'!V49 -> - | U51: ='4บันทึกเวลาเรียน'!W49 -> - | V51: ='4บันทึกเวลาเรียน'!X49 -> - | W51: ='4บันทึกเวลาเรียน'!Y49 -> - | X51: ='4บันทึกเวลาเรียน'!Z49 -> - | Y51: ='4บันทึกเวลาเรียน'!AA49 -> - | Z51: ='4บันทึกเวลาเรียน'!AB49 -> - | AA51: ='4บันทึกเวลาเรียน'!AC49 -> - | AB51: ='4บันทึกเวลาเรียน'!AD49 -> - | AC51: ='4บันทึกเวลาเรียน'!AE49 -> - | AD51: ='4บันทึกเวลาเรียน'!AF49 -> - | AE51: ='4บันทึกเวลาเรียน'!AG49 -> - | AF51: ='4บันทึกเวลาเรียน'!AH49 -> - | AG51: ='4บันทึกเวลาเรียน'!AI49 -> - | AH51: ='4บันทึกเวลาเรียน'!AJ49 -> - | AI51: ='4บันทึกเวลาเรียน'!AK49 -> - | AJ51: ='4บันทึกเวลาเรียน'!AL49 -> - | AK51: ='4บันทึกเวลาเรียน'!AM49 -> - | AL51: ='4บันทึกเวลาเรียน'!AN49 -> - | AM51: ='4บันทึกเวลาเรียน'!AO49 -> - | AN51: ='4บันทึกเวลาเรียน'!AP49 -> - | AO51: ='4บันทึกเวลาเรียน'!AQ49 -> - | AP51: ='4บันทึกเวลาเรียน'!AR49 -> - | AQ51: ='4บันทึกเวลาเรียน'!AS49 -> - | AR51: ='4บันทึกเวลาเรียน'!AT49 -> - | AS51: ='4บันทึกเวลาเรียน'!AU49 -> - | AT51: ='4บันทึกเวลาเรียน'!AV49 -> - | AU51: ='4บันทึกเวลาเรียน'!AW49 -> - | AV51: ='4บันทึกเวลาเรียน'!AX49 -> - | AW51: ='4บันทึกเวลาเรียน'!AY49 -> - | AX51: ='4บันทึกเวลาเรียน'!AZ49 -> - | AY51: ='4บันทึกเวลาเรียน'!BA49 -> - | AZ51: ='4บันทึกเวลาเรียน'!BB49 -> - | BA51: ='4บันทึกเวลาเรียน'!BC49 -> - | BB51: ='4บันทึกเวลาเรียน'!BD49 -> - | BC51: ='4บันทึกเวลาเรียน'!BE49 -> - | BD51: ='4บันทึกเวลาเรียน'!BF49 -> - | BE51: ='4บันทึกเวลาเรียน'!BG49 -> - | BF51: ='4บันทึกเวลาเรียน'!BH49 -> - | BG51: ='4บันทึกเวลาเรียน'!BI49 -> - | BH51: ='4บันทึกเวลาเรียน'!BJ49 -> - | BI51: ='4บันทึกเวลาเรียน'!BK49 -> - | BJ51: ='4บันทึกเวลาเรียน'!BL49 -> - | BK51: ='4บันทึกเวลาเรียน'!BM49 -> - | BL51: ='4บันทึกเวลาเรียน'!BN49 -> - | BM51: ='4บันทึกเวลาเรียน'!BO49 -> - | BN51: ='4บันทึกเวลาเรียน'!BP49 -> - | BO51: ='4บันทึกเวลาเรียน'!BQ49 -> - | BP51: ='4บันทึกเวลาเรียน'!BR49 -> - | BQ51: ='4บันทึกเวลาเรียน'!BS49 -> - | BR51: ='4บันทึกเวลาเรียน'!BT49 -> - | BS51: ='4บันทึกเวลาเรียน'!BU49 -> - | BT51: ='4บันทึกเวลาเรียน'!BV49 -> - | BU51: ='4บันทึกเวลาเรียน'!BW49 -> - | BV51: ='4บันทึกเวลาเรียน'!BX49 -> - | BW51: ='4บันทึกเวลาเรียน'!BY49 -> - | BX51: ='4บันทึกเวลาเรียน'!BZ49 -> - | BY51: ='4บันทึกเวลาเรียน'!CA49 -> - | BZ51: ='4บันทึกเวลาเรียน'!CB49 -> - | CA51: ='4บันทึกเวลาเรียน'!CC49 -> - | CB51: ='4บันทึกเวลาเรียน'!CD49 -> - | CC51: ='4บันทึกเวลาเรียน'!CE49 -> - | CD51: ='4บันทึกเวลาเรียน'!CF49 -> - | CE51: ='4บันทึกเวลาเรียน'!CG49 -> - | CF51: ='4บันทึกเวลาเรียน'!CH49 -> - | CG51: ='4บันทึกเวลาเรียน'!CI49 -> - | CH51: ='4บันทึกเวลาเรียน'!CJ49 -> - | CI51: ='4บันทึกเวลาเรียน'!CK49 -> - | CJ51: ='4บันทึกเวลาเรียน'!CL49 -> - | CK51: ='4บันทึกเวลาเรียน'!CM49 -> - | CL51: ='4บันทึกเวลาเรียน'!CN49 -> - | CM51: ='4บันทึกเวลาเรียน'!CO49 -> - | CN51: ='4บันทึกเวลาเรียน'!CP49 -> - | CO51: ='4บันทึกเวลาเรียน'!CQ49 -> - | CP51: ='4บันทึกเวลาเรียน'!CR49 -> - | CQ51: ='4บันทึกเวลาเรียน'!CS49 -> - | CR51: ='4บันทึกเวลาเรียน'!CT49 -> - | CS51: ='4บันทึกเวลาเรียน'!CU49 -> - | CT51: ='4บันทึกเวลาเรียน'!CV49 -> - | CU51: ='4บันทึกเวลาเรียน'!CW49 -> - | CV51: ='4บันทึกเวลาเรียน'!CX49 -> - | CW51: ='4บันทึกเวลาเรียน'!CY49 -> - | CX51: ='4บันทึกเวลาเรียน'!CZ49 -> - | CY51: ='4บันทึกเวลาเรียน'!DA49 -> - | CZ51: ='4บันทึกเวลาเรียน'!DB49 -> - | DB51: - | DC51: ='1ข้อมูลรายวิชา'!E46 ->  | DD51: ='1ข้อมูลรายวิชา'!F46 ->  | DE51: ='1ข้อมูลรายวิชา'!G46 ->  | DF51: ='1ข้อมูลรายวิชา'!H46 ->  | DG51: ='1ข้อมูลรายวิชา'!I46 ->  | DH51: ='1ข้อมูลรายวิชา'!J46 ->  | DI51: ='1ข้อมูลรายวิชา'!N46 ->  | DJ51: ='1ข้อมูลรายวิชา'!O46 -> 
A52: 44 | B52: ='1ข้อมูลรายวิชา'!C47 ->  | C52: ='1ข้อมูลรายวิชา'!D47 ->  | D52: ='1ข้อมูลรายวิชา'!#REF! ->  | E52: ='4บันทึกเวลาเรียน'!G50 -> - | F52: ='4บันทึกเวลาเรียน'!H50 -> - | G52: ='4บันทึกเวลาเรียน'!I50 -> - | H52: ='4บันทึกเวลาเรียน'!J50 -> - | I52: ='4บันทึกเวลาเรียน'!K50 -> - | J52: ='4บันทึกเวลาเรียน'!L50 -> - | K52: ='4บันทึกเวลาเรียน'!M50 -> - | L52: ='4บันทึกเวลาเรียน'!N50 -> - | M52: ='4บันทึกเวลาเรียน'!O50 -> - | N52: ='4บันทึกเวลาเรียน'!P50 -> - | O52: ='4บันทึกเวลาเรียน'!Q50 -> - | P52: ='4บันทึกเวลาเรียน'!R50 -> - | Q52: ='4บันทึกเวลาเรียน'!S50 -> - | R52: ='4บันทึกเวลาเรียน'!T50 -> - | S52: ='4บันทึกเวลาเรียน'!U50 -> - | T52: ='4บันทึกเวลาเรียน'!V50 -> - | U52: ='4บันทึกเวลาเรียน'!W50 -> - | V52: ='4บันทึกเวลาเรียน'!X50 -> - | W52: ='4บันทึกเวลาเรียน'!Y50 -> - | X52: ='4บันทึกเวลาเรียน'!Z50 -> - | Y52: ='4บันทึกเวลาเรียน'!AA50 -> - | Z52: ='4บันทึกเวลาเรียน'!AB50 -> - | AA52: ='4บันทึกเวลาเรียน'!AC50 -> - | AB52: ='4บันทึกเวลาเรียน'!AD50 -> - | AC52: ='4บันทึกเวลาเรียน'!AE50 -> - | AD52: ='4บันทึกเวลาเรียน'!AF50 -> - | AE52: ='4บันทึกเวลาเรียน'!AG50 -> - | AF52: ='4บันทึกเวลาเรียน'!AH50 -> - | AG52: ='4บันทึกเวลาเรียน'!AI50 -> - | AH52: ='4บันทึกเวลาเรียน'!AJ50 -> - | AI52: ='4บันทึกเวลาเรียน'!AK50 -> - | AJ52: ='4บันทึกเวลาเรียน'!AL50 -> - | AK52: ='4บันทึกเวลาเรียน'!AM50 -> - | AL52: ='4บันทึกเวลาเรียน'!AN50 -> - | AM52: ='4บันทึกเวลาเรียน'!AO50 -> - | AN52: ='4บันทึกเวลาเรียน'!AP50 -> - | AO52: ='4บันทึกเวลาเรียน'!AQ50 -> - | AP52: ='4บันทึกเวลาเรียน'!AR50 -> - | AQ52: ='4บันทึกเวลาเรียน'!AS50 -> - | AR52: ='4บันทึกเวลาเรียน'!AT50 -> - | AS52: ='4บันทึกเวลาเรียน'!AU50 -> - | AT52: ='4บันทึกเวลาเรียน'!AV50 -> - | AU52: ='4บันทึกเวลาเรียน'!AW50 -> - | AV52: ='4บันทึกเวลาเรียน'!AX50 -> - | AW52: ='4บันทึกเวลาเรียน'!AY50 -> - | AX52: ='4บันทึกเวลาเรียน'!AZ50 -> - | AY52: ='4บันทึกเวลาเรียน'!BA50 -> - | AZ52: ='4บันทึกเวลาเรียน'!BB50 -> - | BA52: ='4บันทึกเวลาเรียน'!BC50 -> - | BB52: ='4บันทึกเวลาเรียน'!BD50 -> - | BC52: ='4บันทึกเวลาเรียน'!BE50 -> - | BD52: ='4บันทึกเวลาเรียน'!BF50 -> - | BE52: ='4บันทึกเวลาเรียน'!BG50 -> - | BF52: ='4บันทึกเวลาเรียน'!BH50 -> - | BG52: ='4บันทึกเวลาเรียน'!BI50 -> - | BH52: ='4บันทึกเวลาเรียน'!BJ50 -> - | BI52: ='4บันทึกเวลาเรียน'!BK50 -> - | BJ52: ='4บันทึกเวลาเรียน'!BL50 -> - | BK52: ='4บันทึกเวลาเรียน'!BM50 -> - | BL52: ='4บันทึกเวลาเรียน'!BN50 -> - | BM52: ='4บันทึกเวลาเรียน'!BO50 -> - | BN52: ='4บันทึกเวลาเรียน'!BP50 -> - | BO52: ='4บันทึกเวลาเรียน'!BQ50 -> - | BP52: ='4บันทึกเวลาเรียน'!BR50 -> - | BQ52: ='4บันทึกเวลาเรียน'!BS50 -> - | BR52: ='4บันทึกเวลาเรียน'!BT50 -> - | BS52: ='4บันทึกเวลาเรียน'!BU50 -> - | BT52: ='4บันทึกเวลาเรียน'!BV50 -> - | BU52: ='4บันทึกเวลาเรียน'!BW50 -> - | BV52: ='4บันทึกเวลาเรียน'!BX50 -> - | BW52: ='4บันทึกเวลาเรียน'!BY50 -> - | BX52: ='4บันทึกเวลาเรียน'!BZ50 -> - | BY52: ='4บันทึกเวลาเรียน'!CA50 -> - | BZ52: ='4บันทึกเวลาเรียน'!CB50 -> - | CA52: ='4บันทึกเวลาเรียน'!CC50 -> - | CB52: ='4บันทึกเวลาเรียน'!CD50 -> - | CC52: ='4บันทึกเวลาเรียน'!CE50 -> - | CD52: ='4บันทึกเวลาเรียน'!CF50 -> - | CE52: ='4บันทึกเวลาเรียน'!CG50 -> - | CF52: ='4บันทึกเวลาเรียน'!CH50 -> - | CG52: ='4บันทึกเวลาเรียน'!CI50 -> - | CH52: ='4บันทึกเวลาเรียน'!CJ50 -> - | CI52: ='4บันทึกเวลาเรียน'!CK50 -> - | CJ52: ='4บันทึกเวลาเรียน'!CL50 -> - | CK52: ='4บันทึกเวลาเรียน'!CM50 -> - | CL52: ='4บันทึกเวลาเรียน'!CN50 -> - | CM52: ='4บันทึกเวลาเรียน'!CO50 -> - | CN52: ='4บันทึกเวลาเรียน'!CP50 -> - | CO52: ='4บันทึกเวลาเรียน'!CQ50 -> - | CP52: ='4บันทึกเวลาเรียน'!CR50 -> - | CQ52: ='4บันทึกเวลาเรียน'!CS50 -> - | CR52: ='4บันทึกเวลาเรียน'!CT50 -> - | CS52: ='4บันทึกเวลาเรียน'!CU50 -> - | CT52: ='4บันทึกเวลาเรียน'!CV50 -> - | CU52: ='4บันทึกเวลาเรียน'!CW50 -> - | CV52: ='4บันทึกเวลาเรียน'!CX50 -> - | CW52: ='4บันทึกเวลาเรียน'!CY50 -> - | CX52: ='4บันทึกเวลาเรียน'!CZ50 -> - | CY52: ='4บันทึกเวลาเรียน'!DA50 -> - | CZ52: ='4บันทึกเวลาเรียน'!DB50 -> - | DB52: - | DC52: ='1ข้อมูลรายวิชา'!E47 ->  | DD52: ='1ข้อมูลรายวิชา'!F47 ->  | DE52: ='1ข้อมูลรายวิชา'!G47 ->  | DF52: ='1ข้อมูลรายวิชา'!H47 ->  | DG52: ='1ข้อมูลรายวิชา'!I47 ->  | DH52: ='1ข้อมูลรายวิชา'!J47 ->  | DI52: ='1ข้อมูลรายวิชา'!N47 ->  | DJ52: ='1ข้อมูลรายวิชา'!O47 -> 
A53: 45 | B53: ='1ข้อมูลรายวิชา'!C48 ->  | C53: ='1ข้อมูลรายวิชา'!D48 ->  | D53: ='1ข้อมูลรายวิชา'!#REF! ->  | E53: ='4บันทึกเวลาเรียน'!G51 -> - | F53: ='4บันทึกเวลาเรียน'!H51 -> - | G53: ='4บันทึกเวลาเรียน'!I51 -> - | H53: ='4บันทึกเวลาเรียน'!J51 -> - | I53: ='4บันทึกเวลาเรียน'!K51 -> - | J53: ='4บันทึกเวลาเรียน'!L51 -> - | K53: ='4บันทึกเวลาเรียน'!M51 -> - | L53: ='4บันทึกเวลาเรียน'!N51 -> - | M53: ='4บันทึกเวลาเรียน'!O51 -> - | N53: ='4บันทึกเวลาเรียน'!P51 -> - | O53: ='4บันทึกเวลาเรียน'!Q51 -> - | P53: ='4บันทึกเวลาเรียน'!R51 -> - | Q53: ='4บันทึกเวลาเรียน'!S51 -> - | R53: ='4บันทึกเวลาเรียน'!T51 -> - | S53: ='4บันทึกเวลาเรียน'!U51 -> - | T53: ='4บันทึกเวลาเรียน'!V51 -> - | U53: ='4บันทึกเวลาเรียน'!W51 -> - | V53: ='4บันทึกเวลาเรียน'!X51 -> - | W53: ='4บันทึกเวลาเรียน'!Y51 -> - | X53: ='4บันทึกเวลาเรียน'!Z51 -> - | Y53: ='4บันทึกเวลาเรียน'!AA51 -> - | Z53: ='4บันทึกเวลาเรียน'!AB51 -> - | AA53: ='4บันทึกเวลาเรียน'!AC51 -> - | AB53: ='4บันทึกเวลาเรียน'!AD51 -> - | AC53: ='4บันทึกเวลาเรียน'!AE51 -> - | AD53: ='4บันทึกเวลาเรียน'!AF51 -> - | AE53: ='4บันทึกเวลาเรียน'!AG51 -> - | AF53: ='4บันทึกเวลาเรียน'!AH51 -> - | AG53: ='4บันทึกเวลาเรียน'!AI51 -> - | AH53: ='4บันทึกเวลาเรียน'!AJ51 -> - | AI53: ='4บันทึกเวลาเรียน'!AK51 -> - | AJ53: ='4บันทึกเวลาเรียน'!AL51 -> - | AK53: ='4บันทึกเวลาเรียน'!AM51 -> - | AL53: ='4บันทึกเวลาเรียน'!AN51 -> - | AM53: ='4บันทึกเวลาเรียน'!AO51 -> - | AN53: ='4บันทึกเวลาเรียน'!AP51 -> - | AO53: ='4บันทึกเวลาเรียน'!AQ51 -> - | AP53: ='4บันทึกเวลาเรียน'!AR51 -> - | AQ53: ='4บันทึกเวลาเรียน'!AS51 -> - | AR53: ='4บันทึกเวลาเรียน'!AT51 -> - | AS53: ='4บันทึกเวลาเรียน'!AU51 -> - | AT53: ='4บันทึกเวลาเรียน'!AV51 -> - | AU53: ='4บันทึกเวลาเรียน'!AW51 -> - | AV53: ='4บันทึกเวลาเรียน'!AX51 -> - | AW53: ='4บันทึกเวลาเรียน'!AY51 -> - | AX53: ='4บันทึกเวลาเรียน'!AZ51 -> - | AY53: ='4บันทึกเวลาเรียน'!BA51 -> - | AZ53: ='4บันทึกเวลาเรียน'!BB51 -> - | BA53: ='4บันทึกเวลาเรียน'!BC51 -> - | BB53: ='4บันทึกเวลาเรียน'!BD51 -> - | BC53: ='4บันทึกเวลาเรียน'!BE51 -> - | BD53: ='4บันทึกเวลาเรียน'!BF51 -> - | BE53: ='4บันทึกเวลาเรียน'!BG51 -> - | BF53: ='4บันทึกเวลาเรียน'!BH51 -> - | BG53: ='4บันทึกเวลาเรียน'!BI51 -> - | BH53: ='4บันทึกเวลาเรียน'!BJ51 -> - | BI53: ='4บันทึกเวลาเรียน'!BK51 -> - | BJ53: ='4บันทึกเวลาเรียน'!BL51 -> - | BK53: ='4บันทึกเวลาเรียน'!BM51 -> - | BL53: ='4บันทึกเวลาเรียน'!BN51 -> - | BM53: ='4บันทึกเวลาเรียน'!BO51 -> - | BN53: ='4บันทึกเวลาเรียน'!BP51 -> - | BO53: ='4บันทึกเวลาเรียน'!BQ51 -> - | BP53: ='4บันทึกเวลาเรียน'!BR51 -> - | BQ53: ='4บันทึกเวลาเรียน'!BS51 -> - | BR53: ='4บันทึกเวลาเรียน'!BT51 -> - | BS53: ='4บันทึกเวลาเรียน'!BU51 -> - | BT53: ='4บันทึกเวลาเรียน'!BV51 -> - | BU53: ='4บันทึกเวลาเรียน'!BW51 -> - | BV53: ='4บันทึกเวลาเรียน'!BX51 -> - | BW53: ='4บันทึกเวลาเรียน'!BY51 -> - | BX53: ='4บันทึกเวลาเรียน'!BZ51 -> - | BY53: ='4บันทึกเวลาเรียน'!CA51 -> - | BZ53: ='4บันทึกเวลาเรียน'!CB51 -> - | CA53: ='4บันทึกเวลาเรียน'!CC51 -> - | CB53: ='4บันทึกเวลาเรียน'!CD51 -> - | CC53: ='4บันทึกเวลาเรียน'!CE51 -> - | CD53: ='4บันทึกเวลาเรียน'!CF51 -> - | CE53: ='4บันทึกเวลาเรียน'!CG51 -> - | CF53: ='4บันทึกเวลาเรียน'!CH51 -> - | CG53: ='4บันทึกเวลาเรียน'!CI51 -> - | CH53: ='4บันทึกเวลาเรียน'!CJ51 -> - | CI53: ='4บันทึกเวลาเรียน'!CK51 -> - | CJ53: ='4บันทึกเวลาเรียน'!CL51 -> - | CK53: ='4บันทึกเวลาเรียน'!CM51 -> - | CL53: ='4บันทึกเวลาเรียน'!CN51 -> - | CM53: ='4บันทึกเวลาเรียน'!CO51 -> - | CN53: ='4บันทึกเวลาเรียน'!CP51 -> - | CO53: ='4บันทึกเวลาเรียน'!CQ51 -> - | CP53: ='4บันทึกเวลาเรียน'!CR51 -> - | CQ53: ='4บันทึกเวลาเรียน'!CS51 -> - | CR53: ='4บันทึกเวลาเรียน'!CT51 -> - | CS53: ='4บันทึกเวลาเรียน'!CU51 -> - | CT53: ='4บันทึกเวลาเรียน'!CV51 -> - | CU53: ='4บันทึกเวลาเรียน'!CW51 -> - | CV53: ='4บันทึกเวลาเรียน'!CX51 -> - | CW53: ='4บันทึกเวลาเรียน'!CY51 -> - | CX53: ='4บันทึกเวลาเรียน'!CZ51 -> - | CY53: ='4บันทึกเวลาเรียน'!DA51 -> - | CZ53: ='4บันทึกเวลาเรียน'!DB51 -> - | DB53: - | DC53: ='1ข้อมูลรายวิชา'!E48 ->  | DD53: ='1ข้อมูลรายวิชา'!F48 ->  | DE53: ='1ข้อมูลรายวิชา'!G48 ->  | DF53: ='1ข้อมูลรายวิชา'!H48 ->  | DG53: ='1ข้อมูลรายวิชา'!I48 ->  | DH53: ='1ข้อมูลรายวิชา'!J48 ->  | DI53: ='1ข้อมูลรายวิชา'!N48 ->  | DJ53: ='1ข้อมูลรายวิชา'!O48 -> 
A54: 46 | B54: ='1ข้อมูลรายวิชา'!C49 ->  | C54: ='1ข้อมูลรายวิชา'!D49 ->  | D54: ='1ข้อมูลรายวิชา'!#REF! ->  | E54: ='4บันทึกเวลาเรียน'!G52 -> - | F54: ='4บันทึกเวลาเรียน'!H52 -> - | G54: ='4บันทึกเวลาเรียน'!I52 -> - | H54: ='4บันทึกเวลาเรียน'!J52 -> - | I54: ='4บันทึกเวลาเรียน'!K52 -> - | J54: ='4บันทึกเวลาเรียน'!L52 -> - | K54: ='4บันทึกเวลาเรียน'!M52 -> - | L54: ='4บันทึกเวลาเรียน'!N52 -> - | M54: ='4บันทึกเวลาเรียน'!O52 -> - | N54: ='4บันทึกเวลาเรียน'!P52 -> - | O54: ='4บันทึกเวลาเรียน'!Q52 -> - | P54: ='4บันทึกเวลาเรียน'!R52 -> - | Q54: ='4บันทึกเวลาเรียน'!S52 -> - | R54: ='4บันทึกเวลาเรียน'!T52 -> - | S54: ='4บันทึกเวลาเรียน'!U52 -> - | T54: ='4บันทึกเวลาเรียน'!V52 -> - | U54: ='4บันทึกเวลาเรียน'!W52 -> - | V54: ='4บันทึกเวลาเรียน'!X52 -> - | W54: ='4บันทึกเวลาเรียน'!Y52 -> - | X54: ='4บันทึกเวลาเรียน'!Z52 -> - | Y54: ='4บันทึกเวลาเรียน'!AA52 -> - | Z54: ='4บันทึกเวลาเรียน'!AB52 -> - | AA54: ='4บันทึกเวลาเรียน'!AC52 -> - | AB54: ='4บันทึกเวลาเรียน'!AD52 -> - | AC54: ='4บันทึกเวลาเรียน'!AE52 -> - | AD54: ='4บันทึกเวลาเรียน'!AF52 -> - | AE54: ='4บันทึกเวลาเรียน'!AG52 -> - | AF54: ='4บันทึกเวลาเรียน'!AH52 -> - | AG54: ='4บันทึกเวลาเรียน'!AI52 -> - | AH54: ='4บันทึกเวลาเรียน'!AJ52 -> - | AI54: ='4บันทึกเวลาเรียน'!AK52 -> - | AJ54: ='4บันทึกเวลาเรียน'!AL52 -> - | AK54: ='4บันทึกเวลาเรียน'!AM52 -> - | AL54: ='4บันทึกเวลาเรียน'!AN52 -> - | AM54: ='4บันทึกเวลาเรียน'!AO52 -> - | AN54: ='4บันทึกเวลาเรียน'!AP52 -> - | AO54: ='4บันทึกเวลาเรียน'!AQ52 -> - | AP54: ='4บันทึกเวลาเรียน'!AR52 -> - | AQ54: ='4บันทึกเวลาเรียน'!AS52 -> - | AR54: ='4บันทึกเวลาเรียน'!AT52 -> - | AS54: ='4บันทึกเวลาเรียน'!AU52 -> - | AT54: ='4บันทึกเวลาเรียน'!AV52 -> - | AU54: ='4บันทึกเวลาเรียน'!AW52 -> - | AV54: ='4บันทึกเวลาเรียน'!AX52 -> - | AW54: ='4บันทึกเวลาเรียน'!AY52 -> - | AX54: ='4บันทึกเวลาเรียน'!AZ52 -> - | AY54: ='4บันทึกเวลาเรียน'!BA52 -> - | AZ54: ='4บันทึกเวลาเรียน'!BB52 -> - | BA54: ='4บันทึกเวลาเรียน'!BC52 -> - | BB54: ='4บันทึกเวลาเรียน'!BD52 -> - | BC54: ='4บันทึกเวลาเรียน'!BE52 -> - | BD54: ='4บันทึกเวลาเรียน'!BF52 -> - | BE54: ='4บันทึกเวลาเรียน'!BG52 -> - | BF54: ='4บันทึกเวลาเรียน'!BH52 -> - | BG54: ='4บันทึกเวลาเรียน'!BI52 -> - | BH54: ='4บันทึกเวลาเรียน'!BJ52 -> - | BI54: ='4บันทึกเวลาเรียน'!BK52 -> - | BJ54: ='4บันทึกเวลาเรียน'!BL52 -> - | BK54: ='4บันทึกเวลาเรียน'!BM52 -> - | BL54: ='4บันทึกเวลาเรียน'!BN52 -> - | BM54: ='4บันทึกเวลาเรียน'!BO52 -> - | BN54: ='4บันทึกเวลาเรียน'!BP52 -> - | BO54: ='4บันทึกเวลาเรียน'!BQ52 -> - | BP54: ='4บันทึกเวลาเรียน'!BR52 -> - | BQ54: ='4บันทึกเวลาเรียน'!BS52 -> - | BR54: ='4บันทึกเวลาเรียน'!BT52 -> - | BS54: ='4บันทึกเวลาเรียน'!BU52 -> - | BT54: ='4บันทึกเวลาเรียน'!BV52 -> - | BU54: ='4บันทึกเวลาเรียน'!BW52 -> - | BV54: ='4บันทึกเวลาเรียน'!BX52 -> - | BW54: ='4บันทึกเวลาเรียน'!BY52 -> - | BX54: ='4บันทึกเวลาเรียน'!BZ52 -> - | BY54: ='4บันทึกเวลาเรียน'!CA52 -> - | BZ54: ='4บันทึกเวลาเรียน'!CB52 -> - | CA54: ='4บันทึกเวลาเรียน'!CC52 -> - | CB54: ='4บันทึกเวลาเรียน'!CD52 -> - | CC54: ='4บันทึกเวลาเรียน'!CE52 -> - | CD54: ='4บันทึกเวลาเรียน'!CF52 -> - | CE54: ='4บันทึกเวลาเรียน'!CG52 -> - | CF54: ='4บันทึกเวลาเรียน'!CH52 -> - | CG54: ='4บันทึกเวลาเรียน'!CI52 -> - | CH54: ='4บันทึกเวลาเรียน'!CJ52 -> - | CI54: ='4บันทึกเวลาเรียน'!CK52 -> - | CJ54: ='4บันทึกเวลาเรียน'!CL52 -> - | CK54: ='4บันทึกเวลาเรียน'!CM52 -> - | CL54: ='4บันทึกเวลาเรียน'!CN52 -> - | CM54: ='4บันทึกเวลาเรียน'!CO52 -> - | CN54: ='4บันทึกเวลาเรียน'!CP52 -> - | CO54: ='4บันทึกเวลาเรียน'!CQ52 -> - | CP54: ='4บันทึกเวลาเรียน'!CR52 -> - | CQ54: ='4บันทึกเวลาเรียน'!CS52 -> - | CR54: ='4บันทึกเวลาเรียน'!CT52 -> - | CS54: ='4บันทึกเวลาเรียน'!CU52 -> - | CT54: ='4บันทึกเวลาเรียน'!CV52 -> - | CU54: ='4บันทึกเวลาเรียน'!CW52 -> - | CV54: ='4บันทึกเวลาเรียน'!CX52 -> - | CW54: ='4บันทึกเวลาเรียน'!CY52 -> - | CX54: ='4บันทึกเวลาเรียน'!CZ52 -> - | CY54: ='4บันทึกเวลาเรียน'!DA52 -> - | CZ54: ='4บันทึกเวลาเรียน'!DB52 -> - | DB54: - | DC54: ='1ข้อมูลรายวิชา'!E49 ->  | DD54: ='1ข้อมูลรายวิชา'!F49 ->  | DE54: ='1ข้อมูลรายวิชา'!G49 ->  | DF54: ='1ข้อมูลรายวิชา'!H49 ->  | DG54: ='1ข้อมูลรายวิชา'!I49 ->  | DH54: ='1ข้อมูลรายวิชา'!J49 ->  | DI54: ='1ข้อมูลรายวิชา'!N49 ->  | DJ54: ='1ข้อมูลรายวิชา'!O49 -> 
A55: 47 | B55: ='1ข้อมูลรายวิชา'!C50 ->  | C55: ='1ข้อมูลรายวิชา'!D50 ->  | D55: ='1ข้อมูลรายวิชา'!#REF! ->  | E55: ='4บันทึกเวลาเรียน'!G53 -> - | F55: ='4บันทึกเวลาเรียน'!H53 -> - | G55: ='4บันทึกเวลาเรียน'!I53 -> - | H55: ='4บันทึกเวลาเรียน'!J53 -> - | I55: ='4บันทึกเวลาเรียน'!K53 -> - | J55: ='4บันทึกเวลาเรียน'!L53 -> - | K55: ='4บันทึกเวลาเรียน'!M53 -> - | L55: ='4บันทึกเวลาเรียน'!N53 -> - | M55: ='4บันทึกเวลาเรียน'!O53 -> - | N55: ='4บันทึกเวลาเรียน'!P53 -> - | O55: ='4บันทึกเวลาเรียน'!Q53 -> - | P55: ='4บันทึกเวลาเรียน'!R53 -> - | Q55: ='4บันทึกเวลาเรียน'!S53 -> - | R55: ='4บันทึกเวลาเรียน'!T53 -> - | S55: ='4บันทึกเวลาเรียน'!U53 -> - | T55: ='4บันทึกเวลาเรียน'!V53 -> - | U55: ='4บันทึกเวลาเรียน'!W53 -> - | V55: ='4บันทึกเวลาเรียน'!X53 -> - | W55: ='4บันทึกเวลาเรียน'!Y53 -> - | X55: ='4บันทึกเวลาเรียน'!Z53 -> - | Y55: ='4บันทึกเวลาเรียน'!AA53 -> - | Z55: ='4บันทึกเวลาเรียน'!AB53 -> - | AA55: ='4บันทึกเวลาเรียน'!AC53 -> - | AB55: ='4บันทึกเวลาเรียน'!AD53 -> - | AC55: ='4บันทึกเวลาเรียน'!AE53 -> - | AD55: ='4บันทึกเวลาเรียน'!AF53 -> - | AE55: ='4บันทึกเวลาเรียน'!AG53 -> - | AF55: ='4บันทึกเวลาเรียน'!AH53 -> - | AG55: ='4บันทึกเวลาเรียน'!AI53 -> - | AH55: ='4บันทึกเวลาเรียน'!AJ53 -> - | AI55: ='4บันทึกเวลาเรียน'!AK53 -> - | AJ55: ='4บันทึกเวลาเรียน'!AL53 -> - | AK55: ='4บันทึกเวลาเรียน'!AM53 -> - | AL55: ='4บันทึกเวลาเรียน'!AN53 -> - | AM55: ='4บันทึกเวลาเรียน'!AO53 -> - | AN55: ='4บันทึกเวลาเรียน'!AP53 -> - | AO55: ='4บันทึกเวลาเรียน'!AQ53 -> - | AP55: ='4บันทึกเวลาเรียน'!AR53 -> - | AQ55: ='4บันทึกเวลาเรียน'!AS53 -> - | AR55: ='4บันทึกเวลาเรียน'!AT53 -> - | AS55: ='4บันทึกเวลาเรียน'!AU53 -> - | AT55: ='4บันทึกเวลาเรียน'!AV53 -> - | AU55: ='4บันทึกเวลาเรียน'!AW53 -> - | AV55: ='4บันทึกเวลาเรียน'!AX53 -> - | AW55: ='4บันทึกเวลาเรียน'!AY53 -> - | AX55: ='4บันทึกเวลาเรียน'!AZ53 -> - | AY55: ='4บันทึกเวลาเรียน'!BA53 -> - | AZ55: ='4บันทึกเวลาเรียน'!BB53 -> - | BA55: ='4บันทึกเวลาเรียน'!BC53 -> - | BB55: ='4บันทึกเวลาเรียน'!BD53 -> - | BC55: ='4บันทึกเวลาเรียน'!BE53 -> - | BD55: ='4บันทึกเวลาเรียน'!BF53 -> - | BE55: ='4บันทึกเวลาเรียน'!BG53 -> - | BF55: ='4บันทึกเวลาเรียน'!BH53 -> - | BG55: ='4บันทึกเวลาเรียน'!BI53 -> - | BH55: ='4บันทึกเวลาเรียน'!BJ53 -> - | BI55: ='4บันทึกเวลาเรียน'!BK53 -> - | BJ55: ='4บันทึกเวลาเรียน'!BL53 -> - | BK55: ='4บันทึกเวลาเรียน'!BM53 -> - | BL55: ='4บันทึกเวลาเรียน'!BN53 -> - | BM55: ='4บันทึกเวลาเรียน'!BO53 -> - | BN55: ='4บันทึกเวลาเรียน'!BP53 -> - | BO55: ='4บันทึกเวลาเรียน'!BQ53 -> - | BP55: ='4บันทึกเวลาเรียน'!BR53 -> - | BQ55: ='4บันทึกเวลาเรียน'!BS53 -> - | BR55: ='4บันทึกเวลาเรียน'!BT53 -> - | BS55: ='4บันทึกเวลาเรียน'!BU53 -> - | BT55: ='4บันทึกเวลาเรียน'!BV53 -> - | BU55: ='4บันทึกเวลาเรียน'!BW53 -> - | BV55: ='4บันทึกเวลาเรียน'!BX53 -> - | BW55: ='4บันทึกเวลาเรียน'!BY53 -> - | BX55: ='4บันทึกเวลาเรียน'!BZ53 -> - | BY55: ='4บันทึกเวลาเรียน'!CA53 -> - | BZ55: ='4บันทึกเวลาเรียน'!CB53 -> - | CA55: ='4บันทึกเวลาเรียน'!CC53 -> - | CB55: ='4บันทึกเวลาเรียน'!CD53 -> - | CC55: ='4บันทึกเวลาเรียน'!CE53 -> - | CD55: ='4บันทึกเวลาเรียน'!CF53 -> - | CE55: ='4บันทึกเวลาเรียน'!CG53 -> - | CF55: ='4บันทึกเวลาเรียน'!CH53 -> - | CG55: ='4บันทึกเวลาเรียน'!CI53 -> - | CH55: ='4บันทึกเวลาเรียน'!CJ53 -> - | CI55: ='4บันทึกเวลาเรียน'!CK53 -> - | CJ55: ='4บันทึกเวลาเรียน'!CL53 -> - | CK55: ='4บันทึกเวลาเรียน'!CM53 -> - | CL55: ='4บันทึกเวลาเรียน'!CN53 -> - | CM55: ='4บันทึกเวลาเรียน'!CO53 -> - | CN55: ='4บันทึกเวลาเรียน'!CP53 -> - | CO55: ='4บันทึกเวลาเรียน'!CQ53 -> - | CP55: ='4บันทึกเวลาเรียน'!CR53 -> - | CQ55: ='4บันทึกเวลาเรียน'!CS53 -> - | CR55: ='4บันทึกเวลาเรียน'!CT53 -> - | CS55: ='4บันทึกเวลาเรียน'!CU53 -> - | CT55: ='4บันทึกเวลาเรียน'!CV53 -> - | CU55: ='4บันทึกเวลาเรียน'!CW53 -> - | CV55: ='4บันทึกเวลาเรียน'!CX53 -> - | CW55: ='4บันทึกเวลาเรียน'!CY53 -> - | CX55: ='4บันทึกเวลาเรียน'!CZ53 -> - | CY55: ='4บันทึกเวลาเรียน'!DA53 -> - | CZ55: ='4บันทึกเวลาเรียน'!DB53 -> - | DB55: - | DC55: ='1ข้อมูลรายวิชา'!E50 ->  | DD55: ='1ข้อมูลรายวิชา'!F50 ->  | DE55: ='1ข้อมูลรายวิชา'!G50 ->  | DF55: ='1ข้อมูลรายวิชา'!H50 ->  | DG55: ='1ข้อมูลรายวิชา'!I50 ->  | DH55: ='1ข้อมูลรายวิชา'!J50 ->  | DI55: ='1ข้อมูลรายวิชา'!N50 ->  | DJ55: ='1ข้อมูลรายวิชา'!O50 -> 
A56: 48 | B56: ='1ข้อมูลรายวิชา'!C51 ->  | C56: ='1ข้อมูลรายวิชา'!D51 ->  | D56: ='1ข้อมูลรายวิชา'!#REF! ->  | E56: ='4บันทึกเวลาเรียน'!G54 -> - | F56: ='4บันทึกเวลาเรียน'!H54 -> - | G56: ='4บันทึกเวลาเรียน'!I54 -> - | H56: ='4บันทึกเวลาเรียน'!J54 -> - | I56: ='4บันทึกเวลาเรียน'!K54 -> - | J56: ='4บันทึกเวลาเรียน'!L54 -> - | K56: ='4บันทึกเวลาเรียน'!M54 -> - | L56: ='4บันทึกเวลาเรียน'!N54 -> - | M56: ='4บันทึกเวลาเรียน'!O54 -> - | N56: ='4บันทึกเวลาเรียน'!P54 -> - | O56: ='4บันทึกเวลาเรียน'!Q54 -> - | P56: ='4บันทึกเวลาเรียน'!R54 -> - | Q56: ='4บันทึกเวลาเรียน'!S54 -> - | R56: ='4บันทึกเวลาเรียน'!T54 -> - | S56: ='4บันทึกเวลาเรียน'!U54 -> - | T56: ='4บันทึกเวลาเรียน'!V54 -> - | U56: ='4บันทึกเวลาเรียน'!W54 -> - | V56: ='4บันทึกเวลาเรียน'!X54 -> - | W56: ='4บันทึกเวลาเรียน'!Y54 -> - | X56: ='4บันทึกเวลาเรียน'!Z54 -> - | Y56: ='4บันทึกเวลาเรียน'!AA54 -> - | Z56: ='4บันทึกเวลาเรียน'!AB54 -> - | AA56: ='4บันทึกเวลาเรียน'!AC54 -> - | AB56: ='4บันทึกเวลาเรียน'!AD54 -> - | AC56: ='4บันทึกเวลาเรียน'!AE54 -> - | AD56: ='4บันทึกเวลาเรียน'!AF54 -> - | AE56: ='4บันทึกเวลาเรียน'!AG54 -> - | AF56: ='4บันทึกเวลาเรียน'!AH54 -> - | AG56: ='4บันทึกเวลาเรียน'!AI54 -> - | AH56: ='4บันทึกเวลาเรียน'!AJ54 -> - | AI56: ='4บันทึกเวลาเรียน'!AK54 -> - | AJ56: ='4บันทึกเวลาเรียน'!AL54 -> - | AK56: ='4บันทึกเวลาเรียน'!AM54 -> - | AL56: ='4บันทึกเวลาเรียน'!AN54 -> - | AM56: ='4บันทึกเวลาเรียน'!AO54 -> - | AN56: ='4บันทึกเวลาเรียน'!AP54 -> - | AO56: ='4บันทึกเวลาเรียน'!AQ54 -> - | AP56: ='4บันทึกเวลาเรียน'!AR54 -> - | AQ56: ='4บันทึกเวลาเรียน'!AS54 -> - | AR56: ='4บันทึกเวลาเรียน'!AT54 -> - | AS56: ='4บันทึกเวลาเรียน'!AU54 -> - | AT56: ='4บันทึกเวลาเรียน'!AV54 -> - | AU56: ='4บันทึกเวลาเรียน'!AW54 -> - | AV56: ='4บันทึกเวลาเรียน'!AX54 -> - | AW56: ='4บันทึกเวลาเรียน'!AY54 -> - | AX56: ='4บันทึกเวลาเรียน'!AZ54 -> - | AY56: ='4บันทึกเวลาเรียน'!BA54 -> - | AZ56: ='4บันทึกเวลาเรียน'!BB54 -> - | BA56: ='4บันทึกเวลาเรียน'!BC54 -> - | BB56: ='4บันทึกเวลาเรียน'!BD54 -> - | BC56: ='4บันทึกเวลาเรียน'!BE54 -> - | BD56: ='4บันทึกเวลาเรียน'!BF54 -> - | BE56: ='4บันทึกเวลาเรียน'!BG54 -> - | BF56: ='4บันทึกเวลาเรียน'!BH54 -> - | BG56: ='4บันทึกเวลาเรียน'!BI54 -> - | BH56: ='4บันทึกเวลาเรียน'!BJ54 -> - | BI56: ='4บันทึกเวลาเรียน'!BK54 -> - | BJ56: ='4บันทึกเวลาเรียน'!BL54 -> - | BK56: ='4บันทึกเวลาเรียน'!BM54 -> - | BL56: ='4บันทึกเวลาเรียน'!BN54 -> - | BM56: ='4บันทึกเวลาเรียน'!BO54 -> - | BN56: ='4บันทึกเวลาเรียน'!BP54 -> - | BO56: ='4บันทึกเวลาเรียน'!BQ54 -> - | BP56: ='4บันทึกเวลาเรียน'!BR54 -> - | BQ56: ='4บันทึกเวลาเรียน'!BS54 -> - | BR56: ='4บันทึกเวลาเรียน'!BT54 -> - | BS56: ='4บันทึกเวลาเรียน'!BU54 -> - | BT56: ='4บันทึกเวลาเรียน'!BV54 -> - | BU56: ='4บันทึกเวลาเรียน'!BW54 -> - | BV56: ='4บันทึกเวลาเรียน'!BX54 -> - | BW56: ='4บันทึกเวลาเรียน'!BY54 -> - | BX56: ='4บันทึกเวลาเรียน'!BZ54 -> - | BY56: ='4บันทึกเวลาเรียน'!CA54 -> - | BZ56: ='4บันทึกเวลาเรียน'!CB54 -> - | CA56: ='4บันทึกเวลาเรียน'!CC54 -> - | CB56: ='4บันทึกเวลาเรียน'!CD54 -> - | CC56: ='4บันทึกเวลาเรียน'!CE54 -> - | CD56: ='4บันทึกเวลาเรียน'!CF54 -> - | CE56: ='4บันทึกเวลาเรียน'!CG54 -> - | CF56: ='4บันทึกเวลาเรียน'!CH54 -> - | CG56: ='4บันทึกเวลาเรียน'!CI54 -> - | CH56: ='4บันทึกเวลาเรียน'!CJ54 -> - | CI56: ='4บันทึกเวลาเรียน'!CK54 -> - | CJ56: ='4บันทึกเวลาเรียน'!CL54 -> - | CK56: ='4บันทึกเวลาเรียน'!CM54 -> - | CL56: ='4บันทึกเวลาเรียน'!CN54 -> - | CM56: ='4บันทึกเวลาเรียน'!CO54 -> - | CN56: ='4บันทึกเวลาเรียน'!CP54 -> - | CO56: ='4บันทึกเวลาเรียน'!CQ54 -> - | CP56: ='4บันทึกเวลาเรียน'!CR54 -> - | CQ56: ='4บันทึกเวลาเรียน'!CS54 -> - | CR56: ='4บันทึกเวลาเรียน'!CT54 -> - | CS56: ='4บันทึกเวลาเรียน'!CU54 -> - | CT56: ='4บันทึกเวลาเรียน'!CV54 -> - | CU56: ='4บันทึกเวลาเรียน'!CW54 -> - | CV56: ='4บันทึกเวลาเรียน'!CX54 -> - | CW56: ='4บันทึกเวลาเรียน'!CY54 -> - | CX56: ='4บันทึกเวลาเรียน'!CZ54 -> - | CY56: ='4บันทึกเวลาเรียน'!DA54 -> - | CZ56: ='4บันทึกเวลาเรียน'!DB54 -> - | DB56: - | DC56: ='1ข้อมูลรายวิชา'!E51 ->  | DD56: ='1ข้อมูลรายวิชา'!F51 ->  | DE56: ='1ข้อมูลรายวิชา'!G51 ->  | DF56: ='1ข้อมูลรายวิชา'!H51 ->  | DG56: ='1ข้อมูลรายวิชา'!I51 ->  | DH56: ='1ข้อมูลรายวิชา'!J51 ->  | DI56: ='1ข้อมูลรายวิชา'!N51 ->  | DJ56: ='1ข้อมูลรายวิชา'!O51 -> 
